Workbook

Sheet INTRO
B2: PC Joint Reporting Form v.3.1
B4: The purpose of this template Joint Reporting Form (JRF) - available as an Excel file - is to provide national health authorities and data managers with a standardized tool to address these reporting challenges, facilitate integration and thereby further contribute to improving overall programme management. This template aims to standardize national reporting of programme implementation outcomes, improve availability and coordination of preventive chemotherapy data across the World Health Organization regions. National authorities are requested to complete this form for submission to the World Health Organization any time before 15 August of the current year for reporting data on PC interventions implemented during the previous year.
B6: Structure of the application (worksheets):
B8: INTRO | C8: This worksheet includes guides on how to complete the joint reporting form and information about status of PC for endemic diseases in the country
B9: COUNTRY_INFO | C9: This worksheet includes information about administrative structure of the country, population by age group, status of endemicity for each disease, population requiring PC, planned interventions and interventions implemented
B10: MDA1, MDA2, MDA3, T1, T2 and T3 | C10: These worksheets include information about endemic districts targeted for treatment with specified PC medicines, treatment plan, and number of people who received treatment by age group
B11: DISTRICT | C11: This worksheet includes summary of people treated by disease at the level of implementation. If data by gender is available, it requires to enter.
B12: SUMMARY | C12: This worksheet includes summary of people treated by disease and by PC intervention. Before generating the report (run macros) please select the disease for which you need the report. Follow the same rule to generate various reports. This worksheet should be printed and submitted as a Joint Report (see the instruction for submission in the SUMMARY worksheet).
B14: Instruction for data entry
B16: Most of the cells in the above-mentioned worksheets include formula that are calculated automatically according to the treatment policy recommended by WHO for each disease. See the link http://www.who.int/neglected_diseases/preventive_chemotherapy/pct_manual/en/index.html
B18: Please enter your data into the cells according to their colour code:
C20: White - cell is not protected. Please enter the value of the requested indicator.
C22: Yellow - cell is protected and includes name of indicator. No data entry required.
C24: Orange - cell is not protected and includes a drop-down menu. Please select the value from the drop-down list.
C27: Green - cell is not protected and includes formula. Please change the value only if your data are different from those that are calculated automatically.
C30: Blue - cell is protected and includes formula. No data entry required.
B32: Country data
B34: COUNTRY | E34: Uganda
B36: Year of reporting data | E36: 2020
B38: Is country endemic for lymphatic filariasis (LF)? | E38: Endemic but PC is not required
B40: Is country endemic for onchocerciasis (ONCHO)? | E40: Endemic
B42: Is country endemic for soil-transmitted helminthiases (STH)? | E42: Endemic
B44: Is country endemic for schistosomiasis (SCH)? | E44: Endemic
B46: How many administrative units in the country? | E46: 134
B47: If demographical data at the second administrative level are not available by age group, please enter the proportion (%) of population by age group in the country. If data are available, please leave these cells blank.
B48: 1-4 years age | C48: Preschool-age children (PreSAC) | E48: 0.142
B49: 5-14 years age | C49: School-age children (SAC) | E49: 0.302
B50: 15 years + | C50: Adults | E50: 0.521

Sheet COUNTRY_INFO
A1: COUNTRY INFORMATION
A2: Administrative structure, population by age group, endemicity status, planned interventions and interventions implemented | M2: =7*1.07 -> 7.49
A4: TOTAL | D4: =SUM(D$9:D$993) -> 41780965 | E4: =SUM(E$9:E$993) -> 5932893 | F4: =SUM(F$9:F$993) -> 12617849 | G4: =SUM(G$9:G$993) -> 21767884 | L4: =SUM(L$9:L$993) -> 0 | M4: =SUM(M$9:M$993) -> 1581349 | N4: =SUM(N$9:N$993) -> 16511736 | O4: =SUM(O$9:O$993) -> 10005369.96
A6: Country administrative structure | D6: Population | H6: Endemicity | L6: Population requiring PC | P6: Number of treatment rounds planned for the year | T6: PC implemented | V6: Click to see the recommended strategy | AA6: mda3 | AB6: t1 | AC6: t2 | AD6: t3r1 | AE6: t3r2
A7: Country | B7: Province/State | C7: District | D7: Total | E7: PreSAC | F7: SAC | G7: Adults | H7: LF | I7: Oncho | J7: STH | K7: SCH | L7: LF | M7: Oncho | N7: STH | O7: SCH | P7: LF | Q7: Oncho | R7: STH | S7: SCH | T7: ROUND 1 | U7: ROUND2 | Y7: IU_ID | Z7: IU_NAME | AA7: x | AB7: x | AC7: x | AD7: x | AE7: x | AF7: x | AG7: x | AH7: x | AI7: x | AJ7: x | AK7: x | AL7: x | AM7: x | AN7: x | AO7: x | AP7: x | AQ7: x | AR7: x | AS7: x | AT7: x | AU7: x | AV7: x | AW7: x
A9: =IF(INTRO!$E$34<>0,INTRO!$E$34,"") -> Uganda | B9: CENTRAL | C9: BUIKWE | D9: 522004 | E9: =IF(INTRO!$E$48="","",ROUND($D9*INTRO!$E$48,0)) -> 74125 | F9: =IF(INTRO!$E$49="","",ROUND($D9*INTRO!$E$49,0)) -> 157645 | G9: =IF(INTRO!$E$50="","",ROUND($D9*INTRO!$E$50,0)) -> 271964 | H9: 0 | I9: 0 | J9: 2 | K9: 2 | L9: 0 | M9: 0 | N9: =IF(INTRO!$E$42="Endemic", IF(AND($J9>1,$J9<5), IF($J9=4, "Unknown", E9+F9), 0),"Not required") -> 231770 | O9: =VLOOKUP(C9,[1]Sheet4!$A$4:$B$39,2,FALSE) -> 154585 | P9: 0 | Q9: 0 | R9: 2 | S9: 1 | T9: T3 (ALB/MBD) | U9: T2 (PZQ) | Y9: 49725 | Z9: BUIKWE | AA9: ='MDA3'!Q9 -> 0 | AB9: ='T1'!O9 -> 0 | AC9: ='T2'!M9 -> 97703 | AD9: =T3_R1!N9 -> 62152 | AE9: =T3_R2!N9 -> 71616
A10: =IF(INTRO!$E$34<>0,INTRO!$E$34,"") -> Uganda | B10: CENTRAL | C10: BUKOMANSIMBI | D10: 180706 | E10: =IF(INTRO!$E$48="","",ROUND($D10*INTRO!$E$48,0)) -> 25660 | F10: =IF(INTRO!$E$49="","",ROUND($D10*INTRO!$E$49,0)) -> 54573 | G10: =IF(INTRO!$E$50="","",ROUND($D10*INTRO!$E$50,0)) -> 94148 | H10: 0 | I10: 0 | J10: 3 | K10: 0 | L10: 0 | M10: 0 | N10: =IF(INTRO!$E$42="Endemic", IF(AND($J10>1,$J10<5), IF($J10=4, "Unknown", E10+F10), 0),"Not required") -> 80233 | O10: =IF(INTRO!$E$44="Endemic", IF(AND($K10>0,$K10<5), IF($K10=4,"Unknown", IF($K10=1, $F10*0.33, IF($K10=2, $F10*0.5+$G10*0.2, SUM(F10:G10)))), 0),"Not required") -> 0 | P10: 0 | Q10: 0 | R10: 2 | S10: 0 | T10: T3 (ALB/MBD) | U10: T3 (ALB/MBD) | Y10: 49726 | Z10: BUKOMANSIMBI | AA10: ='MDA3'!Q10 -> 0 | AB10: ='T1'!O10 -> 0 | AC10: ='T2'!M10 -> 0 | AD10: =T3_R1!N10 -> 38229 | AE10: =T3_R2!N10 -> 31623
A11: =IF(INTRO!$E$34<>0,INTRO!$E$34,"") -> Uganda | B11: CENTRAL | C11: BUTAMBALA | D11: 120180 | E11: =IF(INTRO!$E$48="","",ROUND($D11*INTRO!$E$48,0)) -> 17066 | F11: =IF(INTRO!$E$49="","",ROUND($D11*INTRO!$E$49,0)) -> 36294 | G11: =IF(INTRO!$E$50="","",ROUND($D11*INTRO!$E$50,0)) -> 62614 | H11: 0 | I11: 0 | J11: 3 | K11: 0 | L11: 0 | M11: 0 | N11: =IF(INTRO!$E$42="Endemic", IF(AND($J11>1,$J11<5), IF($J11=4, "Unknown", E11+F11), 0),"Not required") -> 53360 | O11: =IF(INTRO!$E$44="Endemic", IF(AND($K11>0,$K11<5), IF($K11=4,"Unknown", IF($K11=1, $F11*0.33, IF($K11=2, $F11*0.5+$G11*0.2, SUM(F11:G11)))), 0),"Not required") -> 0 | P11: 0 | Q11: 0 | R11: 2 | S11: 0 | T11: T3 (ALB/MBD) | U11: T3 (ALB/MBD) | Y11: 49730 | Z11: BUTAMBALA | AA11: ='MDA3'!Q11 -> 0 | AB11: ='T1'!O11 -> 0 | AC11: ='T2'!M11 -> 0 | AD11: =T3_R1!N11 -> 23054 | AE11: =T3_R2!N11 -> 21425
A12: =IF(INTRO!$E$34<>0,INTRO!$E$34,"") -> Uganda | B12: CENTRAL | C12: BUVUMA | D12: 107608 | E12: =IF(INTRO!$E$48="","",ROUND($D12*INTRO!$E$48,0)) -> 15280 | F12: =IF(INTRO!$E$49="","",ROUND($D12*INTRO!$E$49,0)) -> 32498 | G12: =IF(INTRO!$E$50="","",ROUND($D12*INTRO!$E$50,0)) -> 56064 | H12: 0 | I12: 0 | J12: 3 | K12: 3 | L12: 0 | M12: 0 | N12: =IF(INTRO!$E$42="Endemic", IF(AND($J12>1,$J12<5), IF($J12=4, "Unknown", E12+F12), 0),"Not required") -> 47778 | O12: =VLOOKUP(C12,[1]Sheet4!$A$4:$B$39,2,FALSE) -> 98531 | P12: 0 | Q12: 0 | R12: 2 | S12: 1 | T12: T3 (ALB/MBD) | U12: T2 (PZQ) | Y12: 49731 | Z12: BUVUMA | AA12: ='MDA3'!Q12 -> 0 | AB12: ='T1'!O12 -> 0 | AC12: ='T2'!M12 -> 70715 | AD12: =T3_R1!N12 -> 14981 | AE12: =T3_R2!N12 -> 9526
A13: =IF(INTRO!$E$34<>0,INTRO!$E$34,"") -> Uganda | B13: CENTRAL | C13: GOMBA | D13: 191472 | E13: =IF(INTRO!$E$48="","",ROUND($D13*INTRO!$E$48,0)) -> 27189 | F13: =IF(INTRO!$E$49="","",ROUND($D13*INTRO!$E$49,0)) -> 57825 | G13: =IF(INTRO!$E$50="","",ROUND($D13*INTRO!$E$50,0)) -> 99757 | H13: 0 | I13: 0 | J13: 3 | K13: 3 | L13: 0 | M13: 0 | N13: =IF(INTRO!$E$42="Endemic", IF(AND($J13>1,$J13<5), IF($J13=4, "Unknown", E13+F13), 0),"Not required") -> 85014 | O13: =VLOOKUP(C13,[1]Sheet4!$A$4:$B$39,2,FALSE) -> 112251 | P13: 0 | Q13: 0 | R13: 2 | S13: 1 | T13: T3 (ALB/MBD) | U13: T2 (PZQ) | Y13: 49735 | Z13: GOMBA | AA13: ='MDA3'!Q13 -> 0 | AB13: ='T1'!O13 -> 0 | AC13: ='T2'!M13 -> 95357 | AD13: =T3_R1!N13 -> 22092 | AE13: =T3_R2!N13 -> 35155
A14: =IF(INTRO!$E$34<>0,INTRO!$E$34,"") -> Uganda | B14: CENTRAL | C14: KALANGALA | D14: 63880 | E14: =IF(INTRO!$E$48="","",ROUND($D14*INTRO!$E$48,0)) -> 9071 | F14: =IF(INTRO!$E$49="","",ROUND($D14*INTRO!$E$49,0)) -> 19292 | G14: =IF(INTRO!$E$50="","",ROUND($D14*INTRO!$E$50,0)) -> 33281 | H14: 0 | I14: 0 | J14: 2 | K14: 3 | L14: 0 | M14: 0 | N14: =IF(INTRO!$E$42="Endemic", IF(AND($J14>1,$J14<5), IF($J14=4, "Unknown", E14+F14), 0),"Not required") -> 28363 | O14: =VLOOKUP(C14,[1]Sheet4!$A$4:$B$39,2,FALSE) -> 67976 | P14: 0 | Q14: 0 | R14: 2 | S14: 1 | T14: T3 (ALB/MBD) | U14: T2 (PZQ) | Y14: 49745 | Z14: KALANGALA | AA14: ='MDA3'!Q14 -> 0 | AB14: ='T1'!O14 -> 0 | AC14: ='T2'!M14 -> 53788 | AD14: =T3_R1!N14 -> 21167 | AE14: =T3_R2!N14 -> 3198
A15: =IF(INTRO!$E$34<>0,INTRO!$E$34,"") -> Uganda | B15: CENTRAL | C15: KALUNGU | D15: 220249 | E15: =IF(INTRO!$E$48="","",ROUND($D15*INTRO!$E$48,0)) -> 31275 | F15: =IF(INTRO!$E$49="","",ROUND($D15*INTRO!$E$49,0)) -> 66515 | G15: =IF(INTRO!$E$50="","",ROUND($D15*INTRO!$E$50,0)) -> 114750 | H15: 0 | I15: 0 | J15: 3 | K15: 1 | L15: 0 | M15: 0 | N15: =IF(INTRO!$E$42="Endemic", IF(AND($J15>1,$J15<5), IF($J15=4, "Unknown", E15+F15), 0),"Not required") -> 97790 | O15: =IF(INTRO!$E$44="Endemic", IF(AND($K15>0,$K15<5), IF($K15=4,"Unknown", IF($K15=1, $F15*0.33, IF($K15=2, $F15*0.5+$G15*0.2, SUM(F15:G15)))), 0),"Not required") -> 21949.95 | P15: 0 | Q15: 0 | R15: 2 | S15: 0 | T15: T3 (ALB/MBD) | U15: T3 (ALB/MBD) | Y15: 49758 | Z15: KALUNGU | AA15: ='MDA3'!Q15 -> 0 | AB15: ='T1'!O15 -> 0 | AC15: ='T2'!M15 -> 0 | AD15: =T3_R1!N15 -> 34382 | AE15: =T3_R2!N15 -> 41411
A16: =IF(INTRO!$E$34<>0,INTRO!$E$34,"") -> Uganda | B16: CENTRAL | C16: KAMPALA | D16: 1813602 | E16: =IF(INTRO!$E$48="","",ROUND($D16*INTRO!$E$48,0)) -> 257531 | F16: =IF(INTRO!$E$49="","",ROUND($D16*INTRO!$E$49,0)) -> 547708 | G16: =IF(INTRO!$E$50="","",ROUND($D16*INTRO!$E$50,0)) -> 944887 | H16: 0 | I16: 0 | J16: 3 | K16: 0 | L16: 0 | M16: 0 | N16: =IF(INTRO!$E$42="Endemic", IF(AND($J16>1,$J16<5), IF($J16=4, "Unknown", E16+F16), 0),"Not required") -> 805239 | O16: =IF(INTRO!$E$44="Endemic", IF(AND($K16>0,$K16<5), IF($K16=4,"Unknown", IF($K16=1, $F16*0.33, IF($K16=2, $F16*0.5+$G16*0.2, SUM(F16:G16)))), 0),"Not required") -> 0 | P16: 0 | Q16: 0 | R16: 2 | S16: 0 | T16: T3 (ALB/MBD) | U16: T3 (ALB/MBD) | Y16: 49759 | Z16: KAMPALA | AA16: ='MDA3'!Q16 -> 0 | AB16: ='T1'!O16 -> 0 | AC16: ='T2'!M16 -> 0 | AD16: =T3_R1!N16 -> 239749 | AE16: =T3_R2!N16 -> 89027
A17: =IF(INTRO!$E$34<>0,INTRO!$E$34,"") -> Uganda | B17: CENTRAL | C17: KAYUNGA | D17: 442824 | E17: =IF(INTRO!$E$48="","",ROUND($D17*INTRO!$E$48,0)) -> 62881 | F17: =IF(INTRO!$E$49="","",ROUND($D17*INTRO!$E$49,0)) -> 133733 | G17: =IF(INTRO!$E$50="","",ROUND($D17*INTRO!$E$50,0)) -> 230711 | H17: 0 | I17: 0 | J17: 2 | K17: 3 | L17: 0 | M17: 0 | N17: =IF(INTRO!$E$42="Endemic", IF(AND($J17>1,$J17<5), IF($J17=4, "Unknown", E17+F17), 0),"Not required") -> 196614 | O17: =VLOOKUP(C17,[1]Sheet4!$A$4:$B$39,2,FALSE) -> 237292 | P17: 0 | Q17: 0 | R17: 2 | S17: 1 | T17: T3 (ALB/MBD) | U17: T2 (PZQ) | Y17: 49761 | Z17: KAYUNGA | AA17: ='MDA3'!Q17 -> 0 | AB17: ='T1'!O17 -> 0 | AC17: ='T2'!M17 -> 183758 | AD17: =T3_R1!N17 -> 98950 | AE17: =T3_R2!N17 -> 94018
A18: =IF(INTRO!$E$34<>0,INTRO!$E$34,"") -> Uganda | B18: CENTRAL | C18: KIBOGA | D18: 177292 | E18: =IF(INTRO!$E$48="","",ROUND($D18*INTRO!$E$48,0)) -> 25175 | F18: =IF(INTRO!$E$49="","",ROUND($D18*INTRO!$E$49,0)) -> 53542 | G18: =IF(INTRO!$E$50="","",ROUND($D18*INTRO!$E$50,0)) -> 92369 | H18: 0 | I18: 0 | J18: 3 | K18: 0 | L18: 0 | M18: 0 | N18: =IF(INTRO!$E$42="Endemic", IF(AND($J18>1,$J18<5), IF($J18=4, "Unknown", E18+F18), 0),"Not required") -> 78717 | O18: =IF(INTRO!$E$44="Endemic", IF(AND($K18>0,$K18<5), IF($K18=4,"Unknown", IF($K18=1, $F18*0.33, IF($K18=2, $F18*0.5+$G18*0.2, SUM(F18:G18)))), 0),"Not required") -> 0 | P18: 0 | Q18: 0 | R18: 2 | S18: 0 | T18: T3 (ALB/MBD) | U18: T3 (ALB/MBD) | Y18: 49762 | Z18: KIBOGA | AA18: ='MDA3'!Q18 -> 0 | AB18: ='T1'!O18 -> 0 | AC18: ='T2'!M18 -> 0 | AD18: =T3_R1!N18 -> 29869 | AE18: =T3_R2!N18 -> 25147
A19: =IF(INTRO!$E$34<>0,INTRO!$E$34,"") -> Uganda | B19: CENTRAL | C19: KYANKWANZI | D19: 256804 | E19: =IF(INTRO!$E$48="","",ROUND($D19*INTRO!$E$48,0)) -> 36466 | F19: =IF(INTRO!$E$49="","",ROUND($D19*INTRO!$E$49,0)) -> 77555 | G19: =IF(INTRO!$E$50="","",ROUND($D19*INTRO!$E$50,0)) -> 133795 | H19: 0 | I19: 0 | J19: 3 | K19: 0 | L19: 0 | M19: 0 | N19: =IF(INTRO!$E$42="Endemic", IF(AND($J19>1,$J19<5), IF($J19=4, "Unknown", E19+F19), 0),"Not required") -> 114021 | O19: =IF(INTRO!$E$44="Endemic", IF(AND($K19>0,$K19<5), IF($K19=4,"Unknown", IF($K19=1, $F19*0.33, IF($K19=2, $F19*0.5+$G19*0.2, SUM(F19:G19)))), 0),"Not required") -> 0 | P19: 0 | Q19: 0 | R19: 2 | S19: 0 | T19: T3 (ALB/MBD) | U19: T3 (ALB/MBD) | Y19: 49769 | Z19: KYANKWANZI | AA19: ='MDA3'!Q19 -> 0 | AB19: ='T1'!O19 -> 0 | AC19: ='T2'!M19 -> 0 | AD19: =T3_R1!N19 -> 88360 | AE19: =T3_R2!N19 -> 13951
A20: =IF(INTRO!$E$34<>0,INTRO!$E$34,"") -> Uganda | B20: CENTRAL | C20: KYOTERA | D20: 193677 | E20: =IF(INTRO!$E$48="","",ROUND($D20*INTRO!$E$48,0)) -> 27502 | F20: =IF(INTRO!$E$49="","",ROUND($D20*INTRO!$E$49,0)) -> 58490 | G20: =IF(INTRO!$E$50="","",ROUND($D20*INTRO!$E$50,0)) -> 100906 | H20: 0 | I20: 0 | J20: 3 | K20: 1 | L20: 0 | M20: 0 | N20: =IF(INTRO!$E$42="Endemic", IF(AND($J20>1,$J20<5), IF($J20=4, "Unknown", E20+F20), 0),"Not required") -> 85992 | O20: =IF(INTRO!$E$44="Endemic", IF(AND($K20>0,$K20<5), IF($K20=4,"Unknown", IF($K20=1, $F20*0.33, IF($K20=2, $F20*0.5+$G20*0.2, SUM(F20:G20)))), 0),"Not required") -> 19301.7 | P20: 0 | Q20: 0 | R20: 2 | S20: 0 | T20: T3 (ALB/MBD) | U20: T3 (ALB/MBD) | Y20: 49823 | Z20: KYOTERA | AA20: ='MDA3'!Q20 -> 0 | AB20: ='T1'!O20 -> 0 | AC20: ='T2'!M20 -> 0 | AD20: =T3_R1!N20 -> 52971 | AE20: =T3_R2!N20 -> 57346
A21: =IF(INTRO!$E$34<>0,INTRO!$E$34,"") -> Uganda | B21: CENTRAL | C21: LUWERO | D21: 546583 | E21: =IF(INTRO!$E$48="","",ROUND($D21*INTRO!$E$48,0)) -> 77615 | F21: =IF(INTRO!$E$49="","",ROUND($D21*INTRO!$E$49,0)) -> 165068 | G21: =IF(INTRO!$E$50="","",ROUND($D21*INTRO!$E$50,0)) -> 284770 | H21: 0 | I21: 0 | J21: 3 | K21: 0 | L21: 0 | M21: 0 | N21: =IF(INTRO!$E$42="Endemic", IF(AND($J21>1,$J21<5), IF($J21=4, "Unknown", E21+F21), 0),"Not required") -> 242683 | O21: =IF(INTRO!$E$44="Endemic", IF(AND($K21>0,$K21<5), IF($K21=4,"Unknown", IF($K21=1, $F21*0.33, IF($K21=2, $F21*0.5+$G21*0.2, SUM(F21:G21)))), 0),"Not required") -> 0 | P21: 0 | Q21: 0 | R21: 2 | S21: 0 | T21: T3 (ALB/MBD) | U21: T3 (ALB/MBD) | Y21: 49774 | Z21: LUWERO | AA21: ='MDA3'!Q21 -> 0 | AB21: ='T1'!O21 -> 0 | AC21: ='T2'!M21 -> 0 | AD21: =T3_R1!N21 -> 91824 | AE21: =T3_R2!N21 -> 80464
A22: =IF(INTRO!$E$34<>0,INTRO!$E$34,"") -> Uganda | B22: CENTRAL | C22: LWENGO | D22: 329475 | E22: =IF(INTRO!$E$48="","",ROUND($D22*INTRO!$E$48,0)) -> 46785 | F22: =IF(INTRO!$E$49="","",ROUND($D22*INTRO!$E$49,0)) -> 99501 | G22: =IF(INTRO!$E$50="","",ROUND($D22*INTRO!$E$50,0)) -> 171656 | H22: 0 | I22: 0 | J22: 3 | K22: 0 | L22: 0 | M22: 0 | N22: =IF(INTRO!$E$42="Endemic", IF(AND($J22>1,$J22<5), IF($J22=4, "Unknown", E22+F22), 0),"Not required") -> 146286 | O22: =IF(INTRO!$E$44="Endemic", IF(AND($K22>0,$K22<5), IF($K22=4,"Unknown", IF($K22=1, $F22*0.33, IF($K22=2, $F22*0.5+$G22*0.2, SUM(F22:G22)))), 0),"Not required") -> 0 | P22: 0 | Q22: 0 | R22: 2 | S22: 0 | T22: T3 (ALB/MBD) | U22: T3 (ALB/MBD) | Y22: 49775 | Z22: LWENGO | AA22: ='MDA3'!Q22 -> 0 | AB22: ='T1'!O22 -> 0 | AC22: ='T2'!M22 -> 0 | AD22: =T3_R1!N22 -> 41566 | AE22: =T3_R2!N22 -> 60297
A23: =IF(INTRO!$E$34<>0,INTRO!$E$34,"") -> Uganda | B23: CENTRAL | C23: LYANTONDE | D23: 113120 | E23: =IF(INTRO!$E$48="","",ROUND($D23*INTRO!$E$48,0)) -> 16063 | F23: =IF(INTRO!$E$49="","",ROUND($D23*INTRO!$E$49,0)) -> 34162 | G23: =IF(INTRO!$E$50="","",ROUND($D23*INTRO!$E$50,0)) -> 58936 | H23: 0 | I23: 0 | J23: 3 | K23: 0 | L23: 0 | M23: 0 | N23: =IF(INTRO!$E$42="Endemic", IF(AND($J23>1,$J23<5), IF($J23=4, "Unknown", E23+F23), 0),"Not required") -> 50225 | O23: =IF(INTRO!$E$44="Endemic", IF(AND($K23>0,$K23<5), IF($K23=4,"Unknown", IF($K23=1, $F23*0.33, IF($K23=2, $F23*0.5+$G23*0.2, SUM(F23:G23)))), 0),"Not required") -> 0 | P23: 0 | Q23: 0 | R23: 2 | S23: 0 | T23: T3 (ALB/MBD) | U23: T3 (ALB/MBD) | Y23: 49776 | Z23: LYANTONDE | AA23: ='MDA3'!Q23 -> 0 | AB23: ='T1'!O23 -> 0 | AC23: ='T2'!M23 -> 0 | AD23: =T3_R1!N23 -> 29571 | AE23: =T3_R2!N23 -> 16722
A24: =IF(INTRO!$E$34<>0,INTRO!$E$34,"") -> Uganda | B24: CENTRAL | C24: MASAKA | D24: 354832 | E24: =IF(INTRO!$E$48="","",ROUND($D24*INTRO!$E$48,0)) -> 50386 | F24: =IF(INTRO!$E$49="","",ROUND($D24*INTRO!$E$49,0)) -> 107159 | G24: =IF(INTRO!$E$50="","",ROUND($D24*INTRO!$E$50,0)) -> 184867 | H24: 0 | I24: 0 | J24: 3 | K24: 3 | L24: 0 | M24: 0 | N24: =IF(INTRO!$E$42="Endemic", IF(AND($J24>1,$J24<5), IF($J24=4, "Unknown", E24+F24), 0),"Not required") -> 157545 | O24: =VLOOKUP(C24,[1]Sheet4!$A$4:$B$39,2,FALSE) -> 44983 | P24: 0 | Q24: 0 | R24: 2 | S24: 1 | T24: T3 (ALB/MBD) | U24: T2 (PZQ) | Y24: 49785 | Z24: MASAKA | AA24: ='MDA3'!Q24 -> 0 | AB24: ='T1'!O24 -> 0 | AC24: ='T2'!M24 -> 34176 | AD24: =T3_R1!N24 -> 46080 | AE24: =T3_R2!N24 -> 55725
A25: =IF(INTRO!$E$34<>0,INTRO!$E$34,"") -> Uganda | B25: CENTRAL | C25: MITYANA | D25: 396239 | E25: =IF(INTRO!$E$48="","",ROUND($D25*INTRO!$E$48,0)) -> 56266 | F25: =IF(INTRO!$E$49="","",ROUND($D25*INTRO!$E$49,0)) -> 119664 | G25: =IF(INTRO!$E$50="","",ROUND($D25*INTRO!$E$50,0)) -> 206441 | H25: 0 | I25: 0 | J25: 2 | K25: 3 | L25: 0 | M25: 0 | N25: =IF(INTRO!$E$42="Endemic", IF(AND($J25>1,$J25<5), IF($J25=4, "Unknown", E25+F25), 0),"Not required") -> 175930 | O25: =VLOOKUP(C25,[1]Sheet4!$A$4:$B$39,2,FALSE) -> 29541 | P25: 0 | Q25: 0 | R25: 2 | S25: 1 | T25: T3 (ALB/MBD) | U25: T2 (PZQ) | Y25: 49788 | Z25: MITYANA | AA25: ='MDA3'!Q25 -> 0 | AB25: ='T1'!O25 -> 0 | AC25: ='T2'!M25 -> 21756 | AD25: =T3_R1!N25 -> 62899 | AE25: =T3_R2!N25 -> 30122
A26: =IF(INTRO!$E$34<>0,INTRO!$E$34,"") -> Uganda | B26: CENTRAL | C26: MPIGI | D26: 300843 | E26: =IF(INTRO!$E$48="","",ROUND($D26*INTRO!$E$48,0)) -> 42720 | F26: =IF(INTRO!$E$49="","",ROUND($D26*INTRO!$E$49,0)) -> 90855 | G26: =IF(INTRO!$E$50="","",ROUND($D26*INTRO!$E$50,0)) -> 156739 | H26: 0 | I26: 0 | J26: 2 | K26: 2 | L26: 0 | M26: 0 | N26: =IF(INTRO!$E$42="Endemic", IF(AND($J26>1,$J26<5), IF($J26=4, "Unknown", E26+F26), 0),"Not required") -> 133575 | O26: =VLOOKUP(C26,[1]Sheet4!$A$4:$B$39,2,FALSE) -> 95467 | P26: 0 | Q26: 0 | R26: 2 | S26: 1 | T26: T3 (ALB/MBD) | U26: T2 (PZQ) | Y26: 49789 | Z26: MPIGI | AA26: ='MDA3'!Q26 -> 0 | AB26: ='T1'!O26 -> 0 | AC26: ='T2'!M26 -> 70182 | AD26: =T3_R1!N26 -> 46191 | AE26: =T3_R2!N26 -> 35597
A27: =IF(INTRO!$E$34<>0,INTRO!$E$34,"") -> Uganda | B27: CENTRAL | C27: MUBENDE | D27: 494668 | E27: =IF(INTRO!$E$48="","",ROUND($D27*INTRO!$E$48,0)) -> 70243 | F27: =IF(INTRO!$E$49="","",ROUND($D27*INTRO!$E$49,0)) -> 149390 | G27: =IF(INTRO!$E$50="","",ROUND($D27*INTRO!$E$50,0)) -> 257722 | H27: 0 | I27: 0 | J27: 3 | K27: 1 | L27: 0 | M27: 0 | N27: =IF(INTRO!$E$42="Endemic", IF(AND($J27>1,$J27<5), IF($J27=4, "Unknown", E27+F27), 0),"Not required") -> 219633 | O27: =IF(INTRO!$E$44="Endemic", IF(AND($K27>0,$K27<5), IF($K27=4,"Unknown", IF($K27=1, $F27*0.33, IF($K27=2, $F27*0.5+$G27*0.2, SUM(F27:G27)))), 0),"Not required") -> 49298.7 | P27: 0 | Q27: 0 | R27: 2 | S27: 0 | T27: T3 (ALB/MBD) | U27: T3 (ALB/MBD) | Y27: 49790 | Z27: MUBENDE | AA27: ='MDA3'!Q27 -> 0 | AB27: ='T1'!O27 -> 0 | AC27: ='T2'!M27 -> 0 | AD27: =T3_R1!N27 -> 103503 | AE27: =T3_R2!N27 -> 44269
A28: =IF(INTRO!$E$34<>0,INTRO!$E$34,"") -> Uganda | B28: CENTRAL | C28: KASSANDA | D28: 329255 | E28: =IF(INTRO!$E$48="","",ROUND($D28*INTRO!$E$48,0)) -> 46754 | F28: =IF(INTRO!$E$49="","",ROUND($D28*INTRO!$E$49,0)) -> 99435 | G28: =IF(INTRO!$E$50="","",ROUND($D28*INTRO!$E$50,0)) -> 171542 | H28: 0 | I28: 0 | J28: 3 | K28: 1 | L28: 0 | M28: 0 | N28: =IF(INTRO!$E$42="Endemic", IF(AND($J28>1,$J28<5), IF($J28=4, "Unknown", E28+F28), 0),"Not required") -> 146189 | O28: =IF(INTRO!$E$44="Endemic", IF(AND($K28>0,$K28<5), IF($K28=4,"Unknown", IF($K28=1, $F28*0.33, IF($K28=2, $F28*0.5+$G28*0.2, SUM(F28:G28)))), 0),"Not required") -> 32813.55 | P28: 0 | Q28: 0 | R28: 2 | S28: 0 | T28: T3 (ALB/MBD) | U28: T3 (ALB/MBD) | Y28: 49830 | Z28: KASSANDA | AA28: ='MDA3'!Q28 -> 0 | AB28: ='T1'!O28 -> 0 | AC28: ='T2'!M28 -> 0 | AD28: =T3_R1!N28 -> 58153 | AE28: =T3_R2!N28 -> 16602
A29: =IF(INTRO!$E$34<>0,INTRO!$E$34,"") -> Uganda | B29: CENTRAL | C29: MUKONO | D29: 717465 | E29: =IF(INTRO!$E$48="","",ROUND($D29*INTRO!$E$48,0)) -> 101880 | F29: =IF(INTRO!$E$49="","",ROUND($D29*INTRO!$E$49,0)) -> 216674 | G29: =IF(INTRO!$E$50="","",ROUND($D29*INTRO!$E$50,0)) -> 373799 | H29: 0 | I29: 0 | J29: 2 | K29: 3 | L29: 0 | M29: 0 | N29: =IF(INTRO!$E$42="Endemic", IF(AND($J29>1,$J29<5), IF($J29=4, "Unknown", E29+F29), 0),"Not required") -> 318554 | O29: =VLOOKUP(C29,[1]Sheet4!$A$4:$B$39,2,FALSE) -> 170943 | P29: 0 | Q29: 0 | R29: 2 | S29: 1 | T29: T3 (ALB/MBD) | U29: T2 (PZQ) | Y29: 49783 | Z29: MUKONO | AA29: ='MDA3'!Q29 -> 0 | AB29: ='T1'!O29 -> 0 | AC29: ='T2'!M29 -> 143354 | AD29: =T3_R1!N29 -> 92940 | AE29: =T3_R2!N29 -> 37737
A30: =IF(INTRO!$E$34<>0,INTRO!$E$34,"") -> Uganda | B30: CENTRAL | C30: NAKASEKE | D30: 236483 | E30: =IF(INTRO!$E$48="","",ROUND($D30*INTRO!$E$48,0)) -> 33581 | F30: =IF(INTRO!$E$49="","",ROUND($D30*INTRO!$E$49,0)) -> 71418 | G30: =IF(INTRO!$E$50="","",ROUND($D30*INTRO!$E$50,0)) -> 123208 | H30: 0 | I30: 0 | J30: 3 | K30: 0 | L30: 0 | M30: 0 | N30: =IF(INTRO!$E$42="Endemic", IF(AND($J30>1,$J30<5), IF($J30=4, "Unknown", E30+F30), 0),"Not required") -> 104999 | O30: =IF(INTRO!$E$44="Endemic", IF(AND($K30>0,$K30<5), IF($K30=4,"Unknown", IF($K30=1, $F30*0.33, IF($K30=2, $F30*0.5+$G30*0.2, SUM(F30:G30)))), 0),"Not required") -> 0 | P30: 0 | Q30: 0 | R30: 2 | S30: 0 | T30: T3 (ALB/MBD) | U30: T3 (ALB/MBD) | Y30: 49795 | Z30: NAKASEKE | AA30: ='MDA3'!Q30 -> 0 | AB30: ='T1'!O30 -> 0 | AC30: ='T2'!M30 -> 0 | AD30: =T3_R1!N30 -> 35374 | AE30: =T3_R2!N30 -> 17371
A31: =IF(INTRO!$E$34<>0,INTRO!$E$34,"") -> Uganda | B31: CENTRAL | C31: NAKASONGOLA | D31: 217531 | E31: =IF(INTRO!$E$48="","",ROUND($D31*INTRO!$E$48,0)) -> 30889 | F31: =IF(INTRO!$E$49="","",ROUND($D31*INTRO!$E$49,0)) -> 65694 | G31: =IF(INTRO!$E$50="","",ROUND($D31*INTRO!$E$50,0)) -> 113334 | H31: 0 | I31: 0 | J31: 3 | K31: 1 | L31: 0 | M31: 0 | N31: =IF(INTRO!$E$42="Endemic", IF(AND($J31>1,$J31<5), IF($J31=4, "Unknown", E31+F31), 0),"Not required") -> 96583 | O31: =IF(INTRO!$E$44="Endemic", IF(AND($K31>0,$K31<5), IF($K31=4,"Unknown", IF($K31=1, $F31*0.33, IF($K31=2, $F31*0.5+$G31*0.2, SUM(F31:G31)))), 0),"Not required") -> 21679.02 | P31: 0 | Q31: 0 | R31: 2 | S31: 0 | T31: T3 (ALB/MBD) | U31: T3 (ALB/MBD) | Y31: 49791 | Z31: NAKASONGOLA | AA31: ='MDA3'!Q31 -> 0 | AB31: ='T1'!O31 -> 0 | AC31: ='T2'!M31 -> 0 | AD31: =T3_R1!N31 -> 33546 | AE31: =T3_R2!N31 -> 10644
A32: =IF(INTRO!$E$34<>0,INTRO!$E$34,"") -> Uganda | B32: CENTRAL | C32: RAKAI | D32: 425939 | E32: =IF(INTRO!$E$48="","",ROUND($D32*INTRO!$E$48,0)) -> 60483 | F32: =IF(INTRO!$E$49="","",ROUND($D32*INTRO!$E$49,0)) -> 128634 | G32: =IF(INTRO!$E$50="","",ROUND($D32*INTRO!$E$50,0)) -> 221914 | H32: 0 | I32: 0 | J32: 3 | K32: 1 | L32: 0 | M32: 0 | N32: =IF(INTRO!$E$42="Endemic", IF(AND($J32>1,$J32<5), IF($J32=4, "Unknown", E32+F32), 0),"Not required") -> 189117 | O32: =IF(INTRO!$E$44="Endemic", IF(AND($K32>0,$K32<5), IF($K32=4,"Unknown", IF($K32=1, $F32*0.33, IF($K32=2, $F32*0.5+$G32*0.2, SUM(F32:G32)))), 0),"Not required") -> 42449.22 | P32: 0 | Q32: 0 | R32: 2 | S32: 0 | T32: T3 (ALB/MBD) | U32: T3 (ALB/MBD) | Y32: 49807 | Z32: RAKAI | AA32: ='MDA3'!Q32 -> 0 | AB32: ='T1'!O32 -> 0 | AC32: ='T2'!M32 -> 0 | AD32: =T3_R1!N32 -> 70665 | AE32: =T3_R2!N32 -> 56465
A33: =IF(INTRO!$E$34<>0,INTRO!$E$34,"") -> Uganda | B33: CENTRAL | C33: SSEMBABULE | D33: 302617 | E33: =IF(INTRO!$E$48="","",ROUND($D33*INTRO!$E$48,0)) -> 42972 | F33: =IF(INTRO!$E$49="","",ROUND($D33*INTRO!$E$49,0)) -> 91390 | G33: =IF(INTRO!$E$50="","",ROUND($D33*INTRO!$E$50,0)) -> 157663 | H33: 0 | I33: 0 | J33: 3 | K33: 0 | L33: 0 | M33: 0 | N33: =IF(INTRO!$E$42="Endemic", IF(AND($J33>1,$J33<5), IF($J33=4, "Unknown", E33+F33), 0),"Not required") -> 134362 | O33: =IF(INTRO!$E$44="Endemic", IF(AND($K33>0,$K33<5), IF($K33=4,"Unknown", IF($K33=1, $F33*0.33, IF($K33=2, $F33*0.5+$G33*0.2, SUM(F33:G33)))), 0),"Not required") -> 0 | P33: 0 | Q33: 0 | R33: 2 | S33: 0 | T33: T3 (ALB/MBD) | U33: T3 (ALB/MBD) | Y33: 49811 | Z33: SSEMBABULE | AA33: ='MDA3'!Q33 -> 0 | AB33: ='T1'!O33 -> 0 | AC33: ='T2'!M33 -> 0 | AD33: =T3_R1!N33 -> 46202 | AE33: =T3_R2!N33 -> 12770
A34: =IF(INTRO!$E$34<>0,INTRO!$E$34,"") -> Uganda | B34: CENTRAL | C34: WAKISO | D34: 2401497 | E34: =IF(INTRO!$E$48="","",ROUND($D34*INTRO!$E$48,0)) -> 341013 | F34: =IF(INTRO!$E$49="","",ROUND($D34*INTRO!$E$49,0)) -> 725252 | G34: =IF(INTRO!$E$50="","",ROUND($D34*INTRO!$E$50,0)) -> 1251180 | H34: 0 | I34: 0 | J34: 1 | K34: 2 | L34: 0 | M34: 0 | N34: =IF(INTRO!$E$42="Endemic", IF(AND($J34>1,$J34<5), IF($J34=4, "Unknown", E34+F34), 0),"Not required") -> 0 | O34: =VLOOKUP(C34,[1]Sheet4!$A$4:$B$39,2,FALSE) -> 273262 | P34: 0 | Q34: 0 | R34: 2 | S34: 1 | T34: T3 (ALB/MBD) | U34: T2 (PZQ) | Y34: 49815 | Z34: WAKISO | AA34: ='MDA3'!Q34 -> 0 | AB34: ='T1'!O34 -> 0 | AC34: ='T2'!M34 -> 200047 | AD34: =T3_R1!N34 -> 237101 | AE34: =T3_R2!N34 -> 299879
A35: =IF(INTRO!$E$34<>0,INTRO!$E$34,"") -> Uganda | B35: EASTERN | C35: AMURIA | D35: 218903 | E35: =IF(INTRO!$E$48="","",ROUND($D35*INTRO!$E$48,0)) -> 31084 | F35: =IF(INTRO!$E$49="","",ROUND($D35*INTRO!$E$49,0)) -> 66109 | G35: =IF(INTRO!$E$50="","",ROUND($D35*INTRO!$E$50,0)) -> 114048 | H35: 99 | I35: 0 | J35: 3 | K35: 0 | L35: 0 | M35: 0 | N35: =IF(INTRO!$E$42="Endemic", IF(AND($J35>1,$J35<5), IF($J35=4, "Unknown", E35+F35), 0),"Not required") -> 97193 | O35: =IF(INTRO!$E$44="Endemic", IF(AND($K35>0,$K35<5), IF($K35=4,"Unknown", IF($K35=1, $F35*0.33, IF($K35=2, $F35*0.5+$G35*0.2, SUM(F35:G35)))), 0),"Not required") -> 0 | P35: 0 | Q35: 0 | R35: 2 | S35: 0 | T35: T3 (ALB/MBD) | U35: T3 (ALB/MBD) | Y35: 49709 | Z35: AMURIA | AA35: ='MDA3'!Q35 -> 0 | AB35: ='T1'!O35 -> 0 | AC35: ='T2'!M35 -> 0 | AD35: =T3_R1!N35 -> 52666 | AE35: =T3_R2!N35 -> 99779
A36: =IF(INTRO!$E$34<>0,INTRO!$E$34,"") -> Uganda | B36: EASTERN | C36: KAPELEBYONG | D36: 104776 | E36: =IF(INTRO!$E$48="","",ROUND($D36*INTRO!$E$48,0)) -> 14878 | F36: =IF(INTRO!$E$49="","",ROUND($D36*INTRO!$E$49,0)) -> 31642 | G36: =IF(INTRO!$E$50="","",ROUND($D36*INTRO!$E$50,0)) -> 54588 | H36: 99 | I36: 0 | J36: 3 | K36: 0 | L36: 0 | M36: 0 | N36: =IF(INTRO!$E$42="Endemic", IF(AND($J36>1,$J36<5), IF($J36=4, "Unknown", E36+F36), 0),"Not required") -> 46520 | O36: =IF(INTRO!$E$44="Endemic", IF(AND($K36>0,$K36<5), IF($K36=4,"Unknown", IF($K36=1, $F36*0.33, IF($K36=2, $F36*0.5+$G36*0.2, SUM(F36:G36)))), 0),"Not required") -> 0 | P36: 0 | Q36: 0 | R36: 2 | S36: 0 | T36: T3 (ALB/MBD) | U36: T3 (ALB/MBD) | Y36: 49832 | Z36: KAPELEBYONG | AA36: ='MDA3'!Q36 -> 0 | AB36: ='T1'!O36 -> 0 | AC36: ='T2'!M36 -> 0 | AD36: =T3_R1!N36 -> 17361 | AE36: =T3_R2!N36 -> 53830
A37: =IF(INTRO!$E$34<>0,INTRO!$E$34,"") -> Uganda | B37: EASTERN | C37: BUDAKA | D37: 249321 | E37: =IF(INTRO!$E$48="","",ROUND($D37*INTRO!$E$48,0)) -> 35404 | F37: =IF(INTRO!$E$49="","",ROUND($D37*INTRO!$E$49,0)) -> 75295 | G37: =IF(INTRO!$E$50="","",ROUND($D37*INTRO!$E$50,0)) -> 129896 | H37: 99 | I37: 0 | J37: 3 | K37: 1 | L37: 0 | M37: 0 | N37: =IF(INTRO!$E$42="Endemic", IF(AND($J37>1,$J37<5), IF($J37=4, "Unknown", E37+F37), 0),"Not required") -> 110699 | O37: =IF(INTRO!$E$44="Endemic", IF(AND($K37>0,$K37<5), IF($K37=4,"Unknown", IF($K37=1, $F37*0.33, IF($K37=2, $F37*0.5+$G37*0.2, SUM(F37:G37)))), 0),"Not required") -> 24847.35 | P37: 0 | Q37: 0 | R37: 2 | S37: 0 | T37: T3 (ALB/MBD) | U37: T3 (ALB/MBD) | Y37: 49716 | Z37: BUDAKA | AA37: ='MDA3'!Q37 -> 0 | AB37: ='T1'!O37 -> 0 | AC37: ='T2'!M37 -> 0 | AD37: =T3_R1!N37 -> 50073 | AE37: =T3_R2!N37 -> 64453
A38: =IF(INTRO!$E$34<>0,INTRO!$E$34,"") -> Uganda | B38: EASTERN | C38: BUDUDA | D38: 253202 | E38: =IF(INTRO!$E$48="","",ROUND($D38*INTRO!$E$48,0)) -> 35955 | F38: =IF(INTRO!$E$49="","",ROUND($D38*INTRO!$E$49,0)) -> 76467 | G38: =IF(INTRO!$E$50="","",ROUND($D38*INTRO!$E$50,0)) -> 131918 | H38: 0 | I38: 99 | J38: 3 | K38: 0 | L38: 0 | M38: 0 | N38: =IF(INTRO!$E$42="Endemic", IF(AND($J38>1,$J38<5), IF($J38=4, "Unknown", E38+F38), 0),"Not required") -> 112422 | O38: =IF(INTRO!$E$44="Endemic", IF(AND($K38>0,$K38<5), IF($K38=4,"Unknown", IF($K38=1, $F38*0.33, IF($K38=2, $F38*0.5+$G38*0.2, SUM(F38:G38)))), 0),"Not required") -> 0 | P38: 0 | Q38: 0 | R38: 2 | S38: 0 | T38: T3 (ALB/MBD) | U38: T3 (ALB/MBD) | Y38: 49717 | Z38: BUDUDA | AA38: ='MDA3'!Q38 -> 0 | AB38: ='T1'!O38 -> 0 | AC38: ='T2'!M38 -> 0 | AD38: =T3_R1!N38 -> 88808 | AE38: =T3_R2!N38 -> 112287
A39: =IF(INTRO!$E$34<>0,INTRO!$E$34,"") -> Uganda | B39: EASTERN | C39: BUGIRI | D39: 466588 | E39: =IF(INTRO!$E$48="","",ROUND($D39*INTRO!$E$48,0)) -> 66255 | F39: =IF(INTRO!$E$49="","",ROUND($D39*INTRO!$E$49,0)) -> 140910 | G39: =IF(INTRO!$E$50="","",ROUND($D39*INTRO!$E$50,0)) -> 243092 | H39: 99 | I39: 0 | J39: 3 | K39: 2 | L39: 0 | M39: 0 | N39: =IF(INTRO!$E$42="Endemic", IF(AND($J39>1,$J39<5), IF($J39=4, "Unknown", E39+F39), 0),"Not required") -> 207165 | O39: =VLOOKUP(C39,[1]Sheet4!$A$4:$B$39,2,FALSE) -> 124952 | P39: 0 | Q39: 0 | R39: 2 | S39: 1 | T39: T3 (ALB/MBD) | U39: T2 (PZQ) | Y39: 49718 | Z39: BUGIRI | AA39: ='MDA3'!Q39 -> 0 | AB39: ='T1'!O39 -> 0 | AC39: ='T2'!M39 -> 92060 | AD39: =T3_R1!N39 -> 110672 | AE39: =T3_R2!N39 -> 231183
A40: =IF(INTRO!$E$34<>0,INTRO!$E$34,"") -> Uganda | B40: EASTERN | C40: BUKEDEA | D40: 225974 | E40: =IF(INTRO!$E$48="","",ROUND($D40*INTRO!$E$48,0)) -> 32088 | F40: =IF(INTRO!$E$49="","",ROUND($D40*INTRO!$E$49,0)) -> 68244 | G40: =IF(INTRO!$E$50="","",ROUND($D40*INTRO!$E$50,0)) -> 117732 | H40: 99 | I40: 0 | J40: 3 | K40: 1 | L40: 0 | M40: 0 | N40: =IF(INTRO!$E$42="Endemic", IF(AND($J40>1,$J40<5), IF($J40=4, "Unknown", E40+F40), 0),"Not required") -> 100332 | O40: =IF(INTRO!$E$44="Endemic", IF(AND($K40>0,$K40<5), IF($K40=4,"Unknown", IF($K40=1, $F40*0.33, IF($K40=2, $F40*0.5+$G40*0.2, SUM(F40:G40)))), 0),"Not required") -> 22520.52 | P40: 0 | Q40: 0 | R40: 2 | S40: 0 | T40: T3 (ALB/MBD) | U40: T3 (ALB/MBD) | Y40: 49719 | Z40: BUKEDEA | AA40: ='MDA3'!Q40 -> 0 | AB40: ='T1'!O40 -> 0 | AC40: ='T2'!M40 -> 0 | AD40: =T3_R1!N40 -> 54157 | AE40: =T3_R2!N40 -> 17865
A41: =IF(INTRO!$E$34<>0,INTRO!$E$34,"") -> Uganda | B41: EASTERN | C41: BUKWO | D41: 106759 | E41: =IF(INTRO!$E$48="","",ROUND($D41*INTRO!$E$48,0)) -> 15160 | F41: =IF(INTRO!$E$49="","",ROUND($D41*INTRO!$E$49,0)) -> 32241 | G41: =IF(INTRO!$E$50="","",ROUND($D41*INTRO!$E$50,0)) -> 55621 | H41: 0 | I41: 0 | J41: 3 | K41: 0 | L41: 0 | M41: 0 | N41: =IF(INTRO!$E$42="Endemic", IF(AND($J41>1,$J41<5), IF($J41=4, "Unknown", E41+F41), 0),"Not required") -> 47401 | O41: =IF(INTRO!$E$44="Endemic", IF(AND($K41>0,$K41<5), IF($K41=4,"Unknown", IF($K41=1, $F41*0.33, IF($K41=2, $F41*0.5+$G41*0.2, SUM(F41:G41)))), 0),"Not required") -> 0 | P41: 0 | Q41: 0 | R41: 2 | S41: 0 | T41: T3 (ALB/MBD) | U41: T3 (ALB/MBD) | Y41: 49727 | Z41: BUKWO | AA41: ='MDA3'!Q41 -> 0 | AB41: ='T1'!O41 -> 0 | AC41: ='T2'!M41 -> 0 | AD41: =T3_R1!N41 -> 28758 | AE41: =T3_R2!N41 -> 17327
A42: =IF(INTRO!$E$34<>0,INTRO!$E$34,"") -> Uganda | B42: EASTERN | C42: BULAMBULI | D42: 212107 | E42: =IF(INTRO!$E$48="","",ROUND($D42*INTRO!$E$48,0)) -> 30119 | F42: =IF(INTRO!$E$49="","",ROUND($D42*INTRO!$E$49,0)) -> 64056 | G42: =IF(INTRO!$E$50="","",ROUND($D42*INTRO!$E$50,0)) -> 110508 | H42: 0 | I42: 0 | J42: 3 | K42: 1 | L42: 0 | M42: 0 | N42: =IF(INTRO!$E$42="Endemic", IF(AND($J42>1,$J42<5), IF($J42=4, "Unknown", E42+F42), 0),"Not required") -> 94175 | O42: =IF(INTRO!$E$44="Endemic", IF(AND($K42>0,$K42<5), IF($K42=4,"Unknown", IF($K42=1, $F42*0.33, IF($K42=2, $F42*0.5+$G42*0.2, SUM(F42:G42)))), 0),"Not required") -> 21138.48 | P42: 0 | Q42: 0 | R42: 2 | S42: 0 | T42: T3 (ALB/MBD) | U42: T3 (ALB/MBD) | Y42: 49728 | Z42: BULAMBULI | AA42: ='MDA3'!Q42 -> 0 | AB42: ='T1'!O42 -> 0 | AC42: ='T2'!M42 -> 0 | AD42: =T3_R1!N42 -> 139992 | AE42: =T3_R2!N42 -> 29730
A43: =IF(INTRO!$E$34<>0,INTRO!$E$34,"") -> Uganda | B43: EASTERN | C43: BUSIA | D43: 389374 | E43: =IF(INTRO!$E$48="","",ROUND($D43*INTRO!$E$48,0)) -> 55291 | F43: =IF(INTRO!$E$49="","",ROUND($D43*INTRO!$E$49,0)) -> 117591 | G43: =IF(INTRO!$E$50="","",ROUND($D43*INTRO!$E$50,0)) -> 202864 | H43: 0 | I43: 0 | J43: 2 | K43: 3 | L43: 0 | M43: 0 | N43: =IF(INTRO!$E$42="Endemic", IF(AND($J43>1,$J43<5), IF($J43=4, "Unknown", E43+F43), 0),"Not required") -> 172882 | O43: =VLOOKUP(C43,[1]Sheet4!$A$4:$B$39,2,FALSE) -> 174707 | P43: 0 | Q43: 0 | R43: 2 | S43: 1 | T43: T3 (ALB/MBD) | U43: T2 (PZQ) | Y43: 49723 | Z43: BUSIA | AA43: ='MDA3'!Q43 -> 0 | AB43: ='T1'!O43 -> 0 | AC43: ='T2'!M43 -> 135506 | AD43: =T3_R1!N43 -> 84958 | AE43: =T3_R2!N43 -> 123374
A44: =IF(INTRO!$E$34<>0,INTRO!$E$34,"") -> Uganda | B44: EASTERN | C44: BUTALEJA | D44: 294101 | E44: =IF(INTRO!$E$48="","",ROUND($D44*INTRO!$E$48,0)) -> 41762 | F44: =IF(INTRO!$E$49="","",ROUND($D44*INTRO!$E$49,0)) -> 88819 | G44: =IF(INTRO!$E$50="","",ROUND($D44*INTRO!$E$50,0)) -> 153227 | H44: 99 | I44: 0 | J44: 3 | K44: 1 | L44: 0 | M44: 0 | N44: =IF(INTRO!$E$42="Endemic", IF(AND($J44>1,$J44<5), IF($J44=4, "Unknown", E44+F44), 0),"Not required") -> 130581 | O44: =IF(INTRO!$E$44="Endemic", IF(AND($K44>0,$K44<5), IF($K44=4,"Unknown", IF($K44=1, $F44*0.33, IF($K44=2, $F44*0.5+$G44*0.2, SUM(F44:G44)))), 0),"Not required") -> 29310.27 | P44: 0 | Q44: 0 | R44: 2 | S44: 0 | T44: T3 (ALB/MBD) | U44: T3 (ALB/MBD) | Y44: 49729 | Z44: BUTALEJA | AA44: ='MDA3'!Q44 -> 0 | AB44: ='T1'!O44 -> 0 | AC44: ='T2'!M44 -> 0 | AD44: =T3_R1!N44 -> 54969 | AE44: =T3_R2!N44 -> 41065
A45: =IF(INTRO!$E$34<>0,INTRO!$E$34,"") -> Uganda | B45: EASTERN | C45: BUTEBO | D45: 172582 | E45: =IF(INTRO!$E$48="","",ROUND($D45*INTRO!$E$48,0)) -> 24507 | F45: =IF(INTRO!$E$49="","",ROUND($D45*INTRO!$E$49,0)) -> 52120 | G45: =IF(INTRO!$E$50="","",ROUND($D45*INTRO!$E$50,0)) -> 89915 | H45: 99 | I45: 0 | J45: 3 | K45: 1 | L45: 0 | M45: 0 | N45: =IF(INTRO!$E$42="Endemic", IF(AND($J45>1,$J45<5), IF($J45=4, "Unknown", E45+F45), 0),"Not required") -> 76627 | O45: =IF(INTRO!$E$44="Endemic", IF(AND($K45>0,$K45<5), IF($K45=4,"Unknown", IF($K45=1, $F45*0.33, IF($K45=2, $F45*0.5+$G45*0.2, SUM(F45:G45)))), 0),"Not required") -> 17199.6 | P45: 0 | Q45: 0 | R45: 2 | S45: 0 | T45: T3 (ALB/MBD) | U45: T3 (ALB/MBD) | Y45: 49824 | Z45: BUTEBO | AA45: ='MDA3'!Q45 -> 0 | AB45: ='T1'!O45 -> 0 | AC45: ='T2'!M45 -> 0 | AD45: =T3_R1!N45 -> 15206 | AE45: =T3_R2!N45 -> 59744
A46: =IF(INTRO!$E$34<>0,INTRO!$E$34,"") -> Uganda | B46: EASTERN | C46: BUYENDE | D46: 383323 | E46: =IF(INTRO!$E$48="","",ROUND($D46*INTRO!$E$48,0)) -> 54432 | F46: =IF(INTRO!$E$49="","",ROUND($D46*INTRO!$E$49,0)) -> 115764 | G46: =IF(INTRO!$E$50="","",ROUND($D46*INTRO!$E$50,0)) -> 199711 | H46: 99 | I46: 0 | J46: 3 | K46: 3 | L46: 0 | M46: 0 | N46: =IF(INTRO!$E$42="Endemic", IF(AND($J46>1,$J46<5), IF($J46=4, "Unknown", E46+F46), 0),"Not required") -> 170196 | O46: =VLOOKUP(C46,[1]Sheet4!$A$4:$B$39,2,FALSE) -> 296197 | P46: 0 | Q46: 0 | R46: 2 | S46: 1 | T46: T3 (ALB/MBD) | U46: T2 (PZQ) | Y46: 49732 | Z46: BUYENDE | AA46: ='MDA3'!Q46 -> 0 | AB46: ='T1'!O46 -> 0 | AC46: ='T2'!M46 -> 201396 | AD46: =T3_R1!N46 -> 70052 | AE46: =T3_R2!N46 -> 106745
A47: =IF(INTRO!$E$34<>0,INTRO!$E$34,"") -> Uganda | B47: EASTERN | C47: IGANGA | D47: 403724 | E47: =IF(INTRO!$E$48="","",ROUND($D47*INTRO!$E$48,0)) -> 57329 | F47: =IF(INTRO!$E$49="","",ROUND($D47*INTRO!$E$49,0)) -> 121925 | G47: =IF(INTRO!$E$50="","",ROUND($D47*INTRO!$E$50,0)) -> 210340 | H47: 99 | I47: 0 | J47: 3 | K47: 1 | L47: 0 | M47: 0 | N47: =IF(INTRO!$E$42="Endemic", IF(AND($J47>1,$J47<5), IF($J47=4, "Unknown", E47+F47), 0),"Not required") -> 179254 | O47: =IF(INTRO!$E$44="Endemic", IF(AND($K47>0,$K47<5), IF($K47=4,"Unknown", IF($K47=1, $F47*0.33, IF($K47=2, $F47*0.5+$G47*0.2, SUM(F47:G47)))), 0),"Not required") -> 40235.25 | P47: 0 | Q47: 0 | R47: 2 | S47: 0 | T47: T3 (ALB/MBD) | U47: T3 (ALB/MBD) | Y47: 49738 | Z47: IGANGA | AA47: ='MDA3'!Q47 -> 0 | AB47: ='T1'!O47 -> 0 | AC47: ='T2'!M47 -> 0 | AD47: =T3_R1!N47 -> 125739 | AE47: =T3_R2!N47 -> 127176
A48: =IF(INTRO!$E$34<>0,INTRO!$E$34,"") -> Uganda | B48: EASTERN | C48: BUGWERI | D48: 201990 | E48: =IF(INTRO!$E$48="","",ROUND($D48*INTRO!$E$48,0)) -> 28683 | F48: =IF(INTRO!$E$49="","",ROUND($D48*INTRO!$E$49,0)) -> 61001 | G48: =IF(INTRO!$E$50="","",ROUND($D48*INTRO!$E$50,0)) -> 105237 | H48: 99 | I48: 0 | J48: 3 | K48: 1 | L48: 0 | M48: 0 | N48: =IF(INTRO!$E$42="Endemic", IF(AND($J48>1,$J48<5), IF($J48=4, "Unknown", E48+F48), 0),"Not required") -> 89684 | O48: =IF(INTRO!$E$44="Endemic", IF(AND($K48>0,$K48<5), IF($K48=4,"Unknown", IF($K48=1, $F48*0.33, IF($K48=2, $F48*0.5+$G48*0.2, SUM(F48:G48)))), 0),"Not required") -> 20130.33 | P48: 0 | Q48: 0 | R48: 2 | S48: 0 | T48: T3 (ALB/MBD) | U48: T3 (ALB/MBD) | Y48: 49833 | Z48: BUGWERI | AA48: ='MDA3'!Q48 -> 0 | AB48: ='T1'!O48 -> 0 | AC48: ='T2'!M48 -> 0 | AD48: =T3_R1!N48 -> 41949 | AE48: =T3_R2!N48 -> 30165
A49: =IF(INTRO!$E$34<>0,INTRO!$E$34,"") -> Uganda | B49: EASTERN | C49: JINJA | D49: 560105 | E49: =IF(INTRO!$E$48="","",ROUND($D49*INTRO!$E$48,0)) -> 79535 | F49: =IF(INTRO!$E$49="","",ROUND($D49*INTRO!$E$49,0)) -> 169152 | G49: =IF(INTRO!$E$50="","",ROUND($D49*INTRO!$E$50,0)) -> 291815 | H49: 0 | I49: 0 | J49: 3 | K49: 3 | L49: 0 | M49: 0 | N49: =IF(INTRO!$E$42="Endemic", IF(AND($J49>1,$J49<5), IF($J49=4, "Unknown", E49+F49), 0),"Not required") -> 248687 | O49: =VLOOKUP(C49,[1]Sheet4!$A$4:$B$39,2,FALSE) -> 338961 | P49: 0 | Q49: 0 | R49: 2 | S49: 1 | T49: T3 (ALB/MBD) | U49: T2 (PZQ) | Y49: 49740 | Z49: JINJA | AA49: ='MDA3'!Q49 -> 0 | AB49: ='T1'!O49 -> 0 | AC49: ='T2'!M49 -> 217980 | AD49: =T3_R1!N49 -> 80031 | AE49: =T3_R2!N49 -> 96054
A50: =IF(INTRO!$E$34<>0,INTRO!$E$34,"") -> Uganda | B50: EASTERN | C50: KABERAMAIDO | D50: 268134 | E50: =IF(INTRO!$E$48="","",ROUND($D50*INTRO!$E$48,0)) -> 38075 | F50: =IF(INTRO!$E$49="","",ROUND($D50*INTRO!$E$49,0)) -> 80976 | G50: =IF(INTRO!$E$50="","",ROUND($D50*INTRO!$E$50,0)) -> 139698 | H50: 99 | I50: 0 | J50: 3 | K50: 3 | L50: 0 | M50: 0 | N50: =IF(INTRO!$E$42="Endemic", IF(AND($J50>1,$J50<5), IF($J50=4, "Unknown", E50+F50), 0),"Not required") -> 119051 | O50: =VLOOKUP(C50,[1]Sheet4!$A$4:$B$39,2,FALSE) -> 194387 | P50: 0 | Q50: 0 | R50: 2 | S50: 1 | T50: T3 (ALB/MBD) | U50: T2 (PZQ) | Y50: 49743 | Z50: KABERAMAIDO | AA50: ='MDA3'!Q50 -> 0 | AB50: ='T1'!O50 -> 0 | AC50: ='T2'!M50 -> 197966 | AD50: =T3_R1!N50 -> 21873 | AE50: =T3_R2!N50 -> 34318
A51: =IF(INTRO!$E$34<>0,INTRO!$E$34,"") -> Uganda | B51: EASTERN | C51: KALIRO | D51: 283398 | E51: =IF(INTRO!$E$48="","",ROUND($D51*INTRO!$E$48,0)) -> 40243 | F51: =IF(INTRO!$E$49="","",ROUND($D51*INTRO!$E$49,0)) -> 85586 | G51: =IF(INTRO!$E$50="","",ROUND($D51*INTRO!$E$50,0)) -> 147650 | H51: 99 | I51: 0 | J51: 3 | K51: 1 | L51: 0 | M51: 0 | N51: =IF(INTRO!$E$42="Endemic", IF(AND($J51>1,$J51<5), IF($J51=4, "Unknown", E51+F51), 0),"Not required") -> 125829 | O51: =IF(INTRO!$E$44="Endemic", IF(AND($K51>0,$K51<5), IF($K51=4,"Unknown", IF($K51=1, $F51*0.33, IF($K51=2, $F51*0.5+$G51*0.2, SUM(F51:G51)))), 0),"Not required") -> 28243.38 | P51: 0 | Q51: 0 | R51: 2 | S51: 0 | T51: T3 (ALB/MBD) | U51: T3 (ALB/MBD) | Y51: 49746 | Z51: KALIRO | AA51: ='MDA3'!Q51 -> 0 | AB51: ='T1'!O51 -> 0 | AC51: ='T2'!M51 -> 0 | AD51: =T3_R1!N51 -> 52649 | AE51: =T3_R2!N51 -> 128824
A52: =IF(INTRO!$E$34<>0,INTRO!$E$34,"") -> Uganda | B52: EASTERN | C52: KAMULI | D52: 586410 | E52: =IF(INTRO!$E$48="","",ROUND($D52*INTRO!$E$48,0)) -> 83270 | F52: =IF(INTRO!$E$49="","",ROUND($D52*INTRO!$E$49,0)) -> 177096 | G52: =IF(INTRO!$E$50="","",ROUND($D52*INTRO!$E$50,0)) -> 305520 | H52: 99 | I52: 0 | J52: 3 | K52: 1 | L52: 0 | M52: 0 | N52: =IF(INTRO!$E$42="Endemic", IF(AND($J52>1,$J52<5), IF($J52=4, "Unknown", E52+F52), 0),"Not required") -> 260366 | O52: =IF(INTRO!$E$44="Endemic", IF(AND($K52>0,$K52<5), IF($K52=4,"Unknown", IF($K52=1, $F52*0.33, IF($K52=2, $F52*0.5+$G52*0.2, SUM(F52:G52)))), 0),"Not required") -> 58441.68 | P52: 0 | Q52: 0 | R52: 2 | S52: 0 | T52: T3 (ALB/MBD) | U52: T3 (ALB/MBD) | Y52: 49747 | Z52: KAMULI | AA52: ='MDA3'!Q52 -> 0 | AB52: ='T1'!O52 -> 0 | AC52: ='T2'!M52 -> 0 | AD52: =T3_R1!N52 -> 113206 | AE52: =T3_R2!N52 -> 120951
A53: =IF(INTRO!$E$34<>0,INTRO!$E$34,"") -> Uganda | B53: EASTERN | C53: KAPCHORWA | D53: 133440 | E53: =IF(INTRO!$E$48="","",ROUND($D53*INTRO!$E$48,0)) -> 18948 | F53: =IF(INTRO!$E$49="","",ROUND($D53*INTRO!$E$49,0)) -> 40299 | G53: =IF(INTRO!$E$50="","",ROUND($D53*INTRO!$E$50,0)) -> 69522 | H53: 0 | I53: 0 | J53: 3 | K53: 0 | L53: 0 | M53: 0 | N53: =IF(INTRO!$E$42="Endemic", IF(AND($J53>1,$J53<5), IF($J53=4, "Unknown", E53+F53), 0),"Not required") -> 59247 | O53: =IF(INTRO!$E$44="Endemic", IF(AND($K53>0,$K53<5), IF($K53=4,"Unknown", IF($K53=1, $F53*0.33, IF($K53=2, $F53*0.5+$G53*0.2, SUM(F53:G53)))), 0),"Not required") -> 0 | P53: 0 | Q53: 0 | R53: 2 | S53: 0 | T53: T3 (ALB/MBD) | U53: T3 (ALB/MBD) | Y53: 49760 | Z53: KAPCHORWA | AA53: ='MDA3'!Q53 -> 0 | AB53: ='T1'!O53 -> 0 | AC53: ='T2'!M53 -> 0 | AD53: =T3_R1!N53 -> 29538 | AE53: =T3_R2!N53 -> 27127
A54: =IF(INTRO!$E$34<>0,INTRO!$E$34,"") -> Uganda | B54: EASTERN | C54: KATAKWI | D54: 198021 | E54: =IF(INTRO!$E$48="","",ROUND($D54*INTRO!$E$48,0)) -> 28119 | F54: =IF(INTRO!$E$49="","",ROUND($D54*INTRO!$E$49,0)) -> 59802 | G54: =IF(INTRO!$E$50="","",ROUND($D54*INTRO!$E$50,0)) -> 103169 | H54: 99 | I54: 0 | J54: 3 | K54: 1 | L54: 0 | M54: 0 | N54: =IF(INTRO!$E$42="Endemic", IF(AND($J54>1,$J54<5), IF($J54=4, "Unknown", E54+F54), 0),"Not required") -> 87921 | O54: =IF(INTRO!$E$44="Endemic", IF(AND($K54>0,$K54<5), IF($K54=4,"Unknown", IF($K54=1, $F54*0.33, IF($K54=2, $F54*0.5+$G54*0.2, SUM(F54:G54)))), 0),"Not required") -> 19734.66 | P54: 0 | Q54: 0 | R54: 2 | S54: 0 | T54: T3 (ALB/MBD) | U54: T3 (ALB/MBD) | Y54: 49751 | Z54: KATAKWI | AA54: ='MDA3'!Q54 -> 0 | AB54: ='T1'!O54 -> 0 | AC54: ='T2'!M54 -> 0 | AD54: =T3_R1!N54 -> 51186 | AE54: =T3_R2!N54 -> 46814
A55: =IF(INTRO!$E$34<>0,INTRO!$E$34,"") -> Uganda | B55: EASTERN | C55: KIBUKU | D55: 242373 | E55: =IF(INTRO!$E$48="","",ROUND($D55*INTRO!$E$48,0)) -> 34417 | F55: =IF(INTRO!$E$49="","",ROUND($D55*INTRO!$E$49,0)) -> 73197 | G55: =IF(INTRO!$E$50="","",ROUND($D55*INTRO!$E$50,0)) -> 126276 | H55: 99 | I55: 0 | J55: 3 | K55: 1 | L55: 0 | M55: 0 | N55: =IF(INTRO!$E$42="Endemic", IF(AND($J55>1,$J55<5), IF($J55=4, "Unknown", E55+F55), 0),"Not required") -> 107614 | O55: =IF(INTRO!$E$44="Endemic", IF(AND($K55>0,$K55<5), IF($K55=4,"Unknown", IF($K55=1, $F55*0.33, IF($K55=2, $F55*0.5+$G55*0.2, SUM(F55:G55)))), 0),"Not required") -> 24155.01 | P55: 0 | Q55: 0 | R55: 2 | S55: 0 | T55: T3 (ALB/MBD) | U55: T3 (ALB/MBD) | Y55: 49763 | Z55: KIBUKU | AA55: ='MDA3'!Q55 -> 0 | AB55: ='T1'!O55 -> 0 | AC55: ='T2'!M55 -> 0 | AD55: =T3_R1!N55 -> 24632 | AE55: =T3_R2!N55 -> 15706
A56: =IF(INTRO!$E$34<>0,INTRO!$E$34,"") -> Uganda | B56: EASTERN | C56: KUMI | D56: 308692 | E56: =IF(INTRO!$E$48="","",ROUND($D56*INTRO!$E$48,0)) -> 43834 | F56: =IF(INTRO!$E$49="","",ROUND($D56*INTRO!$E$49,0)) -> 93225 | G56: =IF(INTRO!$E$50="","",ROUND($D56*INTRO!$E$50,0)) -> 160829 | H56: 99 | I56: 0 | J56: 3 | K56: 1 | L56: 0 | M56: 0 | N56: =IF(INTRO!$E$42="Endemic", IF(AND($J56>1,$J56<5), IF($J56=4, "Unknown", E56+F56), 0),"Not required") -> 137059 | O56: =IF(INTRO!$E$44="Endemic", IF(AND($K56>0,$K56<5), IF($K56=4,"Unknown", IF($K56=1, $F56*0.33, IF($K56=2, $F56*0.5+$G56*0.2, SUM(F56:G56)))), 0),"Not required") -> 30764.25 | P56: 0 | Q56: 0 | R56: 2 | S56: 0 | T56: T3 (ALB/MBD) | U56: T3 (ALB/MBD) | Y56: 49756 | Z56: KUMI | AA56: ='MDA3'!Q56 -> 0 | AB56: ='T1'!O56 -> 0 | AC56: ='T2'!M56 -> 0 | AD56: =T3_R1!N56 -> 95153 | AE56: =T3_R2!N56 -> 63441
A57: =IF(INTRO!$E$34<>0,INTRO!$E$34,"") -> Uganda | B57: EASTERN | C57: KWEEN | D57: 114378 | E57: =IF(INTRO!$E$48="","",ROUND($D57*INTRO!$E$48,0)) -> 16242 | F57: =IF(INTRO!$E$49="","",ROUND($D57*INTRO!$E$49,0)) -> 34542 | G57: =IF(INTRO!$E$50="","",ROUND($D57*INTRO!$E$50,0)) -> 59591 | H57: 0 | I57: 0 | J57: 3 | K57: 1 | L57: 0 | M57: 0 | N57: =IF(INTRO!$E$42="Endemic", IF(AND($J57>1,$J57<5), IF($J57=4, "Unknown", E57+F57), 0),"Not required") -> 50784 | O57: =IF(INTRO!$E$44="Endemic", IF(AND($K57>0,$K57<5), IF($K57=4,"Unknown", IF($K57=1, $F57*0.33, IF($K57=2, $F57*0.5+$G57*0.2, SUM(F57:G57)))), 0),"Not required") -> 11398.86 | P57: 0 | Q57: 0 | R57: 2 | S57: 0 | T57: T3 (ALB/MBD) | U57: T3 (ALB/MBD) | Y57: 49768 | Z57: KWEEN | AA57: ='MDA3'!Q57 -> 0 | AB57: ='T1'!O57 -> 0 | AC57: ='T2'!M57 -> 0 | AD57: =T3_R1!N57 -> 39104 | AE57: =T3_R2!N57 -> 16870
A58: =IF(INTRO!$E$34<>0,INTRO!$E$34,"") -> Uganda | B58: EASTERN | C58: LUUKA | D58: 288812 | E58: =IF(INTRO!$E$48="","",ROUND($D58*INTRO!$E$48,0)) -> 41011 | F58: =IF(INTRO!$E$49="","",ROUND($D58*INTRO!$E$49,0)) -> 87221 | G58: =IF(INTRO!$E$50="","",ROUND($D58*INTRO!$E$50,0)) -> 150471 | H58: 99 | I58: 0 | J58: 3 | K58: 1 | L58: 0 | M58: 0 | N58: =IF(INTRO!$E$42="Endemic", IF(AND($J58>1,$J58<5), IF($J58=4, "Unknown", E58+F58), 0),"Not required") -> 128232 | O58: =IF(INTRO!$E$44="Endemic", IF(AND($K58>0,$K58<5), IF($K58=4,"Unknown", IF($K58=1, $F58*0.33, IF($K58=2, $F58*0.5+$G58*0.2, SUM(F58:G58)))), 0),"Not required") -> 28782.93 | P58: 0 | Q58: 0 | R58: 2 | S58: 0 | T58: T3 (ALB/MBD) | U58: T3 (ALB/MBD) | Y58: 49773 | Z58: LUUKA | AA58: ='MDA3'!Q58 -> 0 | AB58: ='T1'!O58 -> 0 | AC58: ='T2'!M58 -> 0 | AD58: =T3_R1!N58 -> 64296 | AE58: =T3_R2!N58 -> 125615
A59: =IF(INTRO!$E$34<>0,INTRO!$E$34,"") -> Uganda | B59: EASTERN | C59: MANAFWA | D59: 201305 | E59: =IF(INTRO!$E$48="","",ROUND($D59*INTRO!$E$48,0)) -> 28585 | F59: =IF(INTRO!$E$49="","",ROUND($D59*INTRO!$E$49,0)) -> 60794 | G59: =IF(INTRO!$E$50="","",ROUND($D59*INTRO!$E$50,0)) -> 104880 | H59: 0 | I59: 99 | J59: 3 | K59: 1 | L59: 0 | M59: 0 | N59: =IF(INTRO!$E$42="Endemic", IF(AND($J59>1,$J59<5), IF($J59=4, "Unknown", E59+F59), 0),"Not required") -> 89379 | O59: =IF(INTRO!$E$44="Endemic", IF(AND($K59>0,$K59<5), IF($K59=4,"Unknown", IF($K59=1, $F59*0.33, IF($K59=2, $F59*0.5+$G59*0.2, SUM(F59:G59)))), 0),"Not required") -> 20062.02 | P59: 0 | Q59: 0 | R59: 2 | S59: 0 | T59: T3 (ALB/MBD) | U59: T3 (ALB/MBD) | Y59: 49777 | Z59: MANAFWA | AA59: ='MDA3'!Q59 -> 0 | AB59: ='T1'!O59 -> 0 | AC59: ='T2'!M59 -> 0 | AD59: =T3_R1!N59 -> 82239 | AE59: =T3_R2!N59 -> 47712
A60: =IF(INTRO!$E$34<>0,INTRO!$E$34,"") -> Uganda | B60: EASTERN | C60: MAYUGE | D60: 573157 | E60: =IF(INTRO!$E$48="","",ROUND($D60*INTRO!$E$48,0)) -> 81388 | F60: =IF(INTRO!$E$49="","",ROUND($D60*INTRO!$E$49,0)) -> 173093 | G60: =IF(INTRO!$E$50="","",ROUND($D60*INTRO!$E$50,0)) -> 298615 | H60: 99 | I60: 0 | J60: 3 | K60: 3 | L60: 0 | M60: 0 | N60: =IF(INTRO!$E$42="Endemic", IF(AND($J60>1,$J60<5), IF($J60=4, "Unknown", E60+F60), 0),"Not required") -> 254481 | O60: =IF(INTRO!$E$44="Endemic", IF(AND($K60>0,$K60<5), IF($K60=4,"Unknown", IF($K60=1, $F60*0.33, IF($K60=2, $F60*0.5+$G60*0.2, SUM(F60:G60)))), 0),"Not required") -> 471708 | P60: 0 | Q60: 0 | R60: 2 | S60: 1 | T60: T3 (ALB/MBD) | U60: T1 (PZQ+ALB/MBD) | Y60: 49779 | Z60: MAYUGE | AA60: ='MDA3'!Q60 -> 0 | AB60: ='T1'!O60 -> 335623 | AC60: ='T2'!M60 -> 0 | AD60: =T3_R1!N60 -> 77909 | AE60: =T3_R2!N60 -> 111972
A61: =IF(INTRO!$E$34<>0,INTRO!$E$34,"") -> Uganda | B61: EASTERN | C61: MBALE | D61: 589460 | E61: =IF(INTRO!$E$48="","",ROUND($D61*INTRO!$E$48,0)) -> 83703 | F61: =IF(INTRO!$E$49="","",ROUND($D61*INTRO!$E$49,0)) -> 178017 | G61: =IF(INTRO!$E$50="","",ROUND($D61*INTRO!$E$50,0)) -> 307109 | H61: 0 | I61: 99 | J61: 3 | K61: 1 | L61: 0 | M61: 0 | N61: =IF(INTRO!$E$42="Endemic", IF(AND($J61>1,$J61<5), IF($J61=4, "Unknown", E61+F61), 0),"Not required") -> 261720 | O61: =IF(INTRO!$E$44="Endemic", IF(AND($K61>0,$K61<5), IF($K61=4,"Unknown", IF($K61=1, $F61*0.33, IF($K61=2, $F61*0.5+$G61*0.2, SUM(F61:G61)))), 0),"Not required") -> 58745.61 | P61: 0 | Q61: 0 | R61: 2 | S61: 0 | T61: T3 (ALB/MBD) | U61: T3 (ALB/MBD) | Y61: 49780 | Z61: MBALE | AA61: ='MDA3'!Q61 -> 0 | AB61: ='T1'!O61 -> 0 | AC61: ='T2'!M61 -> 0 | AD61: =T3_R1!N61 -> 136797 | AE61: =T3_R2!N61 -> 111352
A62: =IF(INTRO!$E$34<>0,INTRO!$E$34,"") -> Uganda | B62: EASTERN | C62: NAMAYINGO | D62: 267010 | E62: =IF(INTRO!$E$48="","",ROUND($D62*INTRO!$E$48,0)) -> 37915 | F62: =IF(INTRO!$E$49="","",ROUND($D62*INTRO!$E$49,0)) -> 80637 | G62: =IF(INTRO!$E$50="","",ROUND($D62*INTRO!$E$50,0)) -> 139112 | H62: 99 | I62: 0 | J62: 3 | K62: 3 | L62: 0 | M62: 0 | N62: =IF(INTRO!$E$42="Endemic", IF(AND($J62>1,$J62<5), IF($J62=4, "Unknown", E62+F62), 0),"Not required") -> 118552 | O62: =VLOOKUP(C62,[1]Sheet4!$A$4:$B$39,2,FALSE) -> 268129 | P62: 0 | Q62: 0 | R62: 2 | S62: 1 | T62: T3 (ALB/MBD) | U62: T2 (PZQ) | Y62: 49796 | Z62: NAMAYINGO | AA62: ='MDA3'!Q62 -> 0 | AB62: ='T1'!O62 -> 0 | AC62: ='T2'!M62 -> 194747 | AD62: =T3_R1!N62 -> 48363 | AE62: =T3_R2!N62 -> 83754
A63: =IF(INTRO!$E$34<>0,INTRO!$E$34,"") -> Uganda | B63: EASTERN | C63: NAMISINDWA | D63: 220771 | E63: =IF(INTRO!$E$48="","",ROUND($D63*INTRO!$E$48,0)) -> 31349 | F63: =IF(INTRO!$E$49="","",ROUND($D63*INTRO!$E$49,0)) -> 66673 | G63: =IF(INTRO!$E$50="","",ROUND($D63*INTRO!$E$50,0)) -> 115022 | H63: 0 | I63: 0 | J63: 3 | K63: 1 | L63: 0 | M63: 0 | N63: =IF(INTRO!$E$42="Endemic", IF(AND($J63>1,$J63<5), IF($J63=4, "Unknown", E63+F63), 0),"Not required") -> 98022 | O63: =IF(INTRO!$E$44="Endemic", IF(AND($K63>0,$K63<5), IF($K63=4,"Unknown", IF($K63=1, $F63*0.33, IF($K63=2, $F63*0.5+$G63*0.2, SUM(F63:G63)))), 0),"Not required") -> 22002.09 | P63: 0 | Q63: 0 | R63: 2 | S63: 0 | T63: T3 (ALB/MBD) | U63: T3 (ALB/MBD) | Y63: 49834 | Z63: NAMISINDWA | AA63: ='MDA3'!Q63 -> 0 | AB63: ='T1'!O63 -> 0 | AC63: ='T2'!M63 -> 0 | AD63: =T3_R1!N63 -> 62485 | AE63: =T3_R2!N63 -> 40439
A64: =IF(INTRO!$E$34<>0,INTRO!$E$34,"") -> Uganda | B64: EASTERN | C64: NAMUTUMBA | D64: 302933 | E64: =IF(INTRO!$E$48="","",ROUND($D64*INTRO!$E$48,0)) -> 43016 | F64: =IF(INTRO!$E$49="","",ROUND($D64*INTRO!$E$49,0)) -> 91486 | G64: =IF(INTRO!$E$50="","",ROUND($D64*INTRO!$E$50,0)) -> 157828 | H64: 99 | I64: 0 | J64: 3 | K64: 1 | L64: 0 | M64: 0 | N64: =IF(INTRO!$E$42="Endemic", IF(AND($J64>1,$J64<5), IF($J64=4, "Unknown", E64+F64), 0),"Not required") -> 134502 | O64: =IF(INTRO!$E$44="Endemic", IF(AND($K64>0,$K64<5), IF($K64=4,"Unknown", IF($K64=1, $F64*0.33, IF($K64=2, $F64*0.5+$G64*0.2, SUM(F64:G64)))), 0),"Not required") -> 30190.38 | P64: 0 | Q64: 0 | R64: 2 | S64: 0 | T64: T3 (ALB/MBD) | U64: T3 (ALB/MBD) | Y64: 49792 | Z64: NAMUTUMBA | AA64: ='MDA3'!Q64 -> 0 | AB64: ='T1'!O64 -> 0 | AC64: ='T2'!M64 -> 0 | AD64: =T3_R1!N64 -> 87281 | AE64: =T3_R2!N64 -> 97744
A65: =IF(INTRO!$E$34<>0,INTRO!$E$34,"") -> Uganda | B65: EASTERN | C65: NGORA | D65: 170435 | E65: =IF(INTRO!$E$48="","",ROUND($D65*INTRO!$E$48,0)) -> 24202 | F65: =IF(INTRO!$E$49="","",ROUND($D65*INTRO!$E$49,0)) -> 51471 | G65: =IF(INTRO!$E$50="","",ROUND($D65*INTRO!$E$50,0)) -> 88797 | H65: 99 | I65: 0 | J65: 3 | K65: 1 | L65: 0 | M65: 0 | N65: =IF(INTRO!$E$42="Endemic", IF(AND($J65>1,$J65<5), IF($J65=4, "Unknown", E65+F65), 0),"Not required") -> 75673 | O65: =IF(INTRO!$E$44="Endemic", IF(AND($K65>0,$K65<5), IF($K65=4,"Unknown", IF($K65=1, $F65*0.33, IF($K65=2, $F65*0.5+$G65*0.2, SUM(F65:G65)))), 0),"Not required") -> 16985.43 | P65: 0 | Q65: 0 | R65: 2 | S65: 0 | T65: T3 (ALB/MBD) | U65: T3 (ALB/MBD) | Y65: 49798 | Z65: NGORA | AA65: ='MDA3'!Q65 -> 0 | AB65: ='T1'!O65 -> 0 | AC65: ='T2'!M65 -> 0 | AD65: =T3_R1!N65 -> 28041 | AE65: =T3_R2!N65 -> 36196
A66: =IF(INTRO!$E$34<>0,INTRO!$E$34,"") -> Uganda | B66: EASTERN | C66: PALLISA | D66: 289216 | E66: =IF(INTRO!$E$48="","",ROUND($D66*INTRO!$E$48,0)) -> 41069 | F66: =IF(INTRO!$E$49="","",ROUND($D66*INTRO!$E$49,0)) -> 87343 | G66: =IF(INTRO!$E$50="","",ROUND($D66*INTRO!$E$50,0)) -> 150682 | H66: 99 | I66: 0 | J66: 3 | K66: 1 | L66: 0 | M66: 0 | N66: =IF(INTRO!$E$42="Endemic", IF(AND($J66>1,$J66<5), IF($J66=4, "Unknown", E66+F66), 0),"Not required") -> 128412 | O66: =IF(INTRO!$E$44="Endemic", IF(AND($K66>0,$K66<5), IF($K66=4,"Unknown", IF($K66=1, $F66*0.33, IF($K66=2, $F66*0.5+$G66*0.2, SUM(F66:G66)))), 0),"Not required") -> 28823.19 | P66: 0 | Q66: 0 | R66: 2 | S66: 0 | T66: T3 (ALB/MBD) | U66: T3 (ALB/MBD) | Y66: 49804 | Z66: PALLISA | AA66: ='MDA3'!Q66 -> 0 | AB66: ='T1'!O66 -> 0 | AC66: ='T2'!M66 -> 0 | AD66: =T3_R1!N66 -> 55072 | AE66: =T3_R2!N66 -> 140222
A67: =IF(INTRO!$E$34<>0,INTRO!$E$34,"") -> Uganda | B67: EASTERN | C67: SERERE | D67: 339264 | E67: =IF(INTRO!$E$48="","",ROUND($D67*INTRO!$E$48,0)) -> 48175 | F67: =IF(INTRO!$E$49="","",ROUND($D67*INTRO!$E$49,0)) -> 102458 | G67: =IF(INTRO!$E$50="","",ROUND($D67*INTRO!$E$50,0)) -> 176757 | H67: 99 | I67: 0 | J67: 3 | K67: 3 | L67: 0 | M67: 0 | N67: =IF(INTRO!$E$42="Endemic", IF(AND($J67>1,$J67<5), IF($J67=4, "Unknown", E67+F67), 0),"Not required") -> 150633 | O67: =VLOOKUP(C67,[1]Sheet4!$A$4:$B$39,2,FALSE) -> 280874 | P67: 0 | Q67: 0 | R67: 2 | S67: 1 | T67: T3 (ALB/MBD) | U67: T2 (PZQ) | Y67: 49812 | Z67: SERERE | AA67: ='MDA3'!Q67 -> 0 | AB67: ='T1'!O67 -> 0 | AC67: ='T2'!M67 -> 184310 | AD67: =T3_R1!N67 -> 48086 | AE67: =T3_R2!N67 -> 84122
A68: =IF(INTRO!$E$34<>0,INTRO!$E$34,"") -> Uganda | B68: EASTERN | C68: SIRONKO | D68: 295018 | E68: =IF(INTRO!$E$48="","",ROUND($D68*INTRO!$E$48,0)) -> 41893 | F68: =IF(INTRO!$E$49="","",ROUND($D68*INTRO!$E$49,0)) -> 89095 | G68: =IF(INTRO!$E$50="","",ROUND($D68*INTRO!$E$50,0)) -> 153704 | H68: 0 | I68: 99 | J68: 3 | K68: 1 | L68: 0 | M68: 0 | N68: =IF(INTRO!$E$42="Endemic", IF(AND($J68>1,$J68<5), IF($J68=4, "Unknown", E68+F68), 0),"Not required") -> 130988 | O68: =IF(INTRO!$E$44="Endemic", IF(AND($K68>0,$K68<5), IF($K68=4,"Unknown", IF($K68=1, $F68*0.33, IF($K68=2, $F68*0.5+$G68*0.2, SUM(F68:G68)))), 0),"Not required") -> 29401.35 | P68: 0 | Q68: 0 | R68: 2 | S68: 0 | T68: T3 (ALB/MBD) | U68: T3 (ALB/MBD) | Y68: 49809 | Z68: SIRONKO | AA68: ='MDA3'!Q68 -> 0 | AB68: ='T1'!O68 -> 0 | AC68: ='T2'!M68 -> 0 | AD68: =T3_R1!N68 -> 78638 | AE68: =T3_R2!N68 -> 47200
A69: =IF(INTRO!$E$34<>0,INTRO!$E$34,"") -> Uganda | B69: EASTERN | C69: SOROTI | D69: 355439 | E69: =IF(INTRO!$E$48="","",ROUND($D69*INTRO!$E$48,0)) -> 50472 | F69: =IF(INTRO!$E$49="","",ROUND($D69*INTRO!$E$49,0)) -> 107343 | G69: =IF(INTRO!$E$50="","",ROUND($D69*INTRO!$E$50,0)) -> 185184 | H69: 99 | I69: 0 | J69: 3 | K69: 1 | L69: 0 | M69: 0 | N69: =IF(INTRO!$E$42="Endemic", IF(AND($J69>1,$J69<5), IF($J69=4, "Unknown", E69+F69), 0),"Not required") -> 157815 | O69: =IF(INTRO!$E$44="Endemic", IF(AND($K69>0,$K69<5), IF($K69=4,"Unknown", IF($K69=1, $F69*0.33, IF($K69=2, $F69*0.5+$G69*0.2, SUM(F69:G69)))), 0),"Not required") -> 35423.19 | P69: 0 | Q69: 0 | R69: 2 | S69: 0 | T69: T3 (ALB/MBD) | U69: T3 (ALB/MBD) | Y69: 49810 | Z69: SOROTI | AA69: ='MDA3'!Q69 -> 0 | AB69: ='T1'!O69 -> 0 | AC69: ='T2'!M69 -> 0 | AD69: =T3_R1!N69 -> 112413 | AE69: =T3_R2!N69 -> 185257
A70: =IF(INTRO!$E$34<>0,INTRO!$E$34,"") -> Uganda | B70: EASTERN | C70: TORORO | D70: 629627 | E70: =IF(INTRO!$E$48="","",ROUND($D70*INTRO!$E$48,0)) -> 89407 | F70: =IF(INTRO!$E$49="","",ROUND($D70*INTRO!$E$49,0)) -> 190147 | G70: =IF(INTRO!$E$50="","",ROUND($D70*INTRO!$E$50,0)) -> 328036 | H70: 99 | I70: 0 | J70: 3 | K70: 1 | L70: 0 | M70: 0 | N70: =IF(INTRO!$E$42="Endemic", IF(AND($J70>1,$J70<5), IF($J70=4, "Unknown", E70+F70), 0),"Not required") -> 279554 | O70: =IF(INTRO!$E$44="Endemic", IF(AND($K70>0,$K70<5), IF($K70=4,"Unknown", IF($K70=1, $F70*0.33, IF($K70=2, $F70*0.5+$G70*0.2, SUM(F70:G70)))), 0),"Not required") -> 62748.51 | P70: 0 | Q70: 0 | R70: 2 | S70: 0 | T70: T3 (ALB/MBD) | U70: T3 (ALB/MBD) | Y70: 49814 | Z70: TORORO | AA70: ='MDA3'!Q70 -> 0 | AB70: ='T1'!O70 -> 0 | AC70: ='T2'!M70 -> 0 | AD70: =T3_R1!N70 -> 132768 | AE70: =T3_R2!N70 -> 50497
A71: =IF(INTRO!$E$34<>0,INTRO!$E$34,"") -> Uganda | B71: NORTHERN | C71: ABIM | D71: 130427 | E71: =IF(INTRO!$E$48="","",ROUND($D71*INTRO!$E$48,0)) -> 18521 | F71: =IF(INTRO!$E$49="","",ROUND($D71*INTRO!$E$49,0)) -> 39389 | G71: =IF(INTRO!$E$50="","",ROUND($D71*INTRO!$E$50,0)) -> 67952 | H71: 99 | I71: 0 | J71: 3 | K71: 0 | L71: 0 | M71: 0 | N71: =IF(INTRO!$E$42="Endemic", IF(AND($J71>1,$J71<5), IF($J71=4, "Unknown", E71+F71), 0),"Not required") -> 57910 | O71: =IF(INTRO!$E$44="Endemic", IF(AND($K71>0,$K71<5), IF($K71=4,"Unknown", IF($K71=1, $F71*0.33, IF($K71=2, $F71*0.5+$G71*0.2, SUM(F71:G71)))), 0),"Not required") -> 0 | P71: 0 | Q71: 0 | R71: 2 | S71: 0 | T71: T3 (ALB/MBD) | U71: T3 (ALB/MBD) | Y71: 49706 | Z71: ABIM | AA71: ='MDA3'!Q71 -> 0 | AB71: ='T1'!O71 -> 0 | AC71: ='T2'!M71 -> 0 | AD71: =T3_R1!N71 -> 49629 | AE71: =T3_R2!N71 -> 76517
A72: =IF(INTRO!$E$34<>0,INTRO!$E$34,"") -> Uganda | B72: NORTHERN | C72: ADJUMANI | D72: 278476 | E72: =IF(INTRO!$E$48="","",ROUND($D72*INTRO!$E$48,0)) -> 39544 | F72: =IF(INTRO!$E$49="","",ROUND($D72*INTRO!$E$49,0)) -> 84100 | G72: =IF(INTRO!$E$50="","",ROUND($D72*INTRO!$E$50,0)) -> 145086 | H72: 99 | I72: 1 | J72: 3 | K72: 3 | L72: 0 | M72: 30615 | N72: =IF(INTRO!$E$42="Endemic", IF(AND($J72>1,$J72<5), IF($J72=4, "Unknown", E72+F72), 0),"Not required") -> 123644 | O72: =IF(INTRO!$E$44="Endemic", IF(AND($K72>0,$K72<5), IF($K72=4,"Unknown", IF($K72=1, $F72*0.33, IF($K72=2, $F72*0.5+$G72*0.2, SUM(F72:G72)))), 0),"Not required") -> 229186 | P72: 0 | Q72: 2 | R72: 2 | S72: 1 | T72: MDA3 (IVM) | U72: T1 (PZQ+ALB/MBD) | Y72: 49707 | Z72: ADJUMANI | AA72: ='MDA3'!Q72 -> 25222 | AB72: ='T1'!O72 -> 18353 | AC72: ='T2'!M72 -> 0 | AD72: =T3_R1!N72 -> 143502 | AE72: =T3_R2!N72 -> 103702
A73: =IF(INTRO!$E$34<>0,INTRO!$E$34,"") -> Uganda | B73: NORTHERN | C73: AGAGO | D73: 272106 | E73: =IF(INTRO!$E$48="","",ROUND($D73*INTRO!$E$48,0)) -> 38639 | F73: =IF(INTRO!$E$49="","",ROUND($D73*INTRO!$E$49,0)) -> 82176 | G73: =IF(INTRO!$E$50="","",ROUND($D73*INTRO!$E$50,0)) -> 141767 | H73: 99 | I73: 0 | J73: 3 | K73: 3 | L73: 0 | M73: 0 | N73: =IF(INTRO!$E$42="Endemic", IF(AND($J73>1,$J73<5), IF($J73=4, "Unknown", E73+F73), 0),"Not required") -> 120815 | O73: =VLOOKUP(C73,[1]Sheet4!$A$4:$B$39,2,FALSE) -> 290784 | P73: 0 | Q73: 0 | R73: 2 | S73: 1 | T73: T3 (ALB/MBD) | U73: T2 (PZQ) | Y73: 49713 | Z73: AGAGO | AA73: ='MDA3'!Q73 -> 0 | AB73: ='T1'!O73 -> 0 | AC73: ='T2'!M73 -> 203096 | AD73: =T3_R1!N73 -> 60151 | AE73: =T3_R2!N73 -> 93220
A74: =IF(INTRO!$E$34<>0,INTRO!$E$34,"") -> Uganda | B74: NORTHERN | C74: ALEBTONG | D74: 269520 | E74: =IF(INTRO!$E$48="","",ROUND($D74*INTRO!$E$48,0)) -> 38272 | F74: =IF(INTRO!$E$49="","",ROUND($D74*INTRO!$E$49,0)) -> 81395 | G74: =IF(INTRO!$E$50="","",ROUND($D74*INTRO!$E$50,0)) -> 140420 | H74: 99 | I74: 0 | J74: 3 | K74: 2 | L74: 0 | M74: 0 | N74: =IF(INTRO!$E$42="Endemic", IF(AND($J74>1,$J74<5), IF($J74=4, "Unknown", E74+F74), 0),"Not required") -> 119667 | O74: =VLOOKUP(C74,[1]Sheet4!$A$4:$B$39,2,FALSE) -> 142533 | P74: 0 | Q74: 0 | R74: 2 | S74: 1 | T74: T3 (ALB/MBD) | U74: T2 (PZQ) | Y74: 49714 | Z74: ALEBTONG | AA74: ='MDA3'!Q74 -> 0 | AB74: ='T1'!O74 -> 0 | AC74: ='T2'!M74 -> 111619 | AD74: =T3_R1!N74 -> 46623 | AE74: =T3_R2!N74 -> 87434
A75: =IF(INTRO!$E$34<>0,INTRO!$E$34,"") -> Uganda | B75: NORTHERN | C75: AMOLATAR | D75: 175718 | E75: =IF(INTRO!$E$48="","",ROUND($D75*INTRO!$E$48,0)) -> 24952 | F75: =IF(INTRO!$E$49="","",ROUND($D75*INTRO!$E$49,0)) -> 53067 | G75: =IF(INTRO!$E$50="","",ROUND($D75*INTRO!$E$50,0)) -> 91549 | H75: 99 | I75: 0 | J75: 3 | K75: 3 | L75: 0 | M75: 0 | N75: =IF(INTRO!$E$42="Endemic", IF(AND($J75>1,$J75<5), IF($J75=4, "Unknown", E75+F75), 0),"Not required") -> 78019 | O75: =VLOOKUP(C75,[1]Sheet4!$A$4:$B$39,2,FALSE) -> 166131 | P75: 0 | Q75: 0 | R75: 2 | S75: 1 | T75: T3 (ALB/MBD) | U75: T2 (PZQ) | Y75: 49708 | Z75: AMOLATAR | AA75: ='MDA3'!Q75 -> 0 | AB75: ='T1'!O75 -> 0 | AC75: ='T2'!M75 -> 120399 | AD75: =T3_R1!N75 -> 31991 | AE75: =T3_R2!N75 -> 58295
A76: =IF(INTRO!$E$34<>0,INTRO!$E$34,"") -> Uganda | B76: NORTHERN | C76: AMUDAT | D76: 133681 | E76: =IF(INTRO!$E$48="","",ROUND($D76*INTRO!$E$48,0)) -> 18983 | F76: =IF(INTRO!$E$49="","",ROUND($D76*INTRO!$E$49,0)) -> 40372 | G76: =IF(INTRO!$E$50="","",ROUND($D76*INTRO!$E$50,0)) -> 69648 | H76: 99 | I76: 0 | J76: 3 | K76: 0 | L76: 0 | M76: 0 | N76: =IF(INTRO!$E$42="Endemic", IF(AND($J76>1,$J76<5), IF($J76=4, "Unknown", E76+F76), 0),"Not required") -> 59355 | O76: =IF(INTRO!$E$44="Endemic", IF(AND($K76>0,$K76<5), IF($K76=4,"Unknown", IF($K76=1, $F76*0.33, IF($K76=2, $F76*0.5+$G76*0.2, SUM(F76:G76)))), 0),"Not required") -> 0 | P76: 0 | Q76: 0 | R76: 2 | S76: 0 | T76: T3 (ALB/MBD) | U76: T3 (ALB/MBD) | Y76: 49715 | Z76: AMUDAT | AA76: ='MDA3'!Q76 -> 0 | AB76: ='T1'!O76 -> 0 | AC76: ='T2'!M76 -> 0 | AD76: =T3_R1!N76 -> 44002 | AE76: =T3_R2!N76 -> 52552
A77: =IF(INTRO!$E$34<>0,INTRO!$E$34,"") -> Uganda | B77: NORTHERN | C77: AMURU | D77: 227883 | E77: =IF(INTRO!$E$48="","",ROUND($D77*INTRO!$E$48,0)) -> 32359 | F77: =IF(INTRO!$E$49="","",ROUND($D77*INTRO!$E$49,0)) -> 68821 | G77: =IF(INTRO!$E$50="","",ROUND($D77*INTRO!$E$50,0)) -> 118727 | H77: 99 | I77: 1 | J77: 1 | K77: 3 | L77: 0 | M77: 201947 | N77: =IF(INTRO!$E$42="Endemic", IF(AND($J77>1,$J77<5), IF($J77=4, "Unknown", E77+F77), 0),"Not required") -> 0 | O77: =IF(INTRO!$E$44="Endemic", IF(AND($K77>0,$K77<5), IF($K77=4,"Unknown", IF($K77=1, $F77*0.33, IF($K77=2, $F77*0.5+$G77*0.2, SUM(F77:G77)))), 0),"Not required") -> 187548 | P77: 0 | Q77: 2 | R77: 2 | S77: 1 | T77: MDA3 (IVM) | U77: T1 (PZQ+ALB/MBD) | Y77: 49710 | Z77: AMURU | AA77: ='MDA3'!Q77 -> 199649 | AB77: ='T1'!O77 -> 109063 | AC77: ='T2'!M77 -> 0 | AD77: =T3_R1!N77 -> 19914 | AE77: =T3_R2!N77 -> 36520
A78: =IF(INTRO!$E$34<>0,INTRO!$E$34,"") -> Uganda | B78: NORTHERN | C78: APAC | D78: 221744 | E78: =IF(INTRO!$E$48="","",ROUND($D78*INTRO!$E$48,0)) -> 31488 | F78: =IF(INTRO!$E$49="","",ROUND($D78*INTRO!$E$49,0)) -> 66967 | G78: =IF(INTRO!$E$50="","",ROUND($D78*INTRO!$E$50,0)) -> 115529 | H78: 99 | I78: 0 | J78: 3 | K78: 3 | L78: 0 | M78: 0 | N78: =IF(INTRO!$E$42="Endemic", IF(AND($J78>1,$J78<5), IF($J78=4, "Unknown", E78+F78), 0),"Not required") -> 98455 | O78: =VLOOKUP(C78,[1]Sheet4!$A$4:$B$39,2,FALSE) -> 181259 | P78: 0 | Q78: 0 | R78: 2 | S78: 1 | T78: T3 (ALB/MBD) | U78: T2 (PZQ) | Y78: 49711 | Z78: APAC | AA78: ='MDA3'!Q78 -> 0 | AB78: ='T1'!O78 -> 0 | AC78: ='T2'!M78 -> 136370 | AD78: =T3_R1!N78 -> 59245 | AE78: =T3_R2!N78 -> 101675
A79: =IF(INTRO!$E$34<>0,INTRO!$E$34,"") -> Uganda | B79: NORTHERN | C79: KWANIA | D79: 219380 | E79: =IF(INTRO!$E$48="","",ROUND($D79*INTRO!$E$48,0)) -> 31152 | F79: =IF(INTRO!$E$49="","",ROUND($D79*INTRO!$E$49,0)) -> 66253 | G79: =IF(INTRO!$E$50="","",ROUND($D79*INTRO!$E$50,0)) -> 114297 | H79: 99 | I79: 0 | J79: 3 | K79: 3 | L79: 0 | M79: 0 | N79: =IF(INTRO!$E$42="Endemic", IF(AND($J79>1,$J79<5), IF($J79=4, "Unknown", E79+F79), 0),"Not required") -> 97405 | O79: =VLOOKUP(C79,[1]Sheet4!$A$4:$B$39,2,FALSE) -> 183780 | P79: 0 | Q79: 0 | R79: 2 | S79: 1 | T79: T3 (ALB/MBD) | U79: T2 (PZQ) | Y79: 49835 | Z79: KWANIA | AA79: ='MDA3'!Q79 -> 0 | AB79: ='T1'!O79 -> 0 | AC79: ='T2'!M79 -> 149997 | AD79: =T3_R1!N79 -> 54881 | AE79: =T3_R2!N79 -> 74347
A80: =IF(INTRO!$E$34<>0,INTRO!$E$34,"") -> Uganda | B80: NORTHERN | C80: ARUA | D80: 773315 | E80: =IF(INTRO!$E$48="","",ROUND($D80*INTRO!$E$48,0)) -> 109811 | F80: =IF(INTRO!$E$49="","",ROUND($D80*INTRO!$E$49,0)) -> 233541 | G80: =IF(INTRO!$E$50="","",ROUND($D80*INTRO!$E$50,0)) -> 402897 | H80: 99 | I80: 99 | J80: 1 | K80: 2 | L80: 0 | M80: 0 | N80: =IF(INTRO!$E$42="Endemic", IF(AND($J80>1,$J80<5), IF($J80=4, "Unknown", E80+F80), 0),"Not required") -> 0 | O80: =IF(INTRO!$E$44="Endemic", IF(AND($K80>0,$K80<5), IF($K80=4,"Unknown", IF($K80=1, $F80*0.33, IF($K80=2, $F80*0.5+$G80*0.2, SUM(F80:G80)))), 0),"Not required") -> 197349.9 | P80: 0 | Q80: 0 | R80: 2 | S80: 1 | T80: T3 (ALB/MBD) | U80: T1 (PZQ+ALB/MBD) | Y80: 49712 | Z80: ARUA | AA80: ='MDA3'!Q80 -> 0 | AB80: ='T1'!O80 -> 210205 | AC80: ='T2'!M80 -> 0 | AD80: =T3_R1!N80 -> 118366 | AE80: =T3_R2!N80 -> 198277
A81: =IF(INTRO!$E$34<>0,INTRO!$E$34,"") -> Uganda | B81: NORTHERN | C81: MADI-OKOLLO | D81: 165876 | E81: =IF(INTRO!$E$48="","",ROUND($D81*INTRO!$E$48,0)) -> 23554 | F81: =IF(INTRO!$E$49="","",ROUND($D81*INTRO!$E$49,0)) -> 50095 | G81: =IF(INTRO!$E$50="","",ROUND($D81*INTRO!$E$50,0)) -> 86421 | H81: 99 | I81: 99 | J81: 3 | K81: 2 | L81: 0 | M81: 0 | N81: =IF(INTRO!$E$42="Endemic", IF(AND($J81>1,$J81<5), IF($J81=4, "Unknown", E81+F81), 0),"Not required") -> 73649 | O81: =IF(INTRO!$E$44="Endemic", IF(AND($K81>0,$K81<5), IF($K81=4,"Unknown", IF($K81=1, $F81*0.33, IF($K81=2, $F81*0.5+$G81*0.2, SUM(F81:G81)))), 0),"Not required") -> 42331.7 | P81: 0 | Q81: 0 | R81: 2 | S81: 1 | T81: T3 (ALB/MBD) | U81: T1 (PZQ+ALB/MBD) | Y81: 49836 | Z81: MADI OKOLLO | AA81: ='MDA3'!Q81 -> 0 | AB81: ='T1'!O81 -> 61226 | AC81: ='T2'!M81 -> 0 | AD81: =T3_R1!N81 -> 25525 | AE81: =T3_R2!N81 -> 83999
A82: =IF(INTRO!$E$34<>0,INTRO!$E$34,"") -> Uganda | B82: NORTHERN | C82: DOKOLO | D82: 218388 | E82: =IF(INTRO!$E$48="","",ROUND($D82*INTRO!$E$48,0)) -> 31011 | F82: =IF(INTRO!$E$49="","",ROUND($D82*INTRO!$E$49,0)) -> 65953 | G82: =IF(INTRO!$E$50="","",ROUND($D82*INTRO!$E$50,0)) -> 113780 | H82: 99 | I82: 0 | J82: 3 | K82: 1 | L82: 0 | M82: 0 | N82: =IF(INTRO!$E$42="Endemic", IF(AND($J82>1,$J82<5), IF($J82=4, "Unknown", E82+F82), 0),"Not required") -> 96964 | O82: =IF(INTRO!$E$44="Endemic", IF(AND($K82>0,$K82<5), IF($K82=4,"Unknown", IF($K82=1, $F82*0.33, IF($K82=2, $F82*0.5+$G82*0.2, SUM(F82:G82)))), 0),"Not required") -> 21764.49 | P82: 0 | Q82: 0 | R82: 2 | S82: 0 | T82: T3 (ALB/MBD) | U82: T3 (ALB/MBD) | Y82: 49733 | Z82: DOKOLO | AA82: ='MDA3'!Q82 -> 0 | AB82: ='T1'!O82 -> 0 | AC82: ='T2'!M82 -> 0 | AD82: =T3_R1!N82 -> 45517 | AE82: =T3_R2!N82 -> 79342
A83: =IF(INTRO!$E$34<>0,INTRO!$E$34,"") -> Uganda | B83: NORTHERN | C83: GULU | D83: 374520 | E83: =IF(INTRO!$E$48="","",ROUND($D83*INTRO!$E$48,0)) -> 53182 | F83: =IF(INTRO!$E$49="","",ROUND($D83*INTRO!$E$49,0)) -> 113105 | G83: =IF(INTRO!$E$50="","",ROUND($D83*INTRO!$E$50,0)) -> 195125 | H83: 99 | I83: 1 | J83: 1 | K83: 2 | L83: 0 | M83: 147839 | N83: =IF(INTRO!$E$42="Endemic", IF(AND($J83>1,$J83<5), IF($J83=4, "Unknown", E83+F83), 0),"Not required") -> 0 | O83: =IF(INTRO!$E$44="Endemic", IF(AND($K83>0,$K83<5), IF($K83=4,"Unknown", IF($K83=1, $F83*0.33, IF($K83=2, $F83*0.5+$G83*0.2, SUM(F83:G83)))), 0),"Not required") -> 95577.5 | P83: 0 | Q83: 2 | R83: 2 | S83: 1 | T83: MDA3 (IVM) | U83: T1 (PZQ+ALB/MBD) | Y83: 49734 | Z83: GULU | AA83: ='MDA3'!Q83 -> 129675 | AB83: ='T1'!O83 -> 50321 | AC83: ='T2'!M83 -> 0 | AD83: =T3_R1!N83 -> 71027 | AE83: =T3_R2!N83 -> 81470
A84: =IF(INTRO!$E$34<>0,INTRO!$E$34,"") -> Uganda | B84: NORTHERN | C84: KAABONG | D84: 132116 | E84: =IF(INTRO!$E$48="","",ROUND($D84*INTRO!$E$48,0)) -> 18760 | F84: =IF(INTRO!$E$49="","",ROUND($D84*INTRO!$E$49,0)) -> 39899 | G84: =IF(INTRO!$E$50="","",ROUND($D84*INTRO!$E$50,0)) -> 68832 | H84: 99 | I84: 0 | J84: 3 | K84: 0 | L84: 0 | M84: 0 | N84: =IF(INTRO!$E$42="Endemic", IF(AND($J84>1,$J84<5), IF($J84=4, "Unknown", E84+F84), 0),"Not required") -> 58659 | O84: =IF(INTRO!$E$44="Endemic", IF(AND($K84>0,$K84<5), IF($K84=4,"Unknown", IF($K84=1, $F84*0.33, IF($K84=2, $F84*0.5+$G84*0.2, SUM(F84:G84)))), 0),"Not required") -> 0 | P84: 0 | Q84: 0 | R84: 2 | S84: 0 | T84: T3 (ALB/MBD) | U84: T3 (ALB/MBD) | Y84: 49744 | Z84: KAABONG | AA84: ='MDA3'!Q84 -> 0 | AB84: ='T1'!O84 -> 0 | AC84: ='T2'!M84 -> 0 | AD84: =T3_R1!N84 -> 61476 | AE84: =T3_R2!N84 -> 47438
A85: =IF(INTRO!$E$34<>0,INTRO!$E$34,"") -> Uganda | B85: NORTHERN | C85: KARENGA | D85: 70357 | E85: =IF(INTRO!$E$48="","",ROUND($D85*INTRO!$E$48,0)) -> 9991 | F85: =IF(INTRO!$E$49="","",ROUND($D85*INTRO!$E$49,0)) -> 21248 | G85: =IF(INTRO!$E$50="","",ROUND($D85*INTRO!$E$50,0)) -> 36656 | H85: 99 | I85: 0 | J85: 3 | K85: 0 | L85: 0 | M85: 0 | N85: =IF(INTRO!$E$42="Endemic", IF(AND($J85>1,$J85<5), IF($J85=4, "Unknown", E85+F85), 0),"Not required") -> 31239 | O85: =IF(INTRO!$E$44="Endemic", IF(AND($K85>0,$K85<5), IF($K85=4,"Unknown", IF($K85=1, $F85*0.33, IF($K85=2, $F85*0.5+$G85*0.2, SUM(F85:G85)))), 0),"Not required") -> 0 | P85: 0 | Q85: 0 | R85: 2 | S85: 0 | T85: T3 (ALB/MBD) | U85: T3 (ALB/MBD) | Y85: 49837 | Z85: KARENGA | AA85: ='MDA3'!Q85 -> 0 | AB85: ='T1'!O85 -> 0 | AC85: ='T2'!M85 -> 0 | AD85: =T3_R1!N85 -> 15912 | AE85: =T3_R2!N85 -> 19599
A86: =IF(INTRO!$E$34<>0,INTRO!$E$34,"") -> Uganda | B86: NORTHERN | C86: KITGUM | D86: 244025 | E86: =IF(INTRO!$E$48="","",ROUND($D86*INTRO!$E$48,0)) -> 34652 | F86: =IF(INTRO!$E$49="","",ROUND($D86*INTRO!$E$49,0)) -> 73696 | G86: =IF(INTRO!$E$50="","",ROUND($D86*INTRO!$E$50,0)) -> 127137 | H86: 99 | I86: 1 | J86: 1 | K86: 3 | L86: 0 | M86: 105666 | N86: =IF(INTRO!$E$42="Endemic", IF(AND($J86>1,$J86<5), IF($J86=4, "Unknown", E86+F86), 0),"Not required") -> 0 | O86: =IF(INTRO!$E$44="Endemic", IF(AND($K86>0,$K86<5), IF($K86=4,"Unknown", IF($K86=1, $F86*0.33, IF($K86=2, $F86*0.5+$G86*0.2, SUM(F86:G86)))), 0),"Not required") -> 200833 | P86: 0 | Q86: 2 | R86: 2 | S86: 1 | T86: MDA3 (IVM) | U86: T1 (PZQ+ALB/MBD) | Y86: 49766 | Z86: KITGUM | AA86: ='MDA3'!Q86 -> 85276 | AB86: ='T1'!O86 -> 92446 | AC86: ='T2'!M86 -> 0 | AD86: =T3_R1!N86 -> 28877 | AE86: =T3_R2!N86 -> 63701
A87: =IF(INTRO!$E$34<>0,INTRO!$E$34,"") -> Uganda | B87: NORTHERN | C87: KOBOKO | D87: 248992 | E87: =IF(INTRO!$E$48="","",ROUND($D87*INTRO!$E$48,0)) -> 35357 | F87: =IF(INTRO!$E$49="","",ROUND($D87*INTRO!$E$49,0)) -> 75196 | G87: =IF(INTRO!$E$50="","",ROUND($D87*INTRO!$E$50,0)) -> 129725 | H87: 99 | I87: 99 | J87: 3 | K87: 3 | L87: 0 | M87: 0 | N87: =IF(INTRO!$E$42="Endemic", IF(AND($J87>1,$J87<5), IF($J87=4, "Unknown", E87+F87), 0),"Not required") -> 110553 | O87: =VLOOKUP(C87,[1]Sheet4!$A$4:$B$39,2,FALSE) -> 244835 | P87: 0 | Q87: 0 | R87: 2 | S87: 1 | T87: T3 (ALB/MBD) | U87: T2 (PZQ) | Y87: 49754 | Z87: KOBOKO | AA87: ='MDA3'!Q87 -> 0 | AB87: ='T1'!O87 -> 0 | AC87: ='T2'!M87 -> 177778 | AD87: =T3_R1!N87 -> 53428 | AE87: =T3_R2!N87 -> 116982
A88: =IF(INTRO!$E$34<>0,INTRO!$E$34,"") -> Uganda | B88: NORTHERN | C88: KOLE | D88: 289321 | E88: =IF(INTRO!$E$48="","",ROUND($D88*INTRO!$E$48,0)) -> 41084 | F88: =IF(INTRO!$E$49="","",ROUND($D88*INTRO!$E$49,0)) -> 87375 | G88: =IF(INTRO!$E$50="","",ROUND($D88*INTRO!$E$50,0)) -> 150736 | H88: 99 | I88: 0 | J88: 3 | K88: 0 | L88: 0 | M88: 0 | N88: =IF(INTRO!$E$42="Endemic", IF(AND($J88>1,$J88<5), IF($J88=4, "Unknown", E88+F88), 0),"Not required") -> 128459 | O88: =IF(INTRO!$E$44="Endemic", IF(AND($K88>0,$K88<5), IF($K88=4,"Unknown", IF($K88=1, $F88*0.33, IF($K88=2, $F88*0.5+$G88*0.2, SUM(F88:G88)))), 0),"Not required") -> 0 | P88: 0 | Q88: 0 | R88: 2 | S88: 0 | T88: T3 (ALB/MBD) | U88: T3 (ALB/MBD) | Y88: 49767 | Z88: KOLE | AA88: ='MDA3'!Q88 -> 0 | AB88: ='T1'!O88 -> 0 | AC88: ='T2'!M88 -> 0 | AD88: =T3_R1!N88 -> 47843 | AE88: =T3_R2!N88 -> 69034
A89: =IF(INTRO!$E$34<>0,INTRO!$E$34,"") -> Uganda | B89: NORTHERN | C89: KOTIDO | D89: 213998 | E89: =IF(INTRO!$E$48="","",ROUND($D89*INTRO!$E$48,0)) -> 30388 | F89: =IF(INTRO!$E$49="","",ROUND($D89*INTRO!$E$49,0)) -> 64627 | G89: =IF(INTRO!$E$50="","",ROUND($D89*INTRO!$E$50,0)) -> 111493 | H89: 99 | I89: 0 | J89: 3 | K89: 0 | L89: 0 | M89: 0 | N89: =IF(INTRO!$E$42="Endemic", IF(AND($J89>1,$J89<5), IF($J89=4, "Unknown", E89+F89), 0),"Not required") -> 95015 | O89: =IF(INTRO!$E$44="Endemic", IF(AND($K89>0,$K89<5), IF($K89=4,"Unknown", IF($K89=1, $F89*0.33, IF($K89=2, $F89*0.5+$G89*0.2, SUM(F89:G89)))), 0),"Not required") -> 0 | P89: 0 | Q89: 0 | R89: 2 | S89: 0 | T89: T3 (ALB/MBD) | U89: T3 (ALB/MBD) | Y89: 49755 | Z89: KOTIDO | AA89: ='MDA3'!Q89 -> 0 | AB89: ='T1'!O89 -> 0 | AC89: ='T2'!M89 -> 0 | AD89: =T3_R1!N89 -> 64847 | AE89: =T3_R2!N89 -> 136969
A90: =IF(INTRO!$E$34<>0,INTRO!$E$34,"") -> Uganda | B90: NORTHERN | C90: LAMWO | D90: 160340 | E90: =IF(INTRO!$E$48="","",ROUND($D90*INTRO!$E$48,0)) -> 22768 | F90: =IF(INTRO!$E$49="","",ROUND($D90*INTRO!$E$49,0)) -> 48423 | G90: =IF(INTRO!$E$50="","",ROUND($D90*INTRO!$E$50,0)) -> 83537 | H90: 99 | I90: 1 | J90: 3 | K90: 1 | L90: 0 | M90: 163249 | N90: =IF(INTRO!$E$42="Endemic", IF(AND($J90>1,$J90<5), IF($J90=4, "Unknown", E90+F90), 0),"Not required") -> 71191 | O90: =IF(INTRO!$E$44="Endemic", IF(AND($K90>0,$K90<5), IF($K90=4,"Unknown", IF($K90=1, $F90*0.33, IF($K90=2, $F90*0.5+$G90*0.2, SUM(F90:G90)))), 0),"Not required") -> 15979.59 | P90: 0 | Q90: 2 | R90: 2 | S90: 0 | T90: MDA3 (IVM) | U90: T1 (PZQ+ALB/MBD) | Y90: 49772 | Z90: LAMWO | AA90: ='MDA3'!Q90 -> 128874 | AB90: ='T1'!O90 -> 26590 | AC90: ='T2'!M90 -> 0 | AD90: =T3_R1!N90 -> 74490 | AE90: =T3_R2!N90 -> 44480
A91: =IF(INTRO!$E$34<>0,INTRO!$E$34,"") -> Uganda | B91: NORTHERN | C91: LIRA | D91: 491031 | E91: =IF(INTRO!$E$48="","",ROUND($D91*INTRO!$E$48,0)) -> 69726 | F91: =IF(INTRO!$E$49="","",ROUND($D91*INTRO!$E$49,0)) -> 148291 | G91: =IF(INTRO!$E$50="","",ROUND($D91*INTRO!$E$50,0)) -> 255827 | H91: 99 | I91: 1 | J91: 2 | K91: 2 | L91: 0 | M91: 79889 | N91: =IF(INTRO!$E$42="Endemic", IF(AND($J91>1,$J91<5), IF($J91=4, "Unknown", E91+F91), 0),"Not required") -> 218017 | O91: =VLOOKUP(C91,[1]Sheet4!$A$4:$B$39,2,FALSE) -> 210360 | P91: 0 | Q91: 2 | R91: 2 | S91: 1 | T91: MDA3 (IVM) | U91: T2 (PZQ) | Y91: 49771 | Z91: LIRA | AA91: ='MDA3'!Q91 -> 65628 | AB91: ='T1'!O91 -> 0 | AC91: ='T2'!M91 -> 200626 | AD91: =T3_R1!N91 -> 91838 | AE91: =T3_R2!N91 -> 67088
A92: =IF(INTRO!$E$34<>0,INTRO!$E$34,"") -> Uganda | B92: NORTHERN | C92: MARACHA | D92: 222693 | E92: =IF(INTRO!$E$48="","",ROUND($D92*INTRO!$E$48,0)) -> 31622 | F92: =IF(INTRO!$E$49="","",ROUND($D92*INTRO!$E$49,0)) -> 67253 | G92: =IF(INTRO!$E$50="","",ROUND($D92*INTRO!$E$50,0)) -> 116023 | H92: 99 | I92: 99 | J92: 3 | K92: 1 | L92: 0 | M92: 0 | N92: =IF(INTRO!$E$42="Endemic", IF(AND($J92>1,$J92<5), IF($J92=4, "Unknown", E92+F92), 0),"Not required") -> 98875 | O92: =IF(INTRO!$E$44="Endemic", IF(AND($K92>0,$K92<5), IF($K92=4,"Unknown", IF($K92=1, $F92*0.33, IF($K92=2, $F92*0.5+$G92*0.2, SUM(F92:G92)))), 0),"Not required") -> 22193.49 | P92: 0 | Q92: 0 | R92: 2 | S92: 0 | T92: T3 (ALB/MBD) | U92: T3 (ALB/MBD) | Y92: 49784 | Z92: MARACHA | AA92: ='MDA3'!Q92 -> 0 | AB92: ='T1'!O92 -> 0 | AC92: ='T2'!M92 -> 0 | AD92: =T3_R1!N92 -> 61209 | AE92: =T3_R2!N92 -> 107504
A93: =IF(INTRO!$E$34<>0,INTRO!$E$34,"") -> Uganda | B93: NORTHERN | C93: MOROTO | D93: 125042 | E93: =IF(INTRO!$E$48="","",ROUND($D93*INTRO!$E$48,0)) -> 17756 | F93: =IF(INTRO!$E$49="","",ROUND($D93*INTRO!$E$49,0)) -> 37763 | G93: =IF(INTRO!$E$50="","",ROUND($D93*INTRO!$E$50,0)) -> 65147 | H93: 99 | I93: 0 | J93: 3 | K93: 0 | L93: 0 | M93: 0 | N93: =IF(INTRO!$E$42="Endemic", IF(AND($J93>1,$J93<5), IF($J93=4, "Unknown", E93+F93), 0),"Not required") -> 55519 | O93: =IF(INTRO!$E$44="Endemic", IF(AND($K93>0,$K93<5), IF($K93=4,"Unknown", IF($K93=1, $F93*0.33, IF($K93=2, $F93*0.5+$G93*0.2, SUM(F93:G93)))), 0),"Not required") -> 0 | P93: 0 | Q93: 0 | R93: 2 | S93: 0 | T93: T3 (ALB/MBD) | U93: T3 (ALB/MBD) | Y93: 49781 | Z93: MOROTO | AA93: ='MDA3'!Q93 -> 0 | AB93: ='T1'!O93 -> 0 | AC93: ='T2'!M93 -> 0 | AD93: =T3_R1!N93 -> 34643 | AE93: =T3_R2!N93 -> 33688
A94: =IF(INTRO!$E$34<>0,INTRO!$E$34,"") -> Uganda | B94: NORTHERN | C94: MOYO | D94: 112856 | E94: =IF(INTRO!$E$48="","",ROUND($D94*INTRO!$E$48,0)) -> 16026 | F94: =IF(INTRO!$E$49="","",ROUND($D94*INTRO!$E$49,0)) -> 34083 | G94: =IF(INTRO!$E$50="","",ROUND($D94*INTRO!$E$50,0)) -> 58798 | H94: 99 | I94: 1 | J94: 3 | K94: 3 | L94: 0 | M94: 99012 | N94: =IF(INTRO!$E$42="Endemic", IF(AND($J94>1,$J94<5), IF($J94=4, "Unknown", E94+F94), 0),"Not required") -> 50109 | O94: =IF(INTRO!$E$44="Endemic", IF(AND($K94>0,$K94<5), IF($K94=4,"Unknown", IF($K94=1, $F94*0.33, IF($K94=2, $F94*0.5+$G94*0.2, SUM(F94:G94)))), 0),"Not required") -> 92881 | P94: 0 | Q94: 2 | R94: 2 | S94: 1 | T94: MDA3 (IVM) | U94: T1 (PZQ+ALB/MBD) | Y94: 49782 | Z94: MOYO | AA94: ='MDA3'!Q94 -> 85047 | AB94: ='T1'!O94 -> 10041 | AC94: ='T2'!M94 -> 0 | AD94: =T3_R1!N94 -> 39881 | AE94: =T3_R2!N94 -> 18710
A95: =IF(INTRO!$E$34<>0,INTRO!$E$34,"") -> Uganda | B95: NORTHERN | C95: OBONGI | D95: 51603 | E95: =IF(INTRO!$E$48="","",ROUND($D95*INTRO!$E$48,0)) -> 7328 | F95: =IF(INTRO!$E$49="","",ROUND($D95*INTRO!$E$49,0)) -> 15584 | G95: =IF(INTRO!$E$50="","",ROUND($D95*INTRO!$E$50,0)) -> 26885 | H95: 99 | I95: 99 | J95: 3 | K95: 3 | L95: 0 | M95: 0 | N95: =IF(INTRO!$E$42="Endemic", IF(AND($J95>1,$J95<5), IF($J95=4, "Unknown", E95+F95), 0),"Not required") -> 22912 | O95: =IF(INTRO!$E$44="Endemic", IF(AND($K95>0,$K95<5), IF($K95=4,"Unknown", IF($K95=1, $F95*0.33, IF($K95=2, $F95*0.5+$G95*0.2, SUM(F95:G95)))), 0),"Not required") -> 42469 | P95: 0 | Q95: 0 | R95: 2 | S95: 1 | T95: T3 (ALB/MBD) | U95: T1 (PZQ+ALB/MBD) | Y95: 49838 | Z95: OBONGI | AA95: ='MDA3'!Q95 -> 0 | AB95: ='T1'!O95 -> 24813 | AC95: ='T2'!M95 -> 0 | AD95: =T3_R1!N95 -> 41509 | AE95: =T3_R2!N95 -> 23519
A96: =IF(INTRO!$E$34<>0,INTRO!$E$34,"") -> Uganda | B96: NORTHERN | C96: NABILATUK | D96: 83344 | E96: =IF(INTRO!$E$48="","",ROUND($D96*INTRO!$E$48,0)) -> 11835 | F96: =IF(INTRO!$E$49="","",ROUND($D96*INTRO!$E$49,0)) -> 25170 | G96: =IF(INTRO!$E$50="","",ROUND($D96*INTRO!$E$50,0)) -> 43422 | H96: 99 | I96: 0 | J96: 3 | K96: 0 | L96: 0 | M96: 0 | N96: =IF(INTRO!$E$42="Endemic", IF(AND($J96>1,$J96<5), IF($J96=4, "Unknown", E96+F96), 0),"Not required") -> 37005 | O96: =IF(INTRO!$E$44="Endemic", IF(AND($K96>0,$K96<5), IF($K96=4,"Unknown", IF($K96=1, $F96*0.33, IF($K96=2, $F96*0.5+$G96*0.2, SUM(F96:G96)))), 0),"Not required") -> 0 | P96: 0 | Q96: 0 | R96: 2 | S96: 0 | T96: T3 (ALB/MBD) | U96: T3 (ALB/MBD) | Y96: 49826 | Z96: NABILATUK | AA96: ='MDA3'!Q96 -> 0 | AB96: ='T1'!O96 -> 0 | AC96: ='T2'!M96 -> 0 | AD96: =T3_R1!N96 -> 29805 | AE96: =T3_R2!N96 -> 71334
A97: =IF(INTRO!$E$34<>0,INTRO!$E$34,"") -> Uganda | B97: NORTHERN | C97: NAKAPIRIPIRIT | D97: 119632 | E97: =IF(INTRO!$E$48="","",ROUND($D97*INTRO!$E$48,0)) -> 16988 | F97: =IF(INTRO!$E$49="","",ROUND($D97*INTRO!$E$49,0)) -> 36129 | G97: =IF(INTRO!$E$50="","",ROUND($D97*INTRO!$E$50,0)) -> 62328 | H97: 99 | I97: 0 | J97: 3 | K97: 1 | L97: 0 | M97: 0 | N97: =IF(INTRO!$E$42="Endemic", IF(AND($J97>1,$J97<5), IF($J97=4, "Unknown", E97+F97), 0),"Not required") -> 53117 | O97: =IF(INTRO!$E$44="Endemic", IF(AND($K97>0,$K97<5), IF($K97=4,"Unknown", IF($K97=1, $F97*0.33, IF($K97=2, $F97*0.5+$G97*0.2, SUM(F97:G97)))), 0),"Not required") -> 11922.57 | P97: 0 | Q97: 0 | R97: 2 | S97: 0 | T97: T3 (ALB/MBD) | U97: T3 (ALB/MBD) | Y97: 49794 | Z97: NAKAPIRIPIRIT | AA97: ='MDA3'!Q97 -> 0 | AB97: ='T1'!O97 -> 0 | AC97: ='T2'!M97 -> 0 | AD97: =T3_R1!N97 -> 49464 | AE97: =T3_R2!N97 -> 73822
A98: =IF(INTRO!$E$34<>0,INTRO!$E$34,"") -> Uganda | B98: NORTHERN | C98: NAPAK | D98: 173705 | E98: =IF(INTRO!$E$48="","",ROUND($D98*INTRO!$E$48,0)) -> 24666 | F98: =IF(INTRO!$E$49="","",ROUND($D98*INTRO!$E$49,0)) -> 52459 | G98: =IF(INTRO!$E$50="","",ROUND($D98*INTRO!$E$50,0)) -> 90500 | H98: 99 | I98: 0 | J98: 3 | K98: 0 | L98: 0 | M98: 0 | N98: =IF(INTRO!$E$42="Endemic", IF(AND($J98>1,$J98<5), IF($J98=4, "Unknown", E98+F98), 0),"Not required") -> 77125 | O98: =IF(INTRO!$E$44="Endemic", IF(AND($K98>0,$K98<5), IF($K98=4,"Unknown", IF($K98=1, $F98*0.33, IF($K98=2, $F98*0.5+$G98*0.2, SUM(F98:G98)))), 0),"Not required") -> 0 | P98: 0 | Q98: 0 | R98: 2 | S98: 0 | T98: T3 (ALB/MBD) | U98: T3 (ALB/MBD) | Y98: 49797 | Z98: NAPAK | AA98: ='MDA3'!Q98 -> 0 | AB98: ='T1'!O98 -> 0 | AC98: ='T2'!M98 -> 0 | AD98: =T3_R1!N98 -> 76665 | AE98: =T3_R2!N98 -> 85174
A99: =IF(INTRO!$E$34<>0,INTRO!$E$34,"") -> Uganda | B99: NORTHERN | C99: NEBBI | D99: 283793 | E99: =IF(INTRO!$E$48="","",ROUND($D99*INTRO!$E$48,0)) -> 40299 | F99: =IF(INTRO!$E$49="","",ROUND($D99*INTRO!$E$49,0)) -> 85705 | G99: =IF(INTRO!$E$50="","",ROUND($D99*INTRO!$E$50,0)) -> 147856 | H99: 99 | I99: 99 | J99: 3 | K99: 0 | L99: 0 | M99: 0 | N99: =IF(INTRO!$E$42="Endemic", IF(AND($J99>1,$J99<5), IF($J99=4, "Unknown", E99+F99), 0),"Not required") -> 126004 | O99: =IF(INTRO!$E$44="Endemic", IF(AND($K99>0,$K99<5), IF($K99=4,"Unknown", IF($K99=1, $F99*0.33, IF($K99=2, $F99*0.5+$G99*0.2, SUM(F99:G99)))), 0),"Not required") -> 0 | P99: 0 | Q99: 0 | R99: 2 | S99: 0 | T99: T3 (ALB/MBD) | U99: T3 (ALB/MBD) | Y99: 49793 | Z99: NEBBI | AA99: ='MDA3'!Q99 -> 0 | AB99: ='T1'!O99 -> 0 | AC99: ='T2'!M99 -> 0 | AD99: =T3_R1!N99 -> 68774 | AE99: =T3_R2!N99 -> 111534
A100: =IF(INTRO!$E$34<>0,INTRO!$E$34,"") -> Uganda | B100: NORTHERN | C100: NWOYA | D100: 153218 | E100: =IF(INTRO!$E$48="","",ROUND($D100*INTRO!$E$48,0)) -> 21757 | F100: =IF(INTRO!$E$49="","",ROUND($D100*INTRO!$E$49,0)) -> 46272 | G100: =IF(INTRO!$E$50="","",ROUND($D100*INTRO!$E$50,0)) -> 79827 | H100: 99 | I100: 1 | J100: 1 | K100: 2 | L100: 0 | M100: 172155 | N100: =IF(INTRO!$E$42="Endemic", IF(AND($J100>1,$J100<5), IF($J100=4, "Unknown", E100+F100), 0),"Not required") -> 0 | O100: =IF(INTRO!$E$44="Endemic", IF(AND($K100>0,$K100<5), IF($K100=4,"Unknown", IF($K100=1, $F100*0.33, IF($K100=2, $F100*0.5+$G100*0.2, SUM(F100:G100)))), 0),"Not required") -> 39101.4 | P100: 0 | Q100: 2 | R100: 2 | S100: 1 | T100: MDA3 (IVM) | U100: T1 (PZQ+ALB/MBD) | Y100: 49801 | Z100: NWOYA | AA100: ='MDA3'!Q100 -> 147125 | AB100: ='T1'!O100 -> 42820 | AC100: ='T2'!M100 -> 0 | AD100: =T3_R1!N100 -> 35573 | AE100: =T3_R2!N100 -> 73993
A101: =IF(INTRO!$E$34<>0,INTRO!$E$34,"") -> Uganda | B101: NORTHERN | C101: OMORO | D101: 198129 | E101: =IF(INTRO!$E$48="","",ROUND($D101*INTRO!$E$48,0)) -> 28134 | F101: =IF(INTRO!$E$49="","",ROUND($D101*INTRO!$E$49,0)) -> 59835 | G101: =IF(INTRO!$E$50="","",ROUND($D101*INTRO!$E$50,0)) -> 103225 | H101: 99 | I101: 1 | J101: 1 | K101: 2 | L101: 0 | M101: 205454 | N101: =IF(INTRO!$E$42="Endemic", IF(AND($J101>1,$J101<5), IF($J101=4, "Unknown", E101+F101), 0),"Not required") -> 0 | O101: =IF(INTRO!$E$44="Endemic", IF(AND($K101>0,$K101<5), IF($K101=4,"Unknown", IF($K101=1, $F101*0.33, IF($K101=2, $F101*0.5+$G101*0.2, SUM(F101:G101)))), 0),"Not required") -> 50562.5 | P101: 0 | Q101: 2 | R101: 2 | S101: 1 | T101: MDA3 (IVM) | U101: T1 (PZQ+ALB/MBD) | Y101: 49818 | Z101: OMORO | AA101: ='MDA3'!Q101 -> 161507 | AB101: ='T1'!O101 -> 55657 | AC101: ='T2'!M101 -> 0 | AD101: =T3_R1!N101 -> 31337 | AE101: =T3_R2!N101 -> 54463
A102: =IF(INTRO!$E$34<>0,INTRO!$E$34,"") -> Uganda | B102: NORTHERN | C102: OTUKE | D102: 126332 | E102: =IF(INTRO!$E$48="","",ROUND($D102*INTRO!$E$48,0)) -> 17939 | F102: =IF(INTRO!$E$49="","",ROUND($D102*INTRO!$E$49,0)) -> 38152 | G102: =IF(INTRO!$E$50="","",ROUND($D102*INTRO!$E$50,0)) -> 65819 | H102: 99 | I102: 0 | J102: 3 | K102: 0 | L102: 0 | M102: 0 | N102: =IF(INTRO!$E$42="Endemic", IF(AND($J102>1,$J102<5), IF($J102=4, "Unknown", E102+F102), 0),"Not required") -> 56091 | O102: =IF(INTRO!$E$44="Endemic", IF(AND($K102>0,$K102<5), IF($K102=4,"Unknown", IF($K102=1, $F102*0.33, IF($K102=2, $F102*0.5+$G102*0.2, SUM(F102:G102)))), 0),"Not required") -> 0 | P102: 0 | Q102: 0 | R102: 2 | S102: 0 | T102: T3 (ALB/MBD) | U102: T3 (ALB/MBD) | Y102: 49803 | Z102: OTUKE | AA102: ='MDA3'!Q102 -> 0 | AB102: ='T1'!O102 -> 0 | AC102: ='T2'!M102 -> 0 | AD102: =T3_R1!N102 -> 31135 | AE102: =T3_R2!N102 -> 23292
A103: =IF(INTRO!$E$34<>0,INTRO!$E$34,"") -> Uganda | B103: NORTHERN | C103: OYAM | D103: 464112 | E103: =IF(INTRO!$E$48="","",ROUND($D103*INTRO!$E$48,0)) -> 65904 | F103: =IF(INTRO!$E$49="","",ROUND($D103*INTRO!$E$49,0)) -> 140162 | G103: =IF(INTRO!$E$50="","",ROUND($D103*INTRO!$E$50,0)) -> 241802 | H103: 99 | I103: 1 | J103: 3 | K103: 3 | L103: 0 | M103: 28080 | N103: =IF(INTRO!$E$42="Endemic", IF(AND($J103>1,$J103<5), IF($J103=4, "Unknown", E103+F103), 0),"Not required") -> 206066 | O103: =IF(INTRO!$E$44="Endemic", IF(AND($K103>0,$K103<5), IF($K103=4,"Unknown", IF($K103=1, $F103*0.33, IF($K103=2, $F103*0.5+$G103*0.2, SUM(F103:G103)))), 0),"Not required") -> 381964 | P103: 0 | Q103: 2 | R103: 2 | S103: 1 | T103: MDA3 (IVM) | U103: T1 (PZQ+ALB/MBD) | Y103: 49802 | Z103: OYAM | AA103: ='MDA3'!Q103 -> 22297 | AB103: ='T1'!O103 -> 23239 | AC103: ='T2'!M103 -> 0 | AD103: =T3_R1!N103 -> 74581 | AE103: =T3_R2!N103 -> 100374
A104: =IF(INTRO!$E$34<>0,INTRO!$E$34,"") -> Uganda | B104: NORTHERN | C104: PADER | D104: 219766 | E104: =IF(INTRO!$E$48="","",ROUND($D104*INTRO!$E$48,0)) -> 31207 | F104: =IF(INTRO!$E$49="","",ROUND($D104*INTRO!$E$49,0)) -> 66369 | G104: =IF(INTRO!$E$50="","",ROUND($D104*INTRO!$E$50,0)) -> 114498 | H104: 99 | I104: 1 | J104: 1 | K104: 3 | L104: 0 | M104: 206784 | N104: =IF(INTRO!$E$42="Endemic", IF(AND($J104>1,$J104<5), IF($J104=4, "Unknown", E104+F104), 0),"Not required") -> 0 | O104: =IF(INTRO!$E$44="Endemic", IF(AND($K104>0,$K104<5), IF($K104=4,"Unknown", IF($K104=1, $F104*0.33, IF($K104=2, $F104*0.5+$G104*0.2, SUM(F104:G104)))), 0),"Not required") -> 180867 | P104: 0 | Q104: 2 | R104: 2 | S104: 1 | T104: MDA3 (IVM) | U104: T1 (PZQ+ALB/MBD) | Y104: 49805 | Z104: PADER | AA104: ='MDA3'!Q104 -> 173699 | AB104: ='T1'!O104 -> 54175 | AC104: ='T2'!M104 -> 0 | AD104: =T3_R1!N104 -> 38285 | AE104: =T3_R2!N104 -> 59025
A105: =IF(INTRO!$E$34<>0,INTRO!$E$34,"") -> Uganda | B105: NORTHERN | C105: PAKWACH | D105: 217474 | E105: =IF(INTRO!$E$48="","",ROUND($D105*INTRO!$E$48,0)) -> 30881 | F105: =IF(INTRO!$E$49="","",ROUND($D105*INTRO!$E$49,0)) -> 65677 | G105: =IF(INTRO!$E$50="","",ROUND($D105*INTRO!$E$50,0)) -> 113304 | H105: 99 | I105: 99 | J105: 3 | K105: 3 | L105: 0 | M105: 0 | N105: =IF(INTRO!$E$42="Endemic", IF(AND($J105>1,$J105<5), IF($J105=4, "Unknown", E105+F105), 0),"Not required") -> 96558 | O105: =VLOOKUP(C105,[1]Sheet4!$A$4:$B$39,2,FALSE) -> 230298 | P105: 0 | Q105: 0 | R105: 2 | S105: 1 | T105: T3 (ALB/MBD) | U105: T2 (PZQ) | Y105: 49827 | Z105: PAKWACH | AA105: ='MDA3'!Q105 -> 0 | AB105: ='T1'!O105 -> 0 | AC105: ='T2'!M105 -> 153565 | AD105: =T3_R1!N105 -> 70818 | AE105: =T3_R2!N105 -> 86826
A106: =IF(INTRO!$E$34<>0,INTRO!$E$34,"") -> Uganda | B106: NORTHERN | C106: YUMBE | D106: 580820 | E106: =IF(INTRO!$E$48="","",ROUND($D106*INTRO!$E$48,0)) -> 82476 | F106: =IF(INTRO!$E$49="","",ROUND($D106*INTRO!$E$49,0)) -> 175408 | G106: =IF(INTRO!$E$50="","",ROUND($D106*INTRO!$E$50,0)) -> 302607 | H106: 99 | I106: 99 | J106: 3 | K106: 2 | L106: 0 | M106: 0 | N106: =IF(INTRO!$E$42="Endemic", IF(AND($J106>1,$J106<5), IF($J106=4, "Unknown", E106+F106), 0),"Not required") -> 257884 | O106: =VLOOKUP(C106,[1]Sheet4!$A$4:$B$39,2,FALSE) -> 309438 | P106: 0 | Q106: 0 | R106: 2 | S106: 1 | T106: T3 (ALB/MBD) | U106: T2 (PZQ) | Y106: 49816 | Z106: YUMBE | AA106: ='MDA3'!Q106 -> 0 | AB106: ='T1'!O106 -> 0 | AC106: ='T2'!M106 -> 144413 | AD106: =T3_R1!N106 -> 237726 | AE106: =T3_R2!N106 -> 272763
A107: =IF(INTRO!$E$34<>0,INTRO!$E$34,"") -> Uganda | B107: NORTHERN | C107: ZOMBO | D107: 287516 | E107: =IF(INTRO!$E$48="","",ROUND($D107*INTRO!$E$48,0)) -> 40827 | F107: =IF(INTRO!$E$49="","",ROUND($D107*INTRO!$E$49,0)) -> 86830 | G107: =IF(INTRO!$E$50="","",ROUND($D107*INTRO!$E$50,0)) -> 149796 | H107: 99 | I107: 99 | J107: 3 | K107: 1 | L107: 0 | M107: 0 | N107: =IF(INTRO!$E$42="Endemic", IF(AND($J107>1,$J107<5), IF($J107=4, "Unknown", E107+F107), 0),"Not required") -> 127657 | O107: =IF(INTRO!$E$44="Endemic", IF(AND($K107>0,$K107<5), IF($K107=4,"Unknown", IF($K107=1, $F107*0.33, IF($K107=2, $F107*0.5+$G107*0.2, SUM(F107:G107)))), 0),"Not required") -> 28653.9 | P107: 0 | Q107: 0 | R107: 2 | S107: 0 | T107: T3 (ALB/MBD) | U107: T3 (ALB/MBD) | Y107: 49817 | Z107: ZOMBO | AA107: ='MDA3'!Q107 -> 0 | AB107: ='T1'!O107 -> 0 | AC107: ='T2'!M107 -> 0 | AD107: =T3_R1!N107 -> 55724 | AE107: =T3_R2!N107 -> 59007
A108: =IF(INTRO!$E$34<>0,INTRO!$E$34,"") -> Uganda | B108: WESTERN | C108: BUHWEJU | D108: 148376 | E108: =IF(INTRO!$E$48="","",ROUND($D108*INTRO!$E$48,0)) -> 21069 | F108: =IF(INTRO!$E$49="","",ROUND($D108*INTRO!$E$49,0)) -> 44810 | G108: =IF(INTRO!$E$50="","",ROUND($D108*INTRO!$E$50,0)) -> 77304 | H108: 0 | I108: 99 | J108: 3 | K108: 0 | L108: 0 | M108: 0 | N108: =IF(INTRO!$E$42="Endemic", IF(AND($J108>1,$J108<5), IF($J108=4, "Unknown", E108+F108), 0),"Not required") -> 65879 | O108: =IF(INTRO!$E$44="Endemic", IF(AND($K108>0,$K108<5), IF($K108=4,"Unknown", IF($K108=1, $F108*0.33, IF($K108=2, $F108*0.5+$G108*0.2, SUM(F108:G108)))), 0),"Not required") -> 0 | P108: 0 | Q108: 0 | R108: 2 | S108: 0 | T108: T3 (ALB/MBD) | U108: T3 (ALB/MBD) | Y108: 49724 | Z108: BUHWEJU | AA108: ='MDA3'!Q108 -> 0 | AB108: ='T1'!O108 -> 0 | AC108: ='T2'!M108 -> 0 | AD108: =T3_R1!N108 -> 89906 | AE108: =T3_R2!N108 -> 23909
A109: =IF(INTRO!$E$34<>0,INTRO!$E$34,"") -> Uganda | B109: WESTERN | C109: BULIISA | D109: 135846 | E109: =IF(INTRO!$E$48="","",ROUND($D109*INTRO!$E$48,0)) -> 19290 | F109: =IF(INTRO!$E$49="","",ROUND($D109*INTRO!$E$49,0)) -> 41025 | G109: =IF(INTRO!$E$50="","",ROUND($D109*INTRO!$E$50,0)) -> 70776 | H109: 0 | I109: 99 | J109: 3 | K109: 3 | L109: 0 | M109: 0 | N109: =IF(INTRO!$E$42="Endemic", IF(AND($J109>1,$J109<5), IF($J109=4, "Unknown", E109+F109), 0),"Not required") -> 60315 | O109: =VLOOKUP(C109,[1]Sheet4!$A$4:$B$39,2,FALSE) -> 117419 | P109: 0 | Q109: 0 | R109: 2 | S109: 1 | T109: T3 (ALB/MBD) | U109: T2 (PZQ) | Y109: 49720 | Z109: BULIISA | AA109: ='MDA3'!Q109 -> 0 | AB109: ='T1'!O109 -> 0 | AC109: ='T2'!M109 -> 78983 | AD109: =T3_R1!N109 -> 41368 | AE109: =T3_R2!N109 -> 6993
A110: =IF(INTRO!$E$34<>0,INTRO!$E$34,"") -> Uganda | B110: WESTERN | C110: BUNDIBUGYO | D110: 268107 | E110: =IF(INTRO!$E$48="","",ROUND($D110*INTRO!$E$48,0)) -> 38071 | F110: =IF(INTRO!$E$49="","",ROUND($D110*INTRO!$E$49,0)) -> 80968 | G110: =IF(INTRO!$E$50="","",ROUND($D110*INTRO!$E$50,0)) -> 139684 | H110: 99 | I110: 0 | J110: 3 | K110: 3 | L110: 0 | M110: 0 | N110: =IF(INTRO!$E$42="Endemic", IF(AND($J110>1,$J110<5), IF($J110=4, "Unknown", E110+F110), 0),"Not required") -> 119039 | O110: =IF(INTRO!$E$44="Endemic", IF(AND($K110>0,$K110<5), IF($K110=4,"Unknown", IF($K110=1, $F110*0.33, IF($K110=2, $F110*0.5+$G110*0.2, SUM(F110:G110)))), 0),"Not required") -> 220652 | P110: 0 | Q110: 0 | R110: 2 | S110: 1 | T110: T3 (ALB/MBD) | U110: T1 (PZQ+ALB/MBD) | Y110: 49721 | Z110: BUNDIBUGYO | AA110: ='MDA3'!Q110 -> 0 | AB110: ='T1'!O110 -> 39397 | AC110: ='T2'!M110 -> 0 | AD110: =T3_R1!N110 -> 69432 | AE110: =T3_R2!N110 -> 94228
A111: =IF(INTRO!$E$34<>0,INTRO!$E$34,"") -> Uganda | B111: WESTERN | C111: BUNYANGABU | D111: 204890 | E111: =IF(INTRO!$E$48="","",ROUND($D111*INTRO!$E$48,0)) -> 29094 | F111: =IF(INTRO!$E$49="","",ROUND($D111*INTRO!$E$49,0)) -> 61877 | G111: =IF(INTRO!$E$50="","",ROUND($D111*INTRO!$E$50,0)) -> 106748 | H111: 0 | I111: 99 | J111: 3 | K111: 3 | L111: 0 | M111: 0 | N111: =IF(INTRO!$E$42="Endemic", IF(AND($J111>1,$J111<5), IF($J111=4, "Unknown", E111+F111), 0),"Not required") -> 90971 | O111: =VLOOKUP(C111,[1]Sheet4!$A$4:$B$39,2,FALSE) -> 34146 | P111: 0 | Q111: 0 | R111: 2 | S111: 1 | T111: T3 (ALB/MBD) | U111: T2 (PZQ) | Y111: 49828 | Z111: BUNYANGABU | AA111: ='MDA3'!Q111 -> 0 | AB111: ='T1'!O111 -> 0 | AC111: ='T2'!M111 -> 11800 | AD111: =T3_R1!N111 -> 26822 | AE111: =T3_R2!N111 -> 32424
A112: =IF(INTRO!$E$34<>0,INTRO!$E$34,"") -> Uganda | B112: WESTERN | C112: BUSHENYI | D112: 281836 | E112: =IF(INTRO!$E$48="","",ROUND($D112*INTRO!$E$48,0)) -> 40021 | F112: =IF(INTRO!$E$49="","",ROUND($D112*INTRO!$E$49,0)) -> 85114 | G112: =IF(INTRO!$E$50="","",ROUND($D112*INTRO!$E$50,0)) -> 146837 | H112: 0 | I112: 99 | J112: 3 | K112: 0 | L112: 0 | M112: 0 | N112: =IF(INTRO!$E$42="Endemic", IF(AND($J112>1,$J112<5), IF($J112=4, "Unknown", E112+F112), 0),"Not required") -> 125135 | O112: =IF(INTRO!$E$44="Endemic", IF(AND($K112>0,$K112<5), IF($K112=4,"Unknown", IF($K112=1, $F112*0.33, IF($K112=2, $F112*0.5+$G112*0.2, SUM(F112:G112)))), 0),"Not required") -> 0 | P112: 0 | Q112: 0 | R112: 2 | S112: 0 | T112: T3 (ALB/MBD) | U112: T3 (ALB/MBD) | Y112: 49722 | Z112: BUSHENYI | AA112: ='MDA3'!Q112 -> 0 | AB112: ='T1'!O112 -> 0 | AC112: ='T2'!M112 -> 0 | AD112: =T3_R1!N112 -> 116007 | AE112: =T3_R2!N112 -> 176309
A113: =IF(INTRO!$E$34<>0,INTRO!$E$34,"") -> Uganda | B113: WESTERN | C113: HOIMA | D113: 369220 | E113: =IF(INTRO!$E$48="","",ROUND($D113*INTRO!$E$48,0)) -> 52429 | F113: =IF(INTRO!$E$49="","",ROUND($D113*INTRO!$E$49,0)) -> 111504 | G113: =IF(INTRO!$E$50="","",ROUND($D113*INTRO!$E$50,0)) -> 192364 | H113: 0 | I113: 99 | J113: 3 | K113: 3 | L113: 0 | M113: 0 | N113: =IF(INTRO!$E$42="Endemic", IF(AND($J113>1,$J113<5), IF($J113=4, "Unknown", E113+F113), 0),"Not required") -> 163933 | O113: =VLOOKUP(C113,[1]Sheet4!$A$4:$B$39,2,FALSE) -> 89542 | P113: 0 | Q113: 0 | R113: 2 | S113: 1 | T113: T3 (ALB/MBD) | U113: T2 (PZQ) | Y113: 49736 | Z113: HOIMA | AA113: ='MDA3'!Q113 -> 0 | AB113: ='T1'!O113 -> 0 | AC113: ='T2'!M113 -> 68233 | AD113: =T3_R1!N113 -> 100883 | AE113: =T3_R2!N113 -> 78189
A114: =IF(INTRO!$E$34<>0,INTRO!$E$34,"") -> Uganda | B114: WESTERN | C114: KIKUUBE | D114: 317249 | E114: =IF(INTRO!$E$48="","",ROUND($D114*INTRO!$E$48,0)) -> 45049 | F114: =IF(INTRO!$E$49="","",ROUND($D114*INTRO!$E$49,0)) -> 95809 | G114: =IF(INTRO!$E$50="","",ROUND($D114*INTRO!$E$50,0)) -> 165287 | H114: 0 | I114: 99 | J114: 3 | K114: 3 | L114: 0 | M114: 0 | N114: =IF(INTRO!$E$42="Endemic", IF(AND($J114>1,$J114<5), IF($J114=4, "Unknown", E114+F114), 0),"Not required") -> 140858 | O114: =VLOOKUP(C114,[1]Sheet4!$A$4:$B$39,2,FALSE) -> 105600 | P114: 0 | Q114: 0 | R114: 2 | S114: 1 | T114: T3 (ALB/MBD) | U114: T2 (PZQ) | Y114: 49839 | Z114: KIKUUBE | AA114: ='MDA3'!Q114 -> 0 | AB114: ='T1'!O114 -> 0 | AC114: ='T2'!M114 -> 77991 | AD114: =T3_R1!N114 -> 94932 | AE114: =T3_R2!N114 -> 79005
A115: =IF(INTRO!$E$34<>0,INTRO!$E$34,"") -> Uganda | B115: WESTERN | C115: IBANDA | D115: 296742 | E115: =IF(INTRO!$E$48="","",ROUND($D115*INTRO!$E$48,0)) -> 42137 | F115: =IF(INTRO!$E$49="","",ROUND($D115*INTRO!$E$49,0)) -> 89616 | G115: =IF(INTRO!$E$50="","",ROUND($D115*INTRO!$E$50,0)) -> 154603 | H115: 0 | I115: 99 | J115: 3 | K115: 1 | L115: 0 | M115: 0 | N115: =IF(INTRO!$E$42="Endemic", IF(AND($J115>1,$J115<5), IF($J115=4, "Unknown", E115+F115), 0),"Not required") -> 131753 | O115: =IF(INTRO!$E$44="Endemic", IF(AND($K115>0,$K115<5), IF($K115=4,"Unknown", IF($K115=1, $F115*0.33, IF($K115=2, $F115*0.5+$G115*0.2, SUM(F115:G115)))), 0),"Not required") -> 29573.28 | P115: 0 | Q115: 0 | R115: 2 | S115: 0 | T115: T3 (ALB/MBD) | U115: T3 (ALB/MBD) | Y115: 49737 | Z115: IBANDA | AA115: ='MDA3'!Q115 -> 0 | AB115: ='T1'!O115 -> 0 | AC115: ='T2'!M115 -> 0 | AD115: =T3_R1!N115 -> 163287 | AE115: =T3_R2!N115 -> 42877
A116: =IF(INTRO!$E$34<>0,INTRO!$E$34,"") -> Uganda | B116: WESTERN | C116: ISINGIRO | D116: 588646 | E116: =IF(INTRO!$E$48="","",ROUND($D116*INTRO!$E$48,0)) -> 83588 | F116: =IF(INTRO!$E$49="","",ROUND($D116*INTRO!$E$49,0)) -> 177771 | G116: =IF(INTRO!$E$50="","",ROUND($D116*INTRO!$E$50,0)) -> 306685 | H116: 0 | I116: 0 | J116: 3 | K116: 1 | L116: 0 | M116: 0 | N116: =IF(INTRO!$E$42="Endemic", IF(AND($J116>1,$J116<5), IF($J116=4, "Unknown", E116+F116), 0),"Not required") -> 261359 | O116: =IF(INTRO!$E$44="Endemic", IF(AND($K116>0,$K116<5), IF($K116=4,"Unknown", IF($K116=1, $F116*0.33, IF($K116=2, $F116*0.5+$G116*0.2, SUM(F116:G116)))), 0),"Not required") -> 58664.43 | P116: 0 | Q116: 0 | R116: 2 | S116: 0 | T116: T3 (ALB/MBD) | U116: T3 (ALB/MBD) | Y116: 49739 | Z116: ISINGIRO | AA116: ='MDA3'!Q116 -> 0 | AB116: ='T1'!O116 -> 0 | AC116: ='T2'!M116 -> 0 | AD116: =T3_R1!N116 -> 151612 | AE116: =T3_R2!N116 -> 78968
A117: =IF(INTRO!$E$34<>0,INTRO!$E$34,"") -> Uganda | B117: WESTERN | C117: KABALE | D117: 278106 | E117: =IF(INTRO!$E$48="","",ROUND($D117*INTRO!$E$48,0)) -> 39491 | F117: =IF(INTRO!$E$49="","",ROUND($D117*INTRO!$E$49,0)) -> 83988 | G117: =IF(INTRO!$E$50="","",ROUND($D117*INTRO!$E$50,0)) -> 144893 | H117: 0 | I117: 0 | J117: 3 | K117: 0 | L117: 0 | M117: 0 | N117: =IF(INTRO!$E$42="Endemic", IF(AND($J117>1,$J117<5), IF($J117=4, "Unknown", E117+F117), 0),"Not required") -> 123479 | O117: =IF(INTRO!$E$44="Endemic", IF(AND($K117>0,$K117<5), IF($K117=4,"Unknown", IF($K117=1, $F117*0.33, IF($K117=2, $F117*0.5+$G117*0.2, SUM(F117:G117)))), 0),"Not required") -> 0 | P117: 0 | Q117: 0 | R117: 2 | S117: 0 | T117: T3 (ALB/MBD) | U117: T3 (ALB/MBD) | Y117: 49741 | Z117: KABALE | AA117: ='MDA3'!Q117 -> 0 | AB117: ='T1'!O117 -> 0 | AC117: ='T2'!M117 -> 0 | AD117: =T3_R1!N117 -> 96783 | AE117: =T3_R2!N117 -> 48729
A118: =IF(INTRO!$E$34<>0,INTRO!$E$34,"") -> Uganda | B118: WESTERN | C118: KABAROLE | D118: 362344 | E118: =IF(INTRO!$E$48="","",ROUND($D118*INTRO!$E$48,0)) -> 51453 | F118: =IF(INTRO!$E$49="","",ROUND($D118*INTRO!$E$49,0)) -> 109428 | G118: =IF(INTRO!$E$50="","",ROUND($D118*INTRO!$E$50,0)) -> 188781 | H118: 0 | I118: 99 | J118: 2 | K118: 3 | L118: 0 | M118: 0 | N118: =IF(INTRO!$E$42="Endemic", IF(AND($J118>1,$J118<5), IF($J118=4, "Unknown", E118+F118), 0),"Not required") -> 160881 | O118: =VLOOKUP(C118,[1]Sheet4!$A$4:$B$39,2,FALSE) -> 88085 | P118: 0 | Q118: 0 | R118: 2 | S118: 1 | T118: T3 (ALB/MBD) | U118: T2 (PZQ) | Y118: 49742 | Z118: KABAROLE | AA118: ='MDA3'!Q118 -> 0 | AB118: ='T1'!O118 -> 0 | AC118: ='T2'!M118 -> 20569 | AD118: =T3_R1!N118 -> 58073 | AE118: =T3_R2!N118 -> 50457
A119: =IF(INTRO!$E$34<>0,INTRO!$E$34,"") -> Uganda | B119: WESTERN | C119: KAGADI | D119: 422016 | E119: =IF(INTRO!$E$48="","",ROUND($D119*INTRO!$E$48,0)) -> 59926 | F119: =IF(INTRO!$E$49="","",ROUND($D119*INTRO!$E$49,0)) -> 127449 | G119: =IF(INTRO!$E$50="","",ROUND($D119*INTRO!$E$50,0)) -> 219870 | H119: 0 | I119: 99 | J119: 2 | K119: 3 | L119: 0 | M119: 0 | N119: =IF(INTRO!$E$42="Endemic", IF(AND($J119>1,$J119<5), IF($J119=4, "Unknown", E119+F119), 0),"Not required") -> 187375 | O119: =VLOOKUP(C119,[1]Sheet4!$A$4:$B$39,2,FALSE) -> 186272 | P119: 0 | Q119: 0 | R119: 2 | S119: 1 | T119: T3 (ALB/MBD) | U119: T2 (PZQ) | Y119: 49752 | Z119: KAGADI | AA119: ='MDA3'!Q119 -> 0 | AB119: ='T1'!O119 -> 0 | AC119: ='T2'!M119 -> 134184 | AD119: =T3_R1!N119 -> 88979 | AE119: =T3_R2!N119 -> 615935
A120: =IF(INTRO!$E$34<>0,INTRO!$E$34,"") -> Uganda | B120: WESTERN | C120: KAKUMIRO | D120: 354503 | E120: =IF(INTRO!$E$48="","",ROUND($D120*INTRO!$E$48,0)) -> 50339 | F120: =IF(INTRO!$E$49="","",ROUND($D120*INTRO!$E$49,0)) -> 107060 | G120: =IF(INTRO!$E$50="","",ROUND($D120*INTRO!$E$50,0)) -> 184696 | H120: 0 | I120: 0 | J120: 2 | K120: 0 | L120: 0 | M120: 0 | N120: =IF(INTRO!$E$42="Endemic", IF(AND($J120>1,$J120<5), IF($J120=4, "Unknown", E120+F120), 0),"Not required") -> 157399 | O120: =IF(INTRO!$E$44="Endemic", IF(AND($K120>0,$K120<5), IF($K120=4,"Unknown", IF($K120=1, $F120*0.33, IF($K120=2, $F120*0.5+$G120*0.2, SUM(F120:G120)))), 0),"Not required") -> 0 | P120: 0 | Q120: 0 | R120: 2 | S120: 0 | T120: T3 (ALB/MBD) | U120: T3 (ALB/MBD) | Y120: 49819 | Z120: KAKUMIRO | AA120: ='MDA3'!Q120 -> 0 | AB120: ='T1'!O120 -> 0 | AC120: ='T2'!M120 -> 0 | AD120: =T3_R1!N120 -> 78758 | AE120: =T3_R2!N120 -> 49889
A121: =IF(INTRO!$E$34<>0,INTRO!$E$34,"") -> Uganda | B121: WESTERN | C121: KAMWENGE | D121: 329996 | E121: =IF(INTRO!$E$48="","",ROUND($D121*INTRO!$E$48,0)) -> 46859 | F121: =IF(INTRO!$E$49="","",ROUND($D121*INTRO!$E$49,0)) -> 99659 | G121: =IF(INTRO!$E$50="","",ROUND($D121*INTRO!$E$50,0)) -> 171928 | H121: 0 | I121: 99 | J121: 3 | K121: 0 | L121: 0 | M121: 0 | N121: =IF(INTRO!$E$42="Endemic", IF(AND($J121>1,$J121<5), IF($J121=4, "Unknown", E121+F121), 0),"Not required") -> 146518 | O121: =IF(INTRO!$E$44="Endemic", IF(AND($K121>0,$K121<5), IF($K121=4,"Unknown", IF($K121=1, $F121*0.33, IF($K121=2, $F121*0.5+$G121*0.2, SUM(F121:G121)))), 0),"Not required") -> 0 | P121: 0 | Q121: 0 | R121: 2 | S121: 0 | T121: T3 (ALB/MBD) | U121: T3 (ALB/MBD) | Y121: 49748 | Z121: KAMWENGE | AA121: ='MDA3'!Q121 -> 0 | AB121: ='T1'!O121 -> 0 | AC121: ='T2'!M121 -> 0 | AD121: =T3_R1!N121 -> 93127 | AE121: =T3_R2!N121 -> 146405
A122: =IF(INTRO!$E$34<>0,INTRO!$E$34,"") -> Uganda | B122: WESTERN | C122: KITAGWENDA | D122: 174147 | E122: =IF(INTRO!$E$48="","",ROUND($D122*INTRO!$E$48,0)) -> 24729 | F122: =IF(INTRO!$E$49="","",ROUND($D122*INTRO!$E$49,0)) -> 52592 | G122: =IF(INTRO!$E$50="","",ROUND($D122*INTRO!$E$50,0)) -> 90731 | H122: 0 | I122: 99 | J122: 3 | K122: 2 | L122: 0 | M122: 0 | N122: =IF(INTRO!$E$42="Endemic", IF(AND($J122>1,$J122<5), IF($J122=4, "Unknown", E122+F122), 0),"Not required") -> 77321 | O122: =VLOOKUP(C122,[1]Sheet4!$A$4:$B$39,2,FALSE) -> 45547 | P122: 0 | Q122: 0 | R122: 2 | S122: 1 | T122: T3 (ALB/MBD) | U122: T2 (PZQ) | Y122: 49840 | Z122: KITAGWENDA | AA122: ='MDA3'!Q122 -> 0 | AB122: ='T1'!O122 -> 0 | AC122: ='T2'!M122 -> 38963 | AD122: =T3_R1!N122 -> 34988 | AE122: =T3_R2!N122 -> 12134
A123: =IF(INTRO!$E$34<>0,INTRO!$E$34,"") -> Uganda | B123: WESTERN | C123: KANUNGU | D123: 301521 | E123: =IF(INTRO!$E$48="","",ROUND($D123*INTRO!$E$48,0)) -> 42816 | F123: =IF(INTRO!$E$49="","",ROUND($D123*INTRO!$E$49,0)) -> 91059 | G123: =IF(INTRO!$E$50="","",ROUND($D123*INTRO!$E$50,0)) -> 157092 | H123: 0 | I123: 99 | J123: 3 | K123: 0 | L123: 0 | M123: 0 | N123: =IF(INTRO!$E$42="Endemic", IF(AND($J123>1,$J123<5), IF($J123=4, "Unknown", E123+F123), 0),"Not required") -> 133875 | O123: =IF(INTRO!$E$44="Endemic", IF(AND($K123>0,$K123<5), IF($K123=4,"Unknown", IF($K123=1, $F123*0.33, IF($K123=2, $F123*0.5+$G123*0.2, SUM(F123:G123)))), 0),"Not required") -> 0 | P123: 0 | Q123: 0 | R123: 2 | S123: 0 | T123: T3 (ALB/MBD) | U123: T3 (ALB/MBD) | Y123: 49749 | Z123: KANUNGU | AA123: ='MDA3'!Q123 -> 0 | AB123: ='T1'!O123 -> 0 | AC123: ='T2'!M123 -> 0 | AD123: =T3_R1!N123 -> 48498 | AE123: =T3_R2!N123 -> 22213
A124: =IF(INTRO!$E$34<>0,INTRO!$E$34,"") -> Uganda | B124: WESTERN | C124: KASESE | D124: 839726 | E124: =IF(INTRO!$E$48="","",ROUND($D124*INTRO!$E$48,0)) -> 119241 | F124: =IF(INTRO!$E$49="","",ROUND($D124*INTRO!$E$49,0)) -> 253597 | G124: =IF(INTRO!$E$50="","",ROUND($D124*INTRO!$E$50,0)) -> 437497 | H124: 0 | I124: 1 | J124: 3 | K124: 3 | L124: 0 | M124: 140659 | N124: =IF(INTRO!$E$42="Endemic", IF(AND($J124>1,$J124<5), IF($J124=4, "Unknown", E124+F124), 0),"Not required") -> 372838 | O124: =IF(INTRO!$E$44="Endemic", IF(AND($K124>0,$K124<5), IF($K124=4,"Unknown", IF($K124=1, $F124*0.33, IF($K124=2, $F124*0.5+$G124*0.2, SUM(F124:G124)))), 0),"Not required") -> 691094 | P124: 0 | Q124: 2 | R124: 2 | S124: 1 | T124: MDA3 (IVM) | U124: T1 (PZQ+ALB/MBD) | Y124: 49750 | Z124: KASESE | AA124: ='MDA3'!Q124 -> 118236 | AB124: ='T1'!O124 -> 6299 | AC124: ='T2'!M124 -> 0 | AD124: =T3_R1!N124 -> 152994 | AE124: =T3_R2!N124 -> 196311
A125: =IF(INTRO!$E$34<>0,INTRO!$E$34,"") -> Uganda | B125: WESTERN | C125: KIBAALE | D125: 166894 | E125: =IF(INTRO!$E$48="","",ROUND($D125*INTRO!$E$48,0)) -> 23699 | F125: =IF(INTRO!$E$49="","",ROUND($D125*INTRO!$E$49,0)) -> 50402 | G125: =IF(INTRO!$E$50="","",ROUND($D125*INTRO!$E$50,0)) -> 86952 | H125: 0 | I125: 99 | J125: 2 | K125: 0 | L125: 0 | M125: 0 | N125: =IF(INTRO!$E$42="Endemic", IF(AND($J125>1,$J125<5), IF($J125=4, "Unknown", E125+F125), 0),"Not required") -> 74101 | O125: =IF(INTRO!$E$44="Endemic", IF(AND($K125>0,$K125<5), IF($K125=4,"Unknown", IF($K125=1, $F125*0.33, IF($K125=2, $F125*0.5+$G125*0.2, SUM(F125:G125)))), 0),"Not required") -> 0 | P125: 0 | Q125: 0 | R125: 2 | S125: 0 | T125: T3 (ALB/MBD) | U125: T3 (ALB/MBD) | Y125: 49820 | Z125: KIBAALE | AA125: ='MDA3'!Q125 -> 0 | AB125: ='T1'!O125 -> 0 | AC125: ='T2'!M125 -> 0 | AD125: =T3_R1!N125 -> 55431 | AE125: =T3_R2!N125 -> 39919
A126: =IF(INTRO!$E$34<>0,INTRO!$E$34,"") -> Uganda | B126: WESTERN | C126: KIRUHURA | D126: 181435 | E126: =IF(INTRO!$E$48="","",ROUND($D126*INTRO!$E$48,0)) -> 25764 | F126: =IF(INTRO!$E$49="","",ROUND($D126*INTRO!$E$49,0)) -> 54793 | G126: =IF(INTRO!$E$50="","",ROUND($D126*INTRO!$E$50,0)) -> 94528 | H126: 0 | I126: 0 | J126: 3 | K126: 1 | L126: 0 | M126: 0 | N126: =IF(INTRO!$E$42="Endemic", IF(AND($J126>1,$J126<5), IF($J126=4, "Unknown", E126+F126), 0),"Not required") -> 80557 | O126: =IF(INTRO!$E$44="Endemic", IF(AND($K126>0,$K126<5), IF($K126=4,"Unknown", IF($K126=1, $F126*0.33, IF($K126=2, $F126*0.5+$G126*0.2, SUM(F126:G126)))), 0),"Not required") -> 18081.69 | P126: 0 | Q126: 0 | R126: 2 | S126: 0 | T126: T3 (ALB/MBD) | U126: T3 (ALB/MBD) | Y126: 49764 | Z126: KIRUHURA | AA126: ='MDA3'!Q126 -> 0 | AB126: ='T1'!O126 -> 0 | AC126: ='T2'!M126 -> 0 | AD126: =T3_R1!N126 -> 53435 | AE126: =T3_R2!N126 -> 59646
A127: =IF(INTRO!$E$34<>0,INTRO!$E$34,"") -> Uganda | B127: WESTERN | C127: KAZO | D127: 211548 | E127: =IF(INTRO!$E$48="","",ROUND($D127*INTRO!$E$48,0)) -> 30040 | F127: =IF(INTRO!$E$49="","",ROUND($D127*INTRO!$E$49,0)) -> 63887 | G127: =IF(INTRO!$E$50="","",ROUND($D127*INTRO!$E$50,0)) -> 110217 | H127: 0 | I127: 0 | J127: 3 | K127: 1 | L127: 0 | M127: 0 | N127: =IF(INTRO!$E$42="Endemic", IF(AND($J127>1,$J127<5), IF($J127=4, "Unknown", E127+F127), 0),"Not required") -> 93927 | O127: =IF(INTRO!$E$44="Endemic", IF(AND($K127>0,$K127<5), IF($K127=4,"Unknown", IF($K127=1, $F127*0.33, IF($K127=2, $F127*0.5+$G127*0.2, SUM(F127:G127)))), 0),"Not required") -> 21082.71 | P127: 0 | Q127: 0 | R127: 2 | S127: 0 | T127: T3 (ALB/MBD) | U127: T3 (ALB/MBD) | Y127: 49841 | Z127: KAZO | AA127: ='MDA3'!Q127 -> 0 | AB127: ='T1'!O127 -> 0 | AC127: ='T2'!M127 -> 0 | AD127: =T3_R1!N127 -> 59669 | AE127: =T3_R2!N127 -> 51814
A128: =IF(INTRO!$E$34<>0,INTRO!$E$34,"") -> Uganda | B128: WESTERN | C128: KIRYANDONGO | D128: 320793 | E128: =IF(INTRO!$E$48="","",ROUND($D128*INTRO!$E$48,0)) -> 45553 | F128: =IF(INTRO!$E$49="","",ROUND($D128*INTRO!$E$49,0)) -> 96879 | G128: =IF(INTRO!$E$50="","",ROUND($D128*INTRO!$E$50,0)) -> 167133 | H128: 0 | I128: 0 | J128: 3 | K128: 3 | L128: 0 | M128: 0 | N128: =IF(INTRO!$E$42="Endemic", IF(AND($J128>1,$J128<5), IF($J128=4, "Unknown", E128+F128), 0),"Not required") -> 142432 | O128: =VLOOKUP(C128,[1]Sheet4!$A$4:$B$39,2,FALSE) -> 65211 | P128: 0 | Q128: 0 | R128: 2 | S128: 1 | T128: T3 (ALB/MBD) | U128: T2 (PZQ) | Y128: 49765 | Z128: KIRYANDONGO | AA128: ='MDA3'!Q128 -> 0 | AB128: ='T1'!O128 -> 0 | AC128: ='T2'!M128 -> 39624 | AD128: =T3_R1!N128 -> 60915 | AE128: =T3_R2!N128 -> 11438
A129: =IF(INTRO!$E$34<>0,INTRO!$E$34,"") -> Uganda | B129: WESTERN | C129: KISORO | D129: 343508 | E129: =IF(INTRO!$E$48="","",ROUND($D129*INTRO!$E$48,0)) -> 48778 | F129: =IF(INTRO!$E$49="","",ROUND($D129*INTRO!$E$49,0)) -> 103739 | G129: =IF(INTRO!$E$50="","",ROUND($D129*INTRO!$E$50,0)) -> 178968 | H129: 0 | I129: 99 | J129: 3 | K129: 0 | L129: 0 | M129: 0 | N129: =IF(INTRO!$E$42="Endemic", IF(AND($J129>1,$J129<5), IF($J129=4, "Unknown", E129+F129), 0),"Not required") -> 152517 | O129: =IF(INTRO!$E$44="Endemic", IF(AND($K129>0,$K129<5), IF($K129=4,"Unknown", IF($K129=1, $F129*0.33, IF($K129=2, $F129*0.5+$G129*0.2, SUM(F129:G129)))), 0),"Not required") -> 0 | P129: 0 | Q129: 0 | R129: 2 | S129: 0 | T129: T3 (ALB/MBD) | U129: T3 (ALB/MBD) | Y129: 49753 | Z129: KISORO | AA129: ='MDA3'!Q129 -> 0 | AB129: ='T1'!O129 -> 0 | AC129: ='T2'!M129 -> 0 | AD129: =T3_R1!N129 -> 92097 | AE129: =T3_R2!N129 -> 32896
A130: =IF(INTRO!$E$34<>0,INTRO!$E$34,"") -> Uganda | B130: WESTERN | C130: KYEGEGWA | D130: 331783 | E130: =IF(INTRO!$E$48="","",ROUND($D130*INTRO!$E$48,0)) -> 47113 | F130: =IF(INTRO!$E$49="","",ROUND($D130*INTRO!$E$49,0)) -> 100198 | G130: =IF(INTRO!$E$50="","",ROUND($D130*INTRO!$E$50,0)) -> 172859 | H130: 0 | I130: 0 | J130: 3 | K130: 0 | L130: 0 | M130: 0 | N130: =IF(INTRO!$E$42="Endemic", IF(AND($J130>1,$J130<5), IF($J130=4, "Unknown", E130+F130), 0),"Not required") -> 147311 | O130: =IF(INTRO!$E$44="Endemic", IF(AND($K130>0,$K130<5), IF($K130=4,"Unknown", IF($K130=1, $F130*0.33, IF($K130=2, $F130*0.5+$G130*0.2, SUM(F130:G130)))), 0),"Not required") -> 0 | P130: 0 | Q130: 0 | R130: 2 | S130: 0 | T130: T3 (ALB/MBD) | U130: T3 (ALB/MBD) | Y130: 49770 | Z130: KYEGEGWA | AA130: ='MDA3'!Q130 -> 0 | AB130: ='T1'!O130 -> 0 | AC130: ='T2'!M130 -> 0 | AD130: =T3_R1!N130 -> 130888 | AE130: =T3_R2!N130 -> 56205
A131: =IF(INTRO!$E$34<>0,INTRO!$E$34,"") -> Uganda | B131: WESTERN | C131: KYENJOJO | D131: 478579 | E131: =IF(INTRO!$E$48="","",ROUND($D131*INTRO!$E$48,0)) -> 67958 | F131: =IF(INTRO!$E$49="","",ROUND($D131*INTRO!$E$49,0)) -> 144531 | G131: =IF(INTRO!$E$50="","",ROUND($D131*INTRO!$E$50,0)) -> 249340 | H131: 0 | I131: 99 | J131: 3 | K131: 0 | L131: 0 | M131: 0 | N131: =IF(INTRO!$E$42="Endemic", IF(AND($J131>1,$J131<5), IF($J131=4, "Unknown", E131+F131), 0),"Not required") -> 212489 | O131: =IF(INTRO!$E$44="Endemic", IF(AND($K131>0,$K131<5), IF($K131=4,"Unknown", IF($K131=1, $F131*0.33, IF($K131=2, $F131*0.5+$G131*0.2, SUM(F131:G131)))), 0),"Not required") -> 0 | P131: 0 | Q131: 0 | R131: 2 | S131: 0 | T131: T3 (ALB/MBD) | U131: T3 (ALB/MBD) | Y131: 49757 | Z131: KYENJOJO | AA131: ='MDA3'!Q131 -> 0 | AB131: ='T1'!O131 -> 0 | AC131: ='T2'!M131 -> 0 | AD131: =T3_R1!N131 -> 223915 | AE131: =T3_R2!N131 -> 32284
A132: =IF(INTRO!$E$34<>0,INTRO!$E$34,"") -> Uganda | B132: WESTERN | C132: MASINDI | D132: 378977 | E132: =IF(INTRO!$E$48="","",ROUND($D132*INTRO!$E$48,0)) -> 53815 | F132: =IF(INTRO!$E$49="","",ROUND($D132*INTRO!$E$49,0)) -> 114451 | G132: =IF(INTRO!$E$50="","",ROUND($D132*INTRO!$E$50,0)) -> 197447 | H132: 0 | I132: 99 | J132: 3 | K132: 0 | L132: 0 | M132: 0 | N132: =IF(INTRO!$E$42="Endemic", IF(AND($J132>1,$J132<5), IF($J132=4, "Unknown", E132+F132), 0),"Not required") -> 168266 | O132: =IF(INTRO!$E$44="Endemic", IF(AND($K132>0,$K132<5), IF($K132=4,"Unknown", IF($K132=1, $F132*0.33, IF($K132=2, $F132*0.5+$G132*0.2, SUM(F132:G132)))), 0),"Not required") -> 0 | P132: 0 | Q132: 0 | R132: 2 | S132: 0 | T132: T3 (ALB/MBD) | U132: T3 (ALB/MBD) | Y132: 49778 | Z132: MASINDI | AA132: ='MDA3'!Q132 -> 0 | AB132: ='T1'!O132 -> 0 | AC132: ='T2'!M132 -> 0 | AD132: =T3_R1!N132 -> 62380 | AE132: =T3_R2!N132 -> 36712
A133: =IF(INTRO!$E$34<>0,INTRO!$E$34,"") -> Uganda | B133: WESTERN | C133: MBARARA | D133: 413597 | E133: =IF(INTRO!$E$48="","",ROUND($D133*INTRO!$E$48,0)) -> 58731 | F133: =IF(INTRO!$E$49="","",ROUND($D133*INTRO!$E$49,0)) -> 124906 | G133: =IF(INTRO!$E$50="","",ROUND($D133*INTRO!$E$50,0)) -> 215484 | H133: 0 | I133: 0 | J133: 3 | K133: 0 | L133: 0 | M133: 0 | N133: =IF(INTRO!$E$42="Endemic", IF(AND($J133>1,$J133<5), IF($J133=4, "Unknown", E133+F133), 0),"Not required") -> 183637 | O133: =IF(INTRO!$E$44="Endemic", IF(AND($K133>0,$K133<5), IF($K133=4,"Unknown", IF($K133=1, $F133*0.33, IF($K133=2, $F133*0.5+$G133*0.2, SUM(F133:G133)))), 0),"Not required") -> 0 | P133: 0 | Q133: 0 | R133: 2 | S133: 0 | T133: T3 (ALB/MBD) | U133: T3 (ALB/MBD) | Y133: 49786 | Z133: MBARARA | AA133: ='MDA3'!Q133 -> 0 | AB133: ='T1'!O133 -> 0 | AC133: ='T2'!M133 -> 0 | AD133: =T3_R1!N133 -> 80597 | AE133: =T3_R2!N133 -> 34307
A134: =IF(INTRO!$E$34<>0,INTRO!$E$34,"") -> Uganda | B134: WESTERN | C134: RWAMPARA | D134: 153543 | E134: =IF(INTRO!$E$48="","",ROUND($D134*INTRO!$E$48,0)) -> 21803 | F134: =IF(INTRO!$E$49="","",ROUND($D134*INTRO!$E$49,0)) -> 46370 | G134: =IF(INTRO!$E$50="","",ROUND($D134*INTRO!$E$50,0)) -> 79996 | H134: 0 | I134: 0 | J134: 3 | K134: 0 | L134: 0 | M134: 0 | N134: =IF(INTRO!$E$42="Endemic", IF(AND($J134>1,$J134<5), IF($J134=4, "Unknown", E134+F134), 0),"Not required") -> 68173 | O134: =IF(INTRO!$E$44="Endemic", IF(AND($K134>0,$K134<5), IF($K134=4,"Unknown", IF($K134=1, $F134*0.33, IF($K134=2, $F134*0.5+$G134*0.2, SUM(F134:G134)))), 0),"Not required") -> 0 | P134: 0 | Q134: 0 | R134: 2 | S134: 0 | T134: T3 (ALB/MBD) | U134: T3 (ALB/MBD) | Y134: 49842 | Z134: RWAMPARA | AA134: ='MDA3'!Q134 -> 0 | AB134: ='T1'!O134 -> 0 | AC134: ='T2'!M134 -> 0 | AD134: =T3_R1!N134 -> 58246 | AE134: =T3_R2!N134 -> 13906
A135: =IF(INTRO!$E$34<>0,INTRO!$E$34,"") -> Uganda | B135: WESTERN | C135: MITOOMA | D135: 221908 | E135: =IF(INTRO!$E$48="","",ROUND($D135*INTRO!$E$48,0)) -> 31511 | F135: =IF(INTRO!$E$49="","",ROUND($D135*INTRO!$E$49,0)) -> 67016 | G135: =IF(INTRO!$E$50="","",ROUND($D135*INTRO!$E$50,0)) -> 115614 | H135: 0 | I135: 99 | J135: 3 | K135: 0 | L135: 0 | M135: 0 | N135: =IF(INTRO!$E$42="Endemic", IF(AND($J135>1,$J135<5), IF($J135=4, "Unknown", E135+F135), 0),"Not required") -> 98527 | O135: =IF(INTRO!$E$44="Endemic", IF(AND($K135>0,$K135<5), IF($K135=4,"Unknown", IF($K135=1, $F135*0.33, IF($K135=2, $F135*0.5+$G135*0.2, SUM(F135:G135)))), 0),"Not required") -> 0 | P135: 0 | Q135: 0 | R135: 2 | S135: 0 | T135: T3 (ALB/MBD) | U135: T3 (ALB/MBD) | Y135: 49787 | Z135: MITOOMA | AA135: ='MDA3'!Q135 -> 0 | AB135: ='T1'!O135 -> 0 | AC135: ='T2'!M135 -> 0 | AD135: =T3_R1!N135 -> 51738 | AE135: =T3_R2!N135 -> 24511
A136: =IF(INTRO!$E$34<>0,INTRO!$E$34,"") -> Uganda | B136: WESTERN | C136: NTOROKO | D136: 79453 | E136: =IF(INTRO!$E$48="","",ROUND($D136*INTRO!$E$48,0)) -> 11282 | F136: =IF(INTRO!$E$49="","",ROUND($D136*INTRO!$E$49,0)) -> 23995 | G136: =IF(INTRO!$E$50="","",ROUND($D136*INTRO!$E$50,0)) -> 41395 | H136: 99 | I136: 0 | J136: 3 | K136: 3 | L136: 0 | M136: 0 | N136: =IF(INTRO!$E$42="Endemic", IF(AND($J136>1,$J136<5), IF($J136=4, "Unknown", E136+F136), 0),"Not required") -> 35277 | O136: =VLOOKUP(C136,[1]Sheet4!$A$4:$B$39,2,FALSE) -> 66547 | P136: 0 | Q136: 0 | R136: 2 | S136: 1 | T136: T3 (ALB/MBD) | U136: T2 (PZQ) | Y136: 49799 | Z136: NTOROKO | AA136: ='MDA3'!Q136 -> 0 | AB136: ='T1'!O136 -> 0 | AC136: ='T2'!M136 -> 55801 | AD136: =T3_R1!N136 -> 11425 | AE136: =T3_R2!N136 -> 11959
A137: =IF(INTRO!$E$34<>0,INTRO!$E$34,"") -> Uganda | B137: WESTERN | C137: NTUNGAMO | D137: 585302 | E137: =IF(INTRO!$E$48="","",ROUND($D137*INTRO!$E$48,0)) -> 83113 | F137: =IF(INTRO!$E$49="","",ROUND($D137*INTRO!$E$49,0)) -> 176761 | G137: =IF(INTRO!$E$50="","",ROUND($D137*INTRO!$E$50,0)) -> 304942 | H137: 0 | I137: 0 | J137: 3 | K137: 0 | L137: 0 | M137: 0 | N137: =IF(INTRO!$E$42="Endemic", IF(AND($J137>1,$J137<5), IF($J137=4, "Unknown", E137+F137), 0),"Not required") -> 259874 | O137: =IF(INTRO!$E$44="Endemic", IF(AND($K137>0,$K137<5), IF($K137=4,"Unknown", IF($K137=1, $F137*0.33, IF($K137=2, $F137*0.5+$G137*0.2, SUM(F137:G137)))), 0),"Not required") -> 0 | P137: 0 | Q137: 0 | R137: 2 | S137: 0 | T137: T3 (ALB/MBD) | U137: T3 (ALB/MBD) | Y137: 49800 | Z137: NTUNGAMO | AA137: ='MDA3'!Q137 -> 0 | AB137: ='T1'!O137 -> 0 | AC137: ='T2'!M137 -> 0 | AD137: =T3_R1!N137 -> 162241 | AE137: =T3_R2!N137 -> 254065
A138: =IF(INTRO!$E$34<>0,INTRO!$E$34,"") -> Uganda | B138: WESTERN | C138: RUBANDA | D138: 238770 | E138: =IF(INTRO!$E$48="","",ROUND($D138*INTRO!$E$48,0)) -> 33905 | F138: =IF(INTRO!$E$49="","",ROUND($D138*INTRO!$E$49,0)) -> 72109 | G138: =IF(INTRO!$E$50="","",ROUND($D138*INTRO!$E$50,0)) -> 124399 | H138: 0 | I138: 99 | J138: 3 | K138: 0 | L138: 0 | M138: 0 | N138: =IF(INTRO!$E$42="Endemic", IF(AND($J138>1,$J138<5), IF($J138=4, "Unknown", E138+F138), 0),"Not required") -> 106014 | O138: =IF(INTRO!$E$44="Endemic", IF(AND($K138>0,$K138<5), IF($K138=4,"Unknown", IF($K138=1, $F138*0.33, IF($K138=2, $F138*0.5+$G138*0.2, SUM(F138:G138)))), 0),"Not required") -> 0 | P138: 0 | Q138: 0 | R138: 2 | S138: 0 | T138: T3 (ALB/MBD) | U138: T3 (ALB/MBD) | Y138: 49821 | Z138: RUBANDA | AA138: ='MDA3'!Q138 -> 0 | AB138: ='T1'!O138 -> 0 | AC138: ='T2'!M138 -> 0 | AD138: =T3_R1!N138 -> 76885 | AE138: =T3_R2!N138 -> 40441
A139: =IF(INTRO!$E$34<>0,INTRO!$E$34,"") -> Uganda | B139: WESTERN | C139: RUBIRIZI | D139: 154642 | E139: =IF(INTRO!$E$48="","",ROUND($D139*INTRO!$E$48,0)) -> 21959 | F139: =IF(INTRO!$E$49="","",ROUND($D139*INTRO!$E$49,0)) -> 46702 | G139: =IF(INTRO!$E$50="","",ROUND($D139*INTRO!$E$50,0)) -> 80568 | H139: 0 | I139: 0 | J139: 3 | K139: 3 | L139: 0 | M139: 0 | N139: =IF(INTRO!$E$42="Endemic", IF(AND($J139>1,$J139<5), IF($J139=4, "Unknown", E139+F139), 0),"Not required") -> 68661 | O139: =VLOOKUP(C139,[1]Sheet4!$A$4:$B$39,2,FALSE) -> 25513 | P139: 0 | Q139: 0 | R139: 2 | S139: 1 | T139: T3 (ALB/MBD) | U139: T2 (PZQ) | Y139: 49808 | Z139: RUBIRIZI | AA139: ='MDA3'!Q139 -> 0 | AB139: ='T1'!O139 -> 0 | AC139: ='T2'!M139 -> 21995 | AD139: =T3_R1!N139 -> 51895 | AE139: =T3_R2!N139 -> 52705
A140: =IF(INTRO!$E$34<>0,INTRO!$E$34,"") -> Uganda | B140: WESTERN | C140: RUKIGA | D140: 122054 | E140: =IF(INTRO!$E$48="","",ROUND($D140*INTRO!$E$48,0)) -> 17332 | F140: =IF(INTRO!$E$49="","",ROUND($D140*INTRO!$E$49,0)) -> 36860 | G140: =IF(INTRO!$E$50="","",ROUND($D140*INTRO!$E$50,0)) -> 63590 | H140: 0 | I140: 0 | J140: 3 | K140: 0 | L140: 0 | M140: 0 | N140: =IF(INTRO!$E$42="Endemic", IF(AND($J140>1,$J140<5), IF($J140=4, "Unknown", E140+F140), 0),"Not required") -> 54192 | O140: =IF(INTRO!$E$44="Endemic", IF(AND($K140>0,$K140<5), IF($K140=4,"Unknown", IF($K140=1, $F140*0.33, IF($K140=2, $F140*0.5+$G140*0.2, SUM(F140:G140)))), 0),"Not required") -> 0 | P140: 0 | Q140: 0 | R140: 2 | S140: 0 | T140: T3 (ALB/MBD) | U140: T3 (ALB/MBD) | Y140: 49829 | Z140: RUKIGA | AA140: ='MDA3'!Q140 -> 0 | AB140: ='T1'!O140 -> 0 | AC140: ='T2'!M140 -> 0 | AD140: =T3_R1!N140 -> 43002 | AE140: =T3_R2!N140 -> 15111
A141: =IF(INTRO!$E$34<>0,INTRO!$E$34,"") -> Uganda | B141: WESTERN | C141: RUKUNGIRI | D141: 383447 | E141: =IF(INTRO!$E$48="","",ROUND($D141*INTRO!$E$48,0)) -> 54449 | F141: =IF(INTRO!$E$49="","",ROUND($D141*INTRO!$E$49,0)) -> 115801 | G141: =IF(INTRO!$E$50="","",ROUND($D141*INTRO!$E$50,0)) -> 199776 | H141: 0 | I141: 0 | J141: 3 | K141: 1 | L141: 0 | M141: 0 | N141: =IF(INTRO!$E$42="Endemic", IF(AND($J141>1,$J141<5), IF($J141=4, "Unknown", E141+F141), 0),"Not required") -> 170250 | O141: =IF(INTRO!$E$44="Endemic", IF(AND($K141>0,$K141<5), IF($K141=4,"Unknown", IF($K141=1, $F141*0.33, IF($K141=2, $F141*0.5+$G141*0.2, SUM(F141:G141)))), 0),"Not required") -> 38214.33 | P141: 0 | Q141: 0 | R141: 2 | S141: 0 | T141: T3 (ALB/MBD) | U141: T3 (ALB/MBD) | Y141: 49806 | Z141: RUKUNGIRI | AA141: ='MDA3'!Q141 -> 0 | AB141: ='T1'!O141 -> 0 | AC141: ='T2'!M141 -> 0 | AD141: =T3_R1!N141 -> 87789 | AE141: =T3_R2!N141 -> 45916
A142: =IF(INTRO!$E$34<>0,INTRO!$E$34,"") -> Uganda | B142: WESTERN | C142: SHEEMA | D142: 253245 | E142: =IF(INTRO!$E$48="","",ROUND($D142*INTRO!$E$48,0)) -> 35961 | F142: =IF(INTRO!$E$49="","",ROUND($D142*INTRO!$E$49,0)) -> 76480 | G142: =IF(INTRO!$E$50="","",ROUND($D142*INTRO!$E$50,0)) -> 131941 | H142: 0 | I142: 0 | J142: 3 | K142: 0 | L142: 0 | M142: 0 | N142: =IF(INTRO!$E$42="Endemic", IF(AND($J142>1,$J142<5), IF($J142=4, "Unknown", E142+F142), 0),"Not required") -> 112441 | O142: =IF(INTRO!$E$44="Endemic", IF(AND($K142>0,$K142<5), IF($K142=4,"Unknown", IF($K142=1, $F142*0.33, IF($K142=2, $F142*0.5+$G142*0.2, SUM(F142:G142)))), 0),"Not required") -> 0 | P142: 0 | Q142: 0 | R142: 2 | S142: 0 | T142: T3 (ALB/MBD) | U142: T3 (ALB/MBD) | Y142: 49813 | Z142: SHEEMA | AA142: ='MDA3'!Q142 -> 0 | AB142: ='T1'!O142 -> 0 | AC142: ='T2'!M142 -> 0 | AD142: =T3_R1!N142 -> 56856 | AE142: =T3_R2!N142 -> 72530
Y144: 49843 | Z144: KALAKI

Sheet MDA1 (hidden)
A1: MDA 1 - Ivermectin (IVM) and Albendazole (ALB)
A2: Administrative structure, population requiring PC by age group, population treated by age group and coverage
A4: TOTAL | G4: =SUM(G$9:G$993) -> 0 | H4: =SUM(H$9:H$993) -> 0 | I4: =SUM(I$9:I$993) -> 0 | K4: =SUM(K$9:K$993) -> 0 | L4: =SUM(L$9:L$993) -> 0 | M4: =SUM(M$9:M$993) -> 0 | O4: =IF(G4<>0, IF(K4/G4*100=0, "-", K4/G4*100), " ") ->  | P4: =IF(H4<>0, IF(L4/H4*100=0, "-", L4/H4*100), " ") ->  | Q4: =IF(I4<>0, IF(M4/I4*100=0, "-", M4/I4*100), " ") -> 
D6: PC implemented | E6: Date | F6: Population targeted for MDA 1 | J6: Population treated | N6: Programme coverage (%)
A7: Country | B7: Province/State | C7: District | F7: PreSAC | G7: SAC | H7: Adults | I7: Total | J7: PreSAC | K7: SAC | L7: Adults | M7: Total | N7: PreSAC | O7: SAC | P7: Adults | Q7: Total
A9: =IF(COUNTRY_INFO!A9=0," ",COUNTRY_INFO!A9) -> Uganda | B9: =IF(COUNTRY_INFO!B9=0," ",COUNTRY_INFO!B9) -> CENTRAL | C9: =IF(COUNTRY_INFO!C9=0," ",COUNTRY_INFO!C9) -> BUIKWE | D9: =IF(COUNTRY_INFO!$T$9:$T$993="MDA1 (IVM+ALB)", COUNTRY_INFO!$T$9:$T$993, " ") ->  | I9: =SUM(F9:H9) -> 0 | M9: =SUM(J9:L9) -> 0 | O9: =IF(G9<>0, IF(K9/G9*100=0, "-", K9/G9*100), " ") ->  | P9: =IF(H9<>0, IF(L9/H9*100=0, "-", L9/H9*100), " ") -> 
A10: =IF(COUNTRY_INFO!A10=0," ",COUNTRY_INFO!A10) -> Uganda | B10: =IF(COUNTRY_INFO!B10=0," ",COUNTRY_INFO!B10) -> CENTRAL | C10: =IF(COUNTRY_INFO!C10=0," ",COUNTRY_INFO!C10) -> BUKOMANSIMBI | D10: =IF(COUNTRY_INFO!$T$9:$T$993="MDA1 (IVM+ALB)", COUNTRY_INFO!$T$9:$T$993, " ") ->  | I10: =SUM(F10:H10) -> 0 | M10: =SUM(J10:L10) -> 0 | O10: =IF(G10<>0, IF(K10/G10*100=0, "-", K10/G10*100), " ") ->  | P10: =IF(H10<>0, IF(L10/H10*100=0, "-", L10/H10*100), " ") ->  | Q10: =IF(I10<>0, IF(M10/I10*100=0, "-", M10/I10*100), " ") -> 
A11: =IF(COUNTRY_INFO!A11=0," ",COUNTRY_INFO!A11) -> Uganda | B11: =IF(COUNTRY_INFO!B11=0," ",COUNTRY_INFO!B11) -> CENTRAL | C11: =IF(COUNTRY_INFO!C11=0," ",COUNTRY_INFO!C11) -> BUTAMBALA | D11: =IF(COUNTRY_INFO!$T$9:$T$993="MDA1 (IVM+ALB)", COUNTRY_INFO!$T$9:$T$993, " ") ->  | I11: 0 | M11: 0
A12: =IF(COUNTRY_INFO!A12=0," ",COUNTRY_INFO!A12) -> Uganda | B12: =IF(COUNTRY_INFO!B12=0," ",COUNTRY_INFO!B12) -> CENTRAL | C12: =IF(COUNTRY_INFO!C12=0," ",COUNTRY_INFO!C12) -> BUVUMA | D12: =IF(COUNTRY_INFO!$T$9:$T$993="MDA1 (IVM+ALB)", COUNTRY_INFO!$T$9:$T$993, " ") ->  | I12: 0 | M12: 0
A13: =IF(COUNTRY_INFO!A13=0," ",COUNTRY_INFO!A13) -> Uganda | B13: =IF(COUNTRY_INFO!B13=0," ",COUNTRY_INFO!B13) -> CENTRAL | C13: =IF(COUNTRY_INFO!C13=0," ",COUNTRY_INFO!C13) -> GOMBA | D13: =IF(COUNTRY_INFO!$T$9:$T$993="MDA1 (IVM+ALB)", COUNTRY_INFO!$T$9:$T$993, " ") ->  | I13: 0 | M13: 0
A14: =IF(COUNTRY_INFO!A14=0," ",COUNTRY_INFO!A14) -> Uganda | B14: =IF(COUNTRY_INFO!B14=0," ",COUNTRY_INFO!B14) -> CENTRAL | C14: =IF(COUNTRY_INFO!C14=0," ",COUNTRY_INFO!C14) -> KALANGALA | D14: =IF(COUNTRY_INFO!$T$9:$T$993="MDA1 (IVM+ALB)", COUNTRY_INFO!$T$9:$T$993, " ") ->  | I14: 0 | M14: 0
A15: =IF(COUNTRY_INFO!A15=0," ",COUNTRY_INFO!A15) -> Uganda | B15: =IF(COUNTRY_INFO!B15=0," ",COUNTRY_INFO!B15) -> CENTRAL | C15: =IF(COUNTRY_INFO!C15=0," ",COUNTRY_INFO!C15) -> KALUNGU | D15: =IF(COUNTRY_INFO!$T$9:$T$993="MDA1 (IVM+ALB)", COUNTRY_INFO!$T$9:$T$993, " ") ->  | I15: 0 | M15: 0
A16: =IF(COUNTRY_INFO!A16=0," ",COUNTRY_INFO!A16) -> Uganda | B16: =IF(COUNTRY_INFO!B16=0," ",COUNTRY_INFO!B16) -> CENTRAL | C16: =IF(COUNTRY_INFO!C16=0," ",COUNTRY_INFO!C16) -> KAMPALA | D16: =IF(COUNTRY_INFO!$T$9:$T$993="MDA1 (IVM+ALB)", COUNTRY_INFO!$T$9:$T$993, " ") ->  | I16: 0 | M16: 0
A17: =IF(COUNTRY_INFO!A17=0," ",COUNTRY_INFO!A17) -> Uganda | B17: =IF(COUNTRY_INFO!B17=0," ",COUNTRY_INFO!B17) -> CENTRAL | C17: =IF(COUNTRY_INFO!C17=0," ",COUNTRY_INFO!C17) -> KAYUNGA | D17: =IF(COUNTRY_INFO!$T$9:$T$993="MDA1 (IVM+ALB)", COUNTRY_INFO!$T$9:$T$993, " ") ->  | I17: 0 | M17: 0
A18: =IF(COUNTRY_INFO!A18=0," ",COUNTRY_INFO!A18) -> Uganda | B18: =IF(COUNTRY_INFO!B18=0," ",COUNTRY_INFO!B18) -> CENTRAL | C18: =IF(COUNTRY_INFO!C18=0," ",COUNTRY_INFO!C18) -> KIBOGA | D18: =IF(COUNTRY_INFO!$T$9:$T$993="MDA1 (IVM+ALB)", COUNTRY_INFO!$T$9:$T$993, " ") ->  | I18: 0 | M18: 0
A19: =IF(COUNTRY_INFO!A19=0," ",COUNTRY_INFO!A19) -> Uganda | B19: =IF(COUNTRY_INFO!B19=0," ",COUNTRY_INFO!B19) -> CENTRAL | C19: =IF(COUNTRY_INFO!C19=0," ",COUNTRY_INFO!C19) -> KYANKWANZI | D19: =IF(COUNTRY_INFO!$T$9:$T$993="MDA1 (IVM+ALB)", COUNTRY_INFO!$T$9:$T$993, " ") ->  | I19: 0 | M19: 0
A20: =IF(COUNTRY_INFO!A20=0," ",COUNTRY_INFO!A20) -> Uganda | B20: =IF(COUNTRY_INFO!B20=0," ",COUNTRY_INFO!B20) -> CENTRAL | C20: =IF(COUNTRY_INFO!C20=0," ",COUNTRY_INFO!C20) -> KYOTERA | D20: =IF(COUNTRY_INFO!$T$9:$T$993="MDA1 (IVM+ALB)", COUNTRY_INFO!$T$9:$T$993, " ") ->  | I20: 0 | M20: 0
A21: =IF(COUNTRY_INFO!A21=0," ",COUNTRY_INFO!A21) -> Uganda | B21: =IF(COUNTRY_INFO!B21=0," ",COUNTRY_INFO!B21) -> CENTRAL | C21: =IF(COUNTRY_INFO!C21=0," ",COUNTRY_INFO!C21) -> LUWERO | D21: =IF(COUNTRY_INFO!$T$9:$T$993="MDA1 (IVM+ALB)", COUNTRY_INFO!$T$9:$T$993, " ") ->  | I21: 0 | M21: 0
A22: =IF(COUNTRY_INFO!A22=0," ",COUNTRY_INFO!A22) -> Uganda | B22: =IF(COUNTRY_INFO!B22=0," ",COUNTRY_INFO!B22) -> CENTRAL | C22: =IF(COUNTRY_INFO!C22=0," ",COUNTRY_INFO!C22) -> LWENGO | D22: =IF(COUNTRY_INFO!$T$9:$T$993="MDA1 (IVM+ALB)", COUNTRY_INFO!$T$9:$T$993, " ") ->  | I22: 0 | M22: 0
A23: =IF(COUNTRY_INFO!A23=0," ",COUNTRY_INFO!A23) -> Uganda | B23: =IF(COUNTRY_INFO!B23=0," ",COUNTRY_INFO!B23) -> CENTRAL | C23: =IF(COUNTRY_INFO!C23=0," ",COUNTRY_INFO!C23) -> LYANTONDE | D23: =IF(COUNTRY_INFO!$T$9:$T$993="MDA1 (IVM+ALB)", COUNTRY_INFO!$T$9:$T$993, " ") ->  | I23: 0 | M23: 0
A24: =IF(COUNTRY_INFO!A24=0," ",COUNTRY_INFO!A24) -> Uganda | B24: =IF(COUNTRY_INFO!B24=0," ",COUNTRY_INFO!B24) -> CENTRAL | C24: =IF(COUNTRY_INFO!C24=0," ",COUNTRY_INFO!C24) -> MASAKA | D24: =IF(COUNTRY_INFO!$T$9:$T$993="MDA1 (IVM+ALB)", COUNTRY_INFO!$T$9:$T$993, " ") ->  | I24: 0 | M24: 0
A25: =IF(COUNTRY_INFO!A25=0," ",COUNTRY_INFO!A25) -> Uganda | B25: =IF(COUNTRY_INFO!B25=0," ",COUNTRY_INFO!B25) -> CENTRAL | C25: =IF(COUNTRY_INFO!C25=0," ",COUNTRY_INFO!C25) -> MITYANA | D25: =IF(COUNTRY_INFO!$T$9:$T$993="MDA1 (IVM+ALB)", COUNTRY_INFO!$T$9:$T$993, " ") ->  | I25: 0 | M25: 0
A26: =IF(COUNTRY_INFO!A26=0," ",COUNTRY_INFO!A26) -> Uganda | B26: =IF(COUNTRY_INFO!B26=0," ",COUNTRY_INFO!B26) -> CENTRAL | C26: =IF(COUNTRY_INFO!C26=0," ",COUNTRY_INFO!C26) -> MPIGI | D26: =IF(COUNTRY_INFO!$T$9:$T$993="MDA1 (IVM+ALB)", COUNTRY_INFO!$T$9:$T$993, " ") ->  | I26: 0 | M26: 0
A27: =IF(COUNTRY_INFO!A27=0," ",COUNTRY_INFO!A27) -> Uganda | B27: =IF(COUNTRY_INFO!B27=0," ",COUNTRY_INFO!B27) -> CENTRAL | C27: =IF(COUNTRY_INFO!C27=0," ",COUNTRY_INFO!C27) -> MUBENDE | D27: =IF(COUNTRY_INFO!$T$9:$T$993="MDA1 (IVM+ALB)", COUNTRY_INFO!$T$9:$T$993, " ") ->  | I27: 0 | M27: 0
A28: =IF(COUNTRY_INFO!A28=0," ",COUNTRY_INFO!A28) -> Uganda | B28: =IF(COUNTRY_INFO!B28=0," ",COUNTRY_INFO!B28) -> CENTRAL | C28: =IF(COUNTRY_INFO!C28=0," ",COUNTRY_INFO!C28) -> KASSANDA | D28: =IF(COUNTRY_INFO!$T$9:$T$993="MDA1 (IVM+ALB)", COUNTRY_INFO!$T$9:$T$993, " ") ->  | I28: 0 | M28: 0
A29: =IF(COUNTRY_INFO!A29=0," ",COUNTRY_INFO!A29) -> Uganda | B29: =IF(COUNTRY_INFO!B29=0," ",COUNTRY_INFO!B29) -> CENTRAL | C29: =IF(COUNTRY_INFO!C29=0," ",COUNTRY_INFO!C29) -> MUKONO | D29: =IF(COUNTRY_INFO!$T$9:$T$993="MDA1 (IVM+ALB)", COUNTRY_INFO!$T$9:$T$993, " ") ->  | I29: 0 | M29: 0
A30: =IF(COUNTRY_INFO!A30=0," ",COUNTRY_INFO!A30) -> Uganda | B30: =IF(COUNTRY_INFO!B30=0," ",COUNTRY_INFO!B30) -> CENTRAL | C30: =IF(COUNTRY_INFO!C30=0," ",COUNTRY_INFO!C30) -> NAKASEKE | D30: =IF(COUNTRY_INFO!$T$9:$T$993="MDA1 (IVM+ALB)", COUNTRY_INFO!$T$9:$T$993, " ") ->  | I30: 0 | M30: 0
A31: =IF(COUNTRY_INFO!A31=0," ",COUNTRY_INFO!A31) -> Uganda | B31: =IF(COUNTRY_INFO!B31=0," ",COUNTRY_INFO!B31) -> CENTRAL | C31: =IF(COUNTRY_INFO!C31=0," ",COUNTRY_INFO!C31) -> NAKASONGOLA | D31: =IF(COUNTRY_INFO!$T$9:$T$993="MDA1 (IVM+ALB)", COUNTRY_INFO!$T$9:$T$993, " ") ->  | I31: 0 | M31: 0
A32: =IF(COUNTRY_INFO!A32=0," ",COUNTRY_INFO!A32) -> Uganda | B32: =IF(COUNTRY_INFO!B32=0," ",COUNTRY_INFO!B32) -> CENTRAL | C32: =IF(COUNTRY_INFO!C32=0," ",COUNTRY_INFO!C32) -> RAKAI | D32: =IF(COUNTRY_INFO!$T$9:$T$993="MDA1 (IVM+ALB)", COUNTRY_INFO!$T$9:$T$993, " ") ->  | I32: 0 | M32: 0
A33: =IF(COUNTRY_INFO!A33=0," ",COUNTRY_INFO!A33) -> Uganda | B33: =IF(COUNTRY_INFO!B33=0," ",COUNTRY_INFO!B33) -> CENTRAL | C33: =IF(COUNTRY_INFO!C33=0," ",COUNTRY_INFO!C33) -> SSEMBABULE | D33: =IF(COUNTRY_INFO!$T$9:$T$993="MDA1 (IVM+ALB)", COUNTRY_INFO!$T$9:$T$993, " ") ->  | I33: 0 | M33: 0
A34: =IF(COUNTRY_INFO!A34=0," ",COUNTRY_INFO!A34) -> Uganda | B34: =IF(COUNTRY_INFO!B34=0," ",COUNTRY_INFO!B34) -> CENTRAL | C34: =IF(COUNTRY_INFO!C34=0," ",COUNTRY_INFO!C34) -> WAKISO | D34: =IF(COUNTRY_INFO!$T$9:$T$993="MDA1 (IVM+ALB)", COUNTRY_INFO!$T$9:$T$993, " ") ->  | I34: 0 | M34: 0
A35: =IF(COUNTRY_INFO!A35=0," ",COUNTRY_INFO!A35) -> Uganda | B35: =IF(COUNTRY_INFO!B35=0," ",COUNTRY_INFO!B35) -> EASTERN | C35: =IF(COUNTRY_INFO!C35=0," ",COUNTRY_INFO!C35) -> AMURIA | D35: =IF(COUNTRY_INFO!$T$9:$T$993="MDA1 (IVM+ALB)", COUNTRY_INFO!$T$9:$T$993, " ") ->  | I35: 0 | M35: 0
A36: =IF(COUNTRY_INFO!A36=0," ",COUNTRY_INFO!A36) -> Uganda | B36: =IF(COUNTRY_INFO!B36=0," ",COUNTRY_INFO!B36) -> EASTERN | C36: =IF(COUNTRY_INFO!C36=0," ",COUNTRY_INFO!C36) -> KAPELEBYONG | D36: =IF(COUNTRY_INFO!$T$9:$T$993="MDA1 (IVM+ALB)", COUNTRY_INFO!$T$9:$T$993, " ") ->  | I36: 0 | M36: 0
A37: =IF(COUNTRY_INFO!A37=0," ",COUNTRY_INFO!A37) -> Uganda | B37: =IF(COUNTRY_INFO!B37=0," ",COUNTRY_INFO!B37) -> EASTERN | C37: =IF(COUNTRY_INFO!C37=0," ",COUNTRY_INFO!C37) -> BUDAKA | D37: =IF(COUNTRY_INFO!$T$9:$T$993="MDA1 (IVM+ALB)", COUNTRY_INFO!$T$9:$T$993, " ") ->  | I37: 0 | M37: 0
A38: =IF(COUNTRY_INFO!A38=0," ",COUNTRY_INFO!A38) -> Uganda | B38: =IF(COUNTRY_INFO!B38=0," ",COUNTRY_INFO!B38) -> EASTERN | C38: =IF(COUNTRY_INFO!C38=0," ",COUNTRY_INFO!C38) -> BUDUDA | D38: =IF(COUNTRY_INFO!$T$9:$T$993="MDA1 (IVM+ALB)", COUNTRY_INFO!$T$9:$T$993, " ") ->  | I38: 0 | M38: 0
A39: =IF(COUNTRY_INFO!A39=0," ",COUNTRY_INFO!A39) -> Uganda | B39: =IF(COUNTRY_INFO!B39=0," ",COUNTRY_INFO!B39) -> EASTERN | C39: =IF(COUNTRY_INFO!C39=0," ",COUNTRY_INFO!C39) -> BUGIRI | D39: =IF(COUNTRY_INFO!$T$9:$T$993="MDA1 (IVM+ALB)", COUNTRY_INFO!$T$9:$T$993, " ") ->  | I39: 0 | M39: 0
A40: =IF(COUNTRY_INFO!A40=0," ",COUNTRY_INFO!A40) -> Uganda | B40: =IF(COUNTRY_INFO!B40=0," ",COUNTRY_INFO!B40) -> EASTERN | C40: =IF(COUNTRY_INFO!C40=0," ",COUNTRY_INFO!C40) -> BUKEDEA | D40: =IF(COUNTRY_INFO!$T$9:$T$993="MDA1 (IVM+ALB)", COUNTRY_INFO!$T$9:$T$993, " ") ->  | I40: 0 | M40: 0
A41: =IF(COUNTRY_INFO!A41=0," ",COUNTRY_INFO!A41) -> Uganda | B41: =IF(COUNTRY_INFO!B41=0," ",COUNTRY_INFO!B41) -> EASTERN | C41: =IF(COUNTRY_INFO!C41=0," ",COUNTRY_INFO!C41) -> BUKWO | D41: =IF(COUNTRY_INFO!$T$9:$T$993="MDA1 (IVM+ALB)", COUNTRY_INFO!$T$9:$T$993, " ") ->  | I41: 0 | M41: 0
A42: =IF(COUNTRY_INFO!A42=0," ",COUNTRY_INFO!A42) -> Uganda | B42: =IF(COUNTRY_INFO!B42=0," ",COUNTRY_INFO!B42) -> EASTERN | C42: =IF(COUNTRY_INFO!C42=0," ",COUNTRY_INFO!C42) -> BULAMBULI | D42: =IF(COUNTRY_INFO!$T$9:$T$993="MDA1 (IVM+ALB)", COUNTRY_INFO!$T$9:$T$993, " ") ->  | I42: 0 | M42: 0
A43: =IF(COUNTRY_INFO!A43=0," ",COUNTRY_INFO!A43) -> Uganda | B43: =IF(COUNTRY_INFO!B43=0," ",COUNTRY_INFO!B43) -> EASTERN | C43: =IF(COUNTRY_INFO!C43=0," ",COUNTRY_INFO!C43) -> BUSIA | D43: =IF(COUNTRY_INFO!$T$9:$T$993="MDA1 (IVM+ALB)", COUNTRY_INFO!$T$9:$T$993, " ") ->  | I43: 0 | M43: 0
A44: =IF(COUNTRY_INFO!A44=0," ",COUNTRY_INFO!A44) -> Uganda | B44: =IF(COUNTRY_INFO!B44=0," ",COUNTRY_INFO!B44) -> EASTERN | C44: =IF(COUNTRY_INFO!C44=0," ",COUNTRY_INFO!C44) -> BUTALEJA | D44: =IF(COUNTRY_INFO!$T$9:$T$993="MDA1 (IVM+ALB)", COUNTRY_INFO!$T$9:$T$993, " ") ->  | I44: 0 | M44: 0
A45: =IF(COUNTRY_INFO!A45=0," ",COUNTRY_INFO!A45) -> Uganda | B45: =IF(COUNTRY_INFO!B45=0," ",COUNTRY_INFO!B45) -> EASTERN | C45: =IF(COUNTRY_INFO!C45=0," ",COUNTRY_INFO!C45) -> BUTEBO | D45: =IF(COUNTRY_INFO!$T$9:$T$993="MDA1 (IVM+ALB)", COUNTRY_INFO!$T$9:$T$993, " ") ->  | I45: 0 | M45: 0
A46: =IF(COUNTRY_INFO!A46=0," ",COUNTRY_INFO!A46) -> Uganda | B46: =IF(COUNTRY_INFO!B46=0," ",COUNTRY_INFO!B46) -> EASTERN | C46: =IF(COUNTRY_INFO!C46=0," ",COUNTRY_INFO!C46) -> BUYENDE | D46: =IF(COUNTRY_INFO!$T$9:$T$993="MDA1 (IVM+ALB)", COUNTRY_INFO!$T$9:$T$993, " ") ->  | I46: 0 | M46: 0
A47: =IF(COUNTRY_INFO!A47=0," ",COUNTRY_INFO!A47) -> Uganda | B47: =IF(COUNTRY_INFO!B47=0," ",COUNTRY_INFO!B47) -> EASTERN | C47: =IF(COUNTRY_INFO!C47=0," ",COUNTRY_INFO!C47) -> IGANGA | D47: =IF(COUNTRY_INFO!$T$9:$T$993="MDA1 (IVM+ALB)", COUNTRY_INFO!$T$9:$T$993, " ") ->  | I47: 0 | M47: 0
A48: =IF(COUNTRY_INFO!A48=0," ",COUNTRY_INFO!A48) -> Uganda | B48: =IF(COUNTRY_INFO!B48=0," ",COUNTRY_INFO!B48) -> EASTERN | C48: =IF(COUNTRY_INFO!C48=0," ",COUNTRY_INFO!C48) -> BUGWERI | D48: =IF(COUNTRY_INFO!$T$9:$T$993="MDA1 (IVM+ALB)", COUNTRY_INFO!$T$9:$T$993, " ") ->  | I48: 0 | M48: 0
A49: =IF(COUNTRY_INFO!A49=0," ",COUNTRY_INFO!A49) -> Uganda | B49: =IF(COUNTRY_INFO!B49=0," ",COUNTRY_INFO!B49) -> EASTERN | C49: =IF(COUNTRY_INFO!C49=0," ",COUNTRY_INFO!C49) -> JINJA | D49: =IF(COUNTRY_INFO!$T$9:$T$993="MDA1 (IVM+ALB)", COUNTRY_INFO!$T$9:$T$993, " ") ->  | I49: 0 | M49: 0
A50: =IF(COUNTRY_INFO!A50=0," ",COUNTRY_INFO!A50) -> Uganda | B50: =IF(COUNTRY_INFO!B50=0," ",COUNTRY_INFO!B50) -> EASTERN | C50: =IF(COUNTRY_INFO!C50=0," ",COUNTRY_INFO!C50) -> KABERAMAIDO | D50: =IF(COUNTRY_INFO!$T$9:$T$993="MDA1 (IVM+ALB)", COUNTRY_INFO!$T$9:$T$993, " ") ->  | I50: 0 | M50: 0
A51: =IF(COUNTRY_INFO!A51=0," ",COUNTRY_INFO!A51) -> Uganda | B51: =IF(COUNTRY_INFO!B51=0," ",COUNTRY_INFO!B51) -> EASTERN | C51: =IF(COUNTRY_INFO!C51=0," ",COUNTRY_INFO!C51) -> KALIRO | D51: =IF(COUNTRY_INFO!$T$9:$T$993="MDA1 (IVM+ALB)", COUNTRY_INFO!$T$9:$T$993, " ") ->  | I51: 0 | M51: 0
A52: =IF(COUNTRY_INFO!A52=0," ",COUNTRY_INFO!A52) -> Uganda | B52: =IF(COUNTRY_INFO!B52=0," ",COUNTRY_INFO!B52) -> EASTERN | C52: =IF(COUNTRY_INFO!C52=0," ",COUNTRY_INFO!C52) -> KAMULI | D52: =IF(COUNTRY_INFO!$T$9:$T$993="MDA1 (IVM+ALB)", COUNTRY_INFO!$T$9:$T$993, " ") ->  | I52: 0 | M52: 0
A53: =IF(COUNTRY_INFO!A53=0," ",COUNTRY_INFO!A53) -> Uganda | B53: =IF(COUNTRY_INFO!B53=0," ",COUNTRY_INFO!B53) -> EASTERN | C53: =IF(COUNTRY_INFO!C53=0," ",COUNTRY_INFO!C53) -> KAPCHORWA | D53: =IF(COUNTRY_INFO!$T$9:$T$993="MDA1 (IVM+ALB)", COUNTRY_INFO!$T$9:$T$993, " ") ->  | I53: 0 | M53: 0
A54: =IF(COUNTRY_INFO!A54=0," ",COUNTRY_INFO!A54) -> Uganda | B54: =IF(COUNTRY_INFO!B54=0," ",COUNTRY_INFO!B54) -> EASTERN | C54: =IF(COUNTRY_INFO!C54=0," ",COUNTRY_INFO!C54) -> KATAKWI | D54: =IF(COUNTRY_INFO!$T$9:$T$993="MDA1 (IVM+ALB)", COUNTRY_INFO!$T$9:$T$993, " ") ->  | I54: 0 | M54: 0
A55: =IF(COUNTRY_INFO!A55=0," ",COUNTRY_INFO!A55) -> Uganda | B55: =IF(COUNTRY_INFO!B55=0," ",COUNTRY_INFO!B55) -> EASTERN | C55: =IF(COUNTRY_INFO!C55=0," ",COUNTRY_INFO!C55) -> KIBUKU | D55: =IF(COUNTRY_INFO!$T$9:$T$993="MDA1 (IVM+ALB)", COUNTRY_INFO!$T$9:$T$993, " ") ->  | I55: 0 | M55: 0
A56: =IF(COUNTRY_INFO!A56=0," ",COUNTRY_INFO!A56) -> Uganda | B56: =IF(COUNTRY_INFO!B56=0," ",COUNTRY_INFO!B56) -> EASTERN | C56: =IF(COUNTRY_INFO!C56=0," ",COUNTRY_INFO!C56) -> KUMI | D56: =IF(COUNTRY_INFO!$T$9:$T$993="MDA1 (IVM+ALB)", COUNTRY_INFO!$T$9:$T$993, " ") ->  | I56: 0 | M56: 0
A57: =IF(COUNTRY_INFO!A57=0," ",COUNTRY_INFO!A57) -> Uganda | B57: =IF(COUNTRY_INFO!B57=0," ",COUNTRY_INFO!B57) -> EASTERN | C57: =IF(COUNTRY_INFO!C57=0," ",COUNTRY_INFO!C57) -> KWEEN | D57: =IF(COUNTRY_INFO!$T$9:$T$993="MDA1 (IVM+ALB)", COUNTRY_INFO!$T$9:$T$993, " ") ->  | I57: 0 | M57: 0
A58: =IF(COUNTRY_INFO!A58=0," ",COUNTRY_INFO!A58) -> Uganda | B58: =IF(COUNTRY_INFO!B58=0," ",COUNTRY_INFO!B58) -> EASTERN | C58: =IF(COUNTRY_INFO!C58=0," ",COUNTRY_INFO!C58) -> LUUKA | D58: =IF(COUNTRY_INFO!$T$9:$T$993="MDA1 (IVM+ALB)", COUNTRY_INFO!$T$9:$T$993, " ") ->  | I58: 0 | M58: 0
A59: =IF(COUNTRY_INFO!A59=0," ",COUNTRY_INFO!A59) -> Uganda | B59: =IF(COUNTRY_INFO!B59=0," ",COUNTRY_INFO!B59) -> EASTERN | C59: =IF(COUNTRY_INFO!C59=0," ",COUNTRY_INFO!C59) -> MANAFWA | D59: =IF(COUNTRY_INFO!$T$9:$T$993="MDA1 (IVM+ALB)", COUNTRY_INFO!$T$9:$T$993, " ") ->  | I59: 0 | M59: 0
A60: =IF(COUNTRY_INFO!A60=0," ",COUNTRY_INFO!A60) -> Uganda | B60: =IF(COUNTRY_INFO!B60=0," ",COUNTRY_INFO!B60) -> EASTERN | C60: =IF(COUNTRY_INFO!C60=0," ",COUNTRY_INFO!C60) -> MAYUGE | D60: =IF(COUNTRY_INFO!$T$9:$T$993="MDA1 (IVM+ALB)", COUNTRY_INFO!$T$9:$T$993, " ") ->  | I60: 0 | M60: 0
A61: =IF(COUNTRY_INFO!A61=0," ",COUNTRY_INFO!A61) -> Uganda | B61: =IF(COUNTRY_INFO!B61=0," ",COUNTRY_INFO!B61) -> EASTERN | C61: =IF(COUNTRY_INFO!C61=0," ",COUNTRY_INFO!C61) -> MBALE | D61: =IF(COUNTRY_INFO!$T$9:$T$993="MDA1 (IVM+ALB)", COUNTRY_INFO!$T$9:$T$993, " ") ->  | I61: 0 | M61: 0
A62: =IF(COUNTRY_INFO!A62=0," ",COUNTRY_INFO!A62) -> Uganda | B62: =IF(COUNTRY_INFO!B62=0," ",COUNTRY_INFO!B62) -> EASTERN | C62: =IF(COUNTRY_INFO!C62=0," ",COUNTRY_INFO!C62) -> NAMAYINGO | D62: =IF(COUNTRY_INFO!$T$9:$T$993="MDA1 (IVM+ALB)", COUNTRY_INFO!$T$9:$T$993, " ") ->  | I62: 0 | M62: 0
A63: =IF(COUNTRY_INFO!A63=0," ",COUNTRY_INFO!A63) -> Uganda | B63: =IF(COUNTRY_INFO!B63=0," ",COUNTRY_INFO!B63) -> EASTERN | C63: =IF(COUNTRY_INFO!C63=0," ",COUNTRY_INFO!C63) -> NAMISINDWA | D63: =IF(COUNTRY_INFO!$T$9:$T$993="MDA1 (IVM+ALB)", COUNTRY_INFO!$T$9:$T$993, " ") ->  | I63: 0 | M63: 0
A64: =IF(COUNTRY_INFO!A64=0," ",COUNTRY_INFO!A64) -> Uganda | B64: =IF(COUNTRY_INFO!B64=0," ",COUNTRY_INFO!B64) -> EASTERN | C64: =IF(COUNTRY_INFO!C64=0," ",COUNTRY_INFO!C64) -> NAMUTUMBA | D64: =IF(COUNTRY_INFO!$T$9:$T$993="MDA1 (IVM+ALB)", COUNTRY_INFO!$T$9:$T$993, " ") ->  | I64: 0 | M64: 0
A65: =IF(COUNTRY_INFO!A65=0," ",COUNTRY_INFO!A65) -> Uganda | B65: =IF(COUNTRY_INFO!B65=0," ",COUNTRY_INFO!B65) -> EASTERN | C65: =IF(COUNTRY_INFO!C65=0," ",COUNTRY_INFO!C65) -> NGORA | D65: =IF(COUNTRY_INFO!$T$9:$T$993="MDA1 (IVM+ALB)", COUNTRY_INFO!$T$9:$T$993, " ") ->  | I65: 0 | M65: 0
A66: =IF(COUNTRY_INFO!A66=0," ",COUNTRY_INFO!A66) -> Uganda | B66: =IF(COUNTRY_INFO!B66=0," ",COUNTRY_INFO!B66) -> EASTERN | C66: =IF(COUNTRY_INFO!C66=0," ",COUNTRY_INFO!C66) -> PALLISA | D66: =IF(COUNTRY_INFO!$T$9:$T$993="MDA1 (IVM+ALB)", COUNTRY_INFO!$T$9:$T$993, " ") ->  | I66: 0 | M66: 0
A67: =IF(COUNTRY_INFO!A67=0," ",COUNTRY_INFO!A67) -> Uganda | B67: =IF(COUNTRY_INFO!B67=0," ",COUNTRY_INFO!B67) -> EASTERN | C67: =IF(COUNTRY_INFO!C67=0," ",COUNTRY_INFO!C67) -> SERERE | D67: =IF(COUNTRY_INFO!$T$9:$T$993="MDA1 (IVM+ALB)", COUNTRY_INFO!$T$9:$T$993, " ") ->  | I67: 0 | M67: 0
A68: =IF(COUNTRY_INFO!A68=0," ",COUNTRY_INFO!A68) -> Uganda | B68: =IF(COUNTRY_INFO!B68=0," ",COUNTRY_INFO!B68) -> EASTERN | C68: =IF(COUNTRY_INFO!C68=0," ",COUNTRY_INFO!C68) -> SIRONKO | D68: =IF(COUNTRY_INFO!$T$9:$T$993="MDA1 (IVM+ALB)", COUNTRY_INFO!$T$9:$T$993, " ") ->  | I68: 0 | M68: 0
A69: =IF(COUNTRY_INFO!A69=0," ",COUNTRY_INFO!A69) -> Uganda | B69: =IF(COUNTRY_INFO!B69=0," ",COUNTRY_INFO!B69) -> EASTERN | C69: =IF(COUNTRY_INFO!C69=0," ",COUNTRY_INFO!C69) -> SOROTI | D69: =IF(COUNTRY_INFO!$T$9:$T$993="MDA1 (IVM+ALB)", COUNTRY_INFO!$T$9:$T$993, " ") ->  | I69: 0 | M69: 0
A70: =IF(COUNTRY_INFO!A70=0," ",COUNTRY_INFO!A70) -> Uganda | B70: =IF(COUNTRY_INFO!B70=0," ",COUNTRY_INFO!B70) -> EASTERN | C70: =IF(COUNTRY_INFO!C70=0," ",COUNTRY_INFO!C70) -> TORORO | D70: =IF(COUNTRY_INFO!$T$9:$T$993="MDA1 (IVM+ALB)", COUNTRY_INFO!$T$9:$T$993, " ") ->  | I70: 0 | M70: 0
A71: =IF(COUNTRY_INFO!A71=0," ",COUNTRY_INFO!A71) -> Uganda | B71: =IF(COUNTRY_INFO!B71=0," ",COUNTRY_INFO!B71) -> NORTHERN | C71: =IF(COUNTRY_INFO!C71=0," ",COUNTRY_INFO!C71) -> ABIM | D71: =IF(COUNTRY_INFO!$T$9:$T$993="MDA1 (IVM+ALB)", COUNTRY_INFO!$T$9:$T$993, " ") ->  | I71: 0 | M71: 0
A72: =IF(COUNTRY_INFO!A72=0," ",COUNTRY_INFO!A72) -> Uganda | B72: =IF(COUNTRY_INFO!B72=0," ",COUNTRY_INFO!B72) -> NORTHERN | C72: =IF(COUNTRY_INFO!C72=0," ",COUNTRY_INFO!C72) -> ADJUMANI | D72: =IF(COUNTRY_INFO!$T$9:$T$993="MDA1 (IVM+ALB)", COUNTRY_INFO!$T$9:$T$993, " ") ->  | I72: 0 | M72: 0
A73: =IF(COUNTRY_INFO!A73=0," ",COUNTRY_INFO!A73) -> Uganda | B73: =IF(COUNTRY_INFO!B73=0," ",COUNTRY_INFO!B73) -> NORTHERN | C73: =IF(COUNTRY_INFO!C73=0," ",COUNTRY_INFO!C73) -> AGAGO | D73: =IF(COUNTRY_INFO!$T$9:$T$993="MDA1 (IVM+ALB)", COUNTRY_INFO!$T$9:$T$993, " ") ->  | I73: 0 | M73: 0
A74: =IF(COUNTRY_INFO!A74=0," ",COUNTRY_INFO!A74) -> Uganda | B74: =IF(COUNTRY_INFO!B74=0," ",COUNTRY_INFO!B74) -> NORTHERN | C74: =IF(COUNTRY_INFO!C74=0," ",COUNTRY_INFO!C74) -> ALEBTONG | D74: =IF(COUNTRY_INFO!$T$9:$T$993="MDA1 (IVM+ALB)", COUNTRY_INFO!$T$9:$T$993, " ") ->  | I74: =SUM(F74:H74) -> 0 | M74: =SUM(J74:L74) -> 0 | O74: =IF(G74<>0, IF(K74/G74*100=0, "-", K74/G74*100), " ") ->  | P74: =IF(H74<>0, IF(L74/H74*100=0, "-", L74/H74*100), " ") ->  | Q74: =IF(I74<>0, IF(M74/I74*100=0, "-", M74/I74*100), " ") -> 
A75: =IF(COUNTRY_INFO!A75=0," ",COUNTRY_INFO!A75) -> Uganda | B75: =IF(COUNTRY_INFO!B75=0," ",COUNTRY_INFO!B75) -> NORTHERN | C75: =IF(COUNTRY_INFO!C75=0," ",COUNTRY_INFO!C75) -> AMOLATAR | D75: =IF(COUNTRY_INFO!$T$9:$T$993="MDA1 (IVM+ALB)", COUNTRY_INFO!$T$9:$T$993, " ") ->  | I75: 0 | M75: 0
A76: =IF(COUNTRY_INFO!A76=0," ",COUNTRY_INFO!A76) -> Uganda | B76: =IF(COUNTRY_INFO!B76=0," ",COUNTRY_INFO!B76) -> NORTHERN | C76: =IF(COUNTRY_INFO!C76=0," ",COUNTRY_INFO!C76) -> AMUDAT | D76: =IF(COUNTRY_INFO!$T$9:$T$993="MDA1 (IVM+ALB)", COUNTRY_INFO!$T$9:$T$993, " ") ->  | I76: 0 | M76: 0
A77: =IF(COUNTRY_INFO!A77=0," ",COUNTRY_INFO!A77) -> Uganda | B77: =IF(COUNTRY_INFO!B77=0," ",COUNTRY_INFO!B77) -> NORTHERN | C77: =IF(COUNTRY_INFO!C77=0," ",COUNTRY_INFO!C77) -> AMURU | D77: =IF(COUNTRY_INFO!$T$9:$T$993="MDA1 (IVM+ALB)", COUNTRY_INFO!$T$9:$T$993, " ") ->  | I77: 0 | M77: 0
A78: =IF(COUNTRY_INFO!A78=0," ",COUNTRY_INFO!A78) -> Uganda | B78: =IF(COUNTRY_INFO!B78=0," ",COUNTRY_INFO!B78) -> NORTHERN | C78: =IF(COUNTRY_INFO!C78=0," ",COUNTRY_INFO!C78) -> APAC | D78: =IF(COUNTRY_INFO!$T$9:$T$993="MDA1 (IVM+ALB)", COUNTRY_INFO!$T$9:$T$993, " ") ->  | I78: 0 | M78: 0
A79: =IF(COUNTRY_INFO!A79=0," ",COUNTRY_INFO!A79) -> Uganda | B79: =IF(COUNTRY_INFO!B79=0," ",COUNTRY_INFO!B79) -> NORTHERN | C79: =IF(COUNTRY_INFO!C79=0," ",COUNTRY_INFO!C79) -> KWANIA | D79: =IF(COUNTRY_INFO!$T$9:$T$993="MDA1 (IVM+ALB)", COUNTRY_INFO!$T$9:$T$993, " ") ->  | I79: 0 | M79: 0
A80: =IF(COUNTRY_INFO!A80=0," ",COUNTRY_INFO!A80) -> Uganda | B80: =IF(COUNTRY_INFO!B80=0," ",COUNTRY_INFO!B80) -> NORTHERN | C80: =IF(COUNTRY_INFO!C80=0," ",COUNTRY_INFO!C80) -> ARUA | D80: =IF(COUNTRY_INFO!$T$9:$T$993="MDA1 (IVM+ALB)", COUNTRY_INFO!$T$9:$T$993, " ") ->  | I80: 0 | M80: 0
A81: =IF(COUNTRY_INFO!A81=0," ",COUNTRY_INFO!A81) -> Uganda | B81: =IF(COUNTRY_INFO!B81=0," ",COUNTRY_INFO!B81) -> NORTHERN | C81: =IF(COUNTRY_INFO!C81=0," ",COUNTRY_INFO!C81) -> MADI-OKOLLO | D81: =IF(COUNTRY_INFO!$T$9:$T$993="MDA1 (IVM+ALB)", COUNTRY_INFO!$T$9:$T$993, " ") ->  | I81: 0 | M81: 0
A82: =IF(COUNTRY_INFO!A82=0," ",COUNTRY_INFO!A82) -> Uganda | B82: =IF(COUNTRY_INFO!B82=0," ",COUNTRY_INFO!B82) -> NORTHERN | C82: =IF(COUNTRY_INFO!C82=0," ",COUNTRY_INFO!C82) -> DOKOLO | D82: =IF(COUNTRY_INFO!$T$9:$T$993="MDA1 (IVM+ALB)", COUNTRY_INFO!$T$9:$T$993, " ") ->  | I82: 0 | M82: 0
A83: =IF(COUNTRY_INFO!A83=0," ",COUNTRY_INFO!A83) -> Uganda | B83: =IF(COUNTRY_INFO!B83=0," ",COUNTRY_INFO!B83) -> NORTHERN | C83: =IF(COUNTRY_INFO!C83=0," ",COUNTRY_INFO!C83) -> GULU | D83: =IF(COUNTRY_INFO!$T$9:$T$993="MDA1 (IVM+ALB)", COUNTRY_INFO!$T$9:$T$993, " ") ->  | I83: 0 | M83: 0
A84: =IF(COUNTRY_INFO!A84=0," ",COUNTRY_INFO!A84) -> Uganda | B84: =IF(COUNTRY_INFO!B84=0," ",COUNTRY_INFO!B84) -> NORTHERN | C84: =IF(COUNTRY_INFO!C84=0," ",COUNTRY_INFO!C84) -> KAABONG | D84: =IF(COUNTRY_INFO!$T$9:$T$993="MDA1 (IVM+ALB)", COUNTRY_INFO!$T$9:$T$993, " ") ->  | I84: 0 | M84: 0
A85: =IF(COUNTRY_INFO!A85=0," ",COUNTRY_INFO!A85) -> Uganda | B85: =IF(COUNTRY_INFO!B85=0," ",COUNTRY_INFO!B85) -> NORTHERN | C85: =IF(COUNTRY_INFO!C85=0," ",COUNTRY_INFO!C85) -> KARENGA | D85: =IF(COUNTRY_INFO!$T$9:$T$993="MDA1 (IVM+ALB)", COUNTRY_INFO!$T$9:$T$993, " ") ->  | I85: 0 | M85: 0
A86: =IF(COUNTRY_INFO!A86=0," ",COUNTRY_INFO!A86) -> Uganda | B86: =IF(COUNTRY_INFO!B86=0," ",COUNTRY_INFO!B86) -> NORTHERN | C86: =IF(COUNTRY_INFO!C86=0," ",COUNTRY_INFO!C86) -> KITGUM | D86: =IF(COUNTRY_INFO!$T$9:$T$993="MDA1 (IVM+ALB)", COUNTRY_INFO!$T$9:$T$993, " ") ->  | I86: 0 | M86: 0
A87: =IF(COUNTRY_INFO!A87=0," ",COUNTRY_INFO!A87) -> Uganda | B87: =IF(COUNTRY_INFO!B87=0," ",COUNTRY_INFO!B87) -> NORTHERN | C87: =IF(COUNTRY_INFO!C87=0," ",COUNTRY_INFO!C87) -> KOBOKO | D87: =IF(COUNTRY_INFO!$T$9:$T$993="MDA1 (IVM+ALB)", COUNTRY_INFO!$T$9:$T$993, " ") ->  | I87: 0 | M87: 0
A88: =IF(COUNTRY_INFO!A88=0," ",COUNTRY_INFO!A88) -> Uganda | B88: =IF(COUNTRY_INFO!B88=0," ",COUNTRY_INFO!B88) -> NORTHERN | C88: =IF(COUNTRY_INFO!C88=0," ",COUNTRY_INFO!C88) -> KOLE | D88: =IF(COUNTRY_INFO!$T$9:$T$993="MDA1 (IVM+ALB)", COUNTRY_INFO!$T$9:$T$993, " ") ->  | I88: 0 | M88: 0
A89: =IF(COUNTRY_INFO!A89=0," ",COUNTRY_INFO!A89) -> Uganda | B89: =IF(COUNTRY_INFO!B89=0," ",COUNTRY_INFO!B89) -> NORTHERN | C89: =IF(COUNTRY_INFO!C89=0," ",COUNTRY_INFO!C89) -> KOTIDO | D89: =IF(COUNTRY_INFO!$T$9:$T$993="MDA1 (IVM+ALB)", COUNTRY_INFO!$T$9:$T$993, " ") ->  | I89: 0 | M89: 0
A90: =IF(COUNTRY_INFO!A90=0," ",COUNTRY_INFO!A90) -> Uganda | B90: =IF(COUNTRY_INFO!B90=0," ",COUNTRY_INFO!B90) -> NORTHERN | C90: =IF(COUNTRY_INFO!C90=0," ",COUNTRY_INFO!C90) -> LAMWO | D90: =IF(COUNTRY_INFO!$T$9:$T$993="MDA1 (IVM+ALB)", COUNTRY_INFO!$T$9:$T$993, " ") ->  | I90: 0 | M90: 0
A91: =IF(COUNTRY_INFO!A91=0," ",COUNTRY_INFO!A91) -> Uganda | B91: =IF(COUNTRY_INFO!B91=0," ",COUNTRY_INFO!B91) -> NORTHERN | C91: =IF(COUNTRY_INFO!C91=0," ",COUNTRY_INFO!C91) -> LIRA | D91: =IF(COUNTRY_INFO!$T$9:$T$993="MDA1 (IVM+ALB)", COUNTRY_INFO!$T$9:$T$993, " ") ->  | I91: 0 | M91: 0
A92: =IF(COUNTRY_INFO!A92=0," ",COUNTRY_INFO!A92) -> Uganda | B92: =IF(COUNTRY_INFO!B92=0," ",COUNTRY_INFO!B92) -> NORTHERN | C92: =IF(COUNTRY_INFO!C92=0," ",COUNTRY_INFO!C92) -> MARACHA | D92: =IF(COUNTRY_INFO!$T$9:$T$993="MDA1 (IVM+ALB)", COUNTRY_INFO!$T$9:$T$993, " ") ->  | I92: 0 | M92: 0
A93: =IF(COUNTRY_INFO!A93=0," ",COUNTRY_INFO!A93) -> Uganda | B93: =IF(COUNTRY_INFO!B93=0," ",COUNTRY_INFO!B93) -> NORTHERN | C93: =IF(COUNTRY_INFO!C93=0," ",COUNTRY_INFO!C93) -> MOROTO | D93: =IF(COUNTRY_INFO!$T$9:$T$993="MDA1 (IVM+ALB)", COUNTRY_INFO!$T$9:$T$993, " ") ->  | I93: 0 | M93: 0
A94: =IF(COUNTRY_INFO!A94=0," ",COUNTRY_INFO!A94) -> Uganda | B94: =IF(COUNTRY_INFO!B94=0," ",COUNTRY_INFO!B94) -> NORTHERN | C94: =IF(COUNTRY_INFO!C94=0," ",COUNTRY_INFO!C94) -> MOYO | D94: =IF(COUNTRY_INFO!$T$9:$T$993="MDA1 (IVM+ALB)", COUNTRY_INFO!$T$9:$T$993, " ") ->  | I94: 0 | M94: 0
A95: =IF(COUNTRY_INFO!A95=0," ",COUNTRY_INFO!A95) -> Uganda | B95: =IF(COUNTRY_INFO!B95=0," ",COUNTRY_INFO!B95) -> NORTHERN | C95: =IF(COUNTRY_INFO!C95=0," ",COUNTRY_INFO!C95) -> OBONGI | D95: =IF(COUNTRY_INFO!$T$9:$T$993="MDA1 (IVM+ALB)", COUNTRY_INFO!$T$9:$T$993, " ") ->  | I95: 0 | M95: 0
A96: =IF(COUNTRY_INFO!A96=0," ",COUNTRY_INFO!A96) -> Uganda | B96: =IF(COUNTRY_INFO!B96=0," ",COUNTRY_INFO!B96) -> NORTHERN | C96: =IF(COUNTRY_INFO!C96=0," ",COUNTRY_INFO!C96) -> NABILATUK | D96: =IF(COUNTRY_INFO!$T$9:$T$993="MDA1 (IVM+ALB)", COUNTRY_INFO!$T$9:$T$993, " ") ->  | I96: 0 | M96: 0
A97: =IF(COUNTRY_INFO!A97=0," ",COUNTRY_INFO!A97) -> Uganda | B97: =IF(COUNTRY_INFO!B97=0," ",COUNTRY_INFO!B97) -> NORTHERN | C97: =IF(COUNTRY_INFO!C97=0," ",COUNTRY_INFO!C97) -> NAKAPIRIPIRIT | D97: =IF(COUNTRY_INFO!$T$9:$T$993="MDA1 (IVM+ALB)", COUNTRY_INFO!$T$9:$T$993, " ") ->  | I97: 0 | M97: 0
A98: =IF(COUNTRY_INFO!A98=0," ",COUNTRY_INFO!A98) -> Uganda | B98: =IF(COUNTRY_INFO!B98=0," ",COUNTRY_INFO!B98) -> NORTHERN | C98: =IF(COUNTRY_INFO!C98=0," ",COUNTRY_INFO!C98) -> NAPAK | D98: =IF(COUNTRY_INFO!$T$9:$T$993="MDA1 (IVM+ALB)", COUNTRY_INFO!$T$9:$T$993, " ") ->  | I98: 0 | M98: 0
A99: =IF(COUNTRY_INFO!A99=0," ",COUNTRY_INFO!A99) -> Uganda | B99: =IF(COUNTRY_INFO!B99=0," ",COUNTRY_INFO!B99) -> NORTHERN | C99: =IF(COUNTRY_INFO!C99=0," ",COUNTRY_INFO!C99) -> NEBBI | D99: =IF(COUNTRY_INFO!$T$9:$T$993="MDA1 (IVM+ALB)", COUNTRY_INFO!$T$9:$T$993, " ") ->  | I99: 0 | M99: 0
A100: =IF(COUNTRY_INFO!A100=0," ",COUNTRY_INFO!A100) -> Uganda | B100: =IF(COUNTRY_INFO!B100=0," ",COUNTRY_INFO!B100) -> NORTHERN | C100: =IF(COUNTRY_INFO!C100=0," ",COUNTRY_INFO!C100) -> NWOYA | D100: =IF(COUNTRY_INFO!$T$9:$T$993="MDA1 (IVM+ALB)", COUNTRY_INFO!$T$9:$T$993, " ") ->  | I100: 0 | M100: 0
A101: =IF(COUNTRY_INFO!A101=0," ",COUNTRY_INFO!A101) -> Uganda | B101: =IF(COUNTRY_INFO!B101=0," ",COUNTRY_INFO!B101) -> NORTHERN | C101: =IF(COUNTRY_INFO!C101=0," ",COUNTRY_INFO!C101) -> OMORO | D101: =IF(COUNTRY_INFO!$T$9:$T$993="MDA1 (IVM+ALB)", COUNTRY_INFO!$T$9:$T$993, " ") ->  | I101: 0 | M101: 0
A102: =IF(COUNTRY_INFO!A102=0," ",COUNTRY_INFO!A102) -> Uganda | B102: =IF(COUNTRY_INFO!B102=0," ",COUNTRY_INFO!B102) -> NORTHERN | C102: =IF(COUNTRY_INFO!C102=0," ",COUNTRY_INFO!C102) -> OTUKE | D102: =IF(COUNTRY_INFO!$T$9:$T$993="MDA1 (IVM+ALB)", COUNTRY_INFO!$T$9:$T$993, " ") ->  | I102: 0 | M102: 0
A103: =IF(COUNTRY_INFO!A103=0," ",COUNTRY_INFO!A103) -> Uganda | B103: =IF(COUNTRY_INFO!B103=0," ",COUNTRY_INFO!B103) -> NORTHERN | C103: =IF(COUNTRY_INFO!C103=0," ",COUNTRY_INFO!C103) -> OYAM | D103: =IF(COUNTRY_INFO!$T$9:$T$993="MDA1 (IVM+ALB)", COUNTRY_INFO!$T$9:$T$993, " ") ->  | I103: 0 | M103: 0
A104: =IF(COUNTRY_INFO!A104=0," ",COUNTRY_INFO!A104) -> Uganda | B104: =IF(COUNTRY_INFO!B104=0," ",COUNTRY_INFO!B104) -> NORTHERN | C104: =IF(COUNTRY_INFO!C104=0," ",COUNTRY_INFO!C104) -> PADER | D104: =IF(COUNTRY_INFO!$T$9:$T$993="MDA1 (IVM+ALB)", COUNTRY_INFO!$T$9:$T$993, " ") ->  | I104: 0 | M104: 0
A105: =IF(COUNTRY_INFO!A105=0," ",COUNTRY_INFO!A105) -> Uganda | B105: =IF(COUNTRY_INFO!B105=0," ",COUNTRY_INFO!B105) -> NORTHERN | C105: =IF(COUNTRY_INFO!C105=0," ",COUNTRY_INFO!C105) -> PAKWACH | D105: =IF(COUNTRY_INFO!$T$9:$T$993="MDA1 (IVM+ALB)", COUNTRY_INFO!$T$9:$T$993, " ") ->  | I105: 0 | M105: 0
A106: =IF(COUNTRY_INFO!A106=0," ",COUNTRY_INFO!A106) -> Uganda | B106: =IF(COUNTRY_INFO!B106=0," ",COUNTRY_INFO!B106) -> NORTHERN | C106: =IF(COUNTRY_INFO!C106=0," ",COUNTRY_INFO!C106) -> YUMBE | D106: =IF(COUNTRY_INFO!$T$9:$T$993="MDA1 (IVM+ALB)", COUNTRY_INFO!$T$9:$T$993, " ") ->  | I106: 0 | M106: 0
A107: =IF(COUNTRY_INFO!A107=0," ",COUNTRY_INFO!A107) -> Uganda | B107: =IF(COUNTRY_INFO!B107=0," ",COUNTRY_INFO!B107) -> NORTHERN | C107: =IF(COUNTRY_INFO!C107=0," ",COUNTRY_INFO!C107) -> ZOMBO | D107: =IF(COUNTRY_INFO!$T$9:$T$993="MDA1 (IVM+ALB)", COUNTRY_INFO!$T$9:$T$993, " ") ->  | I107: 0 | M107: 0
A108: =IF(COUNTRY_INFO!A108=0," ",COUNTRY_INFO!A108) -> Uganda | B108: =IF(COUNTRY_INFO!B108=0," ",COUNTRY_INFO!B108) -> WESTERN | C108: =IF(COUNTRY_INFO!C108=0," ",COUNTRY_INFO!C108) -> BUHWEJU | D108: =IF(COUNTRY_INFO!$T$9:$T$993="MDA1 (IVM+ALB)", COUNTRY_INFO!$T$9:$T$993, " ") ->  | I108: 0 | M108: 0
A109: =IF(COUNTRY_INFO!A109=0," ",COUNTRY_INFO!A109) -> Uganda | B109: =IF(COUNTRY_INFO!B109=0," ",COUNTRY_INFO!B109) -> WESTERN | C109: =IF(COUNTRY_INFO!C109=0," ",COUNTRY_INFO!C109) -> BULIISA | D109: =IF(COUNTRY_INFO!$T$9:$T$993="MDA1 (IVM+ALB)", COUNTRY_INFO!$T$9:$T$993, " ") ->  | I109: 0 | M109: 0
A110: =IF(COUNTRY_INFO!A110=0," ",COUNTRY_INFO!A110) -> Uganda | B110: =IF(COUNTRY_INFO!B110=0," ",COUNTRY_INFO!B110) -> WESTERN | C110: =IF(COUNTRY_INFO!C110=0," ",COUNTRY_INFO!C110) -> BUNDIBUGYO | D110: =IF(COUNTRY_INFO!$T$9:$T$993="MDA1 (IVM+ALB)", COUNTRY_INFO!$T$9:$T$993, " ") ->  | I110: 0 | M110: 0
A111: =IF(COUNTRY_INFO!A111=0," ",COUNTRY_INFO!A111) -> Uganda | B111: =IF(COUNTRY_INFO!B111=0," ",COUNTRY_INFO!B111) -> WESTERN | C111: =IF(COUNTRY_INFO!C111=0," ",COUNTRY_INFO!C111) -> BUNYANGABU | D111: =IF(COUNTRY_INFO!$T$9:$T$993="MDA1 (IVM+ALB)", COUNTRY_INFO!$T$9:$T$993, " ") ->  | I111: 0 | M111: 0
A112: =IF(COUNTRY_INFO!A112=0," ",COUNTRY_INFO!A112) -> Uganda | B112: =IF(COUNTRY_INFO!B112=0," ",COUNTRY_INFO!B112) -> WESTERN | C112: =IF(COUNTRY_INFO!C112=0," ",COUNTRY_INFO!C112) -> BUSHENYI | D112: =IF(COUNTRY_INFO!$T$9:$T$993="MDA1 (IVM+ALB)", COUNTRY_INFO!$T$9:$T$993, " ") ->  | I112: 0 | M112: 0
A113: =IF(COUNTRY_INFO!A113=0," ",COUNTRY_INFO!A113) -> Uganda | B113: =IF(COUNTRY_INFO!B113=0," ",COUNTRY_INFO!B113) -> WESTERN | C113: =IF(COUNTRY_INFO!C113=0," ",COUNTRY_INFO!C113) -> HOIMA | D113: =IF(COUNTRY_INFO!$T$9:$T$993="MDA1 (IVM+ALB)", COUNTRY_INFO!$T$9:$T$993, " ") ->  | I113: 0 | M113: 0
A114: =IF(COUNTRY_INFO!A114=0," ",COUNTRY_INFO!A114) -> Uganda | B114: =IF(COUNTRY_INFO!B114=0," ",COUNTRY_INFO!B114) -> WESTERN | C114: =IF(COUNTRY_INFO!C114=0," ",COUNTRY_INFO!C114) -> KIKUUBE | D114: =IF(COUNTRY_INFO!$T$9:$T$993="MDA1 (IVM+ALB)", COUNTRY_INFO!$T$9:$T$993, " ") ->  | I114: 0 | M114: 0
A115: =IF(COUNTRY_INFO!A115=0," ",COUNTRY_INFO!A115) -> Uganda | B115: =IF(COUNTRY_INFO!B115=0," ",COUNTRY_INFO!B115) -> WESTERN | C115: =IF(COUNTRY_INFO!C115=0," ",COUNTRY_INFO!C115) -> IBANDA | D115: =IF(COUNTRY_INFO!$T$9:$T$993="MDA1 (IVM+ALB)", COUNTRY_INFO!$T$9:$T$993, " ") ->  | I115: 0 | M115: 0
A116: =IF(COUNTRY_INFO!A116=0," ",COUNTRY_INFO!A116) -> Uganda | B116: =IF(COUNTRY_INFO!B116=0," ",COUNTRY_INFO!B116) -> WESTERN | C116: =IF(COUNTRY_INFO!C116=0," ",COUNTRY_INFO!C116) -> ISINGIRO | D116: =IF(COUNTRY_INFO!$T$9:$T$993="MDA1 (IVM+ALB)", COUNTRY_INFO!$T$9:$T$993, " ") ->  | I116: 0 | M116: 0
A117: =IF(COUNTRY_INFO!A117=0," ",COUNTRY_INFO!A117) -> Uganda | B117: =IF(COUNTRY_INFO!B117=0," ",COUNTRY_INFO!B117) -> WESTERN | C117: =IF(COUNTRY_INFO!C117=0," ",COUNTRY_INFO!C117) -> KABALE | D117: =IF(COUNTRY_INFO!$T$9:$T$993="MDA1 (IVM+ALB)", COUNTRY_INFO!$T$9:$T$993, " ") ->  | I117: 0 | M117: 0
A118: =IF(COUNTRY_INFO!A118=0," ",COUNTRY_INFO!A118) -> Uganda | B118: =IF(COUNTRY_INFO!B118=0," ",COUNTRY_INFO!B118) -> WESTERN | C118: =IF(COUNTRY_INFO!C118=0," ",COUNTRY_INFO!C118) -> KABAROLE | D118: =IF(COUNTRY_INFO!$T$9:$T$993="MDA1 (IVM+ALB)", COUNTRY_INFO!$T$9:$T$993, " ") ->  | I118: 0 | M118: 0
A119: =IF(COUNTRY_INFO!A119=0," ",COUNTRY_INFO!A119) -> Uganda | B119: =IF(COUNTRY_INFO!B119=0," ",COUNTRY_INFO!B119) -> WESTERN | C119: =IF(COUNTRY_INFO!C119=0," ",COUNTRY_INFO!C119) -> KAGADI | D119: =IF(COUNTRY_INFO!$T$9:$T$993="MDA1 (IVM+ALB)", COUNTRY_INFO!$T$9:$T$993, " ") ->  | I119: 0 | M119: 0
A120: =IF(COUNTRY_INFO!A120=0," ",COUNTRY_INFO!A120) -> Uganda | B120: =IF(COUNTRY_INFO!B120=0," ",COUNTRY_INFO!B120) -> WESTERN | C120: =IF(COUNTRY_INFO!C120=0," ",COUNTRY_INFO!C120) -> KAKUMIRO | D120: =IF(COUNTRY_INFO!$T$9:$T$993="MDA1 (IVM+ALB)", COUNTRY_INFO!$T$9:$T$993, " ") ->  | I120: 0 | M120: 0
A121: =IF(COUNTRY_INFO!A121=0," ",COUNTRY_INFO!A121) -> Uganda | B121: =IF(COUNTRY_INFO!B121=0," ",COUNTRY_INFO!B121) -> WESTERN | C121: =IF(COUNTRY_INFO!C121=0," ",COUNTRY_INFO!C121) -> KAMWENGE | D121: =IF(COUNTRY_INFO!$T$9:$T$993="MDA1 (IVM+ALB)", COUNTRY_INFO!$T$9:$T$993, " ") ->  | I121: 0 | M121: 0
A122: =IF(COUNTRY_INFO!A122=0," ",COUNTRY_INFO!A122) -> Uganda | B122: =IF(COUNTRY_INFO!B122=0," ",COUNTRY_INFO!B122) -> WESTERN | C122: =IF(COUNTRY_INFO!C122=0," ",COUNTRY_INFO!C122) -> KITAGWENDA | D122: =IF(COUNTRY_INFO!$T$9:$T$993="MDA1 (IVM+ALB)", COUNTRY_INFO!$T$9:$T$993, " ") ->  | I122: 0 | M122: 0
A123: =IF(COUNTRY_INFO!A123=0," ",COUNTRY_INFO!A123) -> Uganda | B123: =IF(COUNTRY_INFO!B123=0," ",COUNTRY_INFO!B123) -> WESTERN | C123: =IF(COUNTRY_INFO!C123=0," ",COUNTRY_INFO!C123) -> KANUNGU | D123: =IF(COUNTRY_INFO!$T$9:$T$993="MDA1 (IVM+ALB)", COUNTRY_INFO!$T$9:$T$993, " ") ->  | I123: 0 | M123: 0
A124: =IF(COUNTRY_INFO!A124=0," ",COUNTRY_INFO!A124) -> Uganda | B124: =IF(COUNTRY_INFO!B124=0," ",COUNTRY_INFO!B124) -> WESTERN | C124: =IF(COUNTRY_INFO!C124=0," ",COUNTRY_INFO!C124) -> KASESE | D124: =IF(COUNTRY_INFO!$T$9:$T$993="MDA1 (IVM+ALB)", COUNTRY_INFO!$T$9:$T$993, " ") ->  | I124: 0 | M124: 0
A125: =IF(COUNTRY_INFO!A125=0," ",COUNTRY_INFO!A125) -> Uganda | B125: =IF(COUNTRY_INFO!B125=0," ",COUNTRY_INFO!B125) -> WESTERN | C125: =IF(COUNTRY_INFO!C125=0," ",COUNTRY_INFO!C125) -> KIBAALE | D125: =IF(COUNTRY_INFO!$T$9:$T$993="MDA1 (IVM+ALB)", COUNTRY_INFO!$T$9:$T$993, " ") ->  | I125: 0 | M125: 0
A126: =IF(COUNTRY_INFO!A126=0," ",COUNTRY_INFO!A126) -> Uganda | B126: =IF(COUNTRY_INFO!B126=0," ",COUNTRY_INFO!B126) -> WESTERN | C126: =IF(COUNTRY_INFO!C126=0," ",COUNTRY_INFO!C126) -> KIRUHURA | D126: =IF(COUNTRY_INFO!$T$9:$T$993="MDA1 (IVM+ALB)", COUNTRY_INFO!$T$9:$T$993, " ") ->  | I126: 0 | M126: 0
A127: =IF(COUNTRY_INFO!A127=0," ",COUNTRY_INFO!A127) -> Uganda | B127: =IF(COUNTRY_INFO!B127=0," ",COUNTRY_INFO!B127) -> WESTERN | C127: =IF(COUNTRY_INFO!C127=0," ",COUNTRY_INFO!C127) -> KAZO | D127: =IF(COUNTRY_INFO!$T$9:$T$993="MDA1 (IVM+ALB)", COUNTRY_INFO!$T$9:$T$993, " ") ->  | I127: 0 | M127: 0
A128: =IF(COUNTRY_INFO!A128=0," ",COUNTRY_INFO!A128) -> Uganda | B128: =IF(COUNTRY_INFO!B128=0," ",COUNTRY_INFO!B128) -> WESTERN | C128: =IF(COUNTRY_INFO!C128=0," ",COUNTRY_INFO!C128) -> KIRYANDONGO | D128: =IF(COUNTRY_INFO!$T$9:$T$993="MDA1 (IVM+ALB)", COUNTRY_INFO!$T$9:$T$993, " ") ->  | I128: 0 | M128: 0
A129: =IF(COUNTRY_INFO!A129=0," ",COUNTRY_INFO!A129) -> Uganda | B129: =IF(COUNTRY_INFO!B129=0," ",COUNTRY_INFO!B129) -> WESTERN | C129: =IF(COUNTRY_INFO!C129=0," ",COUNTRY_INFO!C129) -> KISORO | D129: =IF(COUNTRY_INFO!$T$9:$T$993="MDA1 (IVM+ALB)", COUNTRY_INFO!$T$9:$T$993, " ") ->  | I129: 0 | M129: 0
A130: =IF(COUNTRY_INFO!A130=0," ",COUNTRY_INFO!A130) -> Uganda | B130: =IF(COUNTRY_INFO!B130=0," ",COUNTRY_INFO!B130) -> WESTERN | C130: =IF(COUNTRY_INFO!C130=0," ",COUNTRY_INFO!C130) -> KYEGEGWA | D130: =IF(COUNTRY_INFO!$T$9:$T$993="MDA1 (IVM+ALB)", COUNTRY_INFO!$T$9:$T$993, " ") ->  | I130: 0 | M130: 0
A131: =IF(COUNTRY_INFO!A131=0," ",COUNTRY_INFO!A131) -> Uganda | B131: =IF(COUNTRY_INFO!B131=0," ",COUNTRY_INFO!B131) -> WESTERN | C131: =IF(COUNTRY_INFO!C131=0," ",COUNTRY_INFO!C131) -> KYENJOJO | D131: =IF(COUNTRY_INFO!$T$9:$T$993="MDA1 (IVM+ALB)", COUNTRY_INFO!$T$9:$T$993, " ") ->  | I131: 0 | M131: 0
A132: =IF(COUNTRY_INFO!A132=0," ",COUNTRY_INFO!A132) -> Uganda | B132: =IF(COUNTRY_INFO!B132=0," ",COUNTRY_INFO!B132) -> WESTERN | C132: =IF(COUNTRY_INFO!C132=0," ",COUNTRY_INFO!C132) -> MASINDI | D132: =IF(COUNTRY_INFO!$T$9:$T$993="MDA1 (IVM+ALB)", COUNTRY_INFO!$T$9:$T$993, " ") ->  | I132: 0 | M132: 0
A133: =IF(COUNTRY_INFO!A133=0," ",COUNTRY_INFO!A133) -> Uganda | B133: =IF(COUNTRY_INFO!B133=0," ",COUNTRY_INFO!B133) -> WESTERN | C133: =IF(COUNTRY_INFO!C133=0," ",COUNTRY_INFO!C133) -> MBARARA | D133: =IF(COUNTRY_INFO!$T$9:$T$993="MDA1 (IVM+ALB)", COUNTRY_INFO!$T$9:$T$993, " ") ->  | I133: 0 | M133: 0
A134: =IF(COUNTRY_INFO!A134=0," ",COUNTRY_INFO!A134) -> Uganda | B134: =IF(COUNTRY_INFO!B134=0," ",COUNTRY_INFO!B134) -> WESTERN | C134: =IF(COUNTRY_INFO!C134=0," ",COUNTRY_INFO!C134) -> RWAMPARA | D134: =IF(COUNTRY_INFO!$T$9:$T$993="MDA1 (IVM+ALB)", COUNTRY_INFO!$T$9:$T$993, " ") ->  | I134: 0 | M134: 0
A135: =IF(COUNTRY_INFO!A135=0," ",COUNTRY_INFO!A135) -> Uganda | B135: =IF(COUNTRY_INFO!B135=0," ",COUNTRY_INFO!B135) -> WESTERN | C135: =IF(COUNTRY_INFO!C135=0," ",COUNTRY_INFO!C135) -> MITOOMA | D135: =IF(COUNTRY_INFO!$T$9:$T$993="MDA1 (IVM+ALB)", COUNTRY_INFO!$T$9:$T$993, " ") ->  | I135: 0 | M135: 0
A136: =IF(COUNTRY_INFO!A136=0," ",COUNTRY_INFO!A136) -> Uganda | B136: =IF(COUNTRY_INFO!B136=0," ",COUNTRY_INFO!B136) -> WESTERN | C136: =IF(COUNTRY_INFO!C136=0," ",COUNTRY_INFO!C136) -> NTOROKO | D136: =IF(COUNTRY_INFO!$T$9:$T$993="MDA1 (IVM+ALB)", COUNTRY_INFO!$T$9:$T$993, " ") ->  | I136: 0 | M136: 0
A137: =IF(COUNTRY_INFO!A137=0," ",COUNTRY_INFO!A137) -> Uganda | B137: =IF(COUNTRY_INFO!B137=0," ",COUNTRY_INFO!B137) -> WESTERN | C137: =IF(COUNTRY_INFO!C137=0," ",COUNTRY_INFO!C137) -> NTUNGAMO | D137: =IF(COUNTRY_INFO!$T$9:$T$993="MDA1 (IVM+ALB)", COUNTRY_INFO!$T$9:$T$993, " ") ->  | I137: 0 | M137: 0
A138: =IF(COUNTRY_INFO!A138=0," ",COUNTRY_INFO!A138) -> Uganda | B138: =IF(COUNTRY_INFO!B138=0," ",COUNTRY_INFO!B138) -> WESTERN | C138: =IF(COUNTRY_INFO!C138=0," ",COUNTRY_INFO!C138) -> RUBANDA | D138: =IF(COUNTRY_INFO!$T$9:$T$993="MDA1 (IVM+ALB)", COUNTRY_INFO!$T$9:$T$993, " ") ->  | I138: =SUM(F138:H138) -> 0 | M138: =SUM(J138:L138) -> 0 | O138: =IF(G138<>0, IF(K138/G138*100=0, "-", K138/G138*100), " ") ->  | P138: =IF(H138<>0, IF(L138/H138*100=0, "-", L138/H138*100), " ") ->  | Q138: =IF(I138<>0, IF(M138/I138*100=0, "-", M138/I138*100), " ") -> 
A139: =IF(COUNTRY_INFO!A139=0," ",COUNTRY_INFO!A139) -> Uganda | B139: =IF(COUNTRY_INFO!B139=0," ",COUNTRY_INFO!B139) -> WESTERN | C139: =IF(COUNTRY_INFO!C139=0," ",COUNTRY_INFO!C139) -> RUBIRIZI | D139: =IF(COUNTRY_INFO!$T$9:$T$993="MDA1 (IVM+ALB)", COUNTRY_INFO!$T$9:$T$993, " ") ->  | I139: 0 | M139: 0
A140: =IF(COUNTRY_INFO!A140=0," ",COUNTRY_INFO!A140) -> Uganda | B140: =IF(COUNTRY_INFO!B140=0," ",COUNTRY_INFO!B140) -> WESTERN | C140: =IF(COUNTRY_INFO!C140=0," ",COUNTRY_INFO!C140) -> RUKIGA | D140: =IF(COUNTRY_INFO!$T$9:$T$993="MDA1 (IVM+ALB)", COUNTRY_INFO!$T$9:$T$993, " ") ->  | I140: 0 | M140: 0
A141: =IF(COUNTRY_INFO!A141=0," ",COUNTRY_INFO!A141) -> Uganda | B141: =IF(COUNTRY_INFO!B141=0," ",COUNTRY_INFO!B141) -> WESTERN | C141: =IF(COUNTRY_INFO!C141=0," ",COUNTRY_INFO!C141) -> RUKUNGIRI | D141: =IF(COUNTRY_INFO!$T$9:$T$993="MDA1 (IVM+ALB)", COUNTRY_INFO!$T$9:$T$993, " ") ->  | I141: 0 | M141: 0
A142: =IF(COUNTRY_INFO!A142=0," ",COUNTRY_INFO!A142) -> Uganda | B142: =IF(COUNTRY_INFO!B142=0," ",COUNTRY_INFO!B142) -> WESTERN | C142: =IF(COUNTRY_INFO!C142=0," ",COUNTRY_INFO!C142) -> SHEEMA | D142: =IF(COUNTRY_INFO!$T$9:$T$993="MDA1 (IVM+ALB)", COUNTRY_INFO!$T$9:$T$993, " ") ->  | I142: 0 | M142: 0

Sheet MDA2 (hidden)
A1: MDA 2 - Diethylcarbamazine citrate (DEC) + Albendazole (ALB)
A2: Administrative structure, population requiring PC by age group, population treated by age group and coverage
A4: TOTAL | F4: =SUM(F$9:F$1000) -> 0 | G4: =SUM(G$9:G$1000) -> 0 | H4: 0 | I4: 0 | J4: 0 | K4: 0 | L4: 0 | M4: 0 | N4: =IF(F4<>0, IF(J4/F4*100=0, "-", J4/F4*100), " ") ->  | O4: =IF(G4<>0, IF(K4/G4*100=0, "-", K4/G4*100), " ") ->  | P4: =IF(H4<>0, IF(L4/H4*100=0, "-", L4/H4*100), " ") ->  | Q4: =IF(I4<>0, IF(M4/I4*100=0, "-", M4/I4*100), " ") -> 
D6: PC implemented | E6: Date | F6: Population targeted for MDA 2 | J6: Population treated | N6: Programme coverage (%)
A7: Country | B7: Province/State | C7: District | F7: PreSAC | G7: SAC | H7: Adults | I7: Total | J7: PreSAC | K7: SAC | L7: Adults | M7: Total | N7: PreSAC | O7: SAC | P7: Adults | Q7: Total
A9: =IF(COUNTRY_INFO!A9=0," ",COUNTRY_INFO!A9) -> Uganda | B9: =IF(COUNTRY_INFO!B9=0," ",COUNTRY_INFO!B9) -> CENTRAL | C9: =IF(COUNTRY_INFO!C9=0," ",COUNTRY_INFO!C9) -> BUIKWE | D9: =IF(COUNTRY_INFO!$T$9:$T$993="MDA2 (DEC+ALB)", COUNTRY_INFO!$T$9:$T$993, " ") ->  | I9: =SUM(F9:H9) -> 0 | M9: =SUM(J9:L9) -> 0 | N9: =IF(F9<>0, IF(J9/F9*100=0, "-", J9/F9*100), " ") -> 
A10: =IF(COUNTRY_INFO!A10=0," ",COUNTRY_INFO!A10) -> Uganda | B10: =IF(COUNTRY_INFO!B10=0," ",COUNTRY_INFO!B10) -> CENTRAL | C10: =IF(COUNTRY_INFO!C10=0," ",COUNTRY_INFO!C10) -> BUKOMANSIMBI | D10: =IF(COUNTRY_INFO!$T$9:$T$993="MDA2 (DEC+ALB)", COUNTRY_INFO!$T$9:$T$993, " ") ->  | I10: =SUM(F10:H10) -> 0 | M10: =SUM(J10:L10) -> 0 | N10: =IF(F10<>0, IF(J10/F10*100=0, "-", J10/F10*100), " ") ->  | O10: =IF(G10<>0, IF(K10/G10*100=0, "-", K10/G10*100), " ") ->  | P10: =IF(H10<>0, IF(L10/H10*100=0, "-", L10/H10*100), " ") ->  | Q10: =IF(I10<>0, IF(M10/I10*100=0, "-", M10/I10*100), " ") -> 
A11: =IF(COUNTRY_INFO!A11=0," ",COUNTRY_INFO!A11) -> Uganda | B11: =IF(COUNTRY_INFO!B11=0," ",COUNTRY_INFO!B11) -> CENTRAL | C11: =IF(COUNTRY_INFO!C11=0," ",COUNTRY_INFO!C11) -> BUTAMBALA | D11: =IF(COUNTRY_INFO!$T$9:$T$993="MDA2 (DEC+ALB)", COUNTRY_INFO!$T$9:$T$993, " ") ->  | I11: 0 | M11: 0
A12: =IF(COUNTRY_INFO!A12=0," ",COUNTRY_INFO!A12) -> Uganda | B12: =IF(COUNTRY_INFO!B12=0," ",COUNTRY_INFO!B12) -> CENTRAL | C12: =IF(COUNTRY_INFO!C12=0," ",COUNTRY_INFO!C12) -> BUVUMA | D12: =IF(COUNTRY_INFO!$T$9:$T$993="MDA2 (DEC+ALB)", COUNTRY_INFO!$T$9:$T$993, " ") ->  | I12: 0 | M12: 0
A13: =IF(COUNTRY_INFO!A13=0," ",COUNTRY_INFO!A13) -> Uganda | B13: =IF(COUNTRY_INFO!B13=0," ",COUNTRY_INFO!B13) -> CENTRAL | C13: =IF(COUNTRY_INFO!C13=0," ",COUNTRY_INFO!C13) -> GOMBA | D13: =IF(COUNTRY_INFO!$T$9:$T$993="MDA2 (DEC+ALB)", COUNTRY_INFO!$T$9:$T$993, " ") ->  | I13: 0 | M13: 0
A14: =IF(COUNTRY_INFO!A14=0," ",COUNTRY_INFO!A14) -> Uganda | B14: =IF(COUNTRY_INFO!B14=0," ",COUNTRY_INFO!B14) -> CENTRAL | C14: =IF(COUNTRY_INFO!C14=0," ",COUNTRY_INFO!C14) -> KALANGALA | D14: =IF(COUNTRY_INFO!$T$9:$T$993="MDA2 (DEC+ALB)", COUNTRY_INFO!$T$9:$T$993, " ") ->  | I14: 0 | M14: 0
A15: =IF(COUNTRY_INFO!A15=0," ",COUNTRY_INFO!A15) -> Uganda | B15: =IF(COUNTRY_INFO!B15=0," ",COUNTRY_INFO!B15) -> CENTRAL | C15: =IF(COUNTRY_INFO!C15=0," ",COUNTRY_INFO!C15) -> KALUNGU | D15: =IF(COUNTRY_INFO!$T$9:$T$993="MDA2 (DEC+ALB)", COUNTRY_INFO!$T$9:$T$993, " ") ->  | I15: 0 | M15: 0
A16: =IF(COUNTRY_INFO!A16=0," ",COUNTRY_INFO!A16) -> Uganda | B16: =IF(COUNTRY_INFO!B16=0," ",COUNTRY_INFO!B16) -> CENTRAL | C16: =IF(COUNTRY_INFO!C16=0," ",COUNTRY_INFO!C16) -> KAMPALA | D16: =IF(COUNTRY_INFO!$T$9:$T$993="MDA2 (DEC+ALB)", COUNTRY_INFO!$T$9:$T$993, " ") ->  | I16: 0 | M16: 0
A17: =IF(COUNTRY_INFO!A17=0," ",COUNTRY_INFO!A17) -> Uganda | B17: =IF(COUNTRY_INFO!B17=0," ",COUNTRY_INFO!B17) -> CENTRAL | C17: =IF(COUNTRY_INFO!C17=0," ",COUNTRY_INFO!C17) -> KAYUNGA | D17: =IF(COUNTRY_INFO!$T$9:$T$993="MDA2 (DEC+ALB)", COUNTRY_INFO!$T$9:$T$993, " ") ->  | I17: 0 | M17: 0
A18: =IF(COUNTRY_INFO!A18=0," ",COUNTRY_INFO!A18) -> Uganda | B18: =IF(COUNTRY_INFO!B18=0," ",COUNTRY_INFO!B18) -> CENTRAL | C18: =IF(COUNTRY_INFO!C18=0," ",COUNTRY_INFO!C18) -> KIBOGA | D18: =IF(COUNTRY_INFO!$T$9:$T$993="MDA2 (DEC+ALB)", COUNTRY_INFO!$T$9:$T$993, " ") ->  | I18: 0 | M18: 0
A19: =IF(COUNTRY_INFO!A19=0," ",COUNTRY_INFO!A19) -> Uganda | B19: =IF(COUNTRY_INFO!B19=0," ",COUNTRY_INFO!B19) -> CENTRAL | C19: =IF(COUNTRY_INFO!C19=0," ",COUNTRY_INFO!C19) -> KYANKWANZI | D19: =IF(COUNTRY_INFO!$T$9:$T$993="MDA2 (DEC+ALB)", COUNTRY_INFO!$T$9:$T$993, " ") ->  | I19: 0 | M19: 0
A20: =IF(COUNTRY_INFO!A20=0," ",COUNTRY_INFO!A20) -> Uganda | B20: =IF(COUNTRY_INFO!B20=0," ",COUNTRY_INFO!B20) -> CENTRAL | C20: =IF(COUNTRY_INFO!C20=0," ",COUNTRY_INFO!C20) -> KYOTERA | D20: =IF(COUNTRY_INFO!$T$9:$T$993="MDA2 (DEC+ALB)", COUNTRY_INFO!$T$9:$T$993, " ") ->  | I20: 0 | M20: 0
A21: =IF(COUNTRY_INFO!A21=0," ",COUNTRY_INFO!A21) -> Uganda | B21: =IF(COUNTRY_INFO!B21=0," ",COUNTRY_INFO!B21) -> CENTRAL | C21: =IF(COUNTRY_INFO!C21=0," ",COUNTRY_INFO!C21) -> LUWERO | D21: =IF(COUNTRY_INFO!$T$9:$T$993="MDA2 (DEC+ALB)", COUNTRY_INFO!$T$9:$T$993, " ") ->  | I21: 0 | M21: 0
A22: =IF(COUNTRY_INFO!A22=0," ",COUNTRY_INFO!A22) -> Uganda | B22: =IF(COUNTRY_INFO!B22=0," ",COUNTRY_INFO!B22) -> CENTRAL | C22: =IF(COUNTRY_INFO!C22=0," ",COUNTRY_INFO!C22) -> LWENGO | D22: =IF(COUNTRY_INFO!$T$9:$T$993="MDA2 (DEC+ALB)", COUNTRY_INFO!$T$9:$T$993, " ") ->  | I22: 0 | M22: 0
A23: =IF(COUNTRY_INFO!A23=0," ",COUNTRY_INFO!A23) -> Uganda | B23: =IF(COUNTRY_INFO!B23=0," ",COUNTRY_INFO!B23) -> CENTRAL | C23: =IF(COUNTRY_INFO!C23=0," ",COUNTRY_INFO!C23) -> LYANTONDE | D23: =IF(COUNTRY_INFO!$T$9:$T$993="MDA2 (DEC+ALB)", COUNTRY_INFO!$T$9:$T$993, " ") ->  | I23: 0 | M23: 0
A24: =IF(COUNTRY_INFO!A24=0," ",COUNTRY_INFO!A24) -> Uganda | B24: =IF(COUNTRY_INFO!B24=0," ",COUNTRY_INFO!B24) -> CENTRAL | C24: =IF(COUNTRY_INFO!C24=0," ",COUNTRY_INFO!C24) -> MASAKA | D24: =IF(COUNTRY_INFO!$T$9:$T$993="MDA2 (DEC+ALB)", COUNTRY_INFO!$T$9:$T$993, " ") ->  | I24: 0 | M24: 0
A25: =IF(COUNTRY_INFO!A25=0," ",COUNTRY_INFO!A25) -> Uganda | B25: =IF(COUNTRY_INFO!B25=0," ",COUNTRY_INFO!B25) -> CENTRAL | C25: =IF(COUNTRY_INFO!C25=0," ",COUNTRY_INFO!C25) -> MITYANA | D25: =IF(COUNTRY_INFO!$T$9:$T$993="MDA2 (DEC+ALB)", COUNTRY_INFO!$T$9:$T$993, " ") ->  | I25: 0 | M25: 0
A26: =IF(COUNTRY_INFO!A26=0," ",COUNTRY_INFO!A26) -> Uganda | B26: =IF(COUNTRY_INFO!B26=0," ",COUNTRY_INFO!B26) -> CENTRAL | C26: =IF(COUNTRY_INFO!C26=0," ",COUNTRY_INFO!C26) -> MPIGI | D26: =IF(COUNTRY_INFO!$T$9:$T$993="MDA2 (DEC+ALB)", COUNTRY_INFO!$T$9:$T$993, " ") ->  | I26: 0 | M26: 0
A27: =IF(COUNTRY_INFO!A27=0," ",COUNTRY_INFO!A27) -> Uganda | B27: =IF(COUNTRY_INFO!B27=0," ",COUNTRY_INFO!B27) -> CENTRAL | C27: =IF(COUNTRY_INFO!C27=0," ",COUNTRY_INFO!C27) -> MUBENDE | D27: =IF(COUNTRY_INFO!$T$9:$T$993="MDA2 (DEC+ALB)", COUNTRY_INFO!$T$9:$T$993, " ") ->  | I27: 0 | M27: 0
A28: =IF(COUNTRY_INFO!A28=0," ",COUNTRY_INFO!A28) -> Uganda | B28: =IF(COUNTRY_INFO!B28=0," ",COUNTRY_INFO!B28) -> CENTRAL | C28: =IF(COUNTRY_INFO!C28=0," ",COUNTRY_INFO!C28) -> KASSANDA | D28: =IF(COUNTRY_INFO!$T$9:$T$993="MDA2 (DEC+ALB)", COUNTRY_INFO!$T$9:$T$993, " ") ->  | I28: 0 | M28: 0
A29: =IF(COUNTRY_INFO!A29=0," ",COUNTRY_INFO!A29) -> Uganda | B29: =IF(COUNTRY_INFO!B29=0," ",COUNTRY_INFO!B29) -> CENTRAL | C29: =IF(COUNTRY_INFO!C29=0," ",COUNTRY_INFO!C29) -> MUKONO | D29: =IF(COUNTRY_INFO!$T$9:$T$993="MDA2 (DEC+ALB)", COUNTRY_INFO!$T$9:$T$993, " ") ->  | I29: 0 | M29: 0
A30: =IF(COUNTRY_INFO!A30=0," ",COUNTRY_INFO!A30) -> Uganda | B30: =IF(COUNTRY_INFO!B30=0," ",COUNTRY_INFO!B30) -> CENTRAL | C30: =IF(COUNTRY_INFO!C30=0," ",COUNTRY_INFO!C30) -> NAKASEKE | D30: =IF(COUNTRY_INFO!$T$9:$T$993="MDA2 (DEC+ALB)", COUNTRY_INFO!$T$9:$T$993, " ") ->  | I30: 0 | M30: 0
A31: =IF(COUNTRY_INFO!A31=0," ",COUNTRY_INFO!A31) -> Uganda | B31: =IF(COUNTRY_INFO!B31=0," ",COUNTRY_INFO!B31) -> CENTRAL | C31: =IF(COUNTRY_INFO!C31=0," ",COUNTRY_INFO!C31) -> NAKASONGOLA | D31: =IF(COUNTRY_INFO!$T$9:$T$993="MDA2 (DEC+ALB)", COUNTRY_INFO!$T$9:$T$993, " ") ->  | I31: 0 | M31: 0
A32: =IF(COUNTRY_INFO!A32=0," ",COUNTRY_INFO!A32) -> Uganda | B32: =IF(COUNTRY_INFO!B32=0," ",COUNTRY_INFO!B32) -> CENTRAL | C32: =IF(COUNTRY_INFO!C32=0," ",COUNTRY_INFO!C32) -> RAKAI | D32: =IF(COUNTRY_INFO!$T$9:$T$993="MDA2 (DEC+ALB)", COUNTRY_INFO!$T$9:$T$993, " ") ->  | I32: 0 | M32: 0
A33: =IF(COUNTRY_INFO!A33=0," ",COUNTRY_INFO!A33) -> Uganda | B33: =IF(COUNTRY_INFO!B33=0," ",COUNTRY_INFO!B33) -> CENTRAL | C33: =IF(COUNTRY_INFO!C33=0," ",COUNTRY_INFO!C33) -> SSEMBABULE | D33: =IF(COUNTRY_INFO!$T$9:$T$993="MDA2 (DEC+ALB)", COUNTRY_INFO!$T$9:$T$993, " ") ->  | I33: 0 | M33: 0
A34: =IF(COUNTRY_INFO!A34=0," ",COUNTRY_INFO!A34) -> Uganda | B34: =IF(COUNTRY_INFO!B34=0," ",COUNTRY_INFO!B34) -> CENTRAL | C34: =IF(COUNTRY_INFO!C34=0," ",COUNTRY_INFO!C34) -> WAKISO | D34: =IF(COUNTRY_INFO!$T$9:$T$993="MDA2 (DEC+ALB)", COUNTRY_INFO!$T$9:$T$993, " ") ->  | I34: 0 | M34: 0
A35: =IF(COUNTRY_INFO!A35=0," ",COUNTRY_INFO!A35) -> Uganda | B35: =IF(COUNTRY_INFO!B35=0," ",COUNTRY_INFO!B35) -> EASTERN | C35: =IF(COUNTRY_INFO!C35=0," ",COUNTRY_INFO!C35) -> AMURIA | D35: =IF(COUNTRY_INFO!$T$9:$T$993="MDA2 (DEC+ALB)", COUNTRY_INFO!$T$9:$T$993, " ") ->  | I35: 0 | M35: 0
A36: =IF(COUNTRY_INFO!A36=0," ",COUNTRY_INFO!A36) -> Uganda | B36: =IF(COUNTRY_INFO!B36=0," ",COUNTRY_INFO!B36) -> EASTERN | C36: =IF(COUNTRY_INFO!C36=0," ",COUNTRY_INFO!C36) -> KAPELEBYONG | D36: =IF(COUNTRY_INFO!$T$9:$T$993="MDA2 (DEC+ALB)", COUNTRY_INFO!$T$9:$T$993, " ") ->  | I36: 0 | M36: 0
A37: =IF(COUNTRY_INFO!A37=0," ",COUNTRY_INFO!A37) -> Uganda | B37: =IF(COUNTRY_INFO!B37=0," ",COUNTRY_INFO!B37) -> EASTERN | C37: =IF(COUNTRY_INFO!C37=0," ",COUNTRY_INFO!C37) -> BUDAKA | D37: =IF(COUNTRY_INFO!$T$9:$T$993="MDA2 (DEC+ALB)", COUNTRY_INFO!$T$9:$T$993, " ") ->  | I37: 0 | M37: 0
A38: =IF(COUNTRY_INFO!A38=0," ",COUNTRY_INFO!A38) -> Uganda | B38: =IF(COUNTRY_INFO!B38=0," ",COUNTRY_INFO!B38) -> EASTERN | C38: =IF(COUNTRY_INFO!C38=0," ",COUNTRY_INFO!C38) -> BUDUDA | D38: =IF(COUNTRY_INFO!$T$9:$T$993="MDA2 (DEC+ALB)", COUNTRY_INFO!$T$9:$T$993, " ") ->  | I38: 0 | M38: 0
A39: =IF(COUNTRY_INFO!A39=0," ",COUNTRY_INFO!A39) -> Uganda | B39: =IF(COUNTRY_INFO!B39=0," ",COUNTRY_INFO!B39) -> EASTERN | C39: =IF(COUNTRY_INFO!C39=0," ",COUNTRY_INFO!C39) -> BUGIRI | D39: =IF(COUNTRY_INFO!$T$9:$T$993="MDA2 (DEC+ALB)", COUNTRY_INFO!$T$9:$T$993, " ") ->  | I39: 0 | M39: 0
A40: =IF(COUNTRY_INFO!A40=0," ",COUNTRY_INFO!A40) -> Uganda | B40: =IF(COUNTRY_INFO!B40=0," ",COUNTRY_INFO!B40) -> EASTERN | C40: =IF(COUNTRY_INFO!C40=0," ",COUNTRY_INFO!C40) -> BUKEDEA | D40: =IF(COUNTRY_INFO!$T$9:$T$993="MDA2 (DEC+ALB)", COUNTRY_INFO!$T$9:$T$993, " ") ->  | I40: 0 | M40: 0
A41: =IF(COUNTRY_INFO!A41=0," ",COUNTRY_INFO!A41) -> Uganda | B41: =IF(COUNTRY_INFO!B41=0," ",COUNTRY_INFO!B41) -> EASTERN | C41: =IF(COUNTRY_INFO!C41=0," ",COUNTRY_INFO!C41) -> BUKWO | D41: =IF(COUNTRY_INFO!$T$9:$T$993="MDA2 (DEC+ALB)", COUNTRY_INFO!$T$9:$T$993, " ") ->  | I41: 0 | M41: 0
A42: =IF(COUNTRY_INFO!A42=0," ",COUNTRY_INFO!A42) -> Uganda | B42: =IF(COUNTRY_INFO!B42=0," ",COUNTRY_INFO!B42) -> EASTERN | C42: =IF(COUNTRY_INFO!C42=0," ",COUNTRY_INFO!C42) -> BULAMBULI | D42: =IF(COUNTRY_INFO!$T$9:$T$993="MDA2 (DEC+ALB)", COUNTRY_INFO!$T$9:$T$993, " ") ->  | I42: 0 | M42: 0
A43: =IF(COUNTRY_INFO!A43=0," ",COUNTRY_INFO!A43) -> Uganda | B43: =IF(COUNTRY_INFO!B43=0," ",COUNTRY_INFO!B43) -> EASTERN | C43: =IF(COUNTRY_INFO!C43=0," ",COUNTRY_INFO!C43) -> BUSIA | D43: =IF(COUNTRY_INFO!$T$9:$T$993="MDA2 (DEC+ALB)", COUNTRY_INFO!$T$9:$T$993, " ") ->  | I43: 0 | M43: 0
A44: =IF(COUNTRY_INFO!A44=0," ",COUNTRY_INFO!A44) -> Uganda | B44: =IF(COUNTRY_INFO!B44=0," ",COUNTRY_INFO!B44) -> EASTERN | C44: =IF(COUNTRY_INFO!C44=0," ",COUNTRY_INFO!C44) -> BUTALEJA | D44: =IF(COUNTRY_INFO!$T$9:$T$993="MDA2 (DEC+ALB)", COUNTRY_INFO!$T$9:$T$993, " ") ->  | I44: 0 | M44: 0
A45: =IF(COUNTRY_INFO!A45=0," ",COUNTRY_INFO!A45) -> Uganda | B45: =IF(COUNTRY_INFO!B45=0," ",COUNTRY_INFO!B45) -> EASTERN | C45: =IF(COUNTRY_INFO!C45=0," ",COUNTRY_INFO!C45) -> BUTEBO | D45: =IF(COUNTRY_INFO!$T$9:$T$993="MDA2 (DEC+ALB)", COUNTRY_INFO!$T$9:$T$993, " ") ->  | I45: 0 | M45: 0
A46: =IF(COUNTRY_INFO!A46=0," ",COUNTRY_INFO!A46) -> Uganda | B46: =IF(COUNTRY_INFO!B46=0," ",COUNTRY_INFO!B46) -> EASTERN | C46: =IF(COUNTRY_INFO!C46=0," ",COUNTRY_INFO!C46) -> BUYENDE | D46: =IF(COUNTRY_INFO!$T$9:$T$993="MDA2 (DEC+ALB)", COUNTRY_INFO!$T$9:$T$993, " ") ->  | I46: 0 | M46: 0
A47: =IF(COUNTRY_INFO!A47=0," ",COUNTRY_INFO!A47) -> Uganda | B47: =IF(COUNTRY_INFO!B47=0," ",COUNTRY_INFO!B47) -> EASTERN | C47: =IF(COUNTRY_INFO!C47=0," ",COUNTRY_INFO!C47) -> IGANGA | D47: =IF(COUNTRY_INFO!$T$9:$T$993="MDA2 (DEC+ALB)", COUNTRY_INFO!$T$9:$T$993, " ") ->  | I47: 0 | M47: 0
A48: =IF(COUNTRY_INFO!A48=0," ",COUNTRY_INFO!A48) -> Uganda | B48: =IF(COUNTRY_INFO!B48=0," ",COUNTRY_INFO!B48) -> EASTERN | C48: =IF(COUNTRY_INFO!C48=0," ",COUNTRY_INFO!C48) -> BUGWERI | D48: =IF(COUNTRY_INFO!$T$9:$T$993="MDA2 (DEC+ALB)", COUNTRY_INFO!$T$9:$T$993, " ") ->  | I48: 0 | M48: 0
A49: =IF(COUNTRY_INFO!A49=0," ",COUNTRY_INFO!A49) -> Uganda | B49: =IF(COUNTRY_INFO!B49=0," ",COUNTRY_INFO!B49) -> EASTERN | C49: =IF(COUNTRY_INFO!C49=0," ",COUNTRY_INFO!C49) -> JINJA | D49: =IF(COUNTRY_INFO!$T$9:$T$993="MDA2 (DEC+ALB)", COUNTRY_INFO!$T$9:$T$993, " ") ->  | I49: 0 | M49: 0
A50: =IF(COUNTRY_INFO!A50=0," ",COUNTRY_INFO!A50) -> Uganda | B50: =IF(COUNTRY_INFO!B50=0," ",COUNTRY_INFO!B50) -> EASTERN | C50: =IF(COUNTRY_INFO!C50=0," ",COUNTRY_INFO!C50) -> KABERAMAIDO | D50: =IF(COUNTRY_INFO!$T$9:$T$993="MDA2 (DEC+ALB)", COUNTRY_INFO!$T$9:$T$993, " ") ->  | I50: 0 | M50: 0
A51: =IF(COUNTRY_INFO!A51=0," ",COUNTRY_INFO!A51) -> Uganda | B51: =IF(COUNTRY_INFO!B51=0," ",COUNTRY_INFO!B51) -> EASTERN | C51: =IF(COUNTRY_INFO!C51=0," ",COUNTRY_INFO!C51) -> KALIRO | D51: =IF(COUNTRY_INFO!$T$9:$T$993="MDA2 (DEC+ALB)", COUNTRY_INFO!$T$9:$T$993, " ") ->  | I51: 0 | M51: 0
A52: =IF(COUNTRY_INFO!A52=0," ",COUNTRY_INFO!A52) -> Uganda | B52: =IF(COUNTRY_INFO!B52=0," ",COUNTRY_INFO!B52) -> EASTERN | C52: =IF(COUNTRY_INFO!C52=0," ",COUNTRY_INFO!C52) -> KAMULI | D52: =IF(COUNTRY_INFO!$T$9:$T$993="MDA2 (DEC+ALB)", COUNTRY_INFO!$T$9:$T$993, " ") ->  | I52: 0 | M52: 0
A53: =IF(COUNTRY_INFO!A53=0," ",COUNTRY_INFO!A53) -> Uganda | B53: =IF(COUNTRY_INFO!B53=0," ",COUNTRY_INFO!B53) -> EASTERN | C53: =IF(COUNTRY_INFO!C53=0," ",COUNTRY_INFO!C53) -> KAPCHORWA | D53: =IF(COUNTRY_INFO!$T$9:$T$993="MDA2 (DEC+ALB)", COUNTRY_INFO!$T$9:$T$993, " ") ->  | I53: 0 | M53: 0
A54: =IF(COUNTRY_INFO!A54=0," ",COUNTRY_INFO!A54) -> Uganda | B54: =IF(COUNTRY_INFO!B54=0," ",COUNTRY_INFO!B54) -> EASTERN | C54: =IF(COUNTRY_INFO!C54=0," ",COUNTRY_INFO!C54) -> KATAKWI | D54: =IF(COUNTRY_INFO!$T$9:$T$993="MDA2 (DEC+ALB)", COUNTRY_INFO!$T$9:$T$993, " ") ->  | I54: 0 | M54: 0
A55: =IF(COUNTRY_INFO!A55=0," ",COUNTRY_INFO!A55) -> Uganda | B55: =IF(COUNTRY_INFO!B55=0," ",COUNTRY_INFO!B55) -> EASTERN | C55: =IF(COUNTRY_INFO!C55=0," ",COUNTRY_INFO!C55) -> KIBUKU | D55: =IF(COUNTRY_INFO!$T$9:$T$993="MDA2 (DEC+ALB)", COUNTRY_INFO!$T$9:$T$993, " ") ->  | I55: 0 | M55: 0
A56: =IF(COUNTRY_INFO!A56=0," ",COUNTRY_INFO!A56) -> Uganda | B56: =IF(COUNTRY_INFO!B56=0," ",COUNTRY_INFO!B56) -> EASTERN | C56: =IF(COUNTRY_INFO!C56=0," ",COUNTRY_INFO!C56) -> KUMI | D56: =IF(COUNTRY_INFO!$T$9:$T$993="MDA2 (DEC+ALB)", COUNTRY_INFO!$T$9:$T$993, " ") ->  | I56: 0 | M56: 0
A57: =IF(COUNTRY_INFO!A57=0," ",COUNTRY_INFO!A57) -> Uganda | B57: =IF(COUNTRY_INFO!B57=0," ",COUNTRY_INFO!B57) -> EASTERN | C57: =IF(COUNTRY_INFO!C57=0," ",COUNTRY_INFO!C57) -> KWEEN | D57: =IF(COUNTRY_INFO!$T$9:$T$993="MDA2 (DEC+ALB)", COUNTRY_INFO!$T$9:$T$993, " ") ->  | I57: 0 | M57: 0
A58: =IF(COUNTRY_INFO!A58=0," ",COUNTRY_INFO!A58) -> Uganda | B58: =IF(COUNTRY_INFO!B58=0," ",COUNTRY_INFO!B58) -> EASTERN | C58: =IF(COUNTRY_INFO!C58=0," ",COUNTRY_INFO!C58) -> LUUKA | D58: =IF(COUNTRY_INFO!$T$9:$T$993="MDA2 (DEC+ALB)", COUNTRY_INFO!$T$9:$T$993, " ") ->  | I58: 0 | M58: 0
A59: =IF(COUNTRY_INFO!A59=0," ",COUNTRY_INFO!A59) -> Uganda | B59: =IF(COUNTRY_INFO!B59=0," ",COUNTRY_INFO!B59) -> EASTERN | C59: =IF(COUNTRY_INFO!C59=0," ",COUNTRY_INFO!C59) -> MANAFWA | D59: =IF(COUNTRY_INFO!$T$9:$T$993="MDA2 (DEC+ALB)", COUNTRY_INFO!$T$9:$T$993, " ") ->  | I59: 0 | M59: 0
A60: =IF(COUNTRY_INFO!A60=0," ",COUNTRY_INFO!A60) -> Uganda | B60: =IF(COUNTRY_INFO!B60=0," ",COUNTRY_INFO!B60) -> EASTERN | C60: =IF(COUNTRY_INFO!C60=0," ",COUNTRY_INFO!C60) -> MAYUGE | D60: =IF(COUNTRY_INFO!$T$9:$T$993="MDA2 (DEC+ALB)", COUNTRY_INFO!$T$9:$T$993, " ") ->  | I60: 0 | M60: 0
A61: =IF(COUNTRY_INFO!A61=0," ",COUNTRY_INFO!A61) -> Uganda | B61: =IF(COUNTRY_INFO!B61=0," ",COUNTRY_INFO!B61) -> EASTERN | C61: =IF(COUNTRY_INFO!C61=0," ",COUNTRY_INFO!C61) -> MBALE | D61: =IF(COUNTRY_INFO!$T$9:$T$993="MDA2 (DEC+ALB)", COUNTRY_INFO!$T$9:$T$993, " ") ->  | I61: 0 | M61: 0
A62: =IF(COUNTRY_INFO!A62=0," ",COUNTRY_INFO!A62) -> Uganda | B62: =IF(COUNTRY_INFO!B62=0," ",COUNTRY_INFO!B62) -> EASTERN | C62: =IF(COUNTRY_INFO!C62=0," ",COUNTRY_INFO!C62) -> NAMAYINGO | D62: =IF(COUNTRY_INFO!$T$9:$T$993="MDA2 (DEC+ALB)", COUNTRY_INFO!$T$9:$T$993, " ") ->  | I62: 0 | M62: 0
A63: =IF(COUNTRY_INFO!A63=0," ",COUNTRY_INFO!A63) -> Uganda | B63: =IF(COUNTRY_INFO!B63=0," ",COUNTRY_INFO!B63) -> EASTERN | C63: =IF(COUNTRY_INFO!C63=0," ",COUNTRY_INFO!C63) -> NAMISINDWA | D63: =IF(COUNTRY_INFO!$T$9:$T$993="MDA2 (DEC+ALB)", COUNTRY_INFO!$T$9:$T$993, " ") ->  | I63: 0 | M63: 0
A64: =IF(COUNTRY_INFO!A64=0," ",COUNTRY_INFO!A64) -> Uganda | B64: =IF(COUNTRY_INFO!B64=0," ",COUNTRY_INFO!B64) -> EASTERN | C64: =IF(COUNTRY_INFO!C64=0," ",COUNTRY_INFO!C64) -> NAMUTUMBA | D64: =IF(COUNTRY_INFO!$T$9:$T$993="MDA2 (DEC+ALB)", COUNTRY_INFO!$T$9:$T$993, " ") ->  | I64: 0 | M64: 0
A65: =IF(COUNTRY_INFO!A65=0," ",COUNTRY_INFO!A65) -> Uganda | B65: =IF(COUNTRY_INFO!B65=0," ",COUNTRY_INFO!B65) -> EASTERN | C65: =IF(COUNTRY_INFO!C65=0," ",COUNTRY_INFO!C65) -> NGORA | D65: =IF(COUNTRY_INFO!$T$9:$T$993="MDA2 (DEC+ALB)", COUNTRY_INFO!$T$9:$T$993, " ") ->  | I65: 0 | M65: 0
A66: =IF(COUNTRY_INFO!A66=0," ",COUNTRY_INFO!A66) -> Uganda | B66: =IF(COUNTRY_INFO!B66=0," ",COUNTRY_INFO!B66) -> EASTERN | C66: =IF(COUNTRY_INFO!C66=0," ",COUNTRY_INFO!C66) -> PALLISA | D66: =IF(COUNTRY_INFO!$T$9:$T$993="MDA2 (DEC+ALB)", COUNTRY_INFO!$T$9:$T$993, " ") ->  | I66: 0 | M66: 0
A67: =IF(COUNTRY_INFO!A67=0," ",COUNTRY_INFO!A67) -> Uganda | B67: =IF(COUNTRY_INFO!B67=0," ",COUNTRY_INFO!B67) -> EASTERN | C67: =IF(COUNTRY_INFO!C67=0," ",COUNTRY_INFO!C67) -> SERERE | D67: =IF(COUNTRY_INFO!$T$9:$T$993="MDA2 (DEC+ALB)", COUNTRY_INFO!$T$9:$T$993, " ") ->  | I67: 0 | M67: 0
A68: =IF(COUNTRY_INFO!A68=0," ",COUNTRY_INFO!A68) -> Uganda | B68: =IF(COUNTRY_INFO!B68=0," ",COUNTRY_INFO!B68) -> EASTERN | C68: =IF(COUNTRY_INFO!C68=0," ",COUNTRY_INFO!C68) -> SIRONKO | D68: =IF(COUNTRY_INFO!$T$9:$T$993="MDA2 (DEC+ALB)", COUNTRY_INFO!$T$9:$T$993, " ") ->  | I68: 0 | M68: 0
A69: =IF(COUNTRY_INFO!A69=0," ",COUNTRY_INFO!A69) -> Uganda | B69: =IF(COUNTRY_INFO!B69=0," ",COUNTRY_INFO!B69) -> EASTERN | C69: =IF(COUNTRY_INFO!C69=0," ",COUNTRY_INFO!C69) -> SOROTI | D69: =IF(COUNTRY_INFO!$T$9:$T$993="MDA2 (DEC+ALB)", COUNTRY_INFO!$T$9:$T$993, " ") ->  | I69: 0 | M69: 0
A70: =IF(COUNTRY_INFO!A70=0," ",COUNTRY_INFO!A70) -> Uganda | B70: =IF(COUNTRY_INFO!B70=0," ",COUNTRY_INFO!B70) -> EASTERN | C70: =IF(COUNTRY_INFO!C70=0," ",COUNTRY_INFO!C70) -> TORORO | D70: =IF(COUNTRY_INFO!$T$9:$T$993="MDA2 (DEC+ALB)", COUNTRY_INFO!$T$9:$T$993, " ") ->  | I70: 0 | M70: 0
A71: =IF(COUNTRY_INFO!A71=0," ",COUNTRY_INFO!A71) -> Uganda | B71: =IF(COUNTRY_INFO!B71=0," ",COUNTRY_INFO!B71) -> NORTHERN | C71: =IF(COUNTRY_INFO!C71=0," ",COUNTRY_INFO!C71) -> ABIM | D71: =IF(COUNTRY_INFO!$T$9:$T$993="MDA2 (DEC+ALB)", COUNTRY_INFO!$T$9:$T$993, " ") ->  | I71: 0 | M71: 0
A72: =IF(COUNTRY_INFO!A72=0," ",COUNTRY_INFO!A72) -> Uganda | B72: =IF(COUNTRY_INFO!B72=0," ",COUNTRY_INFO!B72) -> NORTHERN | C72: =IF(COUNTRY_INFO!C72=0," ",COUNTRY_INFO!C72) -> ADJUMANI | D72: =IF(COUNTRY_INFO!$T$9:$T$993="MDA2 (DEC+ALB)", COUNTRY_INFO!$T$9:$T$993, " ") ->  | I72: 0 | M72: 0
A73: =IF(COUNTRY_INFO!A73=0," ",COUNTRY_INFO!A73) -> Uganda | B73: =IF(COUNTRY_INFO!B73=0," ",COUNTRY_INFO!B73) -> NORTHERN | C73: =IF(COUNTRY_INFO!C73=0," ",COUNTRY_INFO!C73) -> AGAGO | D73: =IF(COUNTRY_INFO!$T$9:$T$993="MDA2 (DEC+ALB)", COUNTRY_INFO!$T$9:$T$993, " ") ->  | I73: 0 | M73: 0
A74: =IF(COUNTRY_INFO!A74=0," ",COUNTRY_INFO!A74) -> Uganda | B74: =IF(COUNTRY_INFO!B74=0," ",COUNTRY_INFO!B74) -> NORTHERN | C74: =IF(COUNTRY_INFO!C74=0," ",COUNTRY_INFO!C74) -> ALEBTONG | D74: =IF(COUNTRY_INFO!$T$9:$T$993="MDA2 (DEC+ALB)", COUNTRY_INFO!$T$9:$T$993, " ") ->  | I74: =SUM(F74:H74) -> 0 | M74: =SUM(J74:L74) -> 0 | N74: =IF(F74<>0, IF(J74/F74*100=0, "-", J74/F74*100), " ") ->  | O74: =IF(G74<>0, IF(K74/G74*100=0, "-", K74/G74*100), " ") ->  | P74: =IF(H74<>0, IF(L74/H74*100=0, "-", L74/H74*100), " ") ->  | Q74: =IF(I74<>0, IF(M74/I74*100=0, "-", M74/I74*100), " ") -> 
A75: =IF(COUNTRY_INFO!A75=0," ",COUNTRY_INFO!A75) -> Uganda | B75: =IF(COUNTRY_INFO!B75=0," ",COUNTRY_INFO!B75) -> NORTHERN | C75: =IF(COUNTRY_INFO!C75=0," ",COUNTRY_INFO!C75) -> AMOLATAR | D75: =IF(COUNTRY_INFO!$T$9:$T$993="MDA2 (DEC+ALB)", COUNTRY_INFO!$T$9:$T$993, " ") ->  | I75: 0 | M75: 0
A76: =IF(COUNTRY_INFO!A76=0," ",COUNTRY_INFO!A76) -> Uganda | B76: =IF(COUNTRY_INFO!B76=0," ",COUNTRY_INFO!B76) -> NORTHERN | C76: =IF(COUNTRY_INFO!C76=0," ",COUNTRY_INFO!C76) -> AMUDAT | D76: =IF(COUNTRY_INFO!$T$9:$T$993="MDA2 (DEC+ALB)", COUNTRY_INFO!$T$9:$T$993, " ") ->  | I76: 0 | M76: 0
A77: =IF(COUNTRY_INFO!A77=0," ",COUNTRY_INFO!A77) -> Uganda | B77: =IF(COUNTRY_INFO!B77=0," ",COUNTRY_INFO!B77) -> NORTHERN | C77: =IF(COUNTRY_INFO!C77=0," ",COUNTRY_INFO!C77) -> AMURU | D77: =IF(COUNTRY_INFO!$T$9:$T$993="MDA2 (DEC+ALB)", COUNTRY_INFO!$T$9:$T$993, " ") ->  | I77: 0 | M77: 0
A78: =IF(COUNTRY_INFO!A78=0," ",COUNTRY_INFO!A78) -> Uganda | B78: =IF(COUNTRY_INFO!B78=0," ",COUNTRY_INFO!B78) -> NORTHERN | C78: =IF(COUNTRY_INFO!C78=0," ",COUNTRY_INFO!C78) -> APAC | D78: =IF(COUNTRY_INFO!$T$9:$T$993="MDA2 (DEC+ALB)", COUNTRY_INFO!$T$9:$T$993, " ") ->  | I78: 0 | M78: 0
A79: =IF(COUNTRY_INFO!A79=0," ",COUNTRY_INFO!A79) -> Uganda | B79: =IF(COUNTRY_INFO!B79=0," ",COUNTRY_INFO!B79) -> NORTHERN | C79: =IF(COUNTRY_INFO!C79=0," ",COUNTRY_INFO!C79) -> KWANIA | D79: =IF(COUNTRY_INFO!$T$9:$T$993="MDA2 (DEC+ALB)", COUNTRY_INFO!$T$9:$T$993, " ") ->  | I79: 0 | M79: 0
A80: =IF(COUNTRY_INFO!A80=0," ",COUNTRY_INFO!A80) -> Uganda | B80: =IF(COUNTRY_INFO!B80=0," ",COUNTRY_INFO!B80) -> NORTHERN | C80: =IF(COUNTRY_INFO!C80=0," ",COUNTRY_INFO!C80) -> ARUA | D80: =IF(COUNTRY_INFO!$T$9:$T$993="MDA2 (DEC+ALB)", COUNTRY_INFO!$T$9:$T$993, " ") ->  | I80: 0 | M80: 0
A81: =IF(COUNTRY_INFO!A81=0," ",COUNTRY_INFO!A81) -> Uganda | B81: =IF(COUNTRY_INFO!B81=0," ",COUNTRY_INFO!B81) -> NORTHERN | C81: =IF(COUNTRY_INFO!C81=0," ",COUNTRY_INFO!C81) -> MADI-OKOLLO | D81: =IF(COUNTRY_INFO!$T$9:$T$993="MDA2 (DEC+ALB)", COUNTRY_INFO!$T$9:$T$993, " ") ->  | I81: 0 | M81: 0
A82: =IF(COUNTRY_INFO!A82=0," ",COUNTRY_INFO!A82) -> Uganda | B82: =IF(COUNTRY_INFO!B82=0," ",COUNTRY_INFO!B82) -> NORTHERN | C82: =IF(COUNTRY_INFO!C82=0," ",COUNTRY_INFO!C82) -> DOKOLO | D82: =IF(COUNTRY_INFO!$T$9:$T$993="MDA2 (DEC+ALB)", COUNTRY_INFO!$T$9:$T$993, " ") ->  | I82: 0 | M82: 0
A83: =IF(COUNTRY_INFO!A83=0," ",COUNTRY_INFO!A83) -> Uganda | B83: =IF(COUNTRY_INFO!B83=0," ",COUNTRY_INFO!B83) -> NORTHERN | C83: =IF(COUNTRY_INFO!C83=0," ",COUNTRY_INFO!C83) -> GULU | D83: =IF(COUNTRY_INFO!$T$9:$T$993="MDA2 (DEC+ALB)", COUNTRY_INFO!$T$9:$T$993, " ") ->  | I83: 0 | M83: 0
A84: =IF(COUNTRY_INFO!A84=0," ",COUNTRY_INFO!A84) -> Uganda | B84: =IF(COUNTRY_INFO!B84=0," ",COUNTRY_INFO!B84) -> NORTHERN | C84: =IF(COUNTRY_INFO!C84=0," ",COUNTRY_INFO!C84) -> KAABONG | D84: =IF(COUNTRY_INFO!$T$9:$T$993="MDA2 (DEC+ALB)", COUNTRY_INFO!$T$9:$T$993, " ") ->  | I84: 0 | M84: 0
A85: =IF(COUNTRY_INFO!A85=0," ",COUNTRY_INFO!A85) -> Uganda | B85: =IF(COUNTRY_INFO!B85=0," ",COUNTRY_INFO!B85) -> NORTHERN | C85: =IF(COUNTRY_INFO!C85=0," ",COUNTRY_INFO!C85) -> KARENGA | D85: =IF(COUNTRY_INFO!$T$9:$T$993="MDA2 (DEC+ALB)", COUNTRY_INFO!$T$9:$T$993, " ") ->  | I85: 0 | M85: 0
A86: =IF(COUNTRY_INFO!A86=0," ",COUNTRY_INFO!A86) -> Uganda | B86: =IF(COUNTRY_INFO!B86=0," ",COUNTRY_INFO!B86) -> NORTHERN | C86: =IF(COUNTRY_INFO!C86=0," ",COUNTRY_INFO!C86) -> KITGUM | D86: =IF(COUNTRY_INFO!$T$9:$T$993="MDA2 (DEC+ALB)", COUNTRY_INFO!$T$9:$T$993, " ") ->  | I86: 0 | M86: 0
A87: =IF(COUNTRY_INFO!A87=0," ",COUNTRY_INFO!A87) -> Uganda | B87: =IF(COUNTRY_INFO!B87=0," ",COUNTRY_INFO!B87) -> NORTHERN | C87: =IF(COUNTRY_INFO!C87=0," ",COUNTRY_INFO!C87) -> KOBOKO | D87: =IF(COUNTRY_INFO!$T$9:$T$993="MDA2 (DEC+ALB)", COUNTRY_INFO!$T$9:$T$993, " ") ->  | I87: 0 | M87: 0
A88: =IF(COUNTRY_INFO!A88=0," ",COUNTRY_INFO!A88) -> Uganda | B88: =IF(COUNTRY_INFO!B88=0," ",COUNTRY_INFO!B88) -> NORTHERN | C88: =IF(COUNTRY_INFO!C88=0," ",COUNTRY_INFO!C88) -> KOLE | D88: =IF(COUNTRY_INFO!$T$9:$T$993="MDA2 (DEC+ALB)", COUNTRY_INFO!$T$9:$T$993, " ") ->  | I88: 0 | M88: 0
A89: =IF(COUNTRY_INFO!A89=0," ",COUNTRY_INFO!A89) -> Uganda | B89: =IF(COUNTRY_INFO!B89=0," ",COUNTRY_INFO!B89) -> NORTHERN | C89: =IF(COUNTRY_INFO!C89=0," ",COUNTRY_INFO!C89) -> KOTIDO | D89: =IF(COUNTRY_INFO!$T$9:$T$993="MDA2 (DEC+ALB)", COUNTRY_INFO!$T$9:$T$993, " ") ->  | I89: 0 | M89: 0
A90: =IF(COUNTRY_INFO!A90=0," ",COUNTRY_INFO!A90) -> Uganda | B90: =IF(COUNTRY_INFO!B90=0," ",COUNTRY_INFO!B90) -> NORTHERN | C90: =IF(COUNTRY_INFO!C90=0," ",COUNTRY_INFO!C90) -> LAMWO | D90: =IF(COUNTRY_INFO!$T$9:$T$993="MDA2 (DEC+ALB)", COUNTRY_INFO!$T$9:$T$993, " ") ->  | I90: 0 | M90: 0
A91: =IF(COUNTRY_INFO!A91=0," ",COUNTRY_INFO!A91) -> Uganda | B91: =IF(COUNTRY_INFO!B91=0," ",COUNTRY_INFO!B91) -> NORTHERN | C91: =IF(COUNTRY_INFO!C91=0," ",COUNTRY_INFO!C91) -> LIRA | D91: =IF(COUNTRY_INFO!$T$9:$T$993="MDA2 (DEC+ALB)", COUNTRY_INFO!$T$9:$T$993, " ") ->  | I91: 0 | M91: 0
A92: =IF(COUNTRY_INFO!A92=0," ",COUNTRY_INFO!A92) -> Uganda | B92: =IF(COUNTRY_INFO!B92=0," ",COUNTRY_INFO!B92) -> NORTHERN | C92: =IF(COUNTRY_INFO!C92=0," ",COUNTRY_INFO!C92) -> MARACHA | D92: =IF(COUNTRY_INFO!$T$9:$T$993="MDA2 (DEC+ALB)", COUNTRY_INFO!$T$9:$T$993, " ") ->  | I92: 0 | M92: 0
A93: =IF(COUNTRY_INFO!A93=0," ",COUNTRY_INFO!A93) -> Uganda | B93: =IF(COUNTRY_INFO!B93=0," ",COUNTRY_INFO!B93) -> NORTHERN | C93: =IF(COUNTRY_INFO!C93=0," ",COUNTRY_INFO!C93) -> MOROTO | D93: =IF(COUNTRY_INFO!$T$9:$T$993="MDA2 (DEC+ALB)", COUNTRY_INFO!$T$9:$T$993, " ") ->  | I93: 0 | M93: 0
A94: =IF(COUNTRY_INFO!A94=0," ",COUNTRY_INFO!A94) -> Uganda | B94: =IF(COUNTRY_INFO!B94=0," ",COUNTRY_INFO!B94) -> NORTHERN | C94: =IF(COUNTRY_INFO!C94=0," ",COUNTRY_INFO!C94) -> MOYO | D94: =IF(COUNTRY_INFO!$T$9:$T$993="MDA2 (DEC+ALB)", COUNTRY_INFO!$T$9:$T$993, " ") ->  | I94: 0 | M94: 0
A95: =IF(COUNTRY_INFO!A95=0," ",COUNTRY_INFO!A95) -> Uganda | B95: =IF(COUNTRY_INFO!B95=0," ",COUNTRY_INFO!B95) -> NORTHERN | C95: =IF(COUNTRY_INFO!C95=0," ",COUNTRY_INFO!C95) -> OBONGI | D95: =IF(COUNTRY_INFO!$T$9:$T$993="MDA2 (DEC+ALB)", COUNTRY_INFO!$T$9:$T$993, " ") ->  | I95: 0 | M95: 0
A96: =IF(COUNTRY_INFO!A96=0," ",COUNTRY_INFO!A96) -> Uganda | B96: =IF(COUNTRY_INFO!B96=0," ",COUNTRY_INFO!B96) -> NORTHERN | C96: =IF(COUNTRY_INFO!C96=0," ",COUNTRY_INFO!C96) -> NABILATUK | D96: =IF(COUNTRY_INFO!$T$9:$T$993="MDA2 (DEC+ALB)", COUNTRY_INFO!$T$9:$T$993, " ") ->  | I96: 0 | M96: 0
A97: =IF(COUNTRY_INFO!A97=0," ",COUNTRY_INFO!A97) -> Uganda | B97: =IF(COUNTRY_INFO!B97=0," ",COUNTRY_INFO!B97) -> NORTHERN | C97: =IF(COUNTRY_INFO!C97=0," ",COUNTRY_INFO!C97) -> NAKAPIRIPIRIT | D97: =IF(COUNTRY_INFO!$T$9:$T$993="MDA2 (DEC+ALB)", COUNTRY_INFO!$T$9:$T$993, " ") ->  | I97: 0 | M97: 0
A98: =IF(COUNTRY_INFO!A98=0," ",COUNTRY_INFO!A98) -> Uganda | B98: =IF(COUNTRY_INFO!B98=0," ",COUNTRY_INFO!B98) -> NORTHERN | C98: =IF(COUNTRY_INFO!C98=0," ",COUNTRY_INFO!C98) -> NAPAK | D98: =IF(COUNTRY_INFO!$T$9:$T$993="MDA2 (DEC+ALB)", COUNTRY_INFO!$T$9:$T$993, " ") ->  | I98: 0 | M98: 0
A99: =IF(COUNTRY_INFO!A99=0," ",COUNTRY_INFO!A99) -> Uganda | B99: =IF(COUNTRY_INFO!B99=0," ",COUNTRY_INFO!B99) -> NORTHERN | C99: =IF(COUNTRY_INFO!C99=0," ",COUNTRY_INFO!C99) -> NEBBI | D99: =IF(COUNTRY_INFO!$T$9:$T$993="MDA2 (DEC+ALB)", COUNTRY_INFO!$T$9:$T$993, " ") ->  | I99: 0 | M99: 0
A100: =IF(COUNTRY_INFO!A100=0," ",COUNTRY_INFO!A100) -> Uganda | B100: =IF(COUNTRY_INFO!B100=0," ",COUNTRY_INFO!B100) -> NORTHERN | C100: =IF(COUNTRY_INFO!C100=0," ",COUNTRY_INFO!C100) -> NWOYA | D100: =IF(COUNTRY_INFO!$T$9:$T$993="MDA2 (DEC+ALB)", COUNTRY_INFO!$T$9:$T$993, " ") ->  | I100: 0 | M100: 0
A101: =IF(COUNTRY_INFO!A101=0," ",COUNTRY_INFO!A101) -> Uganda | B101: =IF(COUNTRY_INFO!B101=0," ",COUNTRY_INFO!B101) -> NORTHERN | C101: =IF(COUNTRY_INFO!C101=0," ",COUNTRY_INFO!C101) -> OMORO | D101: =IF(COUNTRY_INFO!$T$9:$T$993="MDA2 (DEC+ALB)", COUNTRY_INFO!$T$9:$T$993, " ") ->  | I101: 0 | M101: 0
A102: =IF(COUNTRY_INFO!A102=0," ",COUNTRY_INFO!A102) -> Uganda | B102: =IF(COUNTRY_INFO!B102=0," ",COUNTRY_INFO!B102) -> NORTHERN | C102: =IF(COUNTRY_INFO!C102=0," ",COUNTRY_INFO!C102) -> OTUKE | D102: =IF(COUNTRY_INFO!$T$9:$T$993="MDA2 (DEC+ALB)", COUNTRY_INFO!$T$9:$T$993, " ") ->  | I102: 0 | M102: 0
A103: =IF(COUNTRY_INFO!A103=0," ",COUNTRY_INFO!A103) -> Uganda | B103: =IF(COUNTRY_INFO!B103=0," ",COUNTRY_INFO!B103) -> NORTHERN | C103: =IF(COUNTRY_INFO!C103=0," ",COUNTRY_INFO!C103) -> OYAM | D103: =IF(COUNTRY_INFO!$T$9:$T$993="MDA2 (DEC+ALB)", COUNTRY_INFO!$T$9:$T$993, " ") ->  | I103: 0 | M103: 0
A104: =IF(COUNTRY_INFO!A104=0," ",COUNTRY_INFO!A104) -> Uganda | B104: =IF(COUNTRY_INFO!B104=0," ",COUNTRY_INFO!B104) -> NORTHERN | C104: =IF(COUNTRY_INFO!C104=0," ",COUNTRY_INFO!C104) -> PADER | D104: =IF(COUNTRY_INFO!$T$9:$T$993="MDA2 (DEC+ALB)", COUNTRY_INFO!$T$9:$T$993, " ") ->  | I104: 0 | M104: 0
A105: =IF(COUNTRY_INFO!A105=0," ",COUNTRY_INFO!A105) -> Uganda | B105: =IF(COUNTRY_INFO!B105=0," ",COUNTRY_INFO!B105) -> NORTHERN | C105: =IF(COUNTRY_INFO!C105=0," ",COUNTRY_INFO!C105) -> PAKWACH | D105: =IF(COUNTRY_INFO!$T$9:$T$993="MDA2 (DEC+ALB)", COUNTRY_INFO!$T$9:$T$993, " ") ->  | I105: 0 | M105: 0
A106: =IF(COUNTRY_INFO!A106=0," ",COUNTRY_INFO!A106) -> Uganda | B106: =IF(COUNTRY_INFO!B106=0," ",COUNTRY_INFO!B106) -> NORTHERN | C106: =IF(COUNTRY_INFO!C106=0," ",COUNTRY_INFO!C106) -> YUMBE | D106: =IF(COUNTRY_INFO!$T$9:$T$993="MDA2 (DEC+ALB)", COUNTRY_INFO!$T$9:$T$993, " ") ->  | I106: 0 | M106: 0
A107: =IF(COUNTRY_INFO!A107=0," ",COUNTRY_INFO!A107) -> Uganda | B107: =IF(COUNTRY_INFO!B107=0," ",COUNTRY_INFO!B107) -> NORTHERN | C107: =IF(COUNTRY_INFO!C107=0," ",COUNTRY_INFO!C107) -> ZOMBO | D107: =IF(COUNTRY_INFO!$T$9:$T$993="MDA2 (DEC+ALB)", COUNTRY_INFO!$T$9:$T$993, " ") ->  | I107: 0 | M107: 0
A108: =IF(COUNTRY_INFO!A108=0," ",COUNTRY_INFO!A108) -> Uganda | B108: =IF(COUNTRY_INFO!B108=0," ",COUNTRY_INFO!B108) -> WESTERN | C108: =IF(COUNTRY_INFO!C108=0," ",COUNTRY_INFO!C108) -> BUHWEJU | D108: =IF(COUNTRY_INFO!$T$9:$T$993="MDA2 (DEC+ALB)", COUNTRY_INFO!$T$9:$T$993, " ") ->  | I108: 0 | M108: 0
A109: =IF(COUNTRY_INFO!A109=0," ",COUNTRY_INFO!A109) -> Uganda | B109: =IF(COUNTRY_INFO!B109=0," ",COUNTRY_INFO!B109) -> WESTERN | C109: =IF(COUNTRY_INFO!C109=0," ",COUNTRY_INFO!C109) -> BULIISA | D109: =IF(COUNTRY_INFO!$T$9:$T$993="MDA2 (DEC+ALB)", COUNTRY_INFO!$T$9:$T$993, " ") ->  | I109: 0 | M109: 0
A110: =IF(COUNTRY_INFO!A110=0," ",COUNTRY_INFO!A110) -> Uganda | B110: =IF(COUNTRY_INFO!B110=0," ",COUNTRY_INFO!B110) -> WESTERN | C110: =IF(COUNTRY_INFO!C110=0," ",COUNTRY_INFO!C110) -> BUNDIBUGYO | D110: =IF(COUNTRY_INFO!$T$9:$T$993="MDA2 (DEC+ALB)", COUNTRY_INFO!$T$9:$T$993, " ") ->  | I110: 0 | M110: 0
A111: =IF(COUNTRY_INFO!A111=0," ",COUNTRY_INFO!A111) -> Uganda | B111: =IF(COUNTRY_INFO!B111=0," ",COUNTRY_INFO!B111) -> WESTERN | C111: =IF(COUNTRY_INFO!C111=0," ",COUNTRY_INFO!C111) -> BUNYANGABU | D111: =IF(COUNTRY_INFO!$T$9:$T$993="MDA2 (DEC+ALB)", COUNTRY_INFO!$T$9:$T$993, " ") ->  | I111: 0 | M111: 0
A112: =IF(COUNTRY_INFO!A112=0," ",COUNTRY_INFO!A112) -> Uganda | B112: =IF(COUNTRY_INFO!B112=0," ",COUNTRY_INFO!B112) -> WESTERN | C112: =IF(COUNTRY_INFO!C112=0," ",COUNTRY_INFO!C112) -> BUSHENYI | D112: =IF(COUNTRY_INFO!$T$9:$T$993="MDA2 (DEC+ALB)", COUNTRY_INFO!$T$9:$T$993, " ") ->  | I112: 0 | M112: 0
A113: =IF(COUNTRY_INFO!A113=0," ",COUNTRY_INFO!A113) -> Uganda | B113: =IF(COUNTRY_INFO!B113=0," ",COUNTRY_INFO!B113) -> WESTERN | C113: =IF(COUNTRY_INFO!C113=0," ",COUNTRY_INFO!C113) -> HOIMA | D113: =IF(COUNTRY_INFO!$T$9:$T$993="MDA2 (DEC+ALB)", COUNTRY_INFO!$T$9:$T$993, " ") ->  | I113: 0 | M113: 0
A114: =IF(COUNTRY_INFO!A114=0," ",COUNTRY_INFO!A114) -> Uganda | B114: =IF(COUNTRY_INFO!B114=0," ",COUNTRY_INFO!B114) -> WESTERN | C114: =IF(COUNTRY_INFO!C114=0," ",COUNTRY_INFO!C114) -> KIKUUBE | D114: =IF(COUNTRY_INFO!$T$9:$T$993="MDA2 (DEC+ALB)", COUNTRY_INFO!$T$9:$T$993, " ") ->  | I114: 0 | M114: 0
A115: =IF(COUNTRY_INFO!A115=0," ",COUNTRY_INFO!A115) -> Uganda | B115: =IF(COUNTRY_INFO!B115=0," ",COUNTRY_INFO!B115) -> WESTERN | C115: =IF(COUNTRY_INFO!C115=0," ",COUNTRY_INFO!C115) -> IBANDA | D115: =IF(COUNTRY_INFO!$T$9:$T$993="MDA2 (DEC+ALB)", COUNTRY_INFO!$T$9:$T$993, " ") ->  | I115: 0 | M115: 0
A116: =IF(COUNTRY_INFO!A116=0," ",COUNTRY_INFO!A116) -> Uganda | B116: =IF(COUNTRY_INFO!B116=0," ",COUNTRY_INFO!B116) -> WESTERN | C116: =IF(COUNTRY_INFO!C116=0," ",COUNTRY_INFO!C116) -> ISINGIRO | D116: =IF(COUNTRY_INFO!$T$9:$T$993="MDA2 (DEC+ALB)", COUNTRY_INFO!$T$9:$T$993, " ") ->  | I116: 0 | M116: 0
A117: =IF(COUNTRY_INFO!A117=0," ",COUNTRY_INFO!A117) -> Uganda | B117: =IF(COUNTRY_INFO!B117=0," ",COUNTRY_INFO!B117) -> WESTERN | C117: =IF(COUNTRY_INFO!C117=0," ",COUNTRY_INFO!C117) -> KABALE | D117: =IF(COUNTRY_INFO!$T$9:$T$993="MDA2 (DEC+ALB)", COUNTRY_INFO!$T$9:$T$993, " ") ->  | I117: 0 | M117: 0
A118: =IF(COUNTRY_INFO!A118=0," ",COUNTRY_INFO!A118) -> Uganda | B118: =IF(COUNTRY_INFO!B118=0," ",COUNTRY_INFO!B118) -> WESTERN | C118: =IF(COUNTRY_INFO!C118=0," ",COUNTRY_INFO!C118) -> KABAROLE | D118: =IF(COUNTRY_INFO!$T$9:$T$993="MDA2 (DEC+ALB)", COUNTRY_INFO!$T$9:$T$993, " ") ->  | I118: 0 | M118: 0
A119: =IF(COUNTRY_INFO!A119=0," ",COUNTRY_INFO!A119) -> Uganda | B119: =IF(COUNTRY_INFO!B119=0," ",COUNTRY_INFO!B119) -> WESTERN | C119: =IF(COUNTRY_INFO!C119=0," ",COUNTRY_INFO!C119) -> KAGADI | D119: =IF(COUNTRY_INFO!$T$9:$T$993="MDA2 (DEC+ALB)", COUNTRY_INFO!$T$9:$T$993, " ") ->  | I119: 0 | M119: 0
A120: =IF(COUNTRY_INFO!A120=0," ",COUNTRY_INFO!A120) -> Uganda | B120: =IF(COUNTRY_INFO!B120=0," ",COUNTRY_INFO!B120) -> WESTERN | C120: =IF(COUNTRY_INFO!C120=0," ",COUNTRY_INFO!C120) -> KAKUMIRO | D120: =IF(COUNTRY_INFO!$T$9:$T$993="MDA2 (DEC+ALB)", COUNTRY_INFO!$T$9:$T$993, " ") ->  | I120: 0 | M120: 0
A121: =IF(COUNTRY_INFO!A121=0," ",COUNTRY_INFO!A121) -> Uganda | B121: =IF(COUNTRY_INFO!B121=0," ",COUNTRY_INFO!B121) -> WESTERN | C121: =IF(COUNTRY_INFO!C121=0," ",COUNTRY_INFO!C121) -> KAMWENGE | D121: =IF(COUNTRY_INFO!$T$9:$T$993="MDA2 (DEC+ALB)", COUNTRY_INFO!$T$9:$T$993, " ") ->  | I121: 0 | M121: 0
A122: =IF(COUNTRY_INFO!A122=0," ",COUNTRY_INFO!A122) -> Uganda | B122: =IF(COUNTRY_INFO!B122=0," ",COUNTRY_INFO!B122) -> WESTERN | C122: =IF(COUNTRY_INFO!C122=0," ",COUNTRY_INFO!C122) -> KITAGWENDA | D122: =IF(COUNTRY_INFO!$T$9:$T$993="MDA2 (DEC+ALB)", COUNTRY_INFO!$T$9:$T$993, " ") ->  | I122: 0 | M122: 0
A123: =IF(COUNTRY_INFO!A123=0," ",COUNTRY_INFO!A123) -> Uganda | B123: =IF(COUNTRY_INFO!B123=0," ",COUNTRY_INFO!B123) -> WESTERN | C123: =IF(COUNTRY_INFO!C123=0," ",COUNTRY_INFO!C123) -> KANUNGU | D123: =IF(COUNTRY_INFO!$T$9:$T$993="MDA2 (DEC+ALB)", COUNTRY_INFO!$T$9:$T$993, " ") ->  | I123: 0 | M123: 0
A124: =IF(COUNTRY_INFO!A124=0," ",COUNTRY_INFO!A124) -> Uganda | B124: =IF(COUNTRY_INFO!B124=0," ",COUNTRY_INFO!B124) -> WESTERN | C124: =IF(COUNTRY_INFO!C124=0," ",COUNTRY_INFO!C124) -> KASESE | D124: =IF(COUNTRY_INFO!$T$9:$T$993="MDA2 (DEC+ALB)", COUNTRY_INFO!$T$9:$T$993, " ") ->  | I124: 0 | M124: 0
A125: =IF(COUNTRY_INFO!A125=0," ",COUNTRY_INFO!A125) -> Uganda | B125: =IF(COUNTRY_INFO!B125=0," ",COUNTRY_INFO!B125) -> WESTERN | C125: =IF(COUNTRY_INFO!C125=0," ",COUNTRY_INFO!C125) -> KIBAALE | D125: =IF(COUNTRY_INFO!$T$9:$T$993="MDA2 (DEC+ALB)", COUNTRY_INFO!$T$9:$T$993, " ") ->  | I125: 0 | M125: 0
A126: =IF(COUNTRY_INFO!A126=0," ",COUNTRY_INFO!A126) -> Uganda | B126: =IF(COUNTRY_INFO!B126=0," ",COUNTRY_INFO!B126) -> WESTERN | C126: =IF(COUNTRY_INFO!C126=0," ",COUNTRY_INFO!C126) -> KIRUHURA | D126: =IF(COUNTRY_INFO!$T$9:$T$993="MDA2 (DEC+ALB)", COUNTRY_INFO!$T$9:$T$993, " ") ->  | I126: 0 | M126: 0
A127: =IF(COUNTRY_INFO!A127=0," ",COUNTRY_INFO!A127) -> Uganda | B127: =IF(COUNTRY_INFO!B127=0," ",COUNTRY_INFO!B127) -> WESTERN | C127: =IF(COUNTRY_INFO!C127=0," ",COUNTRY_INFO!C127) -> KAZO | D127: =IF(COUNTRY_INFO!$T$9:$T$993="MDA2 (DEC+ALB)", COUNTRY_INFO!$T$9:$T$993, " ") ->  | I127: 0 | M127: 0
A128: =IF(COUNTRY_INFO!A128=0," ",COUNTRY_INFO!A128) -> Uganda | B128: =IF(COUNTRY_INFO!B128=0," ",COUNTRY_INFO!B128) -> WESTERN | C128: =IF(COUNTRY_INFO!C128=0," ",COUNTRY_INFO!C128) -> KIRYANDONGO | D128: =IF(COUNTRY_INFO!$T$9:$T$993="MDA2 (DEC+ALB)", COUNTRY_INFO!$T$9:$T$993, " ") ->  | I128: 0 | M128: 0
A129: =IF(COUNTRY_INFO!A129=0," ",COUNTRY_INFO!A129) -> Uganda | B129: =IF(COUNTRY_INFO!B129=0," ",COUNTRY_INFO!B129) -> WESTERN | C129: =IF(COUNTRY_INFO!C129=0," ",COUNTRY_INFO!C129) -> KISORO | D129: =IF(COUNTRY_INFO!$T$9:$T$993="MDA2 (DEC+ALB)", COUNTRY_INFO!$T$9:$T$993, " ") ->  | I129: 0 | M129: 0
A130: =IF(COUNTRY_INFO!A130=0," ",COUNTRY_INFO!A130) -> Uganda | B130: =IF(COUNTRY_INFO!B130=0," ",COUNTRY_INFO!B130) -> WESTERN | C130: =IF(COUNTRY_INFO!C130=0," ",COUNTRY_INFO!C130) -> KYEGEGWA | D130: =IF(COUNTRY_INFO!$T$9:$T$993="MDA2 (DEC+ALB)", COUNTRY_INFO!$T$9:$T$993, " ") ->  | I130: 0 | M130: 0
A131: =IF(COUNTRY_INFO!A131=0," ",COUNTRY_INFO!A131) -> Uganda | B131: =IF(COUNTRY_INFO!B131=0," ",COUNTRY_INFO!B131) -> WESTERN | C131: =IF(COUNTRY_INFO!C131=0," ",COUNTRY_INFO!C131) -> KYENJOJO | D131: =IF(COUNTRY_INFO!$T$9:$T$993="MDA2 (DEC+ALB)", COUNTRY_INFO!$T$9:$T$993, " ") ->  | I131: 0 | M131: 0
A132: =IF(COUNTRY_INFO!A132=0," ",COUNTRY_INFO!A132) -> Uganda | B132: =IF(COUNTRY_INFO!B132=0," ",COUNTRY_INFO!B132) -> WESTERN | C132: =IF(COUNTRY_INFO!C132=0," ",COUNTRY_INFO!C132) -> MASINDI | D132: =IF(COUNTRY_INFO!$T$9:$T$993="MDA2 (DEC+ALB)", COUNTRY_INFO!$T$9:$T$993, " ") ->  | I132: 0 | M132: 0
A133: =IF(COUNTRY_INFO!A133=0," ",COUNTRY_INFO!A133) -> Uganda | B133: =IF(COUNTRY_INFO!B133=0," ",COUNTRY_INFO!B133) -> WESTERN | C133: =IF(COUNTRY_INFO!C133=0," ",COUNTRY_INFO!C133) -> MBARARA | D133: =IF(COUNTRY_INFO!$T$9:$T$993="MDA2 (DEC+ALB)", COUNTRY_INFO!$T$9:$T$993, " ") ->  | I133: 0 | M133: 0
A134: =IF(COUNTRY_INFO!A134=0," ",COUNTRY_INFO!A134) -> Uganda | B134: =IF(COUNTRY_INFO!B134=0," ",COUNTRY_INFO!B134) -> WESTERN | C134: =IF(COUNTRY_INFO!C134=0," ",COUNTRY_INFO!C134) -> RWAMPARA | D134: =IF(COUNTRY_INFO!$T$9:$T$993="MDA2 (DEC+ALB)", COUNTRY_INFO!$T$9:$T$993, " ") ->  | I134: 0 | M134: 0
A135: =IF(COUNTRY_INFO!A135=0," ",COUNTRY_INFO!A135) -> Uganda | B135: =IF(COUNTRY_INFO!B135=0," ",COUNTRY_INFO!B135) -> WESTERN | C135: =IF(COUNTRY_INFO!C135=0," ",COUNTRY_INFO!C135) -> MITOOMA | D135: =IF(COUNTRY_INFO!$T$9:$T$993="MDA2 (DEC+ALB)", COUNTRY_INFO!$T$9:$T$993, " ") ->  | I135: 0 | M135: 0
A136: =IF(COUNTRY_INFO!A136=0," ",COUNTRY_INFO!A136) -> Uganda | B136: =IF(COUNTRY_INFO!B136=0," ",COUNTRY_INFO!B136) -> WESTERN | C136: =IF(COUNTRY_INFO!C136=0," ",COUNTRY_INFO!C136) -> NTOROKO | D136: =IF(COUNTRY_INFO!$T$9:$T$993="MDA2 (DEC+ALB)", COUNTRY_INFO!$T$9:$T$993, " ") ->  | I136: 0 | M136: 0
A137: =IF(COUNTRY_INFO!A137=0," ",COUNTRY_INFO!A137) -> Uganda | B137: =IF(COUNTRY_INFO!B137=0," ",COUNTRY_INFO!B137) -> WESTERN | C137: =IF(COUNTRY_INFO!C137=0," ",COUNTRY_INFO!C137) -> NTUNGAMO | D137: =IF(COUNTRY_INFO!$T$9:$T$993="MDA2 (DEC+ALB)", COUNTRY_INFO!$T$9:$T$993, " ") ->  | I137: 0 | M137: 0
A138: =IF(COUNTRY_INFO!A138=0," ",COUNTRY_INFO!A138) -> Uganda | B138: =IF(COUNTRY_INFO!B138=0," ",COUNTRY_INFO!B138) -> WESTERN | C138: =IF(COUNTRY_INFO!C138=0," ",COUNTRY_INFO!C138) -> RUBANDA | D138: =IF(COUNTRY_INFO!$T$9:$T$993="MDA2 (DEC+ALB)", COUNTRY_INFO!$T$9:$T$993, " ") ->  | I138: =SUM(F138:H138) -> 0 | M138: =SUM(J138:L138) -> 0 | N138: =IF(F138<>0, IF(J138/F138*100=0, "-", J138/F138*100), " ") ->  | O138: =IF(G138<>0, IF(K138/G138*100=0, "-", K138/G138*100), " ") ->  | P138: =IF(H138<>0, IF(L138/H138*100=0, "-", L138/H138*100), " ") ->  | Q138: =IF(I138<>0, IF(M138/I138*100=0, "-", M138/I138*100), " ") -> 
A139: =IF(COUNTRY_INFO!A139=0," ",COUNTRY_INFO!A139) -> Uganda | B139: =IF(COUNTRY_INFO!B139=0," ",COUNTRY_INFO!B139) -> WESTERN | C139: =IF(COUNTRY_INFO!C139=0," ",COUNTRY_INFO!C139) -> RUBIRIZI | D139: =IF(COUNTRY_INFO!$T$9:$T$993="MDA2 (DEC+ALB)", COUNTRY_INFO!$T$9:$T$993, " ") ->  | I139: 0 | M139: 0
A140: =IF(COUNTRY_INFO!A140=0," ",COUNTRY_INFO!A140) -> Uganda | B140: =IF(COUNTRY_INFO!B140=0," ",COUNTRY_INFO!B140) -> WESTERN | C140: =IF(COUNTRY_INFO!C140=0," ",COUNTRY_INFO!C140) -> RUKIGA | D140: =IF(COUNTRY_INFO!$T$9:$T$993="MDA2 (DEC+ALB)", COUNTRY_INFO!$T$9:$T$993, " ") ->  | I140: 0 | M140: 0
A141: =IF(COUNTRY_INFO!A141=0," ",COUNTRY_INFO!A141) -> Uganda | B141: =IF(COUNTRY_INFO!B141=0," ",COUNTRY_INFO!B141) -> WESTERN | C141: =IF(COUNTRY_INFO!C141=0," ",COUNTRY_INFO!C141) -> RUKUNGIRI | D141: =IF(COUNTRY_INFO!$T$9:$T$993="MDA2 (DEC+ALB)", COUNTRY_INFO!$T$9:$T$993, " ") ->  | I141: 0 | M141: 0
A142: =IF(COUNTRY_INFO!A142=0," ",COUNTRY_INFO!A142) -> Uganda | B142: =IF(COUNTRY_INFO!B142=0," ",COUNTRY_INFO!B142) -> WESTERN | C142: =IF(COUNTRY_INFO!C142=0," ",COUNTRY_INFO!C142) -> SHEEMA | D142: =IF(COUNTRY_INFO!$T$9:$T$993="MDA2 (DEC+ALB)", COUNTRY_INFO!$T$9:$T$993, " ") ->  | I142: 0 | M142: 0

Sheet MDA3
A1: MDA 3 - Ivermectin (IVM)
A2: Administrative structure, population requiring PC by age group, population treated by age group and coverage
A4: TOTAL | F4: =SUM(F$9:F$993) -> 492242 | G4: 904489 | H4: 1396731 | I4: 491724.9866 | J4: 848307.0134 | K4: 1340032 | L4: 476564.4399 | M4: 822152.5601 | N4: =SUM(N$9:N$993) -> 1298717 | O4: 492533.3779 | P4: 849701.6221 | Q4: 1342235 | R4: =IF(F4<>0, IF(O4/F4*100=0, "-", O4/F4*100), " ") -> 100.059194 | S4: =IF(G4<>0, IF(P4/G4*100=0, "-", P4/G4*100), " ") -> 93.94272591 | T4: =IF(H4<>0, IF(Q4/H4*100=0, "-", Q4/H4*100), " ") -> 96.09831814
D6: PC implemented | E6: Date | F6: Population targeted for MDA 3 | I6: Population treated - 1st round | L6: Population treated - 2nd round | O6: Population treated | R6: Programme coverage (%)
A7: Country | B7: Province/State | C7: District | F7: SAC | G7: Adults | H7: Total | I7: SAC | J7: Adults | K7: Total | L7: SAC | M7: Adults | N7: Total | O7: SAC | P7: Adults | Q7: Total | R7: SAC | S7: Adults | T7: Total
A9: =IF(COUNTRY_INFO!A9=0," ",COUNTRY_INFO!A9) -> Uganda | B9: =IF(COUNTRY_INFO!B9=0," ",COUNTRY_INFO!B9) -> CENTRAL | C9: =IF(COUNTRY_INFO!C9=0," ",COUNTRY_INFO!C9) -> BUIKWE | D9: =IF(COUNTRY_INFO!$T$9:$T$993="MDA3 (IVM)", COUNTRY_INFO!$T$9:$T$993, " ") ->  | H9: =SUM(F9:G9) -> 0 | O9: =MAX(I9,L9) -> 0 | P9: 0 | Q9: =SUM(O9:P9) -> 0 | R9: =IF(F9<>0, IF(MAX(I9,L9)/F9*100=0, "-", MAX(I9,L9)/F9*100), " ") ->  | T9: =IF(H9<>0, IF((MAX(I9,L9)+MAX(J9,M9))/H9*100=0, "-",(MAX(I9,L9)+MAX(J9,M9))/H9*100), " ") -> 
A10: =IF(COUNTRY_INFO!A10=0," ",COUNTRY_INFO!A10) -> Uganda | B10: =IF(COUNTRY_INFO!B10=0," ",COUNTRY_INFO!B10) -> CENTRAL | C10: =IF(COUNTRY_INFO!C10=0," ",COUNTRY_INFO!C10) -> BUKOMANSIMBI | D10: =IF(COUNTRY_INFO!$T$9:$T$993="MDA3 (IVM)", COUNTRY_INFO!$T$9:$T$993, " ") ->  | H10: =SUM(F10:G10) -> 0 | O10: =MAX(I10,L10) -> 0 | P10: =MAX(J10,M10) -> 0 | Q10: =SUM(O10:P10) -> 0 | R10: =IF(F10<>0, IF(MAX(I10,L10)/F10*100=0, "-", MAX(I10,L10)/F10*100), " ") ->  | S10: =IF(G10<>0, IF(MAX(J10,M10)/G10*100=0, "-", MAX(J10,M10)/G10*100), " ") ->  | T10: =IF(H10<>0, IF((MAX(I10,L10)+MAX(J10,M10))/H10*100=0, "-",(MAX(I10,L10)+MAX(J10,M10))/H10*100), " ") -> 
A11: =IF(COUNTRY_INFO!A11=0," ",COUNTRY_INFO!A11) -> Uganda | B11: =IF(COUNTRY_INFO!B11=0," ",COUNTRY_INFO!B11) -> CENTRAL | C11: =IF(COUNTRY_INFO!C11=0," ",COUNTRY_INFO!C11) -> BUTAMBALA | D11: =IF(COUNTRY_INFO!$T$9:$T$993="MDA3 (IVM)", COUNTRY_INFO!$T$9:$T$993, " ") ->  | H11: 0 | O11: 0 | P11: 0 | Q11: 0
A12: =IF(COUNTRY_INFO!A12=0," ",COUNTRY_INFO!A12) -> Uganda | B12: =IF(COUNTRY_INFO!B12=0," ",COUNTRY_INFO!B12) -> CENTRAL | C12: =IF(COUNTRY_INFO!C12=0," ",COUNTRY_INFO!C12) -> BUVUMA | D12: =IF(COUNTRY_INFO!$T$9:$T$993="MDA3 (IVM)", COUNTRY_INFO!$T$9:$T$993, " ") ->  | H12: 0 | O12: 0 | P12: 0 | Q12: 0
A13: =IF(COUNTRY_INFO!A13=0," ",COUNTRY_INFO!A13) -> Uganda | B13: =IF(COUNTRY_INFO!B13=0," ",COUNTRY_INFO!B13) -> CENTRAL | C13: =IF(COUNTRY_INFO!C13=0," ",COUNTRY_INFO!C13) -> GOMBA | D13: =IF(COUNTRY_INFO!$T$9:$T$993="MDA3 (IVM)", COUNTRY_INFO!$T$9:$T$993, " ") ->  | H13: 0 | O13: 0 | P13: 0 | Q13: 0
A14: =IF(COUNTRY_INFO!A14=0," ",COUNTRY_INFO!A14) -> Uganda | B14: =IF(COUNTRY_INFO!B14=0," ",COUNTRY_INFO!B14) -> CENTRAL | C14: =IF(COUNTRY_INFO!C14=0," ",COUNTRY_INFO!C14) -> KALANGALA | D14: =IF(COUNTRY_INFO!$T$9:$T$993="MDA3 (IVM)", COUNTRY_INFO!$T$9:$T$993, " ") ->  | H14: 0 | O14: 0 | P14: 0 | Q14: 0
A15: =IF(COUNTRY_INFO!A15=0," ",COUNTRY_INFO!A15) -> Uganda | B15: =IF(COUNTRY_INFO!B15=0," ",COUNTRY_INFO!B15) -> CENTRAL | C15: =IF(COUNTRY_INFO!C15=0," ",COUNTRY_INFO!C15) -> KALUNGU | D15: =IF(COUNTRY_INFO!$T$9:$T$993="MDA3 (IVM)", COUNTRY_INFO!$T$9:$T$993, " ") ->  | H15: 0 | O15: 0 | P15: 0 | Q15: 0
A16: =IF(COUNTRY_INFO!A16=0," ",COUNTRY_INFO!A16) -> Uganda | B16: =IF(COUNTRY_INFO!B16=0," ",COUNTRY_INFO!B16) -> CENTRAL | C16: =IF(COUNTRY_INFO!C16=0," ",COUNTRY_INFO!C16) -> KAMPALA | D16: =IF(COUNTRY_INFO!$T$9:$T$993="MDA3 (IVM)", COUNTRY_INFO!$T$9:$T$993, " ") ->  | H16: 0 | O16: 0 | P16: 0 | Q16: 0
A17: =IF(COUNTRY_INFO!A17=0," ",COUNTRY_INFO!A17) -> Uganda | B17: =IF(COUNTRY_INFO!B17=0," ",COUNTRY_INFO!B17) -> CENTRAL | C17: =IF(COUNTRY_INFO!C17=0," ",COUNTRY_INFO!C17) -> KAYUNGA | D17: =IF(COUNTRY_INFO!$T$9:$T$993="MDA3 (IVM)", COUNTRY_INFO!$T$9:$T$993, " ") ->  | H17: 0 | O17: 0 | P17: 0 | Q17: 0
A18: =IF(COUNTRY_INFO!A18=0," ",COUNTRY_INFO!A18) -> Uganda | B18: =IF(COUNTRY_INFO!B18=0," ",COUNTRY_INFO!B18) -> CENTRAL | C18: =IF(COUNTRY_INFO!C18=0," ",COUNTRY_INFO!C18) -> KIBOGA | D18: =IF(COUNTRY_INFO!$T$9:$T$993="MDA3 (IVM)", COUNTRY_INFO!$T$9:$T$993, " ") ->  | H18: 0 | O18: 0 | P18: 0 | Q18: 0
A19: =IF(COUNTRY_INFO!A19=0," ",COUNTRY_INFO!A19) -> Uganda | B19: =IF(COUNTRY_INFO!B19=0," ",COUNTRY_INFO!B19) -> CENTRAL | C19: =IF(COUNTRY_INFO!C19=0," ",COUNTRY_INFO!C19) -> KYANKWANZI | D19: =IF(COUNTRY_INFO!$T$9:$T$993="MDA3 (IVM)", COUNTRY_INFO!$T$9:$T$993, " ") ->  | H19: 0 | O19: 0 | P19: 0 | Q19: 0
A20: =IF(COUNTRY_INFO!A20=0," ",COUNTRY_INFO!A20) -> Uganda | B20: =IF(COUNTRY_INFO!B20=0," ",COUNTRY_INFO!B20) -> CENTRAL | C20: =IF(COUNTRY_INFO!C20=0," ",COUNTRY_INFO!C20) -> KYOTERA | D20: =IF(COUNTRY_INFO!$T$9:$T$993="MDA3 (IVM)", COUNTRY_INFO!$T$9:$T$993, " ") ->  | H20: 0 | O20: 0 | P20: 0 | Q20: 0
A21: =IF(COUNTRY_INFO!A21=0," ",COUNTRY_INFO!A21) -> Uganda | B21: =IF(COUNTRY_INFO!B21=0," ",COUNTRY_INFO!B21) -> CENTRAL | C21: =IF(COUNTRY_INFO!C21=0," ",COUNTRY_INFO!C21) -> LUWERO | D21: =IF(COUNTRY_INFO!$T$9:$T$993="MDA3 (IVM)", COUNTRY_INFO!$T$9:$T$993, " ") ->  | H21: 0 | O21: 0 | P21: 0 | Q21: 0
A22: =IF(COUNTRY_INFO!A22=0," ",COUNTRY_INFO!A22) -> Uganda | B22: =IF(COUNTRY_INFO!B22=0," ",COUNTRY_INFO!B22) -> CENTRAL | C22: =IF(COUNTRY_INFO!C22=0," ",COUNTRY_INFO!C22) -> LWENGO | D22: =IF(COUNTRY_INFO!$T$9:$T$993="MDA3 (IVM)", COUNTRY_INFO!$T$9:$T$993, " ") ->  | H22: 0 | O22: 0 | P22: 0 | Q22: 0
A23: =IF(COUNTRY_INFO!A23=0," ",COUNTRY_INFO!A23) -> Uganda | B23: =IF(COUNTRY_INFO!B23=0," ",COUNTRY_INFO!B23) -> CENTRAL | C23: =IF(COUNTRY_INFO!C23=0," ",COUNTRY_INFO!C23) -> LYANTONDE | D23: =IF(COUNTRY_INFO!$T$9:$T$993="MDA3 (IVM)", COUNTRY_INFO!$T$9:$T$993, " ") ->  | H23: 0 | O23: 0 | P23: 0 | Q23: 0
A24: =IF(COUNTRY_INFO!A24=0," ",COUNTRY_INFO!A24) -> Uganda | B24: =IF(COUNTRY_INFO!B24=0," ",COUNTRY_INFO!B24) -> CENTRAL | C24: =IF(COUNTRY_INFO!C24=0," ",COUNTRY_INFO!C24) -> MASAKA | D24: =IF(COUNTRY_INFO!$T$9:$T$993="MDA3 (IVM)", COUNTRY_INFO!$T$9:$T$993, " ") ->  | H24: 0 | O24: 0 | P24: 0 | Q24: 0
A25: =IF(COUNTRY_INFO!A25=0," ",COUNTRY_INFO!A25) -> Uganda | B25: =IF(COUNTRY_INFO!B25=0," ",COUNTRY_INFO!B25) -> CENTRAL | C25: =IF(COUNTRY_INFO!C25=0," ",COUNTRY_INFO!C25) -> MITYANA | D25: =IF(COUNTRY_INFO!$T$9:$T$993="MDA3 (IVM)", COUNTRY_INFO!$T$9:$T$993, " ") ->  | H25: 0 | O25: 0 | P25: 0 | Q25: 0
A26: =IF(COUNTRY_INFO!A26=0," ",COUNTRY_INFO!A26) -> Uganda | B26: =IF(COUNTRY_INFO!B26=0," ",COUNTRY_INFO!B26) -> CENTRAL | C26: =IF(COUNTRY_INFO!C26=0," ",COUNTRY_INFO!C26) -> MPIGI | D26: =IF(COUNTRY_INFO!$T$9:$T$993="MDA3 (IVM)", COUNTRY_INFO!$T$9:$T$993, " ") ->  | H26: 0 | O26: 0 | P26: 0 | Q26: 0
A27: =IF(COUNTRY_INFO!A27=0," ",COUNTRY_INFO!A27) -> Uganda | B27: =IF(COUNTRY_INFO!B27=0," ",COUNTRY_INFO!B27) -> CENTRAL | C27: =IF(COUNTRY_INFO!C27=0," ",COUNTRY_INFO!C27) -> MUBENDE | D27: =IF(COUNTRY_INFO!$T$9:$T$993="MDA3 (IVM)", COUNTRY_INFO!$T$9:$T$993, " ") ->  | H27: 0 | O27: 0 | P27: 0 | Q27: 0
A28: =IF(COUNTRY_INFO!A28=0," ",COUNTRY_INFO!A28) -> Uganda | B28: =IF(COUNTRY_INFO!B28=0," ",COUNTRY_INFO!B28) -> CENTRAL | C28: =IF(COUNTRY_INFO!C28=0," ",COUNTRY_INFO!C28) -> KASSANDA | D28: =IF(COUNTRY_INFO!$T$9:$T$993="MDA3 (IVM)", COUNTRY_INFO!$T$9:$T$993, " ") ->  | H28: 0 | O28: 0 | P28: 0 | Q28: 0
A29: =IF(COUNTRY_INFO!A29=0," ",COUNTRY_INFO!A29) -> Uganda | B29: =IF(COUNTRY_INFO!B29=0," ",COUNTRY_INFO!B29) -> CENTRAL | C29: =IF(COUNTRY_INFO!C29=0," ",COUNTRY_INFO!C29) -> MUKONO | D29: =IF(COUNTRY_INFO!$T$9:$T$993="MDA3 (IVM)", COUNTRY_INFO!$T$9:$T$993, " ") ->  | H29: 0 | O29: 0 | P29: 0 | Q29: 0
A30: =IF(COUNTRY_INFO!A30=0," ",COUNTRY_INFO!A30) -> Uganda | B30: =IF(COUNTRY_INFO!B30=0," ",COUNTRY_INFO!B30) -> CENTRAL | C30: =IF(COUNTRY_INFO!C30=0," ",COUNTRY_INFO!C30) -> NAKASEKE | D30: =IF(COUNTRY_INFO!$T$9:$T$993="MDA3 (IVM)", COUNTRY_INFO!$T$9:$T$993, " ") ->  | H30: 0 | O30: 0 | P30: 0 | Q30: 0
A31: =IF(COUNTRY_INFO!A31=0," ",COUNTRY_INFO!A31) -> Uganda | B31: =IF(COUNTRY_INFO!B31=0," ",COUNTRY_INFO!B31) -> CENTRAL | C31: =IF(COUNTRY_INFO!C31=0," ",COUNTRY_INFO!C31) -> NAKASONGOLA | D31: =IF(COUNTRY_INFO!$T$9:$T$993="MDA3 (IVM)", COUNTRY_INFO!$T$9:$T$993, " ") ->  | H31: 0 | O31: 0 | P31: 0 | Q31: 0
A32: =IF(COUNTRY_INFO!A32=0," ",COUNTRY_INFO!A32) -> Uganda | B32: =IF(COUNTRY_INFO!B32=0," ",COUNTRY_INFO!B32) -> CENTRAL | C32: =IF(COUNTRY_INFO!C32=0," ",COUNTRY_INFO!C32) -> RAKAI | D32: =IF(COUNTRY_INFO!$T$9:$T$993="MDA3 (IVM)", COUNTRY_INFO!$T$9:$T$993, " ") ->  | H32: 0 | O32: 0 | P32: 0 | Q32: 0
A33: =IF(COUNTRY_INFO!A33=0," ",COUNTRY_INFO!A33) -> Uganda | B33: =IF(COUNTRY_INFO!B33=0," ",COUNTRY_INFO!B33) -> CENTRAL | C33: =IF(COUNTRY_INFO!C33=0," ",COUNTRY_INFO!C33) -> SSEMBABULE | D33: =IF(COUNTRY_INFO!$T$9:$T$993="MDA3 (IVM)", COUNTRY_INFO!$T$9:$T$993, " ") ->  | H33: 0 | O33: 0 | P33: 0 | Q33: 0
A34: =IF(COUNTRY_INFO!A34=0," ",COUNTRY_INFO!A34) -> Uganda | B34: =IF(COUNTRY_INFO!B34=0," ",COUNTRY_INFO!B34) -> CENTRAL | C34: =IF(COUNTRY_INFO!C34=0," ",COUNTRY_INFO!C34) -> WAKISO | D34: =IF(COUNTRY_INFO!$T$9:$T$993="MDA3 (IVM)", COUNTRY_INFO!$T$9:$T$993, " ") ->  | H34: 0 | O34: 0 | P34: 0 | Q34: 0
A35: =IF(COUNTRY_INFO!A35=0," ",COUNTRY_INFO!A35) -> Uganda | B35: =IF(COUNTRY_INFO!B35=0," ",COUNTRY_INFO!B35) -> EASTERN | C35: =IF(COUNTRY_INFO!C35=0," ",COUNTRY_INFO!C35) -> AMURIA | D35: =IF(COUNTRY_INFO!$T$9:$T$993="MDA3 (IVM)", COUNTRY_INFO!$T$9:$T$993, " ") ->  | H35: 0 | O35: 0 | P35: 0 | Q35: 0
A36: =IF(COUNTRY_INFO!A36=0," ",COUNTRY_INFO!A36) -> Uganda | B36: =IF(COUNTRY_INFO!B36=0," ",COUNTRY_INFO!B36) -> EASTERN | C36: =IF(COUNTRY_INFO!C36=0," ",COUNTRY_INFO!C36) -> KAPELEBYONG | D36: =IF(COUNTRY_INFO!$T$9:$T$993="MDA3 (IVM)", COUNTRY_INFO!$T$9:$T$993, " ") ->  | H36: 0 | O36: 0 | P36: 0 | Q36: 0
A37: =IF(COUNTRY_INFO!A37=0," ",COUNTRY_INFO!A37) -> Uganda | B37: =IF(COUNTRY_INFO!B37=0," ",COUNTRY_INFO!B37) -> EASTERN | C37: =IF(COUNTRY_INFO!C37=0," ",COUNTRY_INFO!C37) -> BUDAKA | D37: =IF(COUNTRY_INFO!$T$9:$T$993="MDA3 (IVM)", COUNTRY_INFO!$T$9:$T$993, " ") ->  | H37: 0 | O37: 0 | P37: 0 | Q37: 0
A38: =IF(COUNTRY_INFO!A38=0," ",COUNTRY_INFO!A38) -> Uganda | B38: =IF(COUNTRY_INFO!B38=0," ",COUNTRY_INFO!B38) -> EASTERN | C38: =IF(COUNTRY_INFO!C38=0," ",COUNTRY_INFO!C38) -> BUDUDA | D38: =IF(COUNTRY_INFO!$T$9:$T$993="MDA3 (IVM)", COUNTRY_INFO!$T$9:$T$993, " ") ->  | H38: 0 | O38: 0 | P38: 0 | Q38: 0
A39: =IF(COUNTRY_INFO!A39=0," ",COUNTRY_INFO!A39) -> Uganda | B39: =IF(COUNTRY_INFO!B39=0," ",COUNTRY_INFO!B39) -> EASTERN | C39: =IF(COUNTRY_INFO!C39=0," ",COUNTRY_INFO!C39) -> BUGIRI | D39: =IF(COUNTRY_INFO!$T$9:$T$993="MDA3 (IVM)", COUNTRY_INFO!$T$9:$T$993, " ") ->  | H39: 0 | O39: 0 | P39: 0 | Q39: 0
A40: =IF(COUNTRY_INFO!A40=0," ",COUNTRY_INFO!A40) -> Uganda | B40: =IF(COUNTRY_INFO!B40=0," ",COUNTRY_INFO!B40) -> EASTERN | C40: =IF(COUNTRY_INFO!C40=0," ",COUNTRY_INFO!C40) -> BUKEDEA | D40: =IF(COUNTRY_INFO!$T$9:$T$993="MDA3 (IVM)", COUNTRY_INFO!$T$9:$T$993, " ") ->  | H40: 0 | O40: 0 | P40: 0 | Q40: 0
A41: =IF(COUNTRY_INFO!A41=0," ",COUNTRY_INFO!A41) -> Uganda | B41: =IF(COUNTRY_INFO!B41=0," ",COUNTRY_INFO!B41) -> EASTERN | C41: =IF(COUNTRY_INFO!C41=0," ",COUNTRY_INFO!C41) -> BUKWO | D41: =IF(COUNTRY_INFO!$T$9:$T$993="MDA3 (IVM)", COUNTRY_INFO!$T$9:$T$993, " ") ->  | H41: 0 | O41: 0 | P41: 0 | Q41: 0
A42: =IF(COUNTRY_INFO!A42=0," ",COUNTRY_INFO!A42) -> Uganda | B42: =IF(COUNTRY_INFO!B42=0," ",COUNTRY_INFO!B42) -> EASTERN | C42: =IF(COUNTRY_INFO!C42=0," ",COUNTRY_INFO!C42) -> BULAMBULI | D42: =IF(COUNTRY_INFO!$T$9:$T$993="MDA3 (IVM)", COUNTRY_INFO!$T$9:$T$993, " ") ->  | H42: 0 | O42: 0 | P42: 0 | Q42: 0
A43: =IF(COUNTRY_INFO!A43=0," ",COUNTRY_INFO!A43) -> Uganda | B43: =IF(COUNTRY_INFO!B43=0," ",COUNTRY_INFO!B43) -> EASTERN | C43: =IF(COUNTRY_INFO!C43=0," ",COUNTRY_INFO!C43) -> BUSIA | D43: =IF(COUNTRY_INFO!$T$9:$T$993="MDA3 (IVM)", COUNTRY_INFO!$T$9:$T$993, " ") ->  | H43: 0 | O43: 0 | P43: 0 | Q43: 0
A44: =IF(COUNTRY_INFO!A44=0," ",COUNTRY_INFO!A44) -> Uganda | B44: =IF(COUNTRY_INFO!B44=0," ",COUNTRY_INFO!B44) -> EASTERN | C44: =IF(COUNTRY_INFO!C44=0," ",COUNTRY_INFO!C44) -> BUTALEJA | D44: =IF(COUNTRY_INFO!$T$9:$T$993="MDA3 (IVM)", COUNTRY_INFO!$T$9:$T$993, " ") ->  | H44: 0 | O44: 0 | P44: 0 | Q44: 0
A45: =IF(COUNTRY_INFO!A45=0," ",COUNTRY_INFO!A45) -> Uganda | B45: =IF(COUNTRY_INFO!B45=0," ",COUNTRY_INFO!B45) -> EASTERN | C45: =IF(COUNTRY_INFO!C45=0," ",COUNTRY_INFO!C45) -> BUTEBO | D45: =IF(COUNTRY_INFO!$T$9:$T$993="MDA3 (IVM)", COUNTRY_INFO!$T$9:$T$993, " ") ->  | H45: 0 | O45: 0 | P45: 0 | Q45: 0
A46: =IF(COUNTRY_INFO!A46=0," ",COUNTRY_INFO!A46) -> Uganda | B46: =IF(COUNTRY_INFO!B46=0," ",COUNTRY_INFO!B46) -> EASTERN | C46: =IF(COUNTRY_INFO!C46=0," ",COUNTRY_INFO!C46) -> BUYENDE | D46: =IF(COUNTRY_INFO!$T$9:$T$993="MDA3 (IVM)", COUNTRY_INFO!$T$9:$T$993, " ") ->  | H46: 0 | O46: 0 | P46: 0 | Q46: 0
A47: =IF(COUNTRY_INFO!A47=0," ",COUNTRY_INFO!A47) -> Uganda | B47: =IF(COUNTRY_INFO!B47=0," ",COUNTRY_INFO!B47) -> EASTERN | C47: =IF(COUNTRY_INFO!C47=0," ",COUNTRY_INFO!C47) -> IGANGA | D47: =IF(COUNTRY_INFO!$T$9:$T$993="MDA3 (IVM)", COUNTRY_INFO!$T$9:$T$993, " ") ->  | H47: 0 | O47: 0 | P47: 0 | Q47: 0
A48: =IF(COUNTRY_INFO!A48=0," ",COUNTRY_INFO!A48) -> Uganda | B48: =IF(COUNTRY_INFO!B48=0," ",COUNTRY_INFO!B48) -> EASTERN | C48: =IF(COUNTRY_INFO!C48=0," ",COUNTRY_INFO!C48) -> BUGWERI | D48: =IF(COUNTRY_INFO!$T$9:$T$993="MDA3 (IVM)", COUNTRY_INFO!$T$9:$T$993, " ") ->  | H48: 0 | O48: 0 | P48: 0 | Q48: 0
A49: =IF(COUNTRY_INFO!A49=0," ",COUNTRY_INFO!A49) -> Uganda | B49: =IF(COUNTRY_INFO!B49=0," ",COUNTRY_INFO!B49) -> EASTERN | C49: =IF(COUNTRY_INFO!C49=0," ",COUNTRY_INFO!C49) -> JINJA | D49: =IF(COUNTRY_INFO!$T$9:$T$993="MDA3 (IVM)", COUNTRY_INFO!$T$9:$T$993, " ") ->  | H49: 0 | O49: 0 | P49: 0 | Q49: 0
A50: =IF(COUNTRY_INFO!A50=0," ",COUNTRY_INFO!A50) -> Uganda | B50: =IF(COUNTRY_INFO!B50=0," ",COUNTRY_INFO!B50) -> EASTERN | C50: =IF(COUNTRY_INFO!C50=0," ",COUNTRY_INFO!C50) -> KABERAMAIDO | D50: =IF(COUNTRY_INFO!$T$9:$T$993="MDA3 (IVM)", COUNTRY_INFO!$T$9:$T$993, " ") ->  | H50: 0 | O50: 0 | P50: 0 | Q50: 0
A51: =IF(COUNTRY_INFO!A51=0," ",COUNTRY_INFO!A51) -> Uganda | B51: =IF(COUNTRY_INFO!B51=0," ",COUNTRY_INFO!B51) -> EASTERN | C51: =IF(COUNTRY_INFO!C51=0," ",COUNTRY_INFO!C51) -> KALIRO | D51: =IF(COUNTRY_INFO!$T$9:$T$993="MDA3 (IVM)", COUNTRY_INFO!$T$9:$T$993, " ") ->  | H51: 0 | O51: 0 | P51: 0 | Q51: 0
A52: =IF(COUNTRY_INFO!A52=0," ",COUNTRY_INFO!A52) -> Uganda | B52: =IF(COUNTRY_INFO!B52=0," ",COUNTRY_INFO!B52) -> EASTERN | C52: =IF(COUNTRY_INFO!C52=0," ",COUNTRY_INFO!C52) -> KAMULI | D52: =IF(COUNTRY_INFO!$T$9:$T$993="MDA3 (IVM)", COUNTRY_INFO!$T$9:$T$993, " ") ->  | H52: 0 | O52: 0 | P52: 0 | Q52: 0
A53: =IF(COUNTRY_INFO!A53=0," ",COUNTRY_INFO!A53) -> Uganda | B53: =IF(COUNTRY_INFO!B53=0," ",COUNTRY_INFO!B53) -> EASTERN | C53: =IF(COUNTRY_INFO!C53=0," ",COUNTRY_INFO!C53) -> KAPCHORWA | D53: =IF(COUNTRY_INFO!$T$9:$T$993="MDA3 (IVM)", COUNTRY_INFO!$T$9:$T$993, " ") ->  | H53: 0 | O53: 0 | P53: 0 | Q53: 0
A54: =IF(COUNTRY_INFO!A54=0," ",COUNTRY_INFO!A54) -> Uganda | B54: =IF(COUNTRY_INFO!B54=0," ",COUNTRY_INFO!B54) -> EASTERN | C54: =IF(COUNTRY_INFO!C54=0," ",COUNTRY_INFO!C54) -> KATAKWI | D54: =IF(COUNTRY_INFO!$T$9:$T$993="MDA3 (IVM)", COUNTRY_INFO!$T$9:$T$993, " ") ->  | H54: 0 | O54: 0 | P54: 0 | Q54: 0
A55: =IF(COUNTRY_INFO!A55=0," ",COUNTRY_INFO!A55) -> Uganda | B55: =IF(COUNTRY_INFO!B55=0," ",COUNTRY_INFO!B55) -> EASTERN | C55: =IF(COUNTRY_INFO!C55=0," ",COUNTRY_INFO!C55) -> KIBUKU | D55: =IF(COUNTRY_INFO!$T$9:$T$993="MDA3 (IVM)", COUNTRY_INFO!$T$9:$T$993, " ") ->  | H55: 0 | O55: 0 | P55: 0 | Q55: 0
A56: =IF(COUNTRY_INFO!A56=0," ",COUNTRY_INFO!A56) -> Uganda | B56: =IF(COUNTRY_INFO!B56=0," ",COUNTRY_INFO!B56) -> EASTERN | C56: =IF(COUNTRY_INFO!C56=0," ",COUNTRY_INFO!C56) -> KUMI | D56: =IF(COUNTRY_INFO!$T$9:$T$993="MDA3 (IVM)", COUNTRY_INFO!$T$9:$T$993, " ") ->  | H56: 0 | O56: 0 | P56: 0 | Q56: 0
A57: =IF(COUNTRY_INFO!A57=0," ",COUNTRY_INFO!A57) -> Uganda | B57: =IF(COUNTRY_INFO!B57=0," ",COUNTRY_INFO!B57) -> EASTERN | C57: =IF(COUNTRY_INFO!C57=0," ",COUNTRY_INFO!C57) -> KWEEN | D57: =IF(COUNTRY_INFO!$T$9:$T$993="MDA3 (IVM)", COUNTRY_INFO!$T$9:$T$993, " ") ->  | H57: 0 | O57: 0 | P57: 0 | Q57: 0
A58: =IF(COUNTRY_INFO!A58=0," ",COUNTRY_INFO!A58) -> Uganda | B58: =IF(COUNTRY_INFO!B58=0," ",COUNTRY_INFO!B58) -> EASTERN | C58: =IF(COUNTRY_INFO!C58=0," ",COUNTRY_INFO!C58) -> LUUKA | D58: =IF(COUNTRY_INFO!$T$9:$T$993="MDA3 (IVM)", COUNTRY_INFO!$T$9:$T$993, " ") ->  | H58: 0 | O58: 0 | P58: 0 | Q58: 0
A59: =IF(COUNTRY_INFO!A59=0," ",COUNTRY_INFO!A59) -> Uganda | B59: =IF(COUNTRY_INFO!B59=0," ",COUNTRY_INFO!B59) -> EASTERN | C59: =IF(COUNTRY_INFO!C59=0," ",COUNTRY_INFO!C59) -> MANAFWA | D59: =IF(COUNTRY_INFO!$T$9:$T$993="MDA3 (IVM)", COUNTRY_INFO!$T$9:$T$993, " ") ->  | H59: 0 | O59: 0 | P59: 0 | Q59: 0
A60: =IF(COUNTRY_INFO!A60=0," ",COUNTRY_INFO!A60) -> Uganda | B60: =IF(COUNTRY_INFO!B60=0," ",COUNTRY_INFO!B60) -> EASTERN | C60: =IF(COUNTRY_INFO!C60=0," ",COUNTRY_INFO!C60) -> MAYUGE | D60: =IF(COUNTRY_INFO!$T$9:$T$993="MDA3 (IVM)", COUNTRY_INFO!$T$9:$T$993, " ") ->  | H60: 0 | O60: 0 | P60: 0 | Q60: 0
A61: =IF(COUNTRY_INFO!A61=0," ",COUNTRY_INFO!A61) -> Uganda | B61: =IF(COUNTRY_INFO!B61=0," ",COUNTRY_INFO!B61) -> EASTERN | C61: =IF(COUNTRY_INFO!C61=0," ",COUNTRY_INFO!C61) -> MBALE | D61: =IF(COUNTRY_INFO!$T$9:$T$993="MDA3 (IVM)", COUNTRY_INFO!$T$9:$T$993, " ") ->  | H61: 0 | O61: 0 | P61: 0 | Q61: 0
A62: =IF(COUNTRY_INFO!A62=0," ",COUNTRY_INFO!A62) -> Uganda | B62: =IF(COUNTRY_INFO!B62=0," ",COUNTRY_INFO!B62) -> EASTERN | C62: =IF(COUNTRY_INFO!C62=0," ",COUNTRY_INFO!C62) -> NAMAYINGO | D62: =IF(COUNTRY_INFO!$T$9:$T$993="MDA3 (IVM)", COUNTRY_INFO!$T$9:$T$993, " ") ->  | H62: 0 | O62: 0 | P62: 0 | Q62: 0
A63: =IF(COUNTRY_INFO!A63=0," ",COUNTRY_INFO!A63) -> Uganda | B63: =IF(COUNTRY_INFO!B63=0," ",COUNTRY_INFO!B63) -> EASTERN | C63: =IF(COUNTRY_INFO!C63=0," ",COUNTRY_INFO!C63) -> NAMISINDWA | D63: =IF(COUNTRY_INFO!$T$9:$T$993="MDA3 (IVM)", COUNTRY_INFO!$T$9:$T$993, " ") ->  | H63: 0 | O63: 0 | P63: 0 | Q63: 0
A64: =IF(COUNTRY_INFO!A64=0," ",COUNTRY_INFO!A64) -> Uganda | B64: =IF(COUNTRY_INFO!B64=0," ",COUNTRY_INFO!B64) -> EASTERN | C64: =IF(COUNTRY_INFO!C64=0," ",COUNTRY_INFO!C64) -> NAMUTUMBA | D64: =IF(COUNTRY_INFO!$T$9:$T$993="MDA3 (IVM)", COUNTRY_INFO!$T$9:$T$993, " ") ->  | H64: 0 | O64: 0 | P64: 0 | Q64: 0
A65: =IF(COUNTRY_INFO!A65=0," ",COUNTRY_INFO!A65) -> Uganda | B65: =IF(COUNTRY_INFO!B65=0," ",COUNTRY_INFO!B65) -> EASTERN | C65: =IF(COUNTRY_INFO!C65=0," ",COUNTRY_INFO!C65) -> NGORA | D65: =IF(COUNTRY_INFO!$T$9:$T$993="MDA3 (IVM)", COUNTRY_INFO!$T$9:$T$993, " ") ->  | H65: 0 | O65: 0 | P65: 0 | Q65: 0
A66: =IF(COUNTRY_INFO!A66=0," ",COUNTRY_INFO!A66) -> Uganda | B66: =IF(COUNTRY_INFO!B66=0," ",COUNTRY_INFO!B66) -> EASTERN | C66: =IF(COUNTRY_INFO!C66=0," ",COUNTRY_INFO!C66) -> PALLISA | D66: =IF(COUNTRY_INFO!$T$9:$T$993="MDA3 (IVM)", COUNTRY_INFO!$T$9:$T$993, " ") ->  | H66: 0 | O66: 0 | P66: 0 | Q66: 0
A67: =IF(COUNTRY_INFO!A67=0," ",COUNTRY_INFO!A67) -> Uganda | B67: =IF(COUNTRY_INFO!B67=0," ",COUNTRY_INFO!B67) -> EASTERN | C67: =IF(COUNTRY_INFO!C67=0," ",COUNTRY_INFO!C67) -> SERERE | D67: =IF(COUNTRY_INFO!$T$9:$T$993="MDA3 (IVM)", COUNTRY_INFO!$T$9:$T$993, " ") ->  | H67: 0 | O67: 0 | P67: 0 | Q67: 0
A68: =IF(COUNTRY_INFO!A68=0," ",COUNTRY_INFO!A68) -> Uganda | B68: =IF(COUNTRY_INFO!B68=0," ",COUNTRY_INFO!B68) -> EASTERN | C68: =IF(COUNTRY_INFO!C68=0," ",COUNTRY_INFO!C68) -> SIRONKO | D68: =IF(COUNTRY_INFO!$T$9:$T$993="MDA3 (IVM)", COUNTRY_INFO!$T$9:$T$993, " ") ->  | H68: 0 | O68: 0 | P68: 0 | Q68: 0
A69: =IF(COUNTRY_INFO!A69=0," ",COUNTRY_INFO!A69) -> Uganda | B69: =IF(COUNTRY_INFO!B69=0," ",COUNTRY_INFO!B69) -> EASTERN | C69: =IF(COUNTRY_INFO!C69=0," ",COUNTRY_INFO!C69) -> SOROTI | D69: =IF(COUNTRY_INFO!$T$9:$T$993="MDA3 (IVM)", COUNTRY_INFO!$T$9:$T$993, " ") ->  | H69: 0 | O69: 0 | P69: 0 | Q69: 0
A70: =IF(COUNTRY_INFO!A70=0," ",COUNTRY_INFO!A70) -> Uganda | B70: =IF(COUNTRY_INFO!B70=0," ",COUNTRY_INFO!B70) -> EASTERN | C70: =IF(COUNTRY_INFO!C70=0," ",COUNTRY_INFO!C70) -> TORORO | D70: =IF(COUNTRY_INFO!$T$9:$T$993="MDA3 (IVM)", COUNTRY_INFO!$T$9:$T$993, " ") ->  | H70: 0 | O70: 0 | P70: 0 | Q70: 0
A71: =IF(COUNTRY_INFO!A71=0," ",COUNTRY_INFO!A71) -> Uganda | B71: =IF(COUNTRY_INFO!B71=0," ",COUNTRY_INFO!B71) -> NORTHERN | C71: =IF(COUNTRY_INFO!C71=0," ",COUNTRY_INFO!C71) -> ABIM | D71: =IF(COUNTRY_INFO!$T$9:$T$993="MDA3 (IVM)", COUNTRY_INFO!$T$9:$T$993, " ") ->  | H71: 0 | O71: 0 | P71: 0 | Q71: 0
A72: =IF(COUNTRY_INFO!A72=0," ",COUNTRY_INFO!A72) -> Uganda | B72: =IF(COUNTRY_INFO!B72=0," ",COUNTRY_INFO!B72) -> NORTHERN | C72: =IF(COUNTRY_INFO!C72=0," ",COUNTRY_INFO!C72) -> ADJUMANI | D72: =IF(COUNTRY_INFO!$T$9:$T$993="MDA3 (IVM)", COUNTRY_INFO!$T$9:$T$993, " ") -> MDA3 (IVM) | E72: April 2020 | F72: 9246 | G72: 16963 | H72: 26209 | I72: 9255.217497 | J72: 15966.7825 | K72: 25222 | L72: 8767.540705 | M72: 15125.4593 | N72: 23893 | O72: 9255.217497 | P72: 15966.7825 | Q72: 25222 | R72: 100.0996917 | S72: 94.12711492 | T72: 96.23411805
A73: =IF(COUNTRY_INFO!A73=0," ",COUNTRY_INFO!A73) -> Uganda | B73: =IF(COUNTRY_INFO!B73=0," ",COUNTRY_INFO!B73) -> NORTHERN | C73: =IF(COUNTRY_INFO!C73=0," ",COUNTRY_INFO!C73) -> AGAGO | D73: =IF(COUNTRY_INFO!$T$9:$T$993="MDA3 (IVM)", COUNTRY_INFO!$T$9:$T$993, " ") ->  | H73: 0 | O73: 0 | P73: 0 | Q73: 0
A74: =IF(COUNTRY_INFO!A74=0," ",COUNTRY_INFO!A74) -> Uganda | B74: =IF(COUNTRY_INFO!B74=0," ",COUNTRY_INFO!B74) -> NORTHERN | C74: =IF(COUNTRY_INFO!C74=0," ",COUNTRY_INFO!C74) -> ALEBTONG | D74: =IF(COUNTRY_INFO!$T$9:$T$993="MDA3 (IVM)", COUNTRY_INFO!$T$9:$T$993, " ") ->  | H74: =SUM(F74:G74) -> 0 | O74: =MAX(I74,L74) -> 0 | P74: =MAX(J74,M74) -> 0 | Q74: =SUM(O74:P74) -> 0 | R74: =IF(F74<>0, IF(MAX(I74,L74)/F74*100=0, "-", MAX(I74,L74)/F74*100), " ") ->  | S74: =IF(G74<>0, IF(MAX(J74,M74)/G74*100=0, "-", MAX(J74,M74)/G74*100), " ") ->  | T74: =IF(H74<>0, IF((MAX(I74,L74)+MAX(J74,M74))/H74*100=0, "-",(MAX(I74,L74)+MAX(J74,M74))/H74*100), " ") -> 
A75: =IF(COUNTRY_INFO!A75=0," ",COUNTRY_INFO!A75) -> Uganda | B75: =IF(COUNTRY_INFO!B75=0," ",COUNTRY_INFO!B75) -> NORTHERN | C75: =IF(COUNTRY_INFO!C75=0," ",COUNTRY_INFO!C75) -> AMOLATAR | D75: =IF(COUNTRY_INFO!$T$9:$T$993="MDA3 (IVM)", COUNTRY_INFO!$T$9:$T$993, " ") ->  | H75: 0 | O75: 0 | P75: 0 | Q75: 0
A76: =IF(COUNTRY_INFO!A76=0," ",COUNTRY_INFO!A76) -> Uganda | B76: =IF(COUNTRY_INFO!B76=0," ",COUNTRY_INFO!B76) -> NORTHERN | C76: =IF(COUNTRY_INFO!C76=0," ",COUNTRY_INFO!C76) -> AMUDAT | D76: =IF(COUNTRY_INFO!$T$9:$T$993="MDA3 (IVM)", COUNTRY_INFO!$T$9:$T$993, " ") ->  | H76: 0 | O76: 0 | P76: 0 | Q76: 0
A77: =IF(COUNTRY_INFO!A77=0," ",COUNTRY_INFO!A77) -> Uganda | B77: =IF(COUNTRY_INFO!B77=0," ",COUNTRY_INFO!B77) -> NORTHERN | C77: =IF(COUNTRY_INFO!C77=0," ",COUNTRY_INFO!C77) -> AMURU | D77: =IF(COUNTRY_INFO!$T$9:$T$993="MDA3 (IVM)", COUNTRY_INFO!$T$9:$T$993, " ") -> MDA3 (IVM) | E77: April 2020 | F77: 77034 | G77: 144294 | H77: 221328 | I77: 73126.93317 | J77: 126156.0668 | K77: 199283 | L77: 73261.23694 | M77: 126387.7631 | N77: 199649 | O77: 73261.23694 | P77: 126387.7631 | Q77: 199649 | R77: 95.10247026 | S77: 87.5904494 | T77: 90.20503506
A78: =IF(COUNTRY_INFO!A78=0," ",COUNTRY_INFO!A78) -> Uganda | B78: =IF(COUNTRY_INFO!B78=0," ",COUNTRY_INFO!B78) -> NORTHERN | C78: =IF(COUNTRY_INFO!C78=0," ",COUNTRY_INFO!C78) -> APAC | D78: =IF(COUNTRY_INFO!$T$9:$T$993="MDA3 (IVM)", COUNTRY_INFO!$T$9:$T$993, " ") ->  | H78: 0 | O78: 0 | P78: 0 | Q78: 0
A79: =IF(COUNTRY_INFO!A79=0," ",COUNTRY_INFO!A79) -> Uganda | B79: =IF(COUNTRY_INFO!B79=0," ",COUNTRY_INFO!B79) -> NORTHERN | C79: =IF(COUNTRY_INFO!C79=0," ",COUNTRY_INFO!C79) -> KWANIA | D79: =IF(COUNTRY_INFO!$T$9:$T$993="MDA3 (IVM)", COUNTRY_INFO!$T$9:$T$993, " ") ->  | H79: 0 | O79: 0 | P79: 0 | Q79: 0
A80: =IF(COUNTRY_INFO!A80=0," ",COUNTRY_INFO!A80) -> Uganda | B80: =IF(COUNTRY_INFO!B80=0," ",COUNTRY_INFO!B80) -> NORTHERN | C80: =IF(COUNTRY_INFO!C80=0," ",COUNTRY_INFO!C80) -> ARUA | H80: 0 | O80: 0 | P80: 0 | Q80: 0
A81: =IF(COUNTRY_INFO!A81=0," ",COUNTRY_INFO!A81) -> Uganda | B81: =IF(COUNTRY_INFO!B81=0," ",COUNTRY_INFO!B81) -> NORTHERN | C81: =IF(COUNTRY_INFO!C81=0," ",COUNTRY_INFO!C81) -> MADI-OKOLLO | H81: 0 | O81: 0 | P81: 0 | Q81: 0
A82: =IF(COUNTRY_INFO!A82=0," ",COUNTRY_INFO!A82) -> Uganda | B82: =IF(COUNTRY_INFO!B82=0," ",COUNTRY_INFO!B82) -> NORTHERN | C82: =IF(COUNTRY_INFO!C82=0," ",COUNTRY_INFO!C82) -> DOKOLO | D82: =IF(COUNTRY_INFO!$T$9:$T$993="MDA3 (IVM)", COUNTRY_INFO!$T$9:$T$993, " ") ->  | H82: 0 | O82: 0 | P82: 0 | Q82: 0
A83: =IF(COUNTRY_INFO!A83=0," ",COUNTRY_INFO!A83) -> Uganda | B83: =IF(COUNTRY_INFO!B83=0," ",COUNTRY_INFO!B83) -> NORTHERN | C83: =IF(COUNTRY_INFO!C83=0," ",COUNTRY_INFO!C83) -> GULU | D83: =IF(COUNTRY_INFO!$T$9:$T$993="MDA3 (IVM)", COUNTRY_INFO!$T$9:$T$993, " ") -> MDA3 (IVM) | E83: April 2020 | F83: 44647 | G83: 87480 | H83: 132127 | I83: 47584.26488 | J83: 82090.73512 | K83: 129675 | L83: 47335.47266 | M83: 81661.52734 | N83: 128997 | O83: 47584.26488 | P83: 82090.73512 | Q83: 129675 | R83: 106.5788628 | S83: 93.839432 | T83: 98.14420974
A84: =IF(COUNTRY_INFO!A84=0," ",COUNTRY_INFO!A84) -> Uganda | B84: =IF(COUNTRY_INFO!B84=0," ",COUNTRY_INFO!B84) -> NORTHERN | C84: =IF(COUNTRY_INFO!C84=0," ",COUNTRY_INFO!C84) -> KAABONG | D84: =IF(COUNTRY_INFO!$T$9:$T$993="MDA3 (IVM)", COUNTRY_INFO!$T$9:$T$993, " ") ->  | H84: 0 | O84: 0 | P84: 0 | Q84: 0
A85: =IF(COUNTRY_INFO!A85=0," ",COUNTRY_INFO!A85) -> Uganda | B85: =IF(COUNTRY_INFO!B85=0," ",COUNTRY_INFO!B85) -> NORTHERN | C85: =IF(COUNTRY_INFO!C85=0," ",COUNTRY_INFO!C85) -> KARENGA | D85: =IF(COUNTRY_INFO!$T$9:$T$993="MDA3 (IVM)", COUNTRY_INFO!$T$9:$T$993, " ") ->  | H85: 0 | O85: 0 | P85: 0 | Q85: 0
A86: =IF(COUNTRY_INFO!A86=0," ",COUNTRY_INFO!A86) -> Uganda | B86: =IF(COUNTRY_INFO!B86=0," ",COUNTRY_INFO!B86) -> NORTHERN | C86: =IF(COUNTRY_INFO!C86=0," ",COUNTRY_INFO!C86) -> KITGUM | D86: =IF(COUNTRY_INFO!$T$9:$T$993="MDA3 (IVM)", COUNTRY_INFO!$T$9:$T$993, " ") -> MDA3 (IVM) | E86: April 2020 | F86: 31911 | G86: 57849 | H86: 89760 | I86: 31292.04374 | J86: 53983.95626 | K86: 85276 | L86: 30469.70838 | M86: 52565.29162 | N86: 83035 | O86: 31292.04374 | P86: 53983.95626 | Q86: 85276 | R86: 98.06036709 | S86: 93.31873716 | T86: 95.00445633
A87: =IF(COUNTRY_INFO!A87=0," ",COUNTRY_INFO!A87) -> Uganda | B87: =IF(COUNTRY_INFO!B87=0," ",COUNTRY_INFO!B87) -> NORTHERN | C87: =IF(COUNTRY_INFO!C87=0," ",COUNTRY_INFO!C87) -> KOBOKO | D87: =IF(COUNTRY_INFO!$T$9:$T$993="MDA3 (IVM)", COUNTRY_INFO!$T$9:$T$993, " ") ->  | H87: 0 | O87: 0 | P87: 0 | Q87: 0
A88: =IF(COUNTRY_INFO!A88=0," ",COUNTRY_INFO!A88) -> Uganda | B88: =IF(COUNTRY_INFO!B88=0," ",COUNTRY_INFO!B88) -> NORTHERN | C88: =IF(COUNTRY_INFO!C88=0," ",COUNTRY_INFO!C88) -> KOLE | D88: =IF(COUNTRY_INFO!$T$9:$T$993="MDA3 (IVM)", COUNTRY_INFO!$T$9:$T$993, " ") ->  | H88: 0 | O88: 0 | P88: 0 | Q88: 0
A89: =IF(COUNTRY_INFO!A89=0," ",COUNTRY_INFO!A89) -> Uganda | B89: =IF(COUNTRY_INFO!B89=0," ",COUNTRY_INFO!B89) -> NORTHERN | C89: =IF(COUNTRY_INFO!C89=0," ",COUNTRY_INFO!C89) -> KOTIDO | D89: =IF(COUNTRY_INFO!$T$9:$T$993="MDA3 (IVM)", COUNTRY_INFO!$T$9:$T$993, " ") ->  | H89: 0 | O89: 0 | P89: 0 | Q89: 0
A90: =IF(COUNTRY_INFO!A90=0," ",COUNTRY_INFO!A90) -> Uganda | B90: =IF(COUNTRY_INFO!B90=0," ",COUNTRY_INFO!B90) -> NORTHERN | C90: =IF(COUNTRY_INFO!C90=0," ",COUNTRY_INFO!C90) -> LAMWO | D90: =IF(COUNTRY_INFO!$T$9:$T$993="MDA3 (IVM)", COUNTRY_INFO!$T$9:$T$993, " ") -> MDA3 (IVM) | E90: April 2020 | F90: 46932 | G90: 85209 | H90: 132141 | I90: 47290.33779 | J90: 81583.66221 | K90: 128874 | L90: 46121.96841 | M90: 79568.03159 | N90: 125690 | O90: 47290.33779 | P90: 81583.66221 | Q90: 128874 | R90: 100.7635255 | S90: 95.74535813 | T90: 97.52764093
A91: =IF(COUNTRY_INFO!A91=0," ",COUNTRY_INFO!A91) -> Uganda | B91: =IF(COUNTRY_INFO!B91=0," ",COUNTRY_INFO!B91) -> NORTHERN | C91: =IF(COUNTRY_INFO!C91=0," ",COUNTRY_INFO!C91) -> LIRA | D91: =IF(COUNTRY_INFO!$T$9:$T$993="MDA3 (IVM)", COUNTRY_INFO!$T$9:$T$993, " ") -> MDA3 (IVM) | E91: April 2020 | F91: 24126 | G91: 42942 | H91: 67068 | I91: 23785.71081 | J91: 41034.28919 | K91: 64820 | L91: 24082.20656 | M91: 41545.79344 | N91: 65628 | O91: 24082.20656 | P91: 41545.79344 | Q91: 65628 | R91: 99.81848032 | S91: 96.74862242 | T91: 97.85292539
A92: =IF(COUNTRY_INFO!A92=0," ",COUNTRY_INFO!A92) -> Uganda | B92: =IF(COUNTRY_INFO!B92=0," ",COUNTRY_INFO!B92) -> NORTHERN | C92: =IF(COUNTRY_INFO!C92=0," ",COUNTRY_INFO!C92) -> MARACHA | D92: =IF(COUNTRY_INFO!$T$9:$T$993="MDA3 (IVM)", COUNTRY_INFO!$T$9:$T$993, " ") ->  | H92: 0 | O92: 0 | P92: 0 | Q92: 0
A93: =IF(COUNTRY_INFO!A93=0," ",COUNTRY_INFO!A93) -> Uganda | B93: =IF(COUNTRY_INFO!B93=0," ",COUNTRY_INFO!B93) -> NORTHERN | C93: =IF(COUNTRY_INFO!C93=0," ",COUNTRY_INFO!C93) -> MOROTO | D93: =IF(COUNTRY_INFO!$T$9:$T$993="MDA3 (IVM)", COUNTRY_INFO!$T$9:$T$993, " ") ->  | H93: 0 | O93: 0 | P93: 0 | Q93: 0
A94: =IF(COUNTRY_INFO!A94=0," ",COUNTRY_INFO!A94) -> Uganda | B94: =IF(COUNTRY_INFO!B94=0," ",COUNTRY_INFO!B94) -> NORTHERN | C94: =IF(COUNTRY_INFO!C94=0," ",COUNTRY_INFO!C94) -> MOYO | D94: =IF(COUNTRY_INFO!$T$9:$T$993="MDA3 (IVM)", COUNTRY_INFO!$T$9:$T$993, " ") -> MDA3 (IVM) | E94: April 2020 | F94: 29902 | G94: 57720 | H94: 87622 | I94: 31208.01215 | J94: 53838.98785 | K94: 85047 | L94: 29309.77886 | M94: 50564.22114 | N94: 79874 | O94: 31208.01215 | P94: 53838.98785 | Q94: 85047 | R94: 104.3676415 | S94: 93.27613973 | T94: 97.06124033
A95: =IF(COUNTRY_INFO!A95=0," ",COUNTRY_INFO!A95) -> Uganda | B95: =IF(COUNTRY_INFO!B95=0," ",COUNTRY_INFO!B95) -> NORTHERN | C95: =IF(COUNTRY_INFO!C95=0," ",COUNTRY_INFO!C95) -> OBONGI | H95: 0 | O95: 0 | P95: 0 | Q95: 0
A96: =IF(COUNTRY_INFO!A96=0," ",COUNTRY_INFO!A96) -> Uganda | B96: =IF(COUNTRY_INFO!B96=0," ",COUNTRY_INFO!B96) -> NORTHERN | C96: =IF(COUNTRY_INFO!C96=0," ",COUNTRY_INFO!C96) -> NABILATUK | H96: 0 | O96: 0 | P96: 0 | Q96: 0
A97: =IF(COUNTRY_INFO!A97=0," ",COUNTRY_INFO!A97) -> Uganda | B97: =IF(COUNTRY_INFO!B97=0," ",COUNTRY_INFO!B97) -> NORTHERN | C97: =IF(COUNTRY_INFO!C97=0," ",COUNTRY_INFO!C97) -> NAKAPIRIPIRIT | H97: 0 | O97: 0 | P97: 0 | Q97: 0
A98: =IF(COUNTRY_INFO!A98=0," ",COUNTRY_INFO!A98) -> Uganda | B98: =IF(COUNTRY_INFO!B98=0," ",COUNTRY_INFO!B98) -> NORTHERN | C98: =IF(COUNTRY_INFO!C98=0," ",COUNTRY_INFO!C98) -> NAPAK | H98: 0 | O98: 0 | P98: 0 | Q98: 0
A99: =IF(COUNTRY_INFO!A99=0," ",COUNTRY_INFO!A99) -> Uganda | B99: =IF(COUNTRY_INFO!B99=0," ",COUNTRY_INFO!B99) -> NORTHERN | C99: =IF(COUNTRY_INFO!C99=0," ",COUNTRY_INFO!C99) -> NEBBI | H99: 0 | O99: 0 | P99: 0 | Q99: 0
A100: =IF(COUNTRY_INFO!A100=0," ",COUNTRY_INFO!A100) -> Uganda | B100: =IF(COUNTRY_INFO!B100=0," ",COUNTRY_INFO!B100) -> NORTHERN | C100: =IF(COUNTRY_INFO!C100=0," ",COUNTRY_INFO!C100) -> NWOYA | D100: =IF(COUNTRY_INFO!$T$9:$T$993="MDA3 (IVM)", COUNTRY_INFO!$T$9:$T$993, " ") -> MDA3 (IVM) | E100: April 2020 | F100: 51991 | G100: 98835 | H100: 150826 | I100: 53987.54557 | J100: 93137.45443 | K100: 147125 | L100: 45811.8955 | M100: 79033.1045 | N100: 124845 | O100: 53987.54557 | P100: 93137.45443 | Q100: 147125 | R100: 103.8401753 | S100: 94.23529563 | T100: 97.54617904
A101: =IF(COUNTRY_INFO!A101=0," ",COUNTRY_INFO!A101) -> Uganda | B101: =IF(COUNTRY_INFO!B101=0," ",COUNTRY_INFO!B101) -> NORTHERN | C101: =IF(COUNTRY_INFO!C101=0," ",COUNTRY_INFO!C101) -> OMORO | D101: =IF(COUNTRY_INFO!$T$9:$T$993="MDA3 (IVM)", COUNTRY_INFO!$T$9:$T$993, " ") -> MDA3 (IVM) | E101: April 2020 | F101: 57700 | G101: 109833 | H101: 167533 | I101: 59265.02309 | J101: 102241.9769 | K101: 161507 | L101: 58894.03645 | M101: 101601.9635 | N101: 160496 | O101: 59265.02309 | P101: 102241.9769 | Q101: 161507 | R101: 102.712345 | S101: 93.08857713 | T101: 96.4030967
A102: =IF(COUNTRY_INFO!A102=0," ",COUNTRY_INFO!A102) -> Uganda | B102: =IF(COUNTRY_INFO!B102=0," ",COUNTRY_INFO!B102) -> NORTHERN | C102: =IF(COUNTRY_INFO!C102=0," ",COUNTRY_INFO!C102) -> OTUKE | D102: =IF(COUNTRY_INFO!$T$9:$T$993="MDA3 (IVM)", COUNTRY_INFO!$T$9:$T$993, " ") ->  | H102: 0 | O102: 0 | P102: 0 | Q102: 0
A103: =IF(COUNTRY_INFO!A103=0," ",COUNTRY_INFO!A103) -> Uganda | B103: =IF(COUNTRY_INFO!B103=0," ",COUNTRY_INFO!B103) -> NORTHERN | C103: =IF(COUNTRY_INFO!C103=0," ",COUNTRY_INFO!C103) -> OYAM | D103: =IF(COUNTRY_INFO!$T$9:$T$993="MDA3 (IVM)", COUNTRY_INFO!$T$9:$T$993, " ") -> MDA3 (IVM) | E103: April 2020 | F103: 8480 | G103: 15683 | H103: 24163 | I103: 8181.888214 | J103: 14115.11179 | K103: 22297 | L103: 7833.652491 | M103: 13514.34751 | N103: 21348 | O103: 8181.888214 | P103: 14115.11179 | Q103: 22297 | R103: 96.48453082 | S103: 90.00262568 | T103: 92.27744899
A104: =IF(COUNTRY_INFO!A104=0," ",COUNTRY_INFO!A104) -> Uganda | B104: =IF(COUNTRY_INFO!B104=0," ",COUNTRY_INFO!B104) -> NORTHERN | C104: =IF(COUNTRY_INFO!C104=0," ",COUNTRY_INFO!C104) -> PADER | D104: =IF(COUNTRY_INFO!$T$9:$T$993="MDA3 (IVM)", COUNTRY_INFO!$T$9:$T$993, " ") -> MDA3 (IVM) | E104: April 2020 | F104: 62449 | G104: 114274 | H104: 176723 | I104: 63738.87971 | J104: 109960.1203 | K104: 173699 | L104: 61290.22114 | M104: 105735.7789 | N104: 167026 | O104: 63738.87971 | P104: 109960.1203 | Q104: 173699 | R104: 102.065493 | S104: 96.22496831 | T104: 98.28884752
A105: =IF(COUNTRY_INFO!A105=0," ",COUNTRY_INFO!A105) -> Uganda | B105: =IF(COUNTRY_INFO!B105=0," ",COUNTRY_INFO!B105) -> NORTHERN | C105: =IF(COUNTRY_INFO!C105=0," ",COUNTRY_INFO!C105) -> PAKWACH | D105: =IF(COUNTRY_INFO!$T$9:$T$993="MDA3 (IVM)", COUNTRY_INFO!$T$9:$T$993, " ") ->  | H105: 0 | O105: 0 | P105: 0 | Q105: 0
A106: =IF(COUNTRY_INFO!A106=0," ",COUNTRY_INFO!A106) -> Uganda | B106: =IF(COUNTRY_INFO!B106=0," ",COUNTRY_INFO!B106) -> NORTHERN | C106: =IF(COUNTRY_INFO!C106=0," ",COUNTRY_INFO!C106) -> YUMBE | D106: =IF(COUNTRY_INFO!$T$9:$T$993="MDA3 (IVM)", COUNTRY_INFO!$T$9:$T$993, " ") ->  | H106: 0 | O106: 0 | P106: 0 | Q106: 0
A107: =IF(COUNTRY_INFO!A107=0," ",COUNTRY_INFO!A107) -> Uganda | B107: =IF(COUNTRY_INFO!B107=0," ",COUNTRY_INFO!B107) -> NORTHERN | C107: =IF(COUNTRY_INFO!C107=0," ",COUNTRY_INFO!C107) -> ZOMBO | H107: 0 | O107: 0 | P107: 0 | Q107: 0
A108: =IF(COUNTRY_INFO!A108=0," ",COUNTRY_INFO!A108) -> Uganda | B108: =IF(COUNTRY_INFO!B108=0," ",COUNTRY_INFO!B108) -> WESTERN | C108: =IF(COUNTRY_INFO!C108=0," ",COUNTRY_INFO!C108) -> BUHWEJU | D108: =IF(COUNTRY_INFO!$T$9:$T$993="MDA3 (IVM)", COUNTRY_INFO!$T$9:$T$993, " ") ->  | H108: 0 | O108: 0 | P108: 0 | Q108: 0
A109: =IF(COUNTRY_INFO!A109=0," ",COUNTRY_INFO!A109) -> Uganda | B109: =IF(COUNTRY_INFO!B109=0," ",COUNTRY_INFO!B109) -> WESTERN | C109: =IF(COUNTRY_INFO!C109=0," ",COUNTRY_INFO!C109) -> BULIISA | D109: =IF(COUNTRY_INFO!$T$9:$T$993="MDA3 (IVM)", COUNTRY_INFO!$T$9:$T$993, " ") ->  | H109: 0 | O109: 0 | P109: 0 | Q109: 0
A110: =IF(COUNTRY_INFO!A110=0," ",COUNTRY_INFO!A110) -> Uganda | B110: =IF(COUNTRY_INFO!B110=0," ",COUNTRY_INFO!B110) -> WESTERN | C110: =IF(COUNTRY_INFO!C110=0," ",COUNTRY_INFO!C110) -> BUNDIBUGYO | D110: =IF(COUNTRY_INFO!$T$9:$T$993="MDA3 (IVM)", COUNTRY_INFO!$T$9:$T$993, " ") ->  | H110: 0 | O110: 0 | P110: 0 | Q110: 0
A111: =IF(COUNTRY_INFO!A111=0," ",COUNTRY_INFO!A111) -> Uganda | B111: =IF(COUNTRY_INFO!B111=0," ",COUNTRY_INFO!B111) -> WESTERN | C111: =IF(COUNTRY_INFO!C111=0," ",COUNTRY_INFO!C111) -> BUNYANGABU | D111: =IF(COUNTRY_INFO!$T$9:$T$993="MDA3 (IVM)", COUNTRY_INFO!$T$9:$T$993, " ") ->  | H111: 0 | O111: 0 | P111: 0 | Q111: 0
A112: =IF(COUNTRY_INFO!A112=0," ",COUNTRY_INFO!A112) -> Uganda | B112: =IF(COUNTRY_INFO!B112=0," ",COUNTRY_INFO!B112) -> WESTERN | C112: =IF(COUNTRY_INFO!C112=0," ",COUNTRY_INFO!C112) -> BUSHENYI | D112: =IF(COUNTRY_INFO!$T$9:$T$993="MDA3 (IVM)", COUNTRY_INFO!$T$9:$T$993, " ") ->  | H112: 0 | O112: 0 | P112: 0 | Q112: 0
A113: =IF(COUNTRY_INFO!A113=0," ",COUNTRY_INFO!A113) -> Uganda | B113: =IF(COUNTRY_INFO!B113=0," ",COUNTRY_INFO!B113) -> WESTERN | C113: =IF(COUNTRY_INFO!C113=0," ",COUNTRY_INFO!C113) -> HOIMA | D113: =IF(COUNTRY_INFO!$T$9:$T$993="MDA3 (IVM)", COUNTRY_INFO!$T$9:$T$993, " ") ->  | H113: 0 | O113: 0 | P113: 0 | Q113: 0
A114: =IF(COUNTRY_INFO!A114=0," ",COUNTRY_INFO!A114) -> Uganda | B114: =IF(COUNTRY_INFO!B114=0," ",COUNTRY_INFO!B114) -> WESTERN | C114: =IF(COUNTRY_INFO!C114=0," ",COUNTRY_INFO!C114) -> KIKUUBE | D114: =IF(COUNTRY_INFO!$T$9:$T$993="MDA3 (IVM)", COUNTRY_INFO!$T$9:$T$993, " ") ->  | H114: 0 | O114: 0 | P114: 0 | Q114: 0
A115: =IF(COUNTRY_INFO!A115=0," ",COUNTRY_INFO!A115) -> Uganda | B115: =IF(COUNTRY_INFO!B115=0," ",COUNTRY_INFO!B115) -> WESTERN | C115: =IF(COUNTRY_INFO!C115=0," ",COUNTRY_INFO!C115) -> IBANDA | D115: =IF(COUNTRY_INFO!$T$9:$T$993="MDA3 (IVM)", COUNTRY_INFO!$T$9:$T$993, " ") ->  | H115: 0 | O115: 0 | P115: 0 | Q115: 0
A116: =IF(COUNTRY_INFO!A116=0," ",COUNTRY_INFO!A116) -> Uganda | B116: =IF(COUNTRY_INFO!B116=0," ",COUNTRY_INFO!B116) -> WESTERN | C116: =IF(COUNTRY_INFO!C116=0," ",COUNTRY_INFO!C116) -> ISINGIRO | D116: =IF(COUNTRY_INFO!$T$9:$T$993="MDA3 (IVM)", COUNTRY_INFO!$T$9:$T$993, " ") ->  | H116: 0 | O116: 0 | P116: 0 | Q116: 0
A117: =IF(COUNTRY_INFO!A117=0," ",COUNTRY_INFO!A117) -> Uganda | B117: =IF(COUNTRY_INFO!B117=0," ",COUNTRY_INFO!B117) -> WESTERN | C117: =IF(COUNTRY_INFO!C117=0," ",COUNTRY_INFO!C117) -> KABALE | D117: =IF(COUNTRY_INFO!$T$9:$T$993="MDA3 (IVM)", COUNTRY_INFO!$T$9:$T$993, " ") ->  | H117: 0 | O117: 0 | P117: 0 | Q117: 0
A118: =IF(COUNTRY_INFO!A118=0," ",COUNTRY_INFO!A118) -> Uganda | B118: =IF(COUNTRY_INFO!B118=0," ",COUNTRY_INFO!B118) -> WESTERN | C118: =IF(COUNTRY_INFO!C118=0," ",COUNTRY_INFO!C118) -> KABAROLE | D118: =IF(COUNTRY_INFO!$T$9:$T$993="MDA3 (IVM)", COUNTRY_INFO!$T$9:$T$993, " ") ->  | H118: 0 | O118: 0 | P118: 0 | Q118: 0
A119: =IF(COUNTRY_INFO!A119=0," ",COUNTRY_INFO!A119) -> Uganda | B119: =IF(COUNTRY_INFO!B119=0," ",COUNTRY_INFO!B119) -> WESTERN | C119: =IF(COUNTRY_INFO!C119=0," ",COUNTRY_INFO!C119) -> KAGADI | D119: =IF(COUNTRY_INFO!$T$9:$T$993="MDA3 (IVM)", COUNTRY_INFO!$T$9:$T$993, " ") ->  | H119: 0 | O119: 0 | P119: 0 | Q119: 0
A120: =IF(COUNTRY_INFO!A120=0," ",COUNTRY_INFO!A120) -> Uganda | B120: =IF(COUNTRY_INFO!B120=0," ",COUNTRY_INFO!B120) -> WESTERN | C120: =IF(COUNTRY_INFO!C120=0," ",COUNTRY_INFO!C120) -> KAKUMIRO | D120: =IF(COUNTRY_INFO!$T$9:$T$993="MDA3 (IVM)", COUNTRY_INFO!$T$9:$T$993, " ") ->  | H120: 0 | O120: 0 | P120: 0 | Q120: 0
A121: =IF(COUNTRY_INFO!A121=0," ",COUNTRY_INFO!A121) -> Uganda | B121: =IF(COUNTRY_INFO!B121=0," ",COUNTRY_INFO!B121) -> WESTERN | C121: =IF(COUNTRY_INFO!C121=0," ",COUNTRY_INFO!C121) -> KAMWENGE | D121: =IF(COUNTRY_INFO!$T$9:$T$993="MDA3 (IVM)", COUNTRY_INFO!$T$9:$T$993, " ") ->  | H121: 0 | O121: 0 | P121: 0 | Q121: 0
A122: =IF(COUNTRY_INFO!A122=0," ",COUNTRY_INFO!A122) -> Uganda | B122: =IF(COUNTRY_INFO!B122=0," ",COUNTRY_INFO!B122) -> WESTERN | C122: =IF(COUNTRY_INFO!C122=0," ",COUNTRY_INFO!C122) -> KITAGWENDA | D122: =IF(COUNTRY_INFO!$T$9:$T$993="MDA3 (IVM)", COUNTRY_INFO!$T$9:$T$993, " ") ->  | H122: 0 | O122: 0 | P122: 0 | Q122: 0
A123: =IF(COUNTRY_INFO!A123=0," ",COUNTRY_INFO!A123) -> Uganda | B123: =IF(COUNTRY_INFO!B123=0," ",COUNTRY_INFO!B123) -> WESTERN | C123: =IF(COUNTRY_INFO!C123=0," ",COUNTRY_INFO!C123) -> KANUNGU | D123: =IF(COUNTRY_INFO!$T$9:$T$993="MDA3 (IVM)", COUNTRY_INFO!$T$9:$T$993, " ") ->  | H123: 0 | O123: 0 | P123: 0 | Q123: 0
A124: =IF(COUNTRY_INFO!A124=0," ",COUNTRY_INFO!A124) -> Uganda | B124: =IF(COUNTRY_INFO!B124=0," ",COUNTRY_INFO!B124) -> WESTERN | C124: =IF(COUNTRY_INFO!C124=0," ",COUNTRY_INFO!C124) -> KASESE | D124: =IF(COUNTRY_INFO!$T$9:$T$993="MDA3 (IVM)", COUNTRY_INFO!$T$9:$T$993, " ") -> MDA3 (IVM) | E124: April 2020 | F124: 47824 | G124: 73407 | H124: 121231 | I124: 43009.13001 | J124: 74197.86999 | K124: 117207 | L124: 43386.72175 | M124: 74849.27825 | N124: 118236 | O124: 43386.72175 | P124: 74849.27825 | Q124: 118236 | R124: 90.72164969 | S124: 101.9647694 | T124: 97.52950978
A125: =IF(COUNTRY_INFO!A125=0," ",COUNTRY_INFO!A125) -> Uganda | B125: =IF(COUNTRY_INFO!B125=0," ",COUNTRY_INFO!B125) -> WESTERN | C125: =IF(COUNTRY_INFO!C125=0," ",COUNTRY_INFO!C125) -> KIBAALE | D125: =IF(COUNTRY_INFO!$T$9:$T$993="MDA3 (IVM)", COUNTRY_INFO!$T$9:$T$993, " ") ->  | H125: 0 | O125: 0 | P125: 0 | Q125: 0
A126: =IF(COUNTRY_INFO!A126=0," ",COUNTRY_INFO!A126) -> Uganda | B126: =IF(COUNTRY_INFO!B126=0," ",COUNTRY_INFO!B126) -> WESTERN | C126: =IF(COUNTRY_INFO!C126=0," ",COUNTRY_INFO!C126) -> KIRUHURA | D126: =IF(COUNTRY_INFO!$T$9:$T$993="MDA3 (IVM)", COUNTRY_INFO!$T$9:$T$993, " ") ->  | H126: 0 | O126: 0 | P126: 0 | Q126: 0
A127: =IF(COUNTRY_INFO!A127=0," ",COUNTRY_INFO!A127) -> Uganda | B127: =IF(COUNTRY_INFO!B127=0," ",COUNTRY_INFO!B127) -> WESTERN | C127: =IF(COUNTRY_INFO!C127=0," ",COUNTRY_INFO!C127) -> KAZO | D127: =IF(COUNTRY_INFO!$T$9:$T$993="MDA3 (IVM)", COUNTRY_INFO!$T$9:$T$993, " ") ->  | H127: 0 | O127: 0 | P127: 0 | Q127: 0
A128: =IF(COUNTRY_INFO!A128=0," ",COUNTRY_INFO!A128) -> Uganda | B128: =IF(COUNTRY_INFO!B128=0," ",COUNTRY_INFO!B128) -> WESTERN | C128: =IF(COUNTRY_INFO!C128=0," ",COUNTRY_INFO!C128) -> KIRYANDONGO | D128: =IF(COUNTRY_INFO!$T$9:$T$993="MDA3 (IVM)", COUNTRY_INFO!$T$9:$T$993, " ") ->  | H128: 0 | O128: 0 | P128: 0 | Q128: 0
A129: =IF(COUNTRY_INFO!A129=0," ",COUNTRY_INFO!A129) -> Uganda | B129: =IF(COUNTRY_INFO!B129=0," ",COUNTRY_INFO!B129) -> WESTERN | C129: =IF(COUNTRY_INFO!C129=0," ",COUNTRY_INFO!C129) -> KISORO | D129: =IF(COUNTRY_INFO!$T$9:$T$993="MDA3 (IVM)", COUNTRY_INFO!$T$9:$T$993, " ") ->  | H129: 0 | O129: 0 | P129: 0 | Q129: 0
A130: =IF(COUNTRY_INFO!A130=0," ",COUNTRY_INFO!A130) -> Uganda | B130: =IF(COUNTRY_INFO!B130=0," ",COUNTRY_INFO!B130) -> WESTERN | C130: =IF(COUNTRY_INFO!C130=0," ",COUNTRY_INFO!C130) -> KYEGEGWA | D130: =IF(COUNTRY_INFO!$T$9:$T$993="MDA3 (IVM)", COUNTRY_INFO!$T$9:$T$993, " ") ->  | H130: 0 | O130: 0 | P130: 0 | Q130: 0
A131: =IF(COUNTRY_INFO!A131=0," ",COUNTRY_INFO!A131) -> Uganda | B131: =IF(COUNTRY_INFO!B131=0," ",COUNTRY_INFO!B131) -> WESTERN | C131: =IF(COUNTRY_INFO!C131=0," ",COUNTRY_INFO!C131) -> KYENJOJO | D131: =IF(COUNTRY_INFO!$T$9:$T$993="MDA3 (IVM)", COUNTRY_INFO!$T$9:$T$993, " ") ->  | H131: 0 | O131: 0 | P131: 0 | Q131: 0
A132: =IF(COUNTRY_INFO!A132=0," ",COUNTRY_INFO!A132) -> Uganda | B132: =IF(COUNTRY_INFO!B132=0," ",COUNTRY_INFO!B132) -> WESTERN | C132: =IF(COUNTRY_INFO!C132=0," ",COUNTRY_INFO!C132) -> MASINDI | D132: =IF(COUNTRY_INFO!$T$9:$T$993="MDA3 (IVM)", COUNTRY_INFO!$T$9:$T$993, " ") ->  | H132: 0 | O132: 0 | P132: 0 | Q132: 0
A133: =IF(COUNTRY_INFO!A133=0," ",COUNTRY_INFO!A133) -> Uganda | B133: =IF(COUNTRY_INFO!B133=0," ",COUNTRY_INFO!B133) -> WESTERN | C133: =IF(COUNTRY_INFO!C133=0," ",COUNTRY_INFO!C133) -> MBARARA | D133: =IF(COUNTRY_INFO!$T$9:$T$993="MDA3 (IVM)", COUNTRY_INFO!$T$9:$T$993, " ") ->  | H133: 0 | O133: 0 | P133: 0 | Q133: 0
A134: =IF(COUNTRY_INFO!A134=0," ",COUNTRY_INFO!A134) -> Uganda | B134: =IF(COUNTRY_INFO!B134=0," ",COUNTRY_INFO!B134) -> WESTERN | C134: =IF(COUNTRY_INFO!C134=0," ",COUNTRY_INFO!C134) -> RWAMPARA | D134: =IF(COUNTRY_INFO!$T$9:$T$993="MDA3 (IVM)", COUNTRY_INFO!$T$9:$T$993, " ") ->  | H134: 0 | O134: 0 | P134: 0 | Q134: 0
A135: =IF(COUNTRY_INFO!A135=0," ",COUNTRY_INFO!A135) -> Uganda | B135: =IF(COUNTRY_INFO!B135=0," ",COUNTRY_INFO!B135) -> WESTERN | C135: =IF(COUNTRY_INFO!C135=0," ",COUNTRY_INFO!C135) -> MITOOMA | D135: =IF(COUNTRY_INFO!$T$9:$T$993="MDA3 (IVM)", COUNTRY_INFO!$T$9:$T$993, " ") ->  | H135: 0 | O135: 0 | P135: 0 | Q135: 0
A136: =IF(COUNTRY_INFO!A136=0," ",COUNTRY_INFO!A136) -> Uganda | B136: =IF(COUNTRY_INFO!B136=0," ",COUNTRY_INFO!B136) -> WESTERN | C136: =IF(COUNTRY_INFO!C136=0," ",COUNTRY_INFO!C136) -> NTOROKO | D136: =IF(COUNTRY_INFO!$T$9:$T$993="MDA3 (IVM)", COUNTRY_INFO!$T$9:$T$993, " ") ->  | H136: 0 | O136: 0 | P136: 0 | Q136: 0
A137: =IF(COUNTRY_INFO!A137=0," ",COUNTRY_INFO!A137) -> Uganda | B137: =IF(COUNTRY_INFO!B137=0," ",COUNTRY_INFO!B137) -> WESTERN | C137: =IF(COUNTRY_INFO!C137=0," ",COUNTRY_INFO!C137) -> NTUNGAMO | D137: =IF(COUNTRY_INFO!$T$9:$T$993="MDA3 (IVM)", COUNTRY_INFO!$T$9:$T$993, " ") ->  | H137: 0 | O137: 0 | P137: 0 | Q137: 0
A138: =IF(COUNTRY_INFO!A138=0," ",COUNTRY_INFO!A138) -> Uganda | B138: =IF(COUNTRY_INFO!B138=0," ",COUNTRY_INFO!B138) -> WESTERN | C138: =IF(COUNTRY_INFO!C138=0," ",COUNTRY_INFO!C138) -> RUBANDA | D138: =IF(COUNTRY_INFO!$T$9:$T$993="MDA3 (IVM)", COUNTRY_INFO!$T$9:$T$993, " ") ->  | H138: =SUM(F138:G138) -> 0 | O138: =MAX(I138,L138) -> 0 | P138: =MAX(J138,M138) -> 0 | Q138: =SUM(O138:P138) -> 0 | R138: =IF(F138<>0, IF(MAX(I138,L138)/F138*100=0, "-", MAX(I138,L138)/F138*100), " ") ->  | S138: =IF(G138<>0, IF(MAX(J138,M138)/G138*100=0, "-", MAX(J138,M138)/G138*100), " ") ->  | T138: =IF(H138<>0, IF((MAX(I138,L138)+MAX(J138,M138))/H138*100=0, "-",(MAX(I138,L138)+MAX(J138,M138))/H138*100), " ") -> 
A139: =IF(COUNTRY_INFO!A139=0," ",COUNTRY_INFO!A139) -> Uganda | B139: =IF(COUNTRY_INFO!B139=0," ",COUNTRY_INFO!B139) -> WESTERN | C139: =IF(COUNTRY_INFO!C139=0," ",COUNTRY_INFO!C139) -> RUBIRIZI | D139: =IF(COUNTRY_INFO!$T$9:$T$993="MDA3 (IVM)", COUNTRY_INFO!$T$9:$T$993, " ") ->  | H139: 0 | O139: 0 | P139: 0 | Q139: 0
A140: =IF(COUNTRY_INFO!A140=0," ",COUNTRY_INFO!A140) -> Uganda | B140: =IF(COUNTRY_INFO!B140=0," ",COUNTRY_INFO!B140) -> WESTERN | C140: =IF(COUNTRY_INFO!C140=0," ",COUNTRY_INFO!C140) -> RUKIGA | D140: =IF(COUNTRY_INFO!$T$9:$T$993="MDA3 (IVM)", COUNTRY_INFO!$T$9:$T$993, " ") ->  | H140: 0 | O140: 0 | P140: 0 | Q140: 0
A141: =IF(COUNTRY_INFO!A141=0," ",COUNTRY_INFO!A141) -> Uganda | B141: =IF(COUNTRY_INFO!B141=0," ",COUNTRY_INFO!B141) -> WESTERN | C141: =IF(COUNTRY_INFO!C141=0," ",COUNTRY_INFO!C141) -> RUKUNGIRI | D141: =IF(COUNTRY_INFO!$T$9:$T$993="MDA3 (IVM)", COUNTRY_INFO!$T$9:$T$993, " ") ->  | H141: 0 | O141: 0 | P141: 0 | Q141: 0
A142: =IF(COUNTRY_INFO!A142=0," ",COUNTRY_INFO!A142) -> Uganda | B142: =IF(COUNTRY_INFO!B142=0," ",COUNTRY_INFO!B142) -> WESTERN | C142: =IF(COUNTRY_INFO!C142=0," ",COUNTRY_INFO!C142) -> SHEEMA | D142: =IF(COUNTRY_INFO!$T$9:$T$993="MDA3 (IVM)", COUNTRY_INFO!$T$9:$T$993, " ") ->  | H142: 0 | O142: 0 | P142: 0 | Q142: 0

Sheet T1
A1: T 1 - Praziquantel (PZQ) and Albendazole (ALB) or Mebendazole (MBD)
A2: Administrative structure, population requiring PC by age group, population treated by age group and coverage
A4: TOTAL | G4: =SUM(G$9:G$993) -> 0 | H4: 0 | I4: 1038872 | J4: 392001 | K4: 1430873 | L4: 0 | M4: 927641 | N4: 232627 | O4: 1160268 | P4: =IF(G4<>0, IF(L4/G4*100=0, "-", L4/G4*100), " ") ->  | Q4: =IF(OR(I4<>0,H4<>0), IF(M4/MAX(H4,I4)*100=0, "-", M4/MAX(H4,I4)*100), " ") -> 89.29309867 | R4: =IF(J4<>0, IF(N4/J4*100=0, "-", N4/J4*100), " ") -> 59.34347106 | S4: =IF(K4<>0, IF(O4/K4*100=0, "-", O4/K4*100), " ") -> 81.08811893
D6: PC implemented | E6: Medicine | F6: Date | G6: Population targeted for T1 | L6: Population treated | P6: Programme coverage (%)
A7: Country | B7: Province/State | C7: District | G7: PreSAC (ALB) | H7: SAC (ALB) | I7: SAC (PZQ) | J7: Adults (PZQ) | K7: Total | L7: PreSAC | M7: SAC | N7: Adults | O7: Total | P7: PreSAC | Q7: SAC | R7: Adults | S7: Total
A9: =IF(COUNTRY_INFO!A9=0," ",COUNTRY_INFO!A9) -> Uganda | B9: =IF(COUNTRY_INFO!B9=0," ",COUNTRY_INFO!B9) -> CENTRAL | C9: =IF(COUNTRY_INFO!C9=0," ",COUNTRY_INFO!C9) -> BUIKWE | D9: =IF(OR(COUNTRY_INFO!$T$9:$T$993="T1 (PZQ+ALB/MBD)",COUNTRY_INFO!$U$9:$U$993="T1 (PZQ+ALB/MBD)"), "T1 (PZQ+ALB/MBD)", " ") ->  | K9: =MAX(H9:I9)+G9+J9 -> 0 | O9: =SUM(L9:N9) -> 0 | P9: =IF(G9<>0, IF(L9/G9*100=0, "-", L9/G9*100), " ") ->  | Q9: =IF(OR(I9<>0,H9<>0), IF(M9/MAX(H9,I9)*100=0, "-", M9/MAX(H9,I9)*100), " ") ->  | R9: =IF(J9<>0, IF(N9/J9*100=0, "-", N9/J9*100), " ") -> 
A10: =IF(COUNTRY_INFO!A10=0," ",COUNTRY_INFO!A10) -> Uganda | B10: =IF(COUNTRY_INFO!B10=0," ",COUNTRY_INFO!B10) -> CENTRAL | C10: =IF(COUNTRY_INFO!C10=0," ",COUNTRY_INFO!C10) -> BUKOMANSIMBI | D10: =IF(OR(COUNTRY_INFO!$T$9:$T$993="T1 (PZQ+ALB/MBD)",COUNTRY_INFO!$U$9:$U$993="T1 (PZQ+ALB/MBD)"), "T1 (PZQ+ALB/MBD)", " ") ->  | K10: =MAX(H10:I10)+G10+J10 -> 0 | O10: =SUM(L10:N10) -> 0 | P10: =IF(G10<>0, IF(L10/G10*100=0, "-", L10/G10*100), " ") ->  | Q10: =IF(OR(I10<>0,H10<>0), IF(M10/MAX(H10,I10)*100=0, "-", M10/MAX(H10,I10)*100), " ") ->  | R10: =IF(J10<>0, IF(N10/J10*100=0, "-", N10/J10*100), " ") ->  | S10: =IF(K10<>0, IF(O10/K10*100=0, "-", O10/K10*100), " ") -> 
A11: =IF(COUNTRY_INFO!A11=0," ",COUNTRY_INFO!A11) -> Uganda | B11: =IF(COUNTRY_INFO!B11=0," ",COUNTRY_INFO!B11) -> CENTRAL | C11: =IF(COUNTRY_INFO!C11=0," ",COUNTRY_INFO!C11) -> BUTAMBALA | D11: =IF(OR(COUNTRY_INFO!$T$9:$T$993="T1 (PZQ+ALB/MBD)",COUNTRY_INFO!$U$9:$U$993="T1 (PZQ+ALB/MBD)"), "T1 (PZQ+ALB/MBD)", " ") ->  | K11: 0 | O11: 0
A12: =IF(COUNTRY_INFO!A12=0," ",COUNTRY_INFO!A12) -> Uganda | B12: =IF(COUNTRY_INFO!B12=0," ",COUNTRY_INFO!B12) -> CENTRAL | C12: =IF(COUNTRY_INFO!C12=0," ",COUNTRY_INFO!C12) -> BUVUMA | D12: =IF(OR(COUNTRY_INFO!$T$9:$T$993="T1 (PZQ+ALB/MBD)",COUNTRY_INFO!$U$9:$U$993="T1 (PZQ+ALB/MBD)"), "T1 (PZQ+ALB/MBD)", " ") ->  | K12: 0 | O12: 0
A13: =IF(COUNTRY_INFO!A13=0," ",COUNTRY_INFO!A13) -> Uganda | B13: =IF(COUNTRY_INFO!B13=0," ",COUNTRY_INFO!B13) -> CENTRAL | C13: =IF(COUNTRY_INFO!C13=0," ",COUNTRY_INFO!C13) -> GOMBA | D13: =IF(OR(COUNTRY_INFO!$T$9:$T$993="T1 (PZQ+ALB/MBD)",COUNTRY_INFO!$U$9:$U$993="T1 (PZQ+ALB/MBD)"), "T1 (PZQ+ALB/MBD)", " ") ->  | K13: 0 | O13: 0
A14: =IF(COUNTRY_INFO!A14=0," ",COUNTRY_INFO!A14) -> Uganda | B14: =IF(COUNTRY_INFO!B14=0," ",COUNTRY_INFO!B14) -> CENTRAL | C14: =IF(COUNTRY_INFO!C14=0," ",COUNTRY_INFO!C14) -> KALANGALA | D14: =IF(OR(COUNTRY_INFO!$T$9:$T$993="T1 (PZQ+ALB/MBD)",COUNTRY_INFO!$U$9:$U$993="T1 (PZQ+ALB/MBD)"), "T1 (PZQ+ALB/MBD)", " ") ->  | K14: 0 | O14: 0
A15: =IF(COUNTRY_INFO!A15=0," ",COUNTRY_INFO!A15) -> Uganda | B15: =IF(COUNTRY_INFO!B15=0," ",COUNTRY_INFO!B15) -> CENTRAL | C15: =IF(COUNTRY_INFO!C15=0," ",COUNTRY_INFO!C15) -> KALUNGU | D15: =IF(OR(COUNTRY_INFO!$T$9:$T$993="T1 (PZQ+ALB/MBD)",COUNTRY_INFO!$U$9:$U$993="T1 (PZQ+ALB/MBD)"), "T1 (PZQ+ALB/MBD)", " ") ->  | K15: 0 | O15: 0
A16: =IF(COUNTRY_INFO!A16=0," ",COUNTRY_INFO!A16) -> Uganda | B16: =IF(COUNTRY_INFO!B16=0," ",COUNTRY_INFO!B16) -> CENTRAL | C16: =IF(COUNTRY_INFO!C16=0," ",COUNTRY_INFO!C16) -> KAMPALA | D16: =IF(OR(COUNTRY_INFO!$T$9:$T$993="T1 (PZQ+ALB/MBD)",COUNTRY_INFO!$U$9:$U$993="T1 (PZQ+ALB/MBD)"), "T1 (PZQ+ALB/MBD)", " ") ->  | K16: 0 | O16: 0
A17: =IF(COUNTRY_INFO!A17=0," ",COUNTRY_INFO!A17) -> Uganda | B17: =IF(COUNTRY_INFO!B17=0," ",COUNTRY_INFO!B17) -> CENTRAL | C17: =IF(COUNTRY_INFO!C17=0," ",COUNTRY_INFO!C17) -> KAYUNGA | D17: =IF(OR(COUNTRY_INFO!$T$9:$T$993="T1 (PZQ+ALB/MBD)",COUNTRY_INFO!$U$9:$U$993="T1 (PZQ+ALB/MBD)"), "T1 (PZQ+ALB/MBD)", " ") ->  | K17: 0 | O17: 0
A18: =IF(COUNTRY_INFO!A18=0," ",COUNTRY_INFO!A18) -> Uganda | B18: =IF(COUNTRY_INFO!B18=0," ",COUNTRY_INFO!B18) -> CENTRAL | C18: =IF(COUNTRY_INFO!C18=0," ",COUNTRY_INFO!C18) -> KIBOGA | D18: =IF(OR(COUNTRY_INFO!$T$9:$T$993="T1 (PZQ+ALB/MBD)",COUNTRY_INFO!$U$9:$U$993="T1 (PZQ+ALB/MBD)"), "T1 (PZQ+ALB/MBD)", " ") ->  | K18: 0 | O18: 0
A19: =IF(COUNTRY_INFO!A19=0," ",COUNTRY_INFO!A19) -> Uganda | B19: =IF(COUNTRY_INFO!B19=0," ",COUNTRY_INFO!B19) -> CENTRAL | C19: =IF(COUNTRY_INFO!C19=0," ",COUNTRY_INFO!C19) -> KYANKWANZI | D19: =IF(OR(COUNTRY_INFO!$T$9:$T$993="T1 (PZQ+ALB/MBD)",COUNTRY_INFO!$U$9:$U$993="T1 (PZQ+ALB/MBD)"), "T1 (PZQ+ALB/MBD)", " ") ->  | K19: 0 | O19: 0
A20: =IF(COUNTRY_INFO!A20=0," ",COUNTRY_INFO!A20) -> Uganda | B20: =IF(COUNTRY_INFO!B20=0," ",COUNTRY_INFO!B20) -> CENTRAL | C20: =IF(COUNTRY_INFO!C20=0," ",COUNTRY_INFO!C20) -> KYOTERA | D20: =IF(OR(COUNTRY_INFO!$T$9:$T$993="T1 (PZQ+ALB/MBD)",COUNTRY_INFO!$U$9:$U$993="T1 (PZQ+ALB/MBD)"), "T1 (PZQ+ALB/MBD)", " ") ->  | K20: 0 | O20: 0
A21: =IF(COUNTRY_INFO!A21=0," ",COUNTRY_INFO!A21) -> Uganda | B21: =IF(COUNTRY_INFO!B21=0," ",COUNTRY_INFO!B21) -> CENTRAL | C21: =IF(COUNTRY_INFO!C21=0," ",COUNTRY_INFO!C21) -> LUWERO | D21: =IF(OR(COUNTRY_INFO!$T$9:$T$993="T1 (PZQ+ALB/MBD)",COUNTRY_INFO!$U$9:$U$993="T1 (PZQ+ALB/MBD)"), "T1 (PZQ+ALB/MBD)", " ") ->  | K21: 0 | O21: 0
A22: =IF(COUNTRY_INFO!A22=0," ",COUNTRY_INFO!A22) -> Uganda | B22: =IF(COUNTRY_INFO!B22=0," ",COUNTRY_INFO!B22) -> CENTRAL | C22: =IF(COUNTRY_INFO!C22=0," ",COUNTRY_INFO!C22) -> LWENGO | D22: =IF(OR(COUNTRY_INFO!$T$9:$T$993="T1 (PZQ+ALB/MBD)",COUNTRY_INFO!$U$9:$U$993="T1 (PZQ+ALB/MBD)"), "T1 (PZQ+ALB/MBD)", " ") ->  | K22: 0 | O22: 0
A23: =IF(COUNTRY_INFO!A23=0," ",COUNTRY_INFO!A23) -> Uganda | B23: =IF(COUNTRY_INFO!B23=0," ",COUNTRY_INFO!B23) -> CENTRAL | C23: =IF(COUNTRY_INFO!C23=0," ",COUNTRY_INFO!C23) -> LYANTONDE | D23: =IF(OR(COUNTRY_INFO!$T$9:$T$993="T1 (PZQ+ALB/MBD)",COUNTRY_INFO!$U$9:$U$993="T1 (PZQ+ALB/MBD)"), "T1 (PZQ+ALB/MBD)", " ") ->  | K23: 0 | O23: 0
A24: =IF(COUNTRY_INFO!A24=0," ",COUNTRY_INFO!A24) -> Uganda | B24: =IF(COUNTRY_INFO!B24=0," ",COUNTRY_INFO!B24) -> CENTRAL | C24: =IF(COUNTRY_INFO!C24=0," ",COUNTRY_INFO!C24) -> MASAKA | D24: =IF(OR(COUNTRY_INFO!$T$9:$T$993="T1 (PZQ+ALB/MBD)",COUNTRY_INFO!$U$9:$U$993="T1 (PZQ+ALB/MBD)"), "T1 (PZQ+ALB/MBD)", " ") ->  | K24: 0 | O24: 0
A25: =IF(COUNTRY_INFO!A25=0," ",COUNTRY_INFO!A25) -> Uganda | B25: =IF(COUNTRY_INFO!B25=0," ",COUNTRY_INFO!B25) -> CENTRAL | C25: =IF(COUNTRY_INFO!C25=0," ",COUNTRY_INFO!C25) -> MITYANA | D25: =IF(OR(COUNTRY_INFO!$T$9:$T$993="T1 (PZQ+ALB/MBD)",COUNTRY_INFO!$U$9:$U$993="T1 (PZQ+ALB/MBD)"), "T1 (PZQ+ALB/MBD)", " ") ->  | K25: 0 | O25: 0
A26: =IF(COUNTRY_INFO!A26=0," ",COUNTRY_INFO!A26) -> Uganda | B26: =IF(COUNTRY_INFO!B26=0," ",COUNTRY_INFO!B26) -> CENTRAL | C26: =IF(COUNTRY_INFO!C26=0," ",COUNTRY_INFO!C26) -> MPIGI | D26: =IF(OR(COUNTRY_INFO!$T$9:$T$993="T1 (PZQ+ALB/MBD)",COUNTRY_INFO!$U$9:$U$993="T1 (PZQ+ALB/MBD)"), "T1 (PZQ+ALB/MBD)", " ") ->  | K26: 0 | O26: 0
A27: =IF(COUNTRY_INFO!A27=0," ",COUNTRY_INFO!A27) -> Uganda | B27: =IF(COUNTRY_INFO!B27=0," ",COUNTRY_INFO!B27) -> CENTRAL | C27: =IF(COUNTRY_INFO!C27=0," ",COUNTRY_INFO!C27) -> MUBENDE | D27: =IF(OR(COUNTRY_INFO!$T$9:$T$993="T1 (PZQ+ALB/MBD)",COUNTRY_INFO!$U$9:$U$993="T1 (PZQ+ALB/MBD)"), "T1 (PZQ+ALB/MBD)", " ") ->  | K27: 0 | O27: 0
A28: =IF(COUNTRY_INFO!A28=0," ",COUNTRY_INFO!A28) -> Uganda | B28: =IF(COUNTRY_INFO!B28=0," ",COUNTRY_INFO!B28) -> CENTRAL | C28: =IF(COUNTRY_INFO!C28=0," ",COUNTRY_INFO!C28) -> KASSANDA | D28: =IF(OR(COUNTRY_INFO!$T$9:$T$993="T1 (PZQ+ALB/MBD)",COUNTRY_INFO!$U$9:$U$993="T1 (PZQ+ALB/MBD)"), "T1 (PZQ+ALB/MBD)", " ") ->  | K28: 0 | O28: 0
A29: =IF(COUNTRY_INFO!A29=0," ",COUNTRY_INFO!A29) -> Uganda | B29: =IF(COUNTRY_INFO!B29=0," ",COUNTRY_INFO!B29) -> CENTRAL | C29: =IF(COUNTRY_INFO!C29=0," ",COUNTRY_INFO!C29) -> MUKONO | D29: =IF(OR(COUNTRY_INFO!$T$9:$T$993="T1 (PZQ+ALB/MBD)",COUNTRY_INFO!$U$9:$U$993="T1 (PZQ+ALB/MBD)"), "T1 (PZQ+ALB/MBD)", " ") ->  | K29: 0 | O29: 0
A30: =IF(COUNTRY_INFO!A30=0," ",COUNTRY_INFO!A30) -> Uganda | B30: =IF(COUNTRY_INFO!B30=0," ",COUNTRY_INFO!B30) -> CENTRAL | C30: =IF(COUNTRY_INFO!C30=0," ",COUNTRY_INFO!C30) -> NAKASEKE | D30: =IF(OR(COUNTRY_INFO!$T$9:$T$993="T1 (PZQ+ALB/MBD)",COUNTRY_INFO!$U$9:$U$993="T1 (PZQ+ALB/MBD)"), "T1 (PZQ+ALB/MBD)", " ") ->  | K30: 0 | O30: 0
A31: =IF(COUNTRY_INFO!A31=0," ",COUNTRY_INFO!A31) -> Uganda | B31: =IF(COUNTRY_INFO!B31=0," ",COUNTRY_INFO!B31) -> CENTRAL | C31: =IF(COUNTRY_INFO!C31=0," ",COUNTRY_INFO!C31) -> NAKASONGOLA | D31: =IF(OR(COUNTRY_INFO!$T$9:$T$993="T1 (PZQ+ALB/MBD)",COUNTRY_INFO!$U$9:$U$993="T1 (PZQ+ALB/MBD)"), "T1 (PZQ+ALB/MBD)", " ") ->  | K31: 0 | O31: 0
A32: =IF(COUNTRY_INFO!A32=0," ",COUNTRY_INFO!A32) -> Uganda | B32: =IF(COUNTRY_INFO!B32=0," ",COUNTRY_INFO!B32) -> CENTRAL | C32: =IF(COUNTRY_INFO!C32=0," ",COUNTRY_INFO!C32) -> RAKAI | D32: =IF(OR(COUNTRY_INFO!$T$9:$T$993="T1 (PZQ+ALB/MBD)",COUNTRY_INFO!$U$9:$U$993="T1 (PZQ+ALB/MBD)"), "T1 (PZQ+ALB/MBD)", " ") ->  | K32: 0 | O32: 0
A33: =IF(COUNTRY_INFO!A33=0," ",COUNTRY_INFO!A33) -> Uganda | B33: =IF(COUNTRY_INFO!B33=0," ",COUNTRY_INFO!B33) -> CENTRAL | C33: =IF(COUNTRY_INFO!C33=0," ",COUNTRY_INFO!C33) -> SSEMBABULE | D33: =IF(OR(COUNTRY_INFO!$T$9:$T$993="T1 (PZQ+ALB/MBD)",COUNTRY_INFO!$U$9:$U$993="T1 (PZQ+ALB/MBD)"), "T1 (PZQ+ALB/MBD)", " ") ->  | K33: 0 | O33: 0
A34: =IF(COUNTRY_INFO!A34=0," ",COUNTRY_INFO!A34) -> Uganda | B34: =IF(COUNTRY_INFO!B34=0," ",COUNTRY_INFO!B34) -> CENTRAL | C34: =IF(COUNTRY_INFO!C34=0," ",COUNTRY_INFO!C34) -> WAKISO | D34: =IF(OR(COUNTRY_INFO!$T$9:$T$993="T1 (PZQ+ALB/MBD)",COUNTRY_INFO!$U$9:$U$993="T1 (PZQ+ALB/MBD)"), "T1 (PZQ+ALB/MBD)", " ") ->  | K34: 0 | O34: 0
A35: =IF(COUNTRY_INFO!A35=0," ",COUNTRY_INFO!A35) -> Uganda | B35: =IF(COUNTRY_INFO!B35=0," ",COUNTRY_INFO!B35) -> EASTERN | C35: =IF(COUNTRY_INFO!C35=0," ",COUNTRY_INFO!C35) -> AMURIA | D35: =IF(OR(COUNTRY_INFO!$T$9:$T$993="T1 (PZQ+ALB/MBD)",COUNTRY_INFO!$U$9:$U$993="T1 (PZQ+ALB/MBD)"), "T1 (PZQ+ALB/MBD)", " ") ->  | K35: 0 | O35: 0
A36: =IF(COUNTRY_INFO!A36=0," ",COUNTRY_INFO!A36) -> Uganda | B36: =IF(COUNTRY_INFO!B36=0," ",COUNTRY_INFO!B36) -> EASTERN | C36: =IF(COUNTRY_INFO!C36=0," ",COUNTRY_INFO!C36) -> KAPELEBYONG | D36: =IF(OR(COUNTRY_INFO!$T$9:$T$993="T1 (PZQ+ALB/MBD)",COUNTRY_INFO!$U$9:$U$993="T1 (PZQ+ALB/MBD)"), "T1 (PZQ+ALB/MBD)", " ") ->  | K36: 0 | O36: 0
A37: =IF(COUNTRY_INFO!A37=0," ",COUNTRY_INFO!A37) -> Uganda | B37: =IF(COUNTRY_INFO!B37=0," ",COUNTRY_INFO!B37) -> EASTERN | C37: =IF(COUNTRY_INFO!C37=0," ",COUNTRY_INFO!C37) -> BUDAKA | D37: =IF(OR(COUNTRY_INFO!$T$9:$T$993="T1 (PZQ+ALB/MBD)",COUNTRY_INFO!$U$9:$U$993="T1 (PZQ+ALB/MBD)"), "T1 (PZQ+ALB/MBD)", " ") ->  | K37: 0 | O37: 0
A38: =IF(COUNTRY_INFO!A38=0," ",COUNTRY_INFO!A38) -> Uganda | B38: =IF(COUNTRY_INFO!B38=0," ",COUNTRY_INFO!B38) -> EASTERN | C38: =IF(COUNTRY_INFO!C38=0," ",COUNTRY_INFO!C38) -> BUDUDA | D38: =IF(OR(COUNTRY_INFO!$T$9:$T$993="T1 (PZQ+ALB/MBD)",COUNTRY_INFO!$U$9:$U$993="T1 (PZQ+ALB/MBD)"), "T1 (PZQ+ALB/MBD)", " ") ->  | K38: 0 | O38: 0
A39: =IF(COUNTRY_INFO!A39=0," ",COUNTRY_INFO!A39) -> Uganda | B39: =IF(COUNTRY_INFO!B39=0," ",COUNTRY_INFO!B39) -> EASTERN | C39: =IF(COUNTRY_INFO!C39=0," ",COUNTRY_INFO!C39) -> BUGIRI | D39: =IF(OR(COUNTRY_INFO!$T$9:$T$993="T1 (PZQ+ALB/MBD)",COUNTRY_INFO!$U$9:$U$993="T1 (PZQ+ALB/MBD)"), "T1 (PZQ+ALB/MBD)", " ") ->  | K39: 0 | O39: 0
A40: =IF(COUNTRY_INFO!A40=0," ",COUNTRY_INFO!A40) -> Uganda | B40: =IF(COUNTRY_INFO!B40=0," ",COUNTRY_INFO!B40) -> EASTERN | C40: =IF(COUNTRY_INFO!C40=0," ",COUNTRY_INFO!C40) -> BUKEDEA | D40: =IF(OR(COUNTRY_INFO!$T$9:$T$993="T1 (PZQ+ALB/MBD)",COUNTRY_INFO!$U$9:$U$993="T1 (PZQ+ALB/MBD)"), "T1 (PZQ+ALB/MBD)", " ") ->  | K40: 0 | O40: 0
A41: =IF(COUNTRY_INFO!A41=0," ",COUNTRY_INFO!A41) -> Uganda | B41: =IF(COUNTRY_INFO!B41=0," ",COUNTRY_INFO!B41) -> EASTERN | C41: =IF(COUNTRY_INFO!C41=0," ",COUNTRY_INFO!C41) -> BUKWO | D41: =IF(OR(COUNTRY_INFO!$T$9:$T$993="T1 (PZQ+ALB/MBD)",COUNTRY_INFO!$U$9:$U$993="T1 (PZQ+ALB/MBD)"), "T1 (PZQ+ALB/MBD)", " ") ->  | K41: 0 | O41: 0
A42: =IF(COUNTRY_INFO!A42=0," ",COUNTRY_INFO!A42) -> Uganda | B42: =IF(COUNTRY_INFO!B42=0," ",COUNTRY_INFO!B42) -> EASTERN | C42: =IF(COUNTRY_INFO!C42=0," ",COUNTRY_INFO!C42) -> BULAMBULI | D42: =IF(OR(COUNTRY_INFO!$T$9:$T$993="T1 (PZQ+ALB/MBD)",COUNTRY_INFO!$U$9:$U$993="T1 (PZQ+ALB/MBD)"), "T1 (PZQ+ALB/MBD)", " ") ->  | K42: 0 | O42: 0
A43: =IF(COUNTRY_INFO!A43=0," ",COUNTRY_INFO!A43) -> Uganda | B43: =IF(COUNTRY_INFO!B43=0," ",COUNTRY_INFO!B43) -> EASTERN | C43: =IF(COUNTRY_INFO!C43=0," ",COUNTRY_INFO!C43) -> BUSIA | D43: =IF(OR(COUNTRY_INFO!$T$9:$T$993="T1 (PZQ+ALB/MBD)",COUNTRY_INFO!$U$9:$U$993="T1 (PZQ+ALB/MBD)"), "T1 (PZQ+ALB/MBD)", " ") ->  | K43: 0 | O43: 0
A44: =IF(COUNTRY_INFO!A44=0," ",COUNTRY_INFO!A44) -> Uganda | B44: =IF(COUNTRY_INFO!B44=0," ",COUNTRY_INFO!B44) -> EASTERN | C44: =IF(COUNTRY_INFO!C44=0," ",COUNTRY_INFO!C44) -> BUTALEJA | D44: =IF(OR(COUNTRY_INFO!$T$9:$T$993="T1 (PZQ+ALB/MBD)",COUNTRY_INFO!$U$9:$U$993="T1 (PZQ+ALB/MBD)"), "T1 (PZQ+ALB/MBD)", " ") ->  | K44: 0 | O44: 0
A45: =IF(COUNTRY_INFO!A45=0," ",COUNTRY_INFO!A45) -> Uganda | B45: =IF(COUNTRY_INFO!B45=0," ",COUNTRY_INFO!B45) -> EASTERN | C45: =IF(COUNTRY_INFO!C45=0," ",COUNTRY_INFO!C45) -> BUTEBO | D45: =IF(OR(COUNTRY_INFO!$T$9:$T$993="T1 (PZQ+ALB/MBD)",COUNTRY_INFO!$U$9:$U$993="T1 (PZQ+ALB/MBD)"), "T1 (PZQ+ALB/MBD)", " ") ->  | K45: 0 | O45: 0
A46: =IF(COUNTRY_INFO!A46=0," ",COUNTRY_INFO!A46) -> Uganda | B46: =IF(COUNTRY_INFO!B46=0," ",COUNTRY_INFO!B46) -> EASTERN | C46: =IF(COUNTRY_INFO!C46=0," ",COUNTRY_INFO!C46) -> BUYENDE | D46: =IF(OR(COUNTRY_INFO!$T$9:$T$993="T1 (PZQ+ALB/MBD)",COUNTRY_INFO!$U$9:$U$993="T1 (PZQ+ALB/MBD)"), "T1 (PZQ+ALB/MBD)", " ") ->  | K46: 0 | O46: 0
A47: =IF(COUNTRY_INFO!A47=0," ",COUNTRY_INFO!A47) -> Uganda | B47: =IF(COUNTRY_INFO!B47=0," ",COUNTRY_INFO!B47) -> EASTERN | C47: =IF(COUNTRY_INFO!C47=0," ",COUNTRY_INFO!C47) -> IGANGA | D47: =IF(OR(COUNTRY_INFO!$T$9:$T$993="T1 (PZQ+ALB/MBD)",COUNTRY_INFO!$U$9:$U$993="T1 (PZQ+ALB/MBD)"), "T1 (PZQ+ALB/MBD)", " ") ->  | K47: 0 | O47: 0
A48: =IF(COUNTRY_INFO!A48=0," ",COUNTRY_INFO!A48) -> Uganda | B48: =IF(COUNTRY_INFO!B48=0," ",COUNTRY_INFO!B48) -> EASTERN | C48: =IF(COUNTRY_INFO!C48=0," ",COUNTRY_INFO!C48) -> BUGWERI | D48: =IF(OR(COUNTRY_INFO!$T$9:$T$993="T1 (PZQ+ALB/MBD)",COUNTRY_INFO!$U$9:$U$993="T1 (PZQ+ALB/MBD)"), "T1 (PZQ+ALB/MBD)", " ") ->  | K48: 0 | O48: 0
A49: =IF(COUNTRY_INFO!A49=0," ",COUNTRY_INFO!A49) -> Uganda | B49: =IF(COUNTRY_INFO!B49=0," ",COUNTRY_INFO!B49) -> EASTERN | C49: =IF(COUNTRY_INFO!C49=0," ",COUNTRY_INFO!C49) -> JINJA | D49: =IF(OR(COUNTRY_INFO!$T$9:$T$993="T1 (PZQ+ALB/MBD)",COUNTRY_INFO!$U$9:$U$993="T1 (PZQ+ALB/MBD)"), "T1 (PZQ+ALB/MBD)", " ") ->  | K49: 0 | O49: 0
A50: =IF(COUNTRY_INFO!A50=0," ",COUNTRY_INFO!A50) -> Uganda | B50: =IF(COUNTRY_INFO!B50=0," ",COUNTRY_INFO!B50) -> EASTERN | C50: =IF(COUNTRY_INFO!C50=0," ",COUNTRY_INFO!C50) -> KABERAMAIDO | D50: =IF(OR(COUNTRY_INFO!$T$9:$T$993="T1 (PZQ+ALB/MBD)",COUNTRY_INFO!$U$9:$U$993="T1 (PZQ+ALB/MBD)"), "T1 (PZQ+ALB/MBD)", " ") ->  | K50: 0 | O50: 0
A51: =IF(COUNTRY_INFO!A51=0," ",COUNTRY_INFO!A51) -> Uganda | B51: =IF(COUNTRY_INFO!B51=0," ",COUNTRY_INFO!B51) -> EASTERN | C51: =IF(COUNTRY_INFO!C51=0," ",COUNTRY_INFO!C51) -> KALIRO | D51: =IF(OR(COUNTRY_INFO!$T$9:$T$993="T1 (PZQ+ALB/MBD)",COUNTRY_INFO!$U$9:$U$993="T1 (PZQ+ALB/MBD)"), "T1 (PZQ+ALB/MBD)", " ") ->  | K51: 0 | O51: 0
A52: =IF(COUNTRY_INFO!A52=0," ",COUNTRY_INFO!A52) -> Uganda | B52: =IF(COUNTRY_INFO!B52=0," ",COUNTRY_INFO!B52) -> EASTERN | C52: =IF(COUNTRY_INFO!C52=0," ",COUNTRY_INFO!C52) -> KAMULI | D52: =IF(OR(COUNTRY_INFO!$T$9:$T$993="T1 (PZQ+ALB/MBD)",COUNTRY_INFO!$U$9:$U$993="T1 (PZQ+ALB/MBD)"), "T1 (PZQ+ALB/MBD)", " ") ->  | K52: 0 | O52: 0
A53: =IF(COUNTRY_INFO!A53=0," ",COUNTRY_INFO!A53) -> Uganda | B53: =IF(COUNTRY_INFO!B53=0," ",COUNTRY_INFO!B53) -> EASTERN | C53: =IF(COUNTRY_INFO!C53=0," ",COUNTRY_INFO!C53) -> KAPCHORWA | D53: =IF(OR(COUNTRY_INFO!$T$9:$T$993="T1 (PZQ+ALB/MBD)",COUNTRY_INFO!$U$9:$U$993="T1 (PZQ+ALB/MBD)"), "T1 (PZQ+ALB/MBD)", " ") ->  | K53: 0 | O53: 0
A54: =IF(COUNTRY_INFO!A54=0," ",COUNTRY_INFO!A54) -> Uganda | B54: =IF(COUNTRY_INFO!B54=0," ",COUNTRY_INFO!B54) -> EASTERN | C54: =IF(COUNTRY_INFO!C54=0," ",COUNTRY_INFO!C54) -> KATAKWI | D54: =IF(OR(COUNTRY_INFO!$T$9:$T$993="T1 (PZQ+ALB/MBD)",COUNTRY_INFO!$U$9:$U$993="T1 (PZQ+ALB/MBD)"), "T1 (PZQ+ALB/MBD)", " ") ->  | K54: 0 | O54: 0
A55: =IF(COUNTRY_INFO!A55=0," ",COUNTRY_INFO!A55) -> Uganda | B55: =IF(COUNTRY_INFO!B55=0," ",COUNTRY_INFO!B55) -> EASTERN | C55: =IF(COUNTRY_INFO!C55=0," ",COUNTRY_INFO!C55) -> KIBUKU | D55: =IF(OR(COUNTRY_INFO!$T$9:$T$993="T1 (PZQ+ALB/MBD)",COUNTRY_INFO!$U$9:$U$993="T1 (PZQ+ALB/MBD)"), "T1 (PZQ+ALB/MBD)", " ") ->  | K55: 0 | O55: 0
A56: =IF(COUNTRY_INFO!A56=0," ",COUNTRY_INFO!A56) -> Uganda | B56: =IF(COUNTRY_INFO!B56=0," ",COUNTRY_INFO!B56) -> EASTERN | C56: =IF(COUNTRY_INFO!C56=0," ",COUNTRY_INFO!C56) -> KUMI | D56: =IF(OR(COUNTRY_INFO!$T$9:$T$993="T1 (PZQ+ALB/MBD)",COUNTRY_INFO!$U$9:$U$993="T1 (PZQ+ALB/MBD)"), "T1 (PZQ+ALB/MBD)", " ") ->  | K56: 0 | O56: 0
A57: =IF(COUNTRY_INFO!A57=0," ",COUNTRY_INFO!A57) -> Uganda | B57: =IF(COUNTRY_INFO!B57=0," ",COUNTRY_INFO!B57) -> EASTERN | C57: =IF(COUNTRY_INFO!C57=0," ",COUNTRY_INFO!C57) -> KWEEN | D57: =IF(OR(COUNTRY_INFO!$T$9:$T$993="T1 (PZQ+ALB/MBD)",COUNTRY_INFO!$U$9:$U$993="T1 (PZQ+ALB/MBD)"), "T1 (PZQ+ALB/MBD)", " ") ->  | K57: 0 | O57: 0
A58: =IF(COUNTRY_INFO!A58=0," ",COUNTRY_INFO!A58) -> Uganda | B58: =IF(COUNTRY_INFO!B58=0," ",COUNTRY_INFO!B58) -> EASTERN | C58: =IF(COUNTRY_INFO!C58=0," ",COUNTRY_INFO!C58) -> LUUKA | D58: =IF(OR(COUNTRY_INFO!$T$9:$T$993="T1 (PZQ+ALB/MBD)",COUNTRY_INFO!$U$9:$U$993="T1 (PZQ+ALB/MBD)"), "T1 (PZQ+ALB/MBD)", " ") ->  | K58: 0 | O58: 0
A59: =IF(COUNTRY_INFO!A59=0," ",COUNTRY_INFO!A59) -> Uganda | B59: =IF(COUNTRY_INFO!B59=0," ",COUNTRY_INFO!B59) -> EASTERN | C59: =IF(COUNTRY_INFO!C59=0," ",COUNTRY_INFO!C59) -> MANAFWA | D59: =IF(OR(COUNTRY_INFO!$T$9:$T$993="T1 (PZQ+ALB/MBD)",COUNTRY_INFO!$U$9:$U$993="T1 (PZQ+ALB/MBD)"), "T1 (PZQ+ALB/MBD)", " ") ->  | K59: 0 | O59: 0
A60: =IF(COUNTRY_INFO!A60=0," ",COUNTRY_INFO!A60) -> Uganda | B60: =IF(COUNTRY_INFO!B60=0," ",COUNTRY_INFO!B60) -> EASTERN | C60: =IF(COUNTRY_INFO!C60=0," ",COUNTRY_INFO!C60) -> MAYUGE | D60: =IF(OR(COUNTRY_INFO!$T$9:$T$993="T1 (PZQ+ALB/MBD)",COUNTRY_INFO!$U$9:$U$993="T1 (PZQ+ALB/MBD)"), "T1 (PZQ+ALB/MBD)", " ") -> T1 (PZQ+ALB/MBD) | E60: PZQ+MBD | F60: Dec 2020 | I60: 159576 | J60: 375932 | K60: 535508 | M60: 133607 | N60: 202016 | O60: 335623 | Q60: 83.72624956 | R60: 53.73737804 | S60: 62.67376024
A61: =IF(COUNTRY_INFO!A61=0," ",COUNTRY_INFO!A61) -> Uganda | B61: =IF(COUNTRY_INFO!B61=0," ",COUNTRY_INFO!B61) -> EASTERN | C61: =IF(COUNTRY_INFO!C61=0," ",COUNTRY_INFO!C61) -> MBALE | D61: =IF(OR(COUNTRY_INFO!$T$9:$T$993="T1 (PZQ+ALB/MBD)",COUNTRY_INFO!$U$9:$U$993="T1 (PZQ+ALB/MBD)"), "T1 (PZQ+ALB/MBD)", " ") ->  | K61: 0 | O61: 0
A62: =IF(COUNTRY_INFO!A62=0," ",COUNTRY_INFO!A62) -> Uganda | B62: =IF(COUNTRY_INFO!B62=0," ",COUNTRY_INFO!B62) -> EASTERN | C62: =IF(COUNTRY_INFO!C62=0," ",COUNTRY_INFO!C62) -> NAMAYINGO | D62: =IF(OR(COUNTRY_INFO!$T$9:$T$993="T1 (PZQ+ALB/MBD)",COUNTRY_INFO!$U$9:$U$993="T1 (PZQ+ALB/MBD)"), "T1 (PZQ+ALB/MBD)", " ") ->  | K62: 0 | O62: 0
A63: =IF(COUNTRY_INFO!A63=0," ",COUNTRY_INFO!A63) -> Uganda | B63: =IF(COUNTRY_INFO!B63=0," ",COUNTRY_INFO!B63) -> EASTERN | C63: =IF(COUNTRY_INFO!C63=0," ",COUNTRY_INFO!C63) -> NAMISINDWA | D63: =IF(OR(COUNTRY_INFO!$T$9:$T$993="T1 (PZQ+ALB/MBD)",COUNTRY_INFO!$U$9:$U$993="T1 (PZQ+ALB/MBD)"), "T1 (PZQ+ALB/MBD)", " ") ->  | K63: 0 | O63: 0
A64: =IF(COUNTRY_INFO!A64=0," ",COUNTRY_INFO!A64) -> Uganda | B64: =IF(COUNTRY_INFO!B64=0," ",COUNTRY_INFO!B64) -> EASTERN | C64: =IF(COUNTRY_INFO!C64=0," ",COUNTRY_INFO!C64) -> NAMUTUMBA | D64: =IF(OR(COUNTRY_INFO!$T$9:$T$993="T1 (PZQ+ALB/MBD)",COUNTRY_INFO!$U$9:$U$993="T1 (PZQ+ALB/MBD)"), "T1 (PZQ+ALB/MBD)", " ") ->  | K64: 0 | O64: 0
A65: =IF(COUNTRY_INFO!A65=0," ",COUNTRY_INFO!A65) -> Uganda | B65: =IF(COUNTRY_INFO!B65=0," ",COUNTRY_INFO!B65) -> EASTERN | C65: =IF(COUNTRY_INFO!C65=0," ",COUNTRY_INFO!C65) -> NGORA | D65: =IF(OR(COUNTRY_INFO!$T$9:$T$993="T1 (PZQ+ALB/MBD)",COUNTRY_INFO!$U$9:$U$993="T1 (PZQ+ALB/MBD)"), "T1 (PZQ+ALB/MBD)", " ") ->  | K65: 0 | O65: 0
A66: =IF(COUNTRY_INFO!A66=0," ",COUNTRY_INFO!A66) -> Uganda | B66: =IF(COUNTRY_INFO!B66=0," ",COUNTRY_INFO!B66) -> EASTERN | C66: =IF(COUNTRY_INFO!C66=0," ",COUNTRY_INFO!C66) -> PALLISA | D66: =IF(OR(COUNTRY_INFO!$T$9:$T$993="T1 (PZQ+ALB/MBD)",COUNTRY_INFO!$U$9:$U$993="T1 (PZQ+ALB/MBD)"), "T1 (PZQ+ALB/MBD)", " ") ->  | K66: 0 | O66: 0
A67: =IF(COUNTRY_INFO!A67=0," ",COUNTRY_INFO!A67) -> Uganda | B67: =IF(COUNTRY_INFO!B67=0," ",COUNTRY_INFO!B67) -> EASTERN | C67: =IF(COUNTRY_INFO!C67=0," ",COUNTRY_INFO!C67) -> SERERE | D67: =IF(OR(COUNTRY_INFO!$T$9:$T$993="T1 (PZQ+ALB/MBD)",COUNTRY_INFO!$U$9:$U$993="T1 (PZQ+ALB/MBD)"), "T1 (PZQ+ALB/MBD)", " ") ->  | K67: 0 | O67: 0
A68: =IF(COUNTRY_INFO!A68=0," ",COUNTRY_INFO!A68) -> Uganda | B68: =IF(COUNTRY_INFO!B68=0," ",COUNTRY_INFO!B68) -> EASTERN | C68: =IF(COUNTRY_INFO!C68=0," ",COUNTRY_INFO!C68) -> SIRONKO | D68: =IF(OR(COUNTRY_INFO!$T$9:$T$993="T1 (PZQ+ALB/MBD)",COUNTRY_INFO!$U$9:$U$993="T1 (PZQ+ALB/MBD)"), "T1 (PZQ+ALB/MBD)", " ") ->  | K68: 0 | O68: 0
A69: =IF(COUNTRY_INFO!A69=0," ",COUNTRY_INFO!A69) -> Uganda | B69: =IF(COUNTRY_INFO!B69=0," ",COUNTRY_INFO!B69) -> EASTERN | C69: =IF(COUNTRY_INFO!C69=0," ",COUNTRY_INFO!C69) -> SOROTI | D69: =IF(OR(COUNTRY_INFO!$T$9:$T$993="T1 (PZQ+ALB/MBD)",COUNTRY_INFO!$U$9:$U$993="T1 (PZQ+ALB/MBD)"), "T1 (PZQ+ALB/MBD)", " ") ->  | K69: 0 | O69: 0
A70: =IF(COUNTRY_INFO!A70=0," ",COUNTRY_INFO!A70) -> Uganda | B70: =IF(COUNTRY_INFO!B70=0," ",COUNTRY_INFO!B70) -> EASTERN | C70: =IF(COUNTRY_INFO!C70=0," ",COUNTRY_INFO!C70) -> TORORO | D70: =IF(OR(COUNTRY_INFO!$T$9:$T$993="T1 (PZQ+ALB/MBD)",COUNTRY_INFO!$U$9:$U$993="T1 (PZQ+ALB/MBD)"), "T1 (PZQ+ALB/MBD)", " ") ->  | K70: 0 | O70: 0
A71: =IF(COUNTRY_INFO!A71=0," ",COUNTRY_INFO!A71) -> Uganda | B71: =IF(COUNTRY_INFO!B71=0," ",COUNTRY_INFO!B71) -> NORTHERN | C71: =IF(COUNTRY_INFO!C71=0," ",COUNTRY_INFO!C71) -> ABIM | D71: =IF(OR(COUNTRY_INFO!$T$9:$T$993="T1 (PZQ+ALB/MBD)",COUNTRY_INFO!$U$9:$U$993="T1 (PZQ+ALB/MBD)"), "T1 (PZQ+ALB/MBD)", " ") ->  | K71: 0 | O71: 0
A72: =IF(COUNTRY_INFO!A72=0," ",COUNTRY_INFO!A72) -> Uganda | B72: =IF(COUNTRY_INFO!B72=0," ",COUNTRY_INFO!B72) -> NORTHERN | C72: =IF(COUNTRY_INFO!C72=0," ",COUNTRY_INFO!C72) -> ADJUMANI | D72: =IF(OR(COUNTRY_INFO!$T$9:$T$993="T1 (PZQ+ALB/MBD)",COUNTRY_INFO!$U$9:$U$993="T1 (PZQ+ALB/MBD)"), "T1 (PZQ+ALB/MBD)", " ") -> T1 (PZQ+ALB/MBD) | E72: PZQ+MBD | F72: Dec 2020 | I72: 22959 | K72: 22959 | M72: 18353 | N72: 0 | O72: 18353 | Q72: 79.93815062 | S72: 79.93815062
A73: =IF(COUNTRY_INFO!A73=0," ",COUNTRY_INFO!A73) -> Uganda | B73: =IF(COUNTRY_INFO!B73=0," ",COUNTRY_INFO!B73) -> NORTHERN | C73: =IF(COUNTRY_INFO!C73=0," ",COUNTRY_INFO!C73) -> AGAGO | D73: =IF(OR(COUNTRY_INFO!$T$9:$T$993="T1 (PZQ+ALB/MBD)",COUNTRY_INFO!$U$9:$U$993="T1 (PZQ+ALB/MBD)"), "T1 (PZQ+ALB/MBD)", " ") ->  | K73: 0 | O73: 0
A74: =IF(COUNTRY_INFO!A74=0," ",COUNTRY_INFO!A74) -> Uganda | B74: =IF(COUNTRY_INFO!B74=0," ",COUNTRY_INFO!B74) -> NORTHERN | C74: =IF(COUNTRY_INFO!C74=0," ",COUNTRY_INFO!C74) -> ALEBTONG | D74: =IF(OR(COUNTRY_INFO!$T$9:$T$993="T1 (PZQ+ALB/MBD)",COUNTRY_INFO!$U$9:$U$993="T1 (PZQ+ALB/MBD)"), "T1 (PZQ+ALB/MBD)", " ") ->  | K74: =MAX(H74:I74)+G74+J74 -> 0 | O74: =SUM(L74:N74) -> 0 | P74: =IF(G74<>0, IF(L74/G74*100=0, "-", L74/G74*100), " ") ->  | Q74: =IF(OR(I74<>0,H74<>0), IF(M74/MAX(H74,I74)*100=0, "-", M74/MAX(H74,I74)*100), " ") ->  | R74: =IF(J74<>0, IF(N74/J74*100=0, "-", N74/J74*100), " ") ->  | S74: =IF(K74<>0, IF(O74/K74*100=0, "-", O74/K74*100), " ") -> 
A75: =IF(COUNTRY_INFO!A75=0," ",COUNTRY_INFO!A75) -> Uganda | B75: =IF(COUNTRY_INFO!B75=0," ",COUNTRY_INFO!B75) -> NORTHERN | C75: =IF(COUNTRY_INFO!C75=0," ",COUNTRY_INFO!C75) -> AMOLATAR | D75: =IF(OR(COUNTRY_INFO!$T$9:$T$993="T1 (PZQ+ALB/MBD)",COUNTRY_INFO!$U$9:$U$993="T1 (PZQ+ALB/MBD)"), "T1 (PZQ+ALB/MBD)", " ") ->  | K75: 0 | O75: 0
A76: =IF(COUNTRY_INFO!A76=0," ",COUNTRY_INFO!A76) -> Uganda | B76: =IF(COUNTRY_INFO!B76=0," ",COUNTRY_INFO!B76) -> NORTHERN | C76: =IF(COUNTRY_INFO!C76=0," ",COUNTRY_INFO!C76) -> AMUDAT | D76: =IF(OR(COUNTRY_INFO!$T$9:$T$993="T1 (PZQ+ALB/MBD)",COUNTRY_INFO!$U$9:$U$993="T1 (PZQ+ALB/MBD)"), "T1 (PZQ+ALB/MBD)", " ") ->  | K76: 0 | O76: 0
A77: =IF(COUNTRY_INFO!A77=0," ",COUNTRY_INFO!A77) -> Uganda | B77: =IF(COUNTRY_INFO!B77=0," ",COUNTRY_INFO!B77) -> NORTHERN | C77: =IF(COUNTRY_INFO!C77=0," ",COUNTRY_INFO!C77) -> AMURU | D77: =IF(OR(COUNTRY_INFO!$T$9:$T$993="T1 (PZQ+ALB/MBD)",COUNTRY_INFO!$U$9:$U$993="T1 (PZQ+ALB/MBD)"), "T1 (PZQ+ALB/MBD)", " ") -> T1 (PZQ+ALB/MBD) | E77: PZQ+MBD | F77: Dec 2020 | I77: 119164 | K77: 119164 | M77: 109063 | N77: 0 | O77: 109063 | Q77: 91.52344668 | S77: 91.52344668
A78: =IF(COUNTRY_INFO!A78=0," ",COUNTRY_INFO!A78) -> Uganda | B78: =IF(COUNTRY_INFO!B78=0," ",COUNTRY_INFO!B78) -> NORTHERN | C78: =IF(COUNTRY_INFO!C78=0," ",COUNTRY_INFO!C78) -> APAC | D78: =IF(OR(COUNTRY_INFO!$T$9:$T$993="T1 (PZQ+ALB/MBD)",COUNTRY_INFO!$U$9:$U$993="T1 (PZQ+ALB/MBD)"), "T1 (PZQ+ALB/MBD)", " ") ->  | K78: 0 | O78: 0
A79: =IF(COUNTRY_INFO!A79=0," ",COUNTRY_INFO!A79) -> Uganda | B79: =IF(COUNTRY_INFO!B79=0," ",COUNTRY_INFO!B79) -> NORTHERN | C79: =IF(COUNTRY_INFO!C79=0," ",COUNTRY_INFO!C79) -> KWANIA | D79: =IF(OR(COUNTRY_INFO!$T$9:$T$993="T1 (PZQ+ALB/MBD)",COUNTRY_INFO!$U$9:$U$993="T1 (PZQ+ALB/MBD)"), "T1 (PZQ+ALB/MBD)", " ") ->  | K79: 0 | O79: 0
A80: =IF(COUNTRY_INFO!A80=0," ",COUNTRY_INFO!A80) -> Uganda | B80: =IF(COUNTRY_INFO!B80=0," ",COUNTRY_INFO!B80) -> NORTHERN | C80: =IF(COUNTRY_INFO!C80=0," ",COUNTRY_INFO!C80) -> ARUA | D80: =IF(OR(COUNTRY_INFO!$T$9:$T$993="T1 (PZQ+ALB/MBD)",COUNTRY_INFO!$U$9:$U$993="T1 (PZQ+ALB/MBD)"), "T1 (PZQ+ALB/MBD)", " ") -> T1 (PZQ+ALB/MBD) | E80: PZQ+MBD | F80: Dec 2020 | I80: 216300 | K80: 216300 | M80: 207734 | N80: 2471 | O80: 210205 | Q80: 96.03975959 | S80: 97.18215442
A81: =IF(COUNTRY_INFO!A81=0," ",COUNTRY_INFO!A81) -> Uganda | B81: =IF(COUNTRY_INFO!B81=0," ",COUNTRY_INFO!B81) -> NORTHERN | C81: =IF(COUNTRY_INFO!C81=0," ",COUNTRY_INFO!C81) -> MADI-OKOLLO | D81: =IF(OR(COUNTRY_INFO!$T$9:$T$993="T1 (PZQ+ALB/MBD)",COUNTRY_INFO!$U$9:$U$993="T1 (PZQ+ALB/MBD)"), "T1 (PZQ+ALB/MBD)", " ") -> T1 (PZQ+ALB/MBD) | E81: PZQ+MBD | F81: Dec 2020 | I81: 61160 | K81: 61160 | M81: 60139 | N81: 1087 | O81: 61226 | Q81: 98.33060824 | S81: 100.1079137
A82: =IF(COUNTRY_INFO!A82=0," ",COUNTRY_INFO!A82) -> Uganda | B82: =IF(COUNTRY_INFO!B82=0," ",COUNTRY_INFO!B82) -> NORTHERN | C82: =IF(COUNTRY_INFO!C82=0," ",COUNTRY_INFO!C82) -> DOKOLO | D82: =IF(OR(COUNTRY_INFO!$T$9:$T$993="T1 (PZQ+ALB/MBD)",COUNTRY_INFO!$U$9:$U$993="T1 (PZQ+ALB/MBD)"), "T1 (PZQ+ALB/MBD)", " ") ->  | K82: 0 | O82: 0
A83: =IF(COUNTRY_INFO!A83=0," ",COUNTRY_INFO!A83) -> Uganda | B83: =IF(COUNTRY_INFO!B83=0," ",COUNTRY_INFO!B83) -> NORTHERN | C83: =IF(COUNTRY_INFO!C83=0," ",COUNTRY_INFO!C83) -> GULU | D83: =IF(OR(COUNTRY_INFO!$T$9:$T$993="T1 (PZQ+ALB/MBD)",COUNTRY_INFO!$U$9:$U$993="T1 (PZQ+ALB/MBD)"), "T1 (PZQ+ALB/MBD)", " ") -> T1 (PZQ+ALB/MBD) | E83: PZQ+MBD | F83: Dec 2020 | I83: 71516 | K83: 71516 | M83: 50321 | N83: 0 | O83: 50321 | Q83: 70.36327535 | S83: 70.36327535
A84: =IF(COUNTRY_INFO!A84=0," ",COUNTRY_INFO!A84) -> Uganda | B84: =IF(COUNTRY_INFO!B84=0," ",COUNTRY_INFO!B84) -> NORTHERN | C84: =IF(COUNTRY_INFO!C84=0," ",COUNTRY_INFO!C84) -> KAABONG | D84: =IF(OR(COUNTRY_INFO!$T$9:$T$993="T1 (PZQ+ALB/MBD)",COUNTRY_INFO!$U$9:$U$993="T1 (PZQ+ALB/MBD)"), "T1 (PZQ+ALB/MBD)", " ") ->  | K84: 0 | O84: 0
A85: =IF(COUNTRY_INFO!A85=0," ",COUNTRY_INFO!A85) -> Uganda | B85: =IF(COUNTRY_INFO!B85=0," ",COUNTRY_INFO!B85) -> NORTHERN | C85: =IF(COUNTRY_INFO!C85=0," ",COUNTRY_INFO!C85) -> KARENGA | D85: =IF(OR(COUNTRY_INFO!$T$9:$T$993="T1 (PZQ+ALB/MBD)",COUNTRY_INFO!$U$9:$U$993="T1 (PZQ+ALB/MBD)"), "T1 (PZQ+ALB/MBD)", " ") ->  | K85: 0 | O85: 0
A86: =IF(COUNTRY_INFO!A86=0," ",COUNTRY_INFO!A86) -> Uganda | B86: =IF(COUNTRY_INFO!B86=0," ",COUNTRY_INFO!B86) -> NORTHERN | C86: =IF(COUNTRY_INFO!C86=0," ",COUNTRY_INFO!C86) -> KITGUM | D86: =IF(OR(COUNTRY_INFO!$T$9:$T$993="T1 (PZQ+ALB/MBD)",COUNTRY_INFO!$U$9:$U$993="T1 (PZQ+ALB/MBD)"), "T1 (PZQ+ALB/MBD)", " ") -> T1 (PZQ+ALB/MBD) | E86: PZQ+MBD | F86: Dec 2020 | I86: 80715 | J86: 16069 | K86: 96784 | M86: 76377 | N86: 16069 | O86: 92446 | Q86: 94.62553429 | R86: 100 | S86: 95.51785419
A87: =IF(COUNTRY_INFO!A87=0," ",COUNTRY_INFO!A87) -> Uganda | B87: =IF(COUNTRY_INFO!B87=0," ",COUNTRY_INFO!B87) -> NORTHERN | C87: =IF(COUNTRY_INFO!C87=0," ",COUNTRY_INFO!C87) -> KOBOKO | D87: =IF(OR(COUNTRY_INFO!$T$9:$T$993="T1 (PZQ+ALB/MBD)",COUNTRY_INFO!$U$9:$U$993="T1 (PZQ+ALB/MBD)"), "T1 (PZQ+ALB/MBD)", " ") ->  | K87: 0 | O87: 0
A88: =IF(COUNTRY_INFO!A88=0," ",COUNTRY_INFO!A88) -> Uganda | B88: =IF(COUNTRY_INFO!B88=0," ",COUNTRY_INFO!B88) -> NORTHERN | C88: =IF(COUNTRY_INFO!C88=0," ",COUNTRY_INFO!C88) -> KOLE | D88: =IF(OR(COUNTRY_INFO!$T$9:$T$993="T1 (PZQ+ALB/MBD)",COUNTRY_INFO!$U$9:$U$993="T1 (PZQ+ALB/MBD)"), "T1 (PZQ+ALB/MBD)", " ") ->  | K88: 0 | O88: 0
A89: =IF(COUNTRY_INFO!A89=0," ",COUNTRY_INFO!A89) -> Uganda | B89: =IF(COUNTRY_INFO!B89=0," ",COUNTRY_INFO!B89) -> NORTHERN | C89: =IF(COUNTRY_INFO!C89=0," ",COUNTRY_INFO!C89) -> KOTIDO | D89: =IF(OR(COUNTRY_INFO!$T$9:$T$993="T1 (PZQ+ALB/MBD)",COUNTRY_INFO!$U$9:$U$993="T1 (PZQ+ALB/MBD)"), "T1 (PZQ+ALB/MBD)", " ") ->  | K89: 0 | O89: 0
A90: =IF(COUNTRY_INFO!A90=0," ",COUNTRY_INFO!A90) -> Uganda | B90: =IF(COUNTRY_INFO!B90=0," ",COUNTRY_INFO!B90) -> NORTHERN | C90: =IF(COUNTRY_INFO!C90=0," ",COUNTRY_INFO!C90) -> LAMWO | D90: =IF(OR(COUNTRY_INFO!$T$9:$T$993="T1 (PZQ+ALB/MBD)",COUNTRY_INFO!$U$9:$U$993="T1 (PZQ+ALB/MBD)"), "T1 (PZQ+ALB/MBD)", " ") -> T1 (PZQ+ALB/MBD) | E90: PZQ+MBD | F90: Dec 2020 | I90: 29686 | K90: 29686 | M90: 26590 | N90: 0 | O90: 26590 | Q90: 89.57084147 | S90: 89.57084147
A91: =IF(COUNTRY_INFO!A91=0," ",COUNTRY_INFO!A91) -> Uganda | B91: =IF(COUNTRY_INFO!B91=0," ",COUNTRY_INFO!B91) -> NORTHERN | C91: =IF(COUNTRY_INFO!C91=0," ",COUNTRY_INFO!C91) -> LIRA | D91: =IF(OR(COUNTRY_INFO!$T$9:$T$993="T1 (PZQ+ALB/MBD)",COUNTRY_INFO!$U$9:$U$993="T1 (PZQ+ALB/MBD)"), "T1 (PZQ+ALB/MBD)", " ") ->  | K91: 0 | O91: 0
A92: =IF(COUNTRY_INFO!A92=0," ",COUNTRY_INFO!A92) -> Uganda | B92: =IF(COUNTRY_INFO!B92=0," ",COUNTRY_INFO!B92) -> NORTHERN | C92: =IF(COUNTRY_INFO!C92=0," ",COUNTRY_INFO!C92) -> MARACHA | D92: =IF(OR(COUNTRY_INFO!$T$9:$T$993="T1 (PZQ+ALB/MBD)",COUNTRY_INFO!$U$9:$U$993="T1 (PZQ+ALB/MBD)"), "T1 (PZQ+ALB/MBD)", " ") ->  | K92: 0 | O92: 0
A93: =IF(COUNTRY_INFO!A93=0," ",COUNTRY_INFO!A93) -> Uganda | B93: =IF(COUNTRY_INFO!B93=0," ",COUNTRY_INFO!B93) -> NORTHERN | C93: =IF(COUNTRY_INFO!C93=0," ",COUNTRY_INFO!C93) -> MOROTO | D93: =IF(OR(COUNTRY_INFO!$T$9:$T$993="T1 (PZQ+ALB/MBD)",COUNTRY_INFO!$U$9:$U$993="T1 (PZQ+ALB/MBD)"), "T1 (PZQ+ALB/MBD)", " ") ->  | K93: 0 | O93: 0
A94: =IF(COUNTRY_INFO!A94=0," ",COUNTRY_INFO!A94) -> Uganda | B94: =IF(COUNTRY_INFO!B94=0," ",COUNTRY_INFO!B94) -> NORTHERN | C94: =IF(COUNTRY_INFO!C94=0," ",COUNTRY_INFO!C94) -> MOYO | D94: =IF(OR(COUNTRY_INFO!$T$9:$T$993="T1 (PZQ+ALB/MBD)",COUNTRY_INFO!$U$9:$U$993="T1 (PZQ+ALB/MBD)"), "T1 (PZQ+ALB/MBD)", " ") -> T1 (PZQ+ALB/MBD) | E94: PZQ+MBD | F94: Dec 2020 | I94: 10825 | K94: 10825 | M94: 10041 | N94: 0 | O94: 10041 | Q94: 92.75750577 | S94: 92.75750577
A95: =IF(COUNTRY_INFO!A95=0," ",COUNTRY_INFO!A95) -> Uganda | B95: =IF(COUNTRY_INFO!B95=0," ",COUNTRY_INFO!B95) -> NORTHERN | C95: =IF(COUNTRY_INFO!C95=0," ",COUNTRY_INFO!C95) -> OBONGI | D95: =IF(OR(COUNTRY_INFO!$T$9:$T$993="T1 (PZQ+ALB/MBD)",COUNTRY_INFO!$U$9:$U$993="T1 (PZQ+ALB/MBD)"), "T1 (PZQ+ALB/MBD)", " ") -> T1 (PZQ+ALB/MBD) | E95: PZQ+MBD | F95: Dec 2020 | I95: 19118 | K95: 19118 | M95: 17145 | N95: 7668 | O95: 24813 | Q95: 89.67988283 | S95: 129.7886808
A96: =IF(COUNTRY_INFO!A96=0," ",COUNTRY_INFO!A96) -> Uganda | B96: =IF(COUNTRY_INFO!B96=0," ",COUNTRY_INFO!B96) -> NORTHERN | C96: =IF(COUNTRY_INFO!C96=0," ",COUNTRY_INFO!C96) -> NABILATUK | D96: =IF(OR(COUNTRY_INFO!$T$9:$T$993="T1 (PZQ+ALB/MBD)",COUNTRY_INFO!$U$9:$U$993="T1 (PZQ+ALB/MBD)"), "T1 (PZQ+ALB/MBD)", " ") ->  | K96: 0 | O96: 0
A97: =IF(COUNTRY_INFO!A97=0," ",COUNTRY_INFO!A97) -> Uganda | B97: =IF(COUNTRY_INFO!B97=0," ",COUNTRY_INFO!B97) -> NORTHERN | C97: =IF(COUNTRY_INFO!C97=0," ",COUNTRY_INFO!C97) -> NAKAPIRIPIRIT | D97: =IF(OR(COUNTRY_INFO!$T$9:$T$993="T1 (PZQ+ALB/MBD)",COUNTRY_INFO!$U$9:$U$993="T1 (PZQ+ALB/MBD)"), "T1 (PZQ+ALB/MBD)", " ") ->  | K97: 0 | O97: 0
A98: =IF(COUNTRY_INFO!A98=0," ",COUNTRY_INFO!A98) -> Uganda | B98: =IF(COUNTRY_INFO!B98=0," ",COUNTRY_INFO!B98) -> NORTHERN | C98: =IF(COUNTRY_INFO!C98=0," ",COUNTRY_INFO!C98) -> NAPAK | D98: =IF(OR(COUNTRY_INFO!$T$9:$T$993="T1 (PZQ+ALB/MBD)",COUNTRY_INFO!$U$9:$U$993="T1 (PZQ+ALB/MBD)"), "T1 (PZQ+ALB/MBD)", " ") ->  | K98: 0 | O98: 0
A99: =IF(COUNTRY_INFO!A99=0," ",COUNTRY_INFO!A99) -> Uganda | B99: =IF(COUNTRY_INFO!B99=0," ",COUNTRY_INFO!B99) -> NORTHERN | C99: =IF(COUNTRY_INFO!C99=0," ",COUNTRY_INFO!C99) -> NEBBI | D99: =IF(OR(COUNTRY_INFO!$T$9:$T$993="T1 (PZQ+ALB/MBD)",COUNTRY_INFO!$U$9:$U$993="T1 (PZQ+ALB/MBD)"), "T1 (PZQ+ALB/MBD)", " ") ->  | K99: 0 | O99: 0
A100: =IF(COUNTRY_INFO!A100=0," ",COUNTRY_INFO!A100) -> Uganda | B100: =IF(COUNTRY_INFO!B100=0," ",COUNTRY_INFO!B100) -> NORTHERN | C100: =IF(COUNTRY_INFO!C100=0," ",COUNTRY_INFO!C100) -> NWOYA | D100: =IF(OR(COUNTRY_INFO!$T$9:$T$993="T1 (PZQ+ALB/MBD)",COUNTRY_INFO!$U$9:$U$993="T1 (PZQ+ALB/MBD)"), "T1 (PZQ+ALB/MBD)", " ") -> T1 (PZQ+ALB/MBD) | E100: PZQ+MBD | F100: Dec 2020 | I100: 46406 | K100: 46406 | M100: 42820 | N100: 0 | O100: 42820 | Q100: 92.27255096 | S100: 92.27255096
A101: =IF(COUNTRY_INFO!A101=0," ",COUNTRY_INFO!A101) -> Uganda | B101: =IF(COUNTRY_INFO!B101=0," ",COUNTRY_INFO!B101) -> NORTHERN | C101: =IF(COUNTRY_INFO!C101=0," ",COUNTRY_INFO!C101) -> OMORO | D101: =IF(OR(COUNTRY_INFO!$T$9:$T$993="T1 (PZQ+ALB/MBD)",COUNTRY_INFO!$U$9:$U$993="T1 (PZQ+ALB/MBD)"), "T1 (PZQ+ALB/MBD)", " ") -> T1 (PZQ+ALB/MBD) | E101: PZQ+MBD | F101: Dec 2020 | I101: 67911 | K101: 67911 | M101: 55657 | N101: 0 | O101: 55657 | Q101: 81.95579508 | S101: 81.95579508
A102: =IF(COUNTRY_INFO!A102=0," ",COUNTRY_INFO!A102) -> Uganda | B102: =IF(COUNTRY_INFO!B102=0," ",COUNTRY_INFO!B102) -> NORTHERN | C102: =IF(COUNTRY_INFO!C102=0," ",COUNTRY_INFO!C102) -> OTUKE | D102: =IF(OR(COUNTRY_INFO!$T$9:$T$993="T1 (PZQ+ALB/MBD)",COUNTRY_INFO!$U$9:$U$993="T1 (PZQ+ALB/MBD)"), "T1 (PZQ+ALB/MBD)", " ") ->  | K102: 0 | O102: 0
A103: =IF(COUNTRY_INFO!A103=0," ",COUNTRY_INFO!A103) -> Uganda | B103: =IF(COUNTRY_INFO!B103=0," ",COUNTRY_INFO!B103) -> NORTHERN | C103: =IF(COUNTRY_INFO!C103=0," ",COUNTRY_INFO!C103) -> OYAM | D103: =IF(OR(COUNTRY_INFO!$T$9:$T$993="T1 (PZQ+ALB/MBD)",COUNTRY_INFO!$U$9:$U$993="T1 (PZQ+ALB/MBD)"), "T1 (PZQ+ALB/MBD)", " ") -> T1 (PZQ+ALB/MBD) | E103: PZQ+MBD | F103: Dec 2020 | I103: 24272 | K103: 24272 | M103: 23239 | N103: 0 | O103: 23239 | Q103: 95.74406724 | S103: 95.74406724
A104: =IF(COUNTRY_INFO!A104=0," ",COUNTRY_INFO!A104) -> Uganda | B104: =IF(COUNTRY_INFO!B104=0," ",COUNTRY_INFO!B104) -> NORTHERN | C104: =IF(COUNTRY_INFO!C104=0," ",COUNTRY_INFO!C104) -> PADER | D104: =IF(OR(COUNTRY_INFO!$T$9:$T$993="T1 (PZQ+ALB/MBD)",COUNTRY_INFO!$U$9:$U$993="T1 (PZQ+ALB/MBD)"), "T1 (PZQ+ALB/MBD)", " ") -> T1 (PZQ+ALB/MBD) | E104: PZQ+MBD | F104: Dec 2020 | I104: 62245 | K104: 62245 | M104: 54175 | N104: 0 | O104: 54175 | Q104: 87.03510322 | S104: 87.03510322
A105: =IF(COUNTRY_INFO!A105=0," ",COUNTRY_INFO!A105) -> Uganda | B105: =IF(COUNTRY_INFO!B105=0," ",COUNTRY_INFO!B105) -> NORTHERN | C105: =IF(COUNTRY_INFO!C105=0," ",COUNTRY_INFO!C105) -> PAKWACH | D105: =IF(OR(COUNTRY_INFO!$T$9:$T$993="T1 (PZQ+ALB/MBD)",COUNTRY_INFO!$U$9:$U$993="T1 (PZQ+ALB/MBD)"), "T1 (PZQ+ALB/MBD)", " ") ->  | K105: 0 | O105: 0
A106: =IF(COUNTRY_INFO!A106=0," ",COUNTRY_INFO!A106) -> Uganda | B106: =IF(COUNTRY_INFO!B106=0," ",COUNTRY_INFO!B106) -> NORTHERN | C106: =IF(COUNTRY_INFO!C106=0," ",COUNTRY_INFO!C106) -> YUMBE | D106: =IF(OR(COUNTRY_INFO!$T$9:$T$993="T1 (PZQ+ALB/MBD)",COUNTRY_INFO!$U$9:$U$993="T1 (PZQ+ALB/MBD)"), "T1 (PZQ+ALB/MBD)", " ") ->  | K106: 0 | O106: 0
A107: =IF(COUNTRY_INFO!A107=0," ",COUNTRY_INFO!A107) -> Uganda | B107: =IF(COUNTRY_INFO!B107=0," ",COUNTRY_INFO!B107) -> NORTHERN | C107: =IF(COUNTRY_INFO!C107=0," ",COUNTRY_INFO!C107) -> ZOMBO | D107: =IF(OR(COUNTRY_INFO!$T$9:$T$993="T1 (PZQ+ALB/MBD)",COUNTRY_INFO!$U$9:$U$993="T1 (PZQ+ALB/MBD)"), "T1 (PZQ+ALB/MBD)", " ") ->  | K107: 0 | O107: 0
A108: =IF(COUNTRY_INFO!A108=0," ",COUNTRY_INFO!A108) -> Uganda | B108: =IF(COUNTRY_INFO!B108=0," ",COUNTRY_INFO!B108) -> WESTERN | C108: =IF(COUNTRY_INFO!C108=0," ",COUNTRY_INFO!C108) -> BUHWEJU | D108: =IF(OR(COUNTRY_INFO!$T$9:$T$993="T1 (PZQ+ALB/MBD)",COUNTRY_INFO!$U$9:$U$993="T1 (PZQ+ALB/MBD)"), "T1 (PZQ+ALB/MBD)", " ") ->  | K108: 0 | O108: 0
A109: =IF(COUNTRY_INFO!A109=0," ",COUNTRY_INFO!A109) -> Uganda | B109: =IF(COUNTRY_INFO!B109=0," ",COUNTRY_INFO!B109) -> WESTERN | C109: =IF(COUNTRY_INFO!C109=0," ",COUNTRY_INFO!C109) -> BULIISA | D109: =IF(OR(COUNTRY_INFO!$T$9:$T$993="T1 (PZQ+ALB/MBD)",COUNTRY_INFO!$U$9:$U$993="T1 (PZQ+ALB/MBD)"), "T1 (PZQ+ALB/MBD)", " ") ->  | K109: 0 | O109: 0
A110: =IF(COUNTRY_INFO!A110=0," ",COUNTRY_INFO!A110) -> Uganda | B110: =IF(COUNTRY_INFO!B110=0," ",COUNTRY_INFO!B110) -> WESTERN | C110: =IF(COUNTRY_INFO!C110=0," ",COUNTRY_INFO!C110) -> BUNDIBUGYO | D110: =IF(OR(COUNTRY_INFO!$T$9:$T$993="T1 (PZQ+ALB/MBD)",COUNTRY_INFO!$U$9:$U$993="T1 (PZQ+ALB/MBD)"), "T1 (PZQ+ALB/MBD)", " ") -> T1 (PZQ+ALB/MBD) | E110: PZQ+MBD | F110: Dec 2020 | I110: 43395 | K110: 43395 | M110: 39150 | N110: 247 | O110: 39397 | Q110: 90.21776702 | S110: 90.78695702
A111: =IF(COUNTRY_INFO!A111=0," ",COUNTRY_INFO!A111) -> Uganda | B111: =IF(COUNTRY_INFO!B111=0," ",COUNTRY_INFO!B111) -> WESTERN | C111: =IF(COUNTRY_INFO!C111=0," ",COUNTRY_INFO!C111) -> BUNYANGABU | D111: =IF(OR(COUNTRY_INFO!$T$9:$T$993="T1 (PZQ+ALB/MBD)",COUNTRY_INFO!$U$9:$U$993="T1 (PZQ+ALB/MBD)"), "T1 (PZQ+ALB/MBD)", " ") ->  | K111: 0 | O111: 0
A112: =IF(COUNTRY_INFO!A112=0," ",COUNTRY_INFO!A112) -> Uganda | B112: =IF(COUNTRY_INFO!B112=0," ",COUNTRY_INFO!B112) -> WESTERN | C112: =IF(COUNTRY_INFO!C112=0," ",COUNTRY_INFO!C112) -> BUSHENYI | D112: =IF(OR(COUNTRY_INFO!$T$9:$T$993="T1 (PZQ+ALB/MBD)",COUNTRY_INFO!$U$9:$U$993="T1 (PZQ+ALB/MBD)"), "T1 (PZQ+ALB/MBD)", " ") ->  | K112: 0 | O112: 0
A113: =IF(COUNTRY_INFO!A113=0," ",COUNTRY_INFO!A113) -> Uganda | B113: =IF(COUNTRY_INFO!B113=0," ",COUNTRY_INFO!B113) -> WESTERN | C113: =IF(COUNTRY_INFO!C113=0," ",COUNTRY_INFO!C113) -> HOIMA | D113: =IF(OR(COUNTRY_INFO!$T$9:$T$993="T1 (PZQ+ALB/MBD)",COUNTRY_INFO!$U$9:$U$993="T1 (PZQ+ALB/MBD)"), "T1 (PZQ+ALB/MBD)", " ") ->  | K113: 0 | O113: 0
A114: =IF(COUNTRY_INFO!A114=0," ",COUNTRY_INFO!A114) -> Uganda | B114: =IF(COUNTRY_INFO!B114=0," ",COUNTRY_INFO!B114) -> WESTERN | C114: =IF(COUNTRY_INFO!C114=0," ",COUNTRY_INFO!C114) -> KIKUUBE | D114: =IF(OR(COUNTRY_INFO!$T$9:$T$993="T1 (PZQ+ALB/MBD)",COUNTRY_INFO!$U$9:$U$993="T1 (PZQ+ALB/MBD)"), "T1 (PZQ+ALB/MBD)", " ") ->  | K114: 0 | O114: 0
A115: =IF(COUNTRY_INFO!A115=0," ",COUNTRY_INFO!A115) -> Uganda | B115: =IF(COUNTRY_INFO!B115=0," ",COUNTRY_INFO!B115) -> WESTERN | C115: =IF(COUNTRY_INFO!C115=0," ",COUNTRY_INFO!C115) -> IBANDA | D115: =IF(OR(COUNTRY_INFO!$T$9:$T$993="T1 (PZQ+ALB/MBD)",COUNTRY_INFO!$U$9:$U$993="T1 (PZQ+ALB/MBD)"), "T1 (PZQ+ALB/MBD)", " ") ->  | K115: 0 | O115: 0
A116: =IF(COUNTRY_INFO!A116=0," ",COUNTRY_INFO!A116) -> Uganda | B116: =IF(COUNTRY_INFO!B116=0," ",COUNTRY_INFO!B116) -> WESTERN | C116: =IF(COUNTRY_INFO!C116=0," ",COUNTRY_INFO!C116) -> ISINGIRO | D116: =IF(OR(COUNTRY_INFO!$T$9:$T$993="T1 (PZQ+ALB/MBD)",COUNTRY_INFO!$U$9:$U$993="T1 (PZQ+ALB/MBD)"), "T1 (PZQ+ALB/MBD)", " ") ->  | K116: 0 | O116: 0
A117: =IF(COUNTRY_INFO!A117=0," ",COUNTRY_INFO!A117) -> Uganda | B117: =IF(COUNTRY_INFO!B117=0," ",COUNTRY_INFO!B117) -> WESTERN | C117: =IF(COUNTRY_INFO!C117=0," ",COUNTRY_INFO!C117) -> KABALE | D117: =IF(OR(COUNTRY_INFO!$T$9:$T$993="T1 (PZQ+ALB/MBD)",COUNTRY_INFO!$U$9:$U$993="T1 (PZQ+ALB/MBD)"), "T1 (PZQ+ALB/MBD)", " ") ->  | K117: 0 | O117: 0
A118: =IF(COUNTRY_INFO!A118=0," ",COUNTRY_INFO!A118) -> Uganda | B118: =IF(COUNTRY_INFO!B118=0," ",COUNTRY_INFO!B118) -> WESTERN | C118: =IF(COUNTRY_INFO!C118=0," ",COUNTRY_INFO!C118) -> KABAROLE | D118: =IF(OR(COUNTRY_INFO!$T$9:$T$993="T1 (PZQ+ALB/MBD)",COUNTRY_INFO!$U$9:$U$993="T1 (PZQ+ALB/MBD)"), "T1 (PZQ+ALB/MBD)", " ") ->  | K118: 0 | O118: 0
A119: =IF(COUNTRY_INFO!A119=0," ",COUNTRY_INFO!A119) -> Uganda | B119: =IF(COUNTRY_INFO!B119=0," ",COUNTRY_INFO!B119) -> WESTERN | C119: =IF(COUNTRY_INFO!C119=0," ",COUNTRY_INFO!C119) -> KAGADI | D119: =IF(OR(COUNTRY_INFO!$T$9:$T$993="T1 (PZQ+ALB/MBD)",COUNTRY_INFO!$U$9:$U$993="T1 (PZQ+ALB/MBD)"), "T1 (PZQ+ALB/MBD)", " ") ->  | K119: 0 | O119: 0
A120: =IF(COUNTRY_INFO!A120=0," ",COUNTRY_INFO!A120) -> Uganda | B120: =IF(COUNTRY_INFO!B120=0," ",COUNTRY_INFO!B120) -> WESTERN | C120: =IF(COUNTRY_INFO!C120=0," ",COUNTRY_INFO!C120) -> KAKUMIRO | D120: =IF(OR(COUNTRY_INFO!$T$9:$T$993="T1 (PZQ+ALB/MBD)",COUNTRY_INFO!$U$9:$U$993="T1 (PZQ+ALB/MBD)"), "T1 (PZQ+ALB/MBD)", " ") ->  | K120: 0 | O120: 0
A121: =IF(COUNTRY_INFO!A121=0," ",COUNTRY_INFO!A121) -> Uganda | B121: =IF(COUNTRY_INFO!B121=0," ",COUNTRY_INFO!B121) -> WESTERN | C121: =IF(COUNTRY_INFO!C121=0," ",COUNTRY_INFO!C121) -> KAMWENGE | D121: =IF(OR(COUNTRY_INFO!$T$9:$T$993="T1 (PZQ+ALB/MBD)",COUNTRY_INFO!$U$9:$U$993="T1 (PZQ+ALB/MBD)"), "T1 (PZQ+ALB/MBD)", " ") ->  | K121: 0 | O121: 0
A122: =IF(COUNTRY_INFO!A122=0," ",COUNTRY_INFO!A122) -> Uganda | B122: =IF(COUNTRY_INFO!B122=0," ",COUNTRY_INFO!B122) -> WESTERN | C122: =IF(COUNTRY_INFO!C122=0," ",COUNTRY_INFO!C122) -> KITAGWENDA | D122: =IF(OR(COUNTRY_INFO!$T$9:$T$993="T1 (PZQ+ALB/MBD)",COUNTRY_INFO!$U$9:$U$993="T1 (PZQ+ALB/MBD)"), "T1 (PZQ+ALB/MBD)", " ") ->  | K122: 0 | O122: 0
A123: =IF(COUNTRY_INFO!A123=0," ",COUNTRY_INFO!A123) -> Uganda | B123: =IF(COUNTRY_INFO!B123=0," ",COUNTRY_INFO!B123) -> WESTERN | C123: =IF(COUNTRY_INFO!C123=0," ",COUNTRY_INFO!C123) -> KANUNGU | D123: =IF(OR(COUNTRY_INFO!$T$9:$T$993="T1 (PZQ+ALB/MBD)",COUNTRY_INFO!$U$9:$U$993="T1 (PZQ+ALB/MBD)"), "T1 (PZQ+ALB/MBD)", " ") ->  | K123: 0 | O123: 0
A124: =IF(COUNTRY_INFO!A124=0," ",COUNTRY_INFO!A124) -> Uganda | B124: =IF(COUNTRY_INFO!B124=0," ",COUNTRY_INFO!B124) -> WESTERN | C124: =IF(COUNTRY_INFO!C124=0," ",COUNTRY_INFO!C124) -> KASESE | D124: =IF(OR(COUNTRY_INFO!$T$9:$T$993="T1 (PZQ+ALB/MBD)",COUNTRY_INFO!$U$9:$U$993="T1 (PZQ+ALB/MBD)"), "T1 (PZQ+ALB/MBD)", " ") -> T1 (PZQ+ALB/MBD) | E124: PZQ+MBD | F124: Dec 2020 | I124: 3624 | K124: 3624 | M124: 3230 | N124: 3069 | O124: 6299 | Q124: 89.12803532 | S124: 173.8134658
A125: =IF(COUNTRY_INFO!A125=0," ",COUNTRY_INFO!A125) -> Uganda | B125: =IF(COUNTRY_INFO!B125=0," ",COUNTRY_INFO!B125) -> WESTERN | C125: =IF(COUNTRY_INFO!C125=0," ",COUNTRY_INFO!C125) -> KIBAALE | D125: =IF(OR(COUNTRY_INFO!$T$9:$T$993="T1 (PZQ+ALB/MBD)",COUNTRY_INFO!$U$9:$U$993="T1 (PZQ+ALB/MBD)"), "T1 (PZQ+ALB/MBD)", " ") ->  | K125: 0 | O125: 0
A126: =IF(COUNTRY_INFO!A126=0," ",COUNTRY_INFO!A126) -> Uganda | B126: =IF(COUNTRY_INFO!B126=0," ",COUNTRY_INFO!B126) -> WESTERN | C126: =IF(COUNTRY_INFO!C126=0," ",COUNTRY_INFO!C126) -> KIRUHURA | D126: =IF(OR(COUNTRY_INFO!$T$9:$T$993="T1 (PZQ+ALB/MBD)",COUNTRY_INFO!$U$9:$U$993="T1 (PZQ+ALB/MBD)"), "T1 (PZQ+ALB/MBD)", " ") ->  | K126: 0 | O126: 0
A127: =IF(COUNTRY_INFO!A127=0," ",COUNTRY_INFO!A127) -> Uganda | B127: =IF(COUNTRY_INFO!B127=0," ",COUNTRY_INFO!B127) -> WESTERN | C127: =IF(COUNTRY_INFO!C127=0," ",COUNTRY_INFO!C127) -> KAZO | D127: =IF(OR(COUNTRY_INFO!$T$9:$T$993="T1 (PZQ+ALB/MBD)",COUNTRY_INFO!$U$9:$U$993="T1 (PZQ+ALB/MBD)"), "T1 (PZQ+ALB/MBD)", " ") ->  | K127: 0 | O127: 0
A128: =IF(COUNTRY_INFO!A128=0," ",COUNTRY_INFO!A128) -> Uganda | B128: =IF(COUNTRY_INFO!B128=0," ",COUNTRY_INFO!B128) -> WESTERN | C128: =IF(COUNTRY_INFO!C128=0," ",COUNTRY_INFO!C128) -> KIRYANDONGO | D128: =IF(OR(COUNTRY_INFO!$T$9:$T$993="T1 (PZQ+ALB/MBD)",COUNTRY_INFO!$U$9:$U$993="T1 (PZQ+ALB/MBD)"), "T1 (PZQ+ALB/MBD)", " ") ->  | K128: 0 | O128: 0
A129: =IF(COUNTRY_INFO!A129=0," ",COUNTRY_INFO!A129) -> Uganda | B129: =IF(COUNTRY_INFO!B129=0," ",COUNTRY_INFO!B129) -> WESTERN | C129: =IF(COUNTRY_INFO!C129=0," ",COUNTRY_INFO!C129) -> KISORO | D129: =IF(OR(COUNTRY_INFO!$T$9:$T$993="T1 (PZQ+ALB/MBD)",COUNTRY_INFO!$U$9:$U$993="T1 (PZQ+ALB/MBD)"), "T1 (PZQ+ALB/MBD)", " ") ->  | K129: 0 | O129: 0
A130: =IF(COUNTRY_INFO!A130=0," ",COUNTRY_INFO!A130) -> Uganda | B130: =IF(COUNTRY_INFO!B130=0," ",COUNTRY_INFO!B130) -> WESTERN | C130: =IF(COUNTRY_INFO!C130=0," ",COUNTRY_INFO!C130) -> KYEGEGWA | D130: =IF(OR(COUNTRY_INFO!$T$9:$T$993="T1 (PZQ+ALB/MBD)",COUNTRY_INFO!$U$9:$U$993="T1 (PZQ+ALB/MBD)"), "T1 (PZQ+ALB/MBD)", " ") ->  | K130: 0 | O130: 0
A131: =IF(COUNTRY_INFO!A131=0," ",COUNTRY_INFO!A131) -> Uganda | B131: =IF(COUNTRY_INFO!B131=0," ",COUNTRY_INFO!B131) -> WESTERN | C131: =IF(COUNTRY_INFO!C131=0," ",COUNTRY_INFO!C131) -> KYENJOJO | D131: =IF(OR(COUNTRY_INFO!$T$9:$T$993="T1 (PZQ+ALB/MBD)",COUNTRY_INFO!$U$9:$U$993="T1 (PZQ+ALB/MBD)"), "T1 (PZQ+ALB/MBD)", " ") ->  | K131: 0 | O131: 0
A132: =IF(COUNTRY_INFO!A132=0," ",COUNTRY_INFO!A132) -> Uganda | B132: =IF(COUNTRY_INFO!B132=0," ",COUNTRY_INFO!B132) -> WESTERN | C132: =IF(COUNTRY_INFO!C132=0," ",COUNTRY_INFO!C132) -> MASINDI | D132: =IF(OR(COUNTRY_INFO!$T$9:$T$993="T1 (PZQ+ALB/MBD)",COUNTRY_INFO!$U$9:$U$993="T1 (PZQ+ALB/MBD)"), "T1 (PZQ+ALB/MBD)", " ") ->  | K132: 0 | O132: 0
A133: =IF(COUNTRY_INFO!A133=0," ",COUNTRY_INFO!A133) -> Uganda | B133: =IF(COUNTRY_INFO!B133=0," ",COUNTRY_INFO!B133) -> WESTERN | C133: =IF(COUNTRY_INFO!C133=0," ",COUNTRY_INFO!C133) -> MBARARA | D133: =IF(OR(COUNTRY_INFO!$T$9:$T$993="T1 (PZQ+ALB/MBD)",COUNTRY_INFO!$U$9:$U$993="T1 (PZQ+ALB/MBD)"), "T1 (PZQ+ALB/MBD)", " ") ->  | K133: 0 | O133: 0
A134: =IF(COUNTRY_INFO!A134=0," ",COUNTRY_INFO!A134) -> Uganda | B134: =IF(COUNTRY_INFO!B134=0," ",COUNTRY_INFO!B134) -> WESTERN | C134: =IF(COUNTRY_INFO!C134=0," ",COUNTRY_INFO!C134) -> RWAMPARA | D134: =IF(OR(COUNTRY_INFO!$T$9:$T$993="T1 (PZQ+ALB/MBD)",COUNTRY_INFO!$U$9:$U$993="T1 (PZQ+ALB/MBD)"), "T1 (PZQ+ALB/MBD)", " ") ->  | K134: 0 | O134: 0
A135: =IF(COUNTRY_INFO!A135=0," ",COUNTRY_INFO!A135) -> Uganda | B135: =IF(COUNTRY_INFO!B135=0," ",COUNTRY_INFO!B135) -> WESTERN | C135: =IF(COUNTRY_INFO!C135=0," ",COUNTRY_INFO!C135) -> MITOOMA | D135: =IF(OR(COUNTRY_INFO!$T$9:$T$993="T1 (PZQ+ALB/MBD)",COUNTRY_INFO!$U$9:$U$993="T1 (PZQ+ALB/MBD)"), "T1 (PZQ+ALB/MBD)", " ") ->  | K135: 0 | O135: 0
A136: =IF(COUNTRY_INFO!A136=0," ",COUNTRY_INFO!A136) -> Uganda | B136: =IF(COUNTRY_INFO!B136=0," ",COUNTRY_INFO!B136) -> WESTERN | C136: =IF(COUNTRY_INFO!C136=0," ",COUNTRY_INFO!C136) -> NTOROKO | D136: =IF(OR(COUNTRY_INFO!$T$9:$T$993="T1 (PZQ+ALB/MBD)",COUNTRY_INFO!$U$9:$U$993="T1 (PZQ+ALB/MBD)"), "T1 (PZQ+ALB/MBD)", " ") ->  | K136: 0 | O136: 0
A137: =IF(COUNTRY_INFO!A137=0," ",COUNTRY_INFO!A137) -> Uganda | B137: =IF(COUNTRY_INFO!B137=0," ",COUNTRY_INFO!B137) -> WESTERN | C137: =IF(COUNTRY_INFO!C137=0," ",COUNTRY_INFO!C137) -> NTUNGAMO | D137: =IF(OR(COUNTRY_INFO!$T$9:$T$993="T1 (PZQ+ALB/MBD)",COUNTRY_INFO!$U$9:$U$993="T1 (PZQ+ALB/MBD)"), "T1 (PZQ+ALB/MBD)", " ") ->  | K137: 0 | O137: 0
A138: =IF(COUNTRY_INFO!A138=0," ",COUNTRY_INFO!A138) -> Uganda | B138: =IF(COUNTRY_INFO!B138=0," ",COUNTRY_INFO!B138) -> WESTERN | C138: =IF(COUNTRY_INFO!C138=0," ",COUNTRY_INFO!C138) -> RUBANDA | D138: =IF(OR(COUNTRY_INFO!$T$9:$T$993="T1 (PZQ+ALB/MBD)",COUNTRY_INFO!$U$9:$U$993="T1 (PZQ+ALB/MBD)"), "T1 (PZQ+ALB/MBD)", " ") ->  | K138: =MAX(H138:I138)+G138+J138 -> 0 | O138: =SUM(L138:N138) -> 0 | P138: =IF(G138<>0, IF(L138/G138*100=0, "-", L138/G138*100), " ") ->  | Q138: =IF(OR(I138<>0,H138<>0), IF(M138/MAX(H138,I138)*100=0, "-", M138/MAX(H138,I138)*100), " ") ->  | R138: =IF(J138<>0, IF(N138/J138*100=0, "-", N138/J138*100), " ") ->  | S138: =IF(K138<>0, IF(O138/K138*100=0, "-", O138/K138*100), " ") -> 
A139: =IF(COUNTRY_INFO!A139=0," ",COUNTRY_INFO!A139) -> Uganda | B139: =IF(COUNTRY_INFO!B139=0," ",COUNTRY_INFO!B139) -> WESTERN | C139: =IF(COUNTRY_INFO!C139=0," ",COUNTRY_INFO!C139) -> RUBIRIZI | D139: =IF(OR(COUNTRY_INFO!$T$9:$T$993="T1 (PZQ+ALB/MBD)",COUNTRY_INFO!$U$9:$U$993="T1 (PZQ+ALB/MBD)"), "T1 (PZQ+ALB/MBD)", " ") ->  | K139: 0 | O139: 0
A140: =IF(COUNTRY_INFO!A140=0," ",COUNTRY_INFO!A140) -> Uganda | B140: =IF(COUNTRY_INFO!B140=0," ",COUNTRY_INFO!B140) -> WESTERN | C140: =IF(COUNTRY_INFO!C140=0," ",COUNTRY_INFO!C140) -> RUKIGA | D140: =IF(OR(COUNTRY_INFO!$T$9:$T$993="T1 (PZQ+ALB/MBD)",COUNTRY_INFO!$U$9:$U$993="T1 (PZQ+ALB/MBD)"), "T1 (PZQ+ALB/MBD)", " ") ->  | K140: 0 | O140: 0
A141: =IF(COUNTRY_INFO!A141=0," ",COUNTRY_INFO!A141) -> Uganda | B141: =IF(COUNTRY_INFO!B141=0," ",COUNTRY_INFO!B141) -> WESTERN | C141: =IF(COUNTRY_INFO!C141=0," ",COUNTRY_INFO!C141) -> RUKUNGIRI | D141: =IF(OR(COUNTRY_INFO!$T$9:$T$993="T1 (PZQ+ALB/MBD)",COUNTRY_INFO!$U$9:$U$993="T1 (PZQ+ALB/MBD)"), "T1 (PZQ+ALB/MBD)", " ") ->  | K141: 0 | O141: 0
A142: =IF(COUNTRY_INFO!A142=0," ",COUNTRY_INFO!A142) -> Uganda | B142: =IF(COUNTRY_INFO!B142=0," ",COUNTRY_INFO!B142) -> WESTERN | C142: =IF(COUNTRY_INFO!C142=0," ",COUNTRY_INFO!C142) -> SHEEMA | D142: =IF(OR(COUNTRY_INFO!$T$9:$T$993="T1 (PZQ+ALB/MBD)",COUNTRY_INFO!$U$9:$U$993="T1 (PZQ+ALB/MBD)"), "T1 (PZQ+ALB/MBD)", " ") ->  | K142: 0 | O142: 0

Sheet T2
A1: T 2 - Praziquantel (PZQ)
A2: Administrative structure, population requiring PC by age group, population treated by age group and coverage
A4: TOTAL | F4: =SUM(F$9:F$993) -> 0 | G4: 2005627 | H4: 2863434 | I4: 4869061 | J4: 0 | K4: 1700525 | L4: 2440282 | M4: 4140807 | N4: =IF(F4<>0, IF(J4/F4*100=0, "-", J4/F4*100), " ") ->  | O4: =IF(G4<>0, IF(K4/G4*100=0, "-", K4/G4*100), " ") -> 84.78769981 | P4: =IF(H4<>0, IF(L4/H4*100=0, "-", L4/H4*100), " ") -> 85.2222192 | Q4: =IF(I4<>0, IF(M4/I4*100=0, "-", M4/I4*100), " ") -> 85.04323524
D6: PC implemented | E6: Date | F6: Population targeted for T2 | J6: Population treated | N6: Programme coverage (%)
A7: Country | B7: Province/State | C7: District | F7: PreSAC | G7: SAC | H7: Adults | I7: Total | J7: PreSAC | K7: SAC | L7: Adults | M7: Total | N7: PreSAC | O7: SAC | P7: Adults | Q7: Total
